Workbook

Sheet RESUMO MODULO TOTAL
B1: EXECUÇÃO DE CAPA ASFÁLTICA EM CONCRETO BETUMINOSO USINADO A QUENTE (CBUQ), EM VIAS DE MUNICÍPIOS DIVERSOS INSERIDOS NA ÁREA DE ATUAÇÃO DA CODEVASF, NO ESTADO DO AMAPÁ (REGIÃO PORTO GRANDE) | N1: xxxxxxxxxxxx
M2: SICRO: | N2: ='SINTÉTICO SICRO'!B2 -> Amapá - Abril/2024
M3: SINAPI: | N3: =RIGHT('INSUMOS SINAPI'!A3,7) -> 07/2024
M4: Data base do orçamento: | N4: 2024-09-01
B5: =B1 -> EXECUÇÃO DE CAPA ASFÁLTICA EM CONCRETO BETUMINOSO USINADO A QUENTE (CBUQ), EM VIAS DE MUNICÍPIOS DIVERSOS INSERIDOS NA ÁREA DE ATUAÇÃO DA CODEVASF, NO ESTADO DO AMAPÁ (REGIÃO PORTO GRANDE)
B6: ITEM | C6: ORIGEM COMPOSIÇÃO | D6: CÓDIGO COMPOSIÇÃO | E6: DISCRIMINAÇÃO DOS SERVIÇOS | I6: BDI % = | J6: =BDI!C16 -> 0.2339 | K6: BDI DIFERENCIADO%: | L6: =BDI!C66 -> 0.15 | M6: R$/m² = | N6: =N49/I8 -> 111.7
I7: Total de m² | J7: Encargos Sociais: | K7: Horista R$ | L7: Mensalista R$ | M7: PREÇO UNITÁRIO COM BDI | N7: PREÇO TOTAL COM BDI
I8: ='MC MODULO'!G1*'MC MODULO'!C1*'MC MODULO'!C2 -> 224000 | K8: ='ENC. SOCIAIS'!$E$47 -> 114.44 | L8: ='ENC. SOCIAIS'!$F$47 -> 70.71
I9: UND | J9: QTDE. | K9: BDI | L9: PREÇO UNITÁRIO
E10: MOBILIZAÇÃO/DESMOBILIZAÇÃO
A11: =VLOOKUP(N11,'RESUMO MODULO TOTAL'!$O$11:$V$45,2,0) ->  | B11: 1 | C11: Codevasf | D11: Mob | E11: Mobilização | I11: kmxfrente | J11: =Mob!B64*Mob!H6 -> 1792 | K11: =(M11/L11-1) -> 0.2339 | L11: =Mob!B61 -> 110.17236 | M11: =Mob!B63 -> 135.941675 | N11: =ROUND(ROUND(J11,2)*ROUND(M11,6),2) -> 243607.48 | O11: =N11/N49 -> 0.009736198683 | P11: INCC | R11: N1 | S11: TERRAPLENAGEM | T11: =(SUMIF(P:P,"TERRAPLENAGEM",N:N)/$N$49) -> 0 | U11: =(SUMIF(P:P,"TERRAPLENAGEM",N:N)) -> 0
A12: =VLOOKUP(N12,'RESUMO MODULO TOTAL'!$O$11:$V$45,2,0) ->  | B12: 2 | C12: Codevasf | D12: Mob | E12: Desmobilização | I12: kmxfrente | J12: =Mob!H6*Mob!B64 -> 1792 | K12: =(M12/L12-1) -> 0.2339 | L12: =Mob!B61 -> 110.17236 | M12: =Mob!B63 -> 135.941675 | N12: =ROUND(ROUND(J12,2)*ROUND(M12,6),2) -> 243607.48 | O12: =N12/$N$49 -> 0.009736198683 | P12: INCC | R12: N2 | S12: PAVIMENTAÇÃO | T12: =SUMIF(P:P,"PAVIMENTAÇÃO",N:N)/$N$49 -> 0.8855405551 | U12: =(SUMIF(P:P,"PAVIMENTAÇÃO",N:N)) -> 22156933.12
E13: INSTALAÇÃO DE CANTEIRO | R13: N3 | S13: CONSULTORIA | T13: =SUMIF(P:P,"CONSULTORIA",N:N)/$N$49 -> 0 | U13: =(SUMIF(P:P,"CONSULTORIA",N:N)) -> 0
A14: =VLOOKUP(#REF!,'RESUMO MODULO TOTAL'!$O$11:$V$45,2,0) ->  | B14: 3 | C14: Codevasf | D14: Canteiro | E14: Canteiro de Obras | I14: frente | J14: ='MC MODULO'!G1 -> 16 | K14: =(M14/L14-1) -> 0.2339 | L14: =' Canteiro'!F11 -> 19147.44 | M14: =' Canteiro'!F13 -> 23626.02622 | N14: =ROUND(ROUND(J14,2)*ROUND(M14,6),2) -> 378016.42 | O14: =N14/J20 -> 1.687573304 | P14: INCC | R14: N4 | S14: DRENAGEM | T14: =SUMIF(P:P,"DRENAGEM",N:N)/$N$49 -> 0.006583745923 | U14: =(SUMIF(P:P,"DRENAGEM",N:N)) -> 164730.59
A15: =VLOOKUP(N14,'RESUMO MODULO TOTAL'!$O$11:$V$45,2,0) ->  | B15: 4 | C15: SINAPI | D15: 103689 | E15: Fornecimento e instalação de placa de obra com chapa galvanizada e estrutura de madeira. af_03/2022_ps | I15: m² | J15: ='MC MODULO'!H25 -> 256 | K15: =(M15/L15-1) -> 0.2339 | L15: =VLOOKUP(D15,'COMP Sint. Sinapi'!G7:K1048576,5,0) -> 311.73 | M15: =L15*(1+$J$6) -> 384.643647 | N15: =ROUND(ROUND(J15,2)*ROUND(M15,6),2) -> 98468.77 | P15: INCC | R15: N5 | S15: ADMINISTRAÇÃO LOCAL | T15: =SUMIF(P:P,"ADMINISTRAÇÃO LOCAL",N:N)/$N$49 -> 0 | U15: =(SUMIF(P:P,"ADMINISTRAÇÃO LOCAL",N:N)) -> 0
E16: ADMINISTRAÇÃO LOCAL DA OBRA | R16: N6 | S16: SINALIZAÇÃO VERTICAL | T16: =SUMIF(P:P,"SINALIZAÇÃO VERTICAL",N:N)/$N$49 -> 0 | U16: =(SUMIF(P:P,"SINALIZAÇÃO VERTICAL",N:N)) -> 0
B17: 5 | C17: Codevasf | D17: Adm Local | E17: Administração Local da Obra | I17: und | J17: 1 | K17: =(M17/L17-1) -> 0.2339 | L17: ='Adm Local'!J249 -> 776189.9718 | M17: ='Adm Local'!I251 -> 957740.8062 | N17: =ROUND(ROUND(J17,2)*ROUND(M17,6),2) -> 957740.81 | O17: =N17/N49 -> 0.03827778528 | P17: INCC | R17: N7 | S17: SINALIZAÇÃO HORIZONTAL | T17: =SUMIF(P:P,"SINALIZAÇÃO HORIZONTAL",N:N)/$N$49 -> 0 | U17: =(SUMIF(P:P,"SINALIZAÇÃO HORIZONTAL",N:N)) -> 0
A18: =VLOOKUP(N18,'RESUMO MODULO TOTAL'!$O$11:$V$45,2,0) ->  | E18: PAVIMENTAÇÃO | R18: N8 | S18: CAP | T18: =(SUMIF(P:P,"CAP",N:N))/$N$49 -> 0 | U18: =(SUMIF(P:P,"CAP",N:N)) -> 0
A19: =VLOOKUP(N19,'RESUMO MODULO TOTAL'!$O$11:$V$45,2,0) ->  | B19: 6 | C19: SICRO | D19: 4011463 | E19: =VLOOKUP(D19,'SINTÉTICO SICRO'!$A$4:$D$1048576,2,0) -> Concreto asfáltico - faixa C - areia e brita comerciais | I19: t | J19: ='MC MODULO'!H33 -> 26880 | K19: =(M19/L19-1) -> 0.2339 | L19: =ROUND(IF(C19="CODEVASF",VLOOKUP(D19,'CPU CODEVASF'!E:I,5,FALSE),VLOOKUP(D19,'SINTÉTICO SICRO'!A:D,4,FALSE)),6) -> 245.16 | M19: =ROUND(IF(C19="CODEVASF",VLOOKUP(D19,'CPU CODEVASF'!E:H,4,FALSE),VLOOKUP(D19,'SINTÉTICO SICRO'!A:D,4,FALSE)*(1+$J$6)),6) -> 302.502924 | N19: =ROUND(ROUND(J19,2)*ROUND(M19,6),2) -> 8131278.6 | P19: PAVIMENTAÇÃO | R19: N9 | S19: IMPRIMAÇÃO | T19: =(SUMIF(P:P,"IMPRIMAÇÃO",N:N))/$N$49 -> 0 | U19: =(SUMIF(P:P,"IMPRIMAÇÃO",N:N)) -> 0
A20: =VLOOKUP(N20,'RESUMO MODULO TOTAL'!$O$11:$V$45,2,0) ->  | B20: 7 | C20: SICRO | D20: 4011353 | E20: =VLOOKUP(D20,'SINTÉTICO SICRO'!$A$4:$D$1048576,2,0) -> Pintura de ligação | I20: m² | J20: ='MC MODULO'!H39 -> 224000 | K20: 0.2339 | L20: =ROUND(IF(C20="CODEVASF",VLOOKUP(D20,'CPU CODEVASF'!E:I,5,FALSE),VLOOKUP(D20,'SINTÉTICO SICRO'!A:D,4,FALSE)),6) -> 0.28 | M20: =ROUND(IF(C20="CODEVASF",VLOOKUP(D20,'CPU CODEVASF'!E:H,4,FALSE),VLOOKUP(D20,'SINTÉTICO SICRO'!A:D,4,FALSE)*(1+$J$6)),6) -> 0.345492 | N20: 77390.21 | P20: PAVIMENTAÇÃO | R20: N10 | S20: EMULSÃO ASFÁLTICA | T20: =(SUMIF(P:P,"EMULSÃO ASFÁLTICA",N:N))/$N$49 -> 0 | U20: =(SUMIF(P:P,"EMULSÃO ASFÁLTICA",N:N)) -> 0
A21: =VLOOKUP(N21,'RESUMO MODULO TOTAL'!$O$11:$V$45,2,0) ->  | B21: 8 | C21: SICRO | D21: 4915663 | E21: =VLOOKUP(D21,'SINTÉTICO SICRO'!$A$4:$D$1048576,2,0) -> Fresagem descontínua de revestimento asfáltico - espessura de 5 cm | I21: m³ | J21: ='MC MODULO'!H45 -> 1120 | K21: 0.2339 | L21: =ROUND(IF(C21="CODEVASF",VLOOKUP(D21,'CPU CODEVASF'!E:I,5,FALSE),VLOOKUP(D21,'SINTÉTICO SICRO'!A:D,4,FALSE)),6) -> 73.46 | M21: =ROUND(IF(C21="CODEVASF",VLOOKUP(D21,'CPU CODEVASF'!E:H,4,FALSE),VLOOKUP(D21,'SINTÉTICO SICRO'!A:D,4,FALSE)*(1+$J$6)),6) -> 90.642294 | N21: 101519.37 | P21: PAVIMENTAÇÃO | R21: N11 | S21: OBRAS COMPLEMENTARES | T21: =(SUMIF(P:P,"OBRAS COMPLEMENTARES",N:N))/$N$49 -> 0 | U21: =(SUMIF(P:P,"OBRAS COMPLEMENTARES",N:N)) -> 0
A22: =VLOOKUP(N22,'RESUMO MODULO TOTAL'!$O$11:$V$45,2,0) ->  | B22: 9 | C22: SICRO | D22: 4915618 | E22: =VLOOKUP(D22,'SINTÉTICO SICRO'!$A$4:$D$1048576,2,0) -> Recomposição de camada granular do pavimento com material de jazida | I22: m² | J22: ='MC MODULO'!H51 -> 22400 | K22: 0.2339 | L22: =ROUND(IF(C22="CODEVASF",VLOOKUP(D22,'CPU CODEVASF'!E:I,5,FALSE),VLOOKUP(D22,'SINTÉTICO SICRO'!A:D,4,FALSE)),6) -> 3.32 | M22: =ROUND(IF(C22="CODEVASF",VLOOKUP(D22,'CPU CODEVASF'!E:H,4,FALSE),VLOOKUP(D22,'SINTÉTICO SICRO'!A:D,4,FALSE)*(1+$J$6)),6) -> 4.096548 | N22: 91762.68 | P22: PAVIMENTAÇÃO | R22: N12 | S22: MOBILIZAÇÃO | T22: =(SUMIF(P:P,"MOBILIZAÇÃO",N:N))/$N$49 -> 0 | U22: =(SUMIF(P:P,"MOBILIZAÇÃO",N:N)) -> 0
A23: =VLOOKUP(N23,'RESUMO MODULO TOTAL'!$O$11:$V$45,2,0) ->  | E23: AQUISIÇÃO E TRANSPORTE DO MATERIAL BETUMINOSO | R23: N13 | S23: INCC | T23: =(SUMIF(P:P,"INCC",N:N))/$N$49 -> 0.1078757218 | U23: =(SUMIF(P:P,"INCC",N:N)) -> 2699136.86
A24: =VLOOKUP(N24,'RESUMO MODULO TOTAL'!$O$11:$V$45,2,0) ->  | B24: 10 | C24: CODEVASF | D24: CPU-13 | E24: AQUISIÇÃO DE CIMENTO ASFALTICO CAP 50/70 | I24: t | J24: =' CONSUMO DE MAT. B TOTAL'!O16 -> 1699.62 | K24: =(M24/L24-1) -> 0.1500000002 | L24: =ROUND(IF(C24="CODEVASF",VLOOKUP(D24,'CPU CODEVASF'!E:I,5,FALSE),VLOOKUP(D24,'SINTÉTICO SICRO'!A:D,4,FALSE)),6) -> 4596.061062 | M24: =ROUND(IF(C24="CODEVASF",VLOOKUP(D24,'CPU CODEVASF'!E:H,4,FALSE),VLOOKUP(D24,'SINTÉTICO SICRO'!A:D,4,FALSE)*(1+$J$6)),6) -> 5285.470222 | N24: =ROUND(ROUND(J24,2)*ROUND(M24,6),2) -> 8983290.9 | P24: PAVIMENTAÇÃO
A25: =VLOOKUP(N25,'RESUMO MODULO TOTAL'!$O$11:$V$45,2,0) ->  | B25: 11 | C25: CODEVASF | D25: CPU-17 | E25: TRANSPORTE CAP 50/70 | I25: t | J25: =' CONSUMO DE MAT. B TOTAL'!O16 -> 1699.62 | K25: 0.1499985715 | L25: =ROUND(IF(C25="CODEVASF",VLOOKUP(D25,'CPU CODEVASF'!E:I,5,FALSE),VLOOKUP(D25,'SINTÉTICO SICRO'!A:D,4,FALSE)),6) -> 1400.08 | M25: =ROUND(IF(C25="CODEVASF",VLOOKUP(D25,'CPU CODEVASF'!E:H,4,FALSE),VLOOKUP(D25,'SINTÉTICO SICRO'!A:D,4,FALSE)*(1+$J$6)),6) -> 1610.09 | N25: 2736541.17 | P25: PAVIMENTAÇÃO
A26: =VLOOKUP(N26,'RESUMO MODULO TOTAL'!$O$11:$V$45,2,0) ->  | B26: 12 | C26: CODEVASF | D26: CPU-15 | E26: AQUISIÇÃO DE EMULSÃO ASFÁLTICA RR-1C | I26: t | J26: =' CONSUMO DE MAT. B TOTAL'!O14 -> 100.8 | K26: 0.15 | L26: =ROUND(IF(C26="CODEVASF",VLOOKUP(D26,'CPU CODEVASF'!E:I,5,FALSE),VLOOKUP(D26,'SINTÉTICO SICRO'!A:D,4,FALSE)),6) -> 3274.929441 | M26: =ROUND(IF(C26="CODEVASF",VLOOKUP(D26,'CPU CODEVASF'!E:H,4,FALSE),VLOOKUP(D26,'SINTÉTICO SICRO'!A:D,4,FALSE)*(1+$J$6)),6) -> 3766.168857 | N26: 379629.82 | P26: PAVIMENTAÇÃO
A27: =VLOOKUP(N27,'RESUMO MODULO TOTAL'!$O$11:$V$45,2,0) ->  | B27: 13 | C27: CODEVASF | D27: CPU-19 | E27: TRANSPORTE RR-1C | I27: t | J27: =' CONSUMO DE MAT. B TOTAL'!O14 -> 100.8 | K27: 0.1499999996 | L27: =ROUND(IF(C27="CODEVASF",VLOOKUP(D27,'CPU CODEVASF'!E:I,5,FALSE),VLOOKUP(D27,'SINTÉTICO SICRO'!A:D,4,FALSE)),6) -> 1709.719524 | M27: =ROUND(IF(C27="CODEVASF",VLOOKUP(D27,'CPU CODEVASF'!E:H,4,FALSE),VLOOKUP(D27,'SINTÉTICO SICRO'!A:D,4,FALSE)*(1+$J$6)),6) -> 1966.177452 | N27: 198190.69 | P27: PAVIMENTAÇÃO
A28: =VLOOKUP(N28,'RESUMO MODULO TOTAL'!$O$11:$V$45,2,0) ->  | E28: SINALIZAÇÃO
A29: =VLOOKUP(N29,'RESUMO MODULO TOTAL'!$O$11:$V$45,2,0) ->  | B29: 14 | C29: SICRO | D29: 5213440 | E29: =VLOOKUP(D29,'SINTÉTICO SICRO'!$A$4:$D$1048576,2,0) -> Placa de regulamentação em aço D = 0,60 m - película retrorrefletiva tipo I + SI - fornecimento e implantação | I29: und | J29: ='MC MODULO'!H58 -> 96 | K29: =(M29/L29-1) -> 0.2339 | L29: =ROUND(IF(C29="CODEVASF",VLOOKUP(D29,'CPU CODEVASF'!E:I,5,FALSE),VLOOKUP(D29,'SINTÉTICO SICRO'!A:D,4,FALSE)),6) -> 259.78 | M29: =ROUND(IF(C29="CODEVASF",VLOOKUP(D29,'CPU CODEVASF'!E:H,4,FALSE),VLOOKUP(D29,'SINTÉTICO SICRO'!A:D,4,FALSE)*(1+$J$6)),6) -> 320.542542 | N29: =ROUND(ROUND(J29,2)*ROUND(M29,6),2) -> 30772.08 | P29: INCC
B30: 15 | C30: SICRO | D30: 5213464 | E30: =VLOOKUP(D30,'SINTÉTICO SICRO'!$A$4:$D$1048576,2,0) -> Placa de advertência em aço, lado de 0,60 m - película retrorrefletiva tipo I + SI - fornecimento e implantação | I30: und | J30: ='MC MODULO'!H63 -> 96 | K30: =M30/L30-1 -> 0.2339 | L30: =ROUND(IF(C30="CODEVASF",VLOOKUP(D30,'CPU CODEVASF'!E:I,5,FALSE),VLOOKUP(D30,'SINTÉTICO SICRO'!A:D,4,FALSE)),6) -> 259.82 | M30: =ROUND(IF(C30="CODEVASF",VLOOKUP(D30,'CPU CODEVASF'!E:H,4,FALSE),VLOOKUP(D30,'SINTÉTICO SICRO'!A:D,4,FALSE)*(1+$J$6)),6) -> 320.591898 | N30: 30776.82 | P30: INCC
A31: =VLOOKUP(N31,'RESUMO MODULO TOTAL'!$O$11:$V$45,2,0) ->  | B31: 16 | C31: SICRO | D31: 5213863 | E31: =VLOOKUP(D31,'SINTÉTICO SICRO'!$A$4:$D$1048576,2,0) -> Suporte metálico galvanizado para placa de advertência ou regulamentação - lado ou diâmetro de 0,60 m - fornecimento e implantação | I31: und | J31: ='MC MODULO'!H69 -> 192 | K31: =(M31/L31-1) -> 0.2339 | L31: =ROUND(IF(C31="CODEVASF",VLOOKUP(D31,'CPU CODEVASF'!E:I,5,FALSE),VLOOKUP(D31,'SINTÉTICO SICRO'!A:D,4,FALSE)),6) -> 456.06 | M31: =ROUND(IF(C31="CODEVASF",VLOOKUP(D31,'CPU CODEVASF'!E:H,4,FALSE),VLOOKUP(D31,'SINTÉTICO SICRO'!A:D,4,FALSE)*(1+$J$6)),6) -> 562.732434 | N31: 108044.63 | P31: INCC
A32: =VLOOKUP(N32,'RESUMO MODULO TOTAL'!$O$11:$V$45,2,0) ->  | B32: 17 | C32: SICRO | D32: 5213400 | E32: =VLOOKUP(D32,'SINTÉTICO SICRO'!$A$4:$D$1048576,2,0) -> Pintura de faixa com tinta acrílica - espessura de 0,4 mm | I32: m² | J32: ='MC MODULO'!H74+'MC MODULO'!H79 -> 7680 | K32: 0.2339 | L32: =ROUND(IF(C32="CODEVASF",VLOOKUP(D32,'CPU CODEVASF'!E:I,5,FALSE),VLOOKUP(D32,'SINTÉTICO SICRO'!A:D,4,FALSE)),6) -> 25.03 | M32: =ROUND(IF(C32="CODEVASF",VLOOKUP(D32,'CPU CODEVASF'!E:H,4,FALSE),VLOOKUP(D32,'SINTÉTICO SICRO'!A:D,4,FALSE)*(1+$J$6)),6) -> 30.884517 | N32: 237193.09 | P32: INCC
A33: =VLOOKUP(N33,'RESUMO MODULO TOTAL'!$O$11:$V$45,2,0) ->  | E33: DRENAGEM
A34: =VLOOKUP(N34,'RESUMO MODULO TOTAL'!$O$11:$V$45,2,0) ->  | B34: 18 | C34: SICRO | D34: 4915777 | E34: =VLOOKUP(D34,'SINTÉTICO SICRO'!$A$4:$D$1048576,2,0) -> Reassentamento manual de meio-fio com material arrancado da pista | I34: m | J34: ='MC MODULO'!H86 -> 6400 | K34: =(M34/L34-1) -> 0.2339 | L34: =ROUND(IF(C34="CODEVASF",VLOOKUP(D34,'CPU CODEVASF'!E:I,5,FALSE),VLOOKUP(D34,'SINTÉTICO SICRO'!A:D,4,FALSE)),6) -> 13.86 | M34: =ROUND(IF(C34="CODEVASF",VLOOKUP(D34,'CPU CODEVASF'!E:H,4,FALSE),VLOOKUP(D34,'SINTÉTICO SICRO'!A:D,4,FALSE)*(1+$J$6)),6) -> 17.101854 | N34: =ROUND(ROUND(J34,2)*ROUND(M34,6),2) -> 109451.87 | P34: DRENAGEM
A35: =VLOOKUP(N35,'RESUMO MODULO TOTAL'!$O$11:$V$45,2,0) ->  | B35: 19 | C35: SICRO | D35: 4915708 | E35: =VLOOKUP(D35,'SINTÉTICO SICRO'!$A$4:$D$1048576,2,0) -> Limpeza de sarjeta e meio-fio | I35: m | J35: ='MC MODULO'!H91 -> 64000 | K35: 0.2339 | L35: =ROUND(IF(C35="CODEVASF",VLOOKUP(D35,'CPU CODEVASF'!E:I,5,FALSE),VLOOKUP(D35,'SINTÉTICO SICRO'!A:D,4,FALSE)),6) -> 0.7 | M35: =ROUND(IF(C35="CODEVASF",VLOOKUP(D35,'CPU CODEVASF'!E:H,4,FALSE),VLOOKUP(D35,'SINTÉTICO SICRO'!A:D,4,FALSE)*(1+$J$6)),6) -> 0.86373 | N35: 55278.72 | P35: DRENAGEM
A36: =VLOOKUP(N36,'RESUMO MODULO TOTAL'!$O$11:$V$45,2,0) ->  | B36: 20 | C36: SICRO | D36: 4915724 | E36: =VLOOKUP(D36,'SINTÉTICO SICRO'!$A$4:$D$1048576,2,0) -> Caiação mecanizada com fixador de cal | I36: m² | J36: ='MC MODULO'!H96 -> 7680 | K36: 0.2339 | L36: =ROUND(IF(C36="CODEVASF",VLOOKUP(D36,'CPU CODEVASF'!E:I,5,FALSE),VLOOKUP(D36,'SINTÉTICO SICRO'!A:D,4,FALSE)),6) -> 2.14 | M36: =ROUND(IF(C36="CODEVASF",VLOOKUP(D36,'CPU CODEVASF'!E:H,4,FALSE),VLOOKUP(D36,'SINTÉTICO SICRO'!A:D,4,FALSE)*(1+$J$6)),6) -> 2.640546 | N36: 20279.39 | P36: INCC
A37: =VLOOKUP(N37,'RESUMO MODULO TOTAL'!$O$11:$V$45,2,0) ->  | E37: PROJETO EXECUTIVO
A38: =VLOOKUP(N38,'RESUMO MODULO TOTAL'!$O$11:$V$45,2,0) ->  | B38: 21 | C38: Codevasf | D38: Composição Própria | E38: Projeto Executivo | I38: m² | J38: ='MC MODULO'!H110 -> 224000 | K38: =(M38/L38-1) -> 0.2338997766 | L38: =ROUND(('Projeto Executivo'!G29)/(1+J6),6) -> 1.268589 | M38: ='Projeto Executivo'!G29 -> 1.565311684 | N38: =ROUND(ROUND(J38,2)*ROUND(M38,6),2) -> 350629.89 | O38: =N38/N49 -> 0.01401353634 | P38: INCC
A39: =VLOOKUP(N39,'RESUMO MODULO TOTAL'!$O$11:$V$45,2,0) ->  | E39: MOMENTO DE TRANSPORTE
A40: =VLOOKUP(N40,'RESUMO MODULO TOTAL'!$O$11:$V$45,2,0) ->  | B40: 22 | C40: SICRO | D40: 5914359 | E40: =VLOOKUP(D40,'SINTÉTICO SICRO'!$A$4:$D$1048576,2,0) -> Transporte com caminhão basculante de 10 m³ - rodovia em leito natural | I40: tkm | J40: =ROUND(SUMIF('MOMENTO DE TRANSPORTE - PRINC'!A:A,'RESUMO MODULO TOTAL'!D40,'MOMENTO DE TRANSPORTE - PRINC'!K:K)+SUMIF('MOMENTO DE TRANSPORTE - AUX'!A:A,'RESUMO MODULO TOTAL'!D40,'MOMENTO DE TRANSPORTE - AUX'!K:K),2) -> 13547.52 | K40: =(M40/L40-1) -> 0.2339 | L40: =ROUND(IF(C40="CODEVASF",VLOOKUP(D40,'CPU CODEVASF'!E:I,5,FALSE),VLOOKUP(D40,'SINTÉTICO SICRO'!A:D,4,FALSE)),6) -> 1.3 | M40: =ROUND(IF(C40="CODEVASF",VLOOKUP(D40,'CPU CODEVASF'!E:H,4,FALSE),VLOOKUP(D40,'SINTÉTICO SICRO'!A:D,4,FALSE)*(1+$J$6)),6) -> 1.60407 | N40: =ROUND(ROUND(J40,2)*ROUND(M40,6),2) -> 21731.17 | P40: PAVIMENTAÇÃO
A41: =VLOOKUP(N41,'RESUMO MODULO TOTAL'!$O$11:$V$45,2,0) ->  | B41: 23 | C41: SICRO | D41: 5914374 | E41: =VLOOKUP(D41,'SINTÉTICO SICRO'!$A$4:$D$1048576,2,0) -> Transporte com caminhão basculante de 10 m³ - rodovia em revestimento primário | I41: tkm | J41: =ROUND(SUMIF('MOMENTO DE TRANSPORTE - PRINC'!A:A,'RESUMO MODULO TOTAL'!D41,'MOMENTO DE TRANSPORTE - PRINC'!K:K)+SUMIF('MOMENTO DE TRANSPORTE - AUX'!A:A,'RESUMO MODULO TOTAL'!D41,'MOMENTO DE TRANSPORTE - AUX'!K:K),2) -> 0 | K41: 0.2339 | L41: =ROUND(IF(C41="CODEVASF",VLOOKUP(D41,'CPU CODEVASF'!E:I,5,FALSE),VLOOKUP(D41,'SINTÉTICO SICRO'!A:D,4,FALSE)),6) -> 1.04 | M41: =ROUND(IF(C41="CODEVASF",VLOOKUP(D41,'CPU CODEVASF'!E:H,4,FALSE),VLOOKUP(D41,'SINTÉTICO SICRO'!A:D,4,FALSE)*(1+$J$6)),6) -> 1.283256 | N41: 0 | P41: PAVIMENTAÇÃO
A42: =VLOOKUP(N42,'RESUMO MODULO TOTAL'!$O$11:$V$45,2,0) ->  | B42: 24 | C42: SICRO | D42: 5914389 | E42: =VLOOKUP(D42,'SINTÉTICO SICRO'!$A$4:$D$1048576,2,0) -> Transporte com caminhão basculante de 10 m³ - rodovia pavimentada | I42: tkm | J42: =ROUND(SUMIF('MOMENTO DE TRANSPORTE - PRINC'!A:A,'RESUMO MODULO TOTAL'!D42,'MOMENTO DE TRANSPORTE - PRINC'!K:K)+SUMIF('MOMENTO DE TRANSPORTE - AUX'!A:A,'RESUMO MODULO TOTAL'!D42,'MOMENTO DE TRANSPORTE - AUX'!K:K),2) -> 120185.86 | K42: 0.2339 | L42: =ROUND(IF(C42="CODEVASF",VLOOKUP(D42,'CPU CODEVASF'!E:I,5,FALSE),VLOOKUP(D42,'SINTÉTICO SICRO'!A:D,4,FALSE)),6) -> 0.81 | M42: =ROUND(IF(C42="CODEVASF",VLOOKUP(D42,'CPU CODEVASF'!E:H,4,FALSE),VLOOKUP(D42,'SINTÉTICO SICRO'!A:D,4,FALSE)*(1+$J$6)),6) -> 0.999459 | N42: 120120.84 | P42: PAVIMENTAÇÃO
A43: =VLOOKUP(N43,'RESUMO MODULO TOTAL'!$O$11:$V$45,2,0) ->  | B43: 25 | C43: SICRO | D43: 5914364 | E43: =VLOOKUP(D43,'SINTÉTICO SICRO'!$A$4:$D$1048576,2,0) -> Transporte de cimento ou cal hidratada a granel com caminhão silo de 30 m³ - rodovia em leito natural | I43: tkm | J43: =ROUND(SUMIF('MOMENTO DE TRANSPORTE - PRINC'!A:A,'RESUMO MODULO TOTAL'!D43,'MOMENTO DE TRANSPORTE - PRINC'!K:K)+SUMIF('MOMENTO DE TRANSPORTE - AUX'!A:A,'RESUMO MODULO TOTAL'!D43,'MOMENTO DE TRANSPORTE - AUX'!K:K),2) -> 0 | K43: 0.2339 | L43: =ROUND(IF(C43="CODEVASF",VLOOKUP(D43,'CPU CODEVASF'!E:I,5,FALSE),VLOOKUP(D43,'SINTÉTICO SICRO'!A:D,4,FALSE)),6) -> 0.95 | M43: =ROUND(IF(C43="CODEVASF",VLOOKUP(D43,'CPU CODEVASF'!E:H,4,FALSE),VLOOKUP(D43,'SINTÉTICO SICRO'!A:D,4,FALSE)*(1+$J$6)),6) -> 1.172205 | N43: 0 | P43: PAVIMENTAÇÃO
A44: =VLOOKUP(N44,'RESUMO MODULO TOTAL'!$O$11:$V$45,2,0) ->  | B44: 26 | C44: SICRO | D44: 5914365 | E44: =VLOOKUP(D44,'SINTÉTICO SICRO'!$A$4:$D$1048576,2,0) -> Transporte de cimento ou cal hidratada a granel com caminhão silo de 30 m³ - rodovia em revestimento primário | I44: tkm | J44: =ROUND(SUMIF('MOMENTO DE TRANSPORTE - PRINC'!A:A,'RESUMO MODULO TOTAL'!D44,'MOMENTO DE TRANSPORTE - PRINC'!K:K)+SUMIF('MOMENTO DE TRANSPORTE - AUX'!A:A,'RESUMO MODULO TOTAL'!D44,'MOMENTO DE TRANSPORTE - AUX'!K:K),2) -> 0 | K44: 0.2339 | L44: =ROUND(IF(C44="CODEVASF",VLOOKUP(D44,'CPU CODEVASF'!E:I,5,FALSE),VLOOKUP(D44,'SINTÉTICO SICRO'!A:D,4,FALSE)),6) -> 0.76 | M44: =ROUND(IF(C44="CODEVASF",VLOOKUP(D44,'CPU CODEVASF'!E:H,4,FALSE),VLOOKUP(D44,'SINTÉTICO SICRO'!A:D,4,FALSE)*(1+$J$6)),6) -> 0.937764 | N44: 0 | P44: PAVIMENTAÇÃO
A45: =VLOOKUP(N45,'RESUMO MODULO TOTAL'!$O$11:$V$45,2,0) ->  | B45: 27 | C45: SICRO | D45: 5914366 | E45: =VLOOKUP(D45,'SINTÉTICO SICRO'!$A$4:$D$1048576,2,0) -> Transporte de cimento ou cal hidratada a granel com caminhão silo de 30 m³ - rodovia pavimentada | I45: tkm | J45: =ROUND(SUMIF('MOMENTO DE TRANSPORTE - PRINC'!A:A,'RESUMO MODULO TOTAL'!D45,'MOMENTO DE TRANSPORTE - PRINC'!K:K)+SUMIF('MOMENTO DE TRANSPORTE - AUX'!A:A,'RESUMO MODULO TOTAL'!D45,'MOMENTO DE TRANSPORTE - AUX'!K:K),2) -> 0 | K45: 0.2339 | L45: =ROUND(IF(C45="CODEVASF",VLOOKUP(D45,'CPU CODEVASF'!E:I,5,FALSE),VLOOKUP(D45,'SINTÉTICO SICRO'!A:D,4,FALSE)),6) -> 0.59 | M45: =ROUND(IF(C45="CODEVASF",VLOOKUP(D45,'CPU CODEVASF'!E:H,4,FALSE),VLOOKUP(D45,'SINTÉTICO SICRO'!A:D,4,FALSE)*(1+$J$6)),6) -> 0.728001 | N45: 0 | P45: PAVIMENTAÇÃO
A46: =VLOOKUP(N46,'RESUMO MODULO TOTAL'!$O$11:$V$45,2,0) ->  | B46: 28 | C46: SICRO | D46: 5914314 | E46: =VLOOKUP(D46,'SINTÉTICO SICRO'!$A$4:$D$1048576,2,0) -> Transporte com caminhão basculante de 6 m³ - rodovia em leito natural | I46: tkm | J46: =ROUND(SUMIF('MOMENTO DE TRANSPORTE - PRINC'!A:A,'RESUMO MODULO TOTAL'!D46,'MOMENTO DE TRANSPORTE - PRINC'!K:K)+SUMIF('MOMENTO DE TRANSPORTE - AUX'!A:A,'RESUMO MODULO TOTAL'!D46,'MOMENTO DE TRANSPORTE - AUX'!K:K),2) -> 210902.81 | K46: 0.2339 | L46: =ROUND(IF(C46="CODEVASF",VLOOKUP(D46,'CPU CODEVASF'!E:I,5,FALSE),VLOOKUP(D46,'SINTÉTICO SICRO'!A:D,4,FALSE)),6) -> 1.32 | M46: =ROUND(IF(C46="CODEVASF",VLOOKUP(D46,'CPU CODEVASF'!E:H,4,FALSE),VLOOKUP(D46,'SINTÉTICO SICRO'!A:D,4,FALSE)*(1+$J$6)),6) -> 1.628748 | N46: 343507.53 | P46: PAVIMENTAÇÃO
A47: =VLOOKUP(N47,'RESUMO MODULO TOTAL'!$O$11:$V$45,2,0) ->  | B47: 29 | C47: SICRO | D47: 5914329 | E47: =VLOOKUP(D47,'SINTÉTICO SICRO'!$A$4:$D$1048576,2,0) -> Transporte com caminhão basculante de 6 m³ - rodovia em revestimento primário | I47: tkm | J47: =ROUND(SUMIF('MOMENTO DE TRANSPORTE - PRINC'!A:A,'RESUMO MODULO TOTAL'!D47,'MOMENTO DE TRANSPORTE - PRINC'!K:K)+SUMIF('MOMENTO DE TRANSPORTE - AUX'!A:A,'RESUMO MODULO TOTAL'!D47,'MOMENTO DE TRANSPORTE - AUX'!K:K),2) -> 0 | K47: 0.2339 | L47: =ROUND(IF(C47="CODEVASF",VLOOKUP(D47,'CPU CODEVASF'!E:I,5,FALSE),VLOOKUP(D47,'SINTÉTICO SICRO'!A:D,4,FALSE)),6) -> 1.06 | M47: =ROUND(IF(C47="CODEVASF",VLOOKUP(D47,'CPU CODEVASF'!E:H,4,FALSE),VLOOKUP(D47,'SINTÉTICO SICRO'!A:D,4,FALSE)*(1+$J$6)),6) -> 1.307934 | N47: 0 | P47: PAVIMENTAÇÃO
A48: =VLOOKUP(N48,'RESUMO MODULO TOTAL'!$O$11:$V$45,2,0) ->  | B48: 30 | C48: SICRO | D48: 5914344 | E48: =VLOOKUP(D48,'SINTÉTICO SICRO'!$A$4:$D$1048576,2,0) -> Transporte com caminhão basculante de 6 m³ - rodovia pavimentada | I48: tkm | J48: =ROUND(SUMIF('MOMENTO DE TRANSPORTE - PRINC'!A:A,'RESUMO MODULO TOTAL'!D48,'MOMENTO DE TRANSPORTE - PRINC'!K:K)+SUMIF('MOMENTO DE TRANSPORTE - AUX'!A:A,'RESUMO MODULO TOTAL'!D48,'MOMENTO DE TRANSPORTE - AUX'!K:K),2) -> 949062.62 | K48: 0.2339 | L48: =ROUND(IF(C48="CODEVASF",VLOOKUP(D48,'CPU CODEVASF'!E:I,5,FALSE),VLOOKUP(D48,'SINTÉTICO SICRO'!A:D,4,FALSE)),6) -> 0.83 | M48: =ROUND(IF(C48="CODEVASF",VLOOKUP(D48,'CPU CODEVASF'!E:H,4,FALSE),VLOOKUP(D48,'SINTÉTICO SICRO'!A:D,4,FALSE)*(1+$J$6)),6) -> 1.024137 | N48: 971970.14 | P48: PAVIMENTAÇÃO
J49: VALOR TOTAL DO SRP | N49: =INT(SUM(N11:N48)) -> 25020800
B50: Obs.: Os valores estão apresentados com apenas 2 casas decimais, mas os valores da presente planilha foram calculados utilizando a precisão de 6 casa decimais.
N51: =111.7*I8 -> 25020800

Sheet CRONOGRAMA TOTAL
A2: ='RESUMO MODULO TOTAL'!B1 -> EXECUÇÃO DE CAPA ASFÁLTICA EM CONCRETO BETUMINOSO USINADO A QUENTE (CBUQ), EM VIAS DE MUNICÍPIOS DIVERSOS INSERIDOS NA ÁREA DE ATUAÇÃO DA CODEVASF, NO ESTADO DO AMAPÁ (REGIÃO PORTO GRANDE)
A3: Cronograma Físico e Financeiro
A4: Item | B4: Descrição | C4: Total Por Etapa | D4: 30 DIAS | E4: 60 DIAS | F4: 90 DIAS | G4: 120 DIAS | H4: 150 DIAS | I4: 180 DIAS | J4: 210 DIAS | K4: 240 DIAS | L4: 270 DIAS | M4: 300 DIAS | N4: 330 DIAS | O4: 360 DIAS
B5: ='RESUMO MODULO TOTAL'!E10 -> MOBILIZAÇÃO/DESMOBILIZAÇÃO | C5: =SUM(D5:O5) -> 1 | D5: 0.5 | O5: 0.5
C6: =SUM('RESUMO MODULO TOTAL'!N11:N12) -> 487214.96 | D6: =$C$6*D5 -> 243607.48 | O6: =$C$6*O5 -> 243607.48 | P6: =SUM(D6:O6) -> 487214.96 | Q6: =IF(P6=C6,"OK","") -> OK
B7: ='RESUMO MODULO TOTAL'!E13 -> INSTALAÇÃO DE CANTEIRO | C7: =SUM(D7:O7) -> 1 | D7: 0.1 | E7: 0.5 | F7: 0.4
C8: =SUM('RESUMO MODULO TOTAL'!N14:N15) -> 476485.19 | D8: =$C$8*D7 -> 47648.519 | E8: =$C$8*E7 -> 238242.595 | F8: 190594.076 | G8: 0 | H8: 0 | I8: 0 | J8: 0 | K8: 0 | L8: 0 | M8: 0 | N8: 0 | O8: 0 | P8: =SUM(D8:O8) -> 476485.19 | Q8: =IF(P8=C8,"OK","") -> OK
B9: ='RESUMO MODULO TOTAL'!E16 -> ADMINISTRAÇÃO LOCAL DA OBRA | C9: =SUM(D9:O9) -> 1.000000024 | D9: =(D6+D8+D12+D14+D16+D18+D20+D22)/($O$29-$C$10) -> 0.0266751573 | E9: =(E6+E8+E12+E14+E16+E18+E20+E22)/($O$29-$C$10) -> 0.009900760877 | F9: 0.007920608701 | G9: 0.1534643687 | H9: 0.1534643687 | I9: 0.1534643687 | J9: 0.1534643687 | K9: 0.1534643687 | L9: 0.1534643687 | M9: 0.003844273883 | N9: 0.003844273883 | O9: 0.02702873707
C10: =SUM('RESUMO MODULO TOTAL'!N17) -> 957740.81 | D10: =$C$10*D9 -> 25547.88676 | E10: =$C$10*E9 -> 9482.362742 | F10: =$C$10*F9 -> 7585.890193 | G10: 146979.0887 | H10: 146979.0887 | I10: 146979.0887 | J10: 146979.0887 | K10: 146979.0887 | L10: 146979.0887 | M10: 3681.817983 | N10: 3681.817983 | O10: 25886.52454 | P10: =SUM(D10:O10) -> 957740.8327 | Q10: =IF(P10=C10,"OK","") -> 
B11: ='RESUMO MODULO TOTAL'!E18 -> PAVIMENTAÇÃO | C11: =SUM(D11:O11) -> 1 | G11: =1/6 -> 0.1666666667 | H11: =1/6 -> 0.1666666667 | I11: 0.1666666667 | J11: 0.1666666667 | K11: 0.1666666667 | L11: 0.1666666667
C12: =SUM('RESUMO MODULO TOTAL'!N19:N22) -> 8401950.86 | D12: =$C$14*D11 -> 0 | E12: =$C$12*E11 -> 0 | F12: 0 | G12: 1400325.143 | H12: 1400325.143 | I12: 1400325.143 | J12: 1400325.143 | K12: 1400325.143 | L12: 1400325.143 | M12: 0 | N12: 0 | O12: 0 | P12: =SUM(D12:O12) -> 8401950.86 | Q12: =IF(P12=C12,"OK","") -> OK
B13: ='RESUMO MODULO TOTAL'!E23 -> AQUISIÇÃO E TRANSPORTE DO MATERIAL BETUMINOSO | C13: =SUM(D13:O13) -> 1 | G13: =1/6 -> 0.1666666667 | H13: 0.1666666667 | I13: 0.1666666667 | J13: 0.1666666667 | K13: 0.1666666667 | L13: 0.1666666667
C14: =SUM('RESUMO MODULO TOTAL'!N24:N27) -> 12297652.58 | D14: =$C$14*D13 -> 0 | E14: =$C$14*E13 -> 0 | F14: 0 | G14: 2049608.763 | H14: 2049608.763 | I14: 2049608.763 | J14: 2049608.763 | K14: 2049608.763 | L14: 2049608.763 | M14: 0 | N14: 0 | O14: 0 | P14: =SUM(D14:O14) -> 12297652.58 | Q14: =IF(P14=C14,"OK","") -> OK
B15: ='RESUMO MODULO TOTAL'!E28 -> SINALIZAÇÃO | C15: =SUM(D15:O15) -> 1 | O15: 1
C16: =SUM('RESUMO MODULO TOTAL'!N29:N32) -> 406786.62 | D16: =$C$16*D15 -> 0 | E16: =$C$16*E15 -> 0 | F16: 0 | G16: 0 | H16: 0 | I16: 0 | J16: 0 | K16: 0 | L16: 0 | M16: 0 | N16: 0 | O16: 406786.62 | P16: =SUM(D16:O16) -> 406786.62 | Q16: =IF(P16=C16,"OK","") -> OK
B17: ='RESUMO MODULO TOTAL'!E33 -> DRENAGEM | C17: =SUM(D17:O17) -> 1 | M17: 0.5 | N17: 0.5
C18: =SUM('RESUMO MODULO TOTAL'!N34:N36) -> 185009.98 | D18: =$C$18*D17 -> 0 | E18: =$C$18*E17 -> 0 | F18: 0 | G18: 0 | H18: 0 | I18: 0 | J18: 0 | K18: 0 | L18: 0 | M18: 92504.99 | N18: 92504.99 | O18: 0 | P18: =SUM(D18:O18) -> 185009.98 | Q18: =IF(P18=C18,"OK","") -> OK
B19: ='RESUMO MODULO TOTAL'!E37 -> PROJETO EXECUTIVO | C19: =SUM(D19:O19) -> 1 | D19: 1
C20: =SUM('RESUMO MODULO TOTAL'!N38) -> 350629.89 | D20: =$C$20*D19 -> 350629.89 | E20: =$C$20*E19 -> 0 | F20: 0 | G20: 0 | H20: 0 | I20: 0 | J20: 0 | K20: 0 | L20: 0 | M20: 0 | N20: 0 | O20: 0 | P20: =SUM(D20:O20) -> 350629.89 | Q20: =IF(P20=C20,"OK","") -> OK
B21: ='RESUMO MODULO TOTAL'!E39 -> MOMENTO DE TRANSPORTE | C21: =SUM(D21:O21) -> 1 | G21: =1/6 -> 0.1666666667 | H21: =1/6 -> 0.1666666667 | I21: 0.1666666667 | J21: 0.1666666667 | K21: 0.1666666667 | L21: 0.1666666667
C22: =SUM('RESUMO MODULO TOTAL'!N40:N48) -> 1457329.68 | D22: =$C$22*D21 -> 0 | E22: =$C$22*E21 -> 0 | F22: 0 | G22: 242888.28 | H22: 242888.28 | I22: 242888.28 | J22: 242888.28 | K22: 242888.28 | L22: 242888.28 | M22: 0 | N22: 0 | O22: 0 | P22: =SUM(D22:O22) -> 1457329.68 | Q22: =IF(P22=C22,"OK","") -> OK
A24: Porcentagem | D24: =SUM(D6+D8+D10+D12+D14+D16+D18+D20+D22)/$O$29 -> 0.0266751573 | E24: =SUM(E6+E8+E10+E12+E14+E16+E18+E20+E22)/$O$29 -> 0.009900760877 | F24: 0.007920608701 | G24: 0.1534643687 | H24: 0.1534643687 | I24: 0.1534643687 | J24: 0.1534643687 | K24: 0.1534643687 | L24: 0.1534643687 | M24: 0.003844273883 | N24: 0.003844273883 | O24: 0.02702873707
A25: Custo | D25: =$O$29*D24 -> 667433.7758 | E25: =$O$29*E24 -> 247724.9577 | F25: =$O$29*F24 -> 198179.9662 | G25: 3839801.275 | H25: 3839801.275 | I25: 3839801.275 | J25: 3839801.275 | K25: 3839801.275 | L25: 3839801.275 | M25: 96186.80798 | N25: 96186.80798 | O25: 676280.6245
A26: Porcentagem Acumulado | D26: =D24 -> 0.0266751573 | E26: =D26+E24 -> 0.03657591818 | F26: =E26+F24 -> 0.04449652688 | G26: 0.1979608955 | H26: 0.3514252642 | I26: 0.5048896329 | J26: 0.6583540015 | K26: 0.8118183702 | L26: 0.9652827388 | M26: 0.9691270127 | N26: 0.9729712866 | O26: =N26+O24 -> 1.000000024
A27: Custo Acumulado | D27: =D25 -> 667433.7758 | E27: =D27+E25 -> 915158.7335 | F27: 1113338.7 | G27: 4953139.975 | H27: 8792941.251 | I27: 12632742.53 | J27: 16472543.8 | K27: 20312345.08 | L27: 24152146.35 | M27: 24248333.16 | N27: 24344519.97 | O27: =INT(N27+O25) -> 25020800
D29: Total Geral | N29: R$ | O29: =INT(C6+C8+C10+C12+C14+C16+C18+C20+C22) -> 25020800
O32: =O27-O29 -> 0
O34: ='RESUMO MODULO TOTAL'!N49 -> 25020800
O36: =O29-O34 -> 0

Sheet Mob
A4: =#REF! -> 
A5: MOBILIZAÇÃO/DESMOBILIZAÇÃO (MOB) | F5: Frentes de serviços | H5: ='MC MODULO'!G1 -> 16
F6: Distância da Capital ao Canteiro: | H6: 112 | I6: Fica a cargo de cada SR colocar a distancia adequada de acordo com o historico de mobilização
F8: Velocidade média de transporte (pavim.): | H8: 60
A10: Transporte dos equipamentos
A11: CODIGO | B11: EQUIPAMENTO | C11: VEÍCULO TRANSPORTADOR | D11: QTDE | E11: K | F11: FU | G11: CUSTO DO TRANSPORTE
G12: (R$/h) | H12: (R$)/km
A13: E9524 | B13: =VLOOKUP(A13,Equipamentos!$A:$K,2,FALSE) -> Motoniveladora - 93 kW | C13: =IFERROR(INDEX('Tabelas 2 e 3 mob'!A:K,MATCH(A13,'Tabelas 2 e 3 mob'!A:A,0),9),"ERRO") -> E9665 | D13: 0 | E13: 2 | F13: 1 | G13: =IF(C13="Veículo(s) da própria frota.",0,INDEX(Equipamentos!B:K,MATCH(C13,Equipamentos!A:A,0),9)) -> 394.6665 | H13: =((D13*E13*F13)/$H$8)*G13 -> 0
A14: E9526 | B14: =VLOOKUP(A14,Equipamentos!$A:$K,2,FALSE) -> Retroescavadeira de pneus - capacidade da caçamba da pá-carregadeira de 0,76 m³ e da retroescavadeira de 0,29 m³ - 58 kW | C14: =IFERROR(INDEX('Tabelas 2 e 3 mob'!A:K,MATCH(A14,'Tabelas 2 e 3 mob'!A:A,0),9),"ERRO") -> E9665 | D14: 0 | E14: 2 | F14: 1 | G14: =IF(C14="Veículo(s) da própria frota.",0,INDEX(Equipamentos!B:K,MATCH(C14,Equipamentos!A:A,0),9)) -> 394.6665 | H14: =((D14*E14*F14)/$H$8)*G14 -> 0
A15: E9577 | B15: =VLOOKUP(A15,Equipamentos!$A:$K,2,FALSE) -> Trator agrícola sobre pneus - 77 kW | C15: =IFERROR(INDEX('Tabelas 2 e 3 mob'!A:K,MATCH(A15,'Tabelas 2 e 3 mob'!A:A,0),9),"ERRO") -> E9665 | D15: 0 | E15: 2 | F15: 0.5 | G15: =IF(C15="Veículo(s) da própria frota.",0,INDEX(Equipamentos!B:K,MATCH(C15,Equipamentos!A:A,0),9)) -> 394.6665 | H15: 0
A16: E9518 | B16: =VLOOKUP(A16,Equipamentos!$A:$K,2,FALSE) -> Grade de 24 discos rebocável de D = 60 cm (24") | C16: =IFERROR(INDEX('Tabelas 2 e 3 mob'!A:K,MATCH(A16,'Tabelas 2 e 3 mob'!A:A,0),9),"ERRO") -> Veículo(s) da própria frota. | D16: 1 | E16: 2 | F16: 0 | G16: =IF(C16="Veículo(s) da própria frota.",0,INDEX(Equipamentos!B:K,MATCH(C16,Equipamentos!A:A,0),9)) -> 0 | H16: 0
A17: E9530 | B17: =VLOOKUP(A17,Equipamentos!$A:$K,2,FALSE) -> Rolo compactador liso vibratório autopropelido por pneus de 11 t - 97 kW | C17: =IFERROR(INDEX('Tabelas 2 e 3 mob'!A:K,MATCH(A17,'Tabelas 2 e 3 mob'!A:A,0),9),"ERRO") -> E9666 | D17: 0 | E17: 2 | F17: 0.5 | G17: =IF(C17="Veículo(s) da própria frota.",0,INDEX(Equipamentos!B:K,MATCH(C17,Equipamentos!A:A,0),9)) -> 421.7378 | H17: 0
A18: E9558 | B18: =VLOOKUP(A18,Equipamentos!$A:$K,2,FALSE) -> Tanque de estocagem de asfalto com capacidade de 30.000 l | C18: =IFERROR(INDEX('Tabelas 2 e 3 mob'!A:K,MATCH(A18,'Tabelas 2 e 3 mob'!A:A,0),9),"ERRO") -> E9665 | D18: 1 | E18: 2 | F18: 1 | G18: =IF(C18="Veículo(s) da própria frota.",0,INDEX(Equipamentos!B:K,MATCH(C18,Equipamentos!A:A,0),9)) -> 394.6665 | H18: 13.15555
A19: E9758 | B19: =VLOOKUP(A19,Equipamentos!$A:$K,2,FALSE) -> Vibroacabadora de asfalto sobre pneus - 82 kW | C19: =IFERROR(INDEX('Tabelas 2 e 3 mob'!A:K,MATCH(A19,'Tabelas 2 e 3 mob'!A:A,0),9),"ERRO") -> E9018 | D19: 0 | E19: 2 | F19: 0.5 | G19: =IF(C19="Veículo(s) da própria frota.",0,INDEX(Equipamentos!B:K,MATCH(C19,Equipamentos!A:A,0),9)) -> 530.8761 | H19: 0
A20: E9685 | B20: =VLOOKUP(A20,Equipamentos!$A:$K,2,FALSE) -> Rolo compactador pé de carneiro vibratório autopropelido por pneus de 11,6 t - 82 kW | C20: =IFERROR(INDEX('Tabelas 2 e 3 mob'!A:K,MATCH(A20,'Tabelas 2 e 3 mob'!A:A,0),9),"ERRO") -> E9666 | D20: 0 | E20: 2 | F20: 0.5 | G20: =IF(C20="Veículo(s) da própria frota.",0,INDEX(Equipamentos!B:K,MATCH(C20,Equipamentos!A:A,0),9)) -> 421.7378 | H20: 0
A21: E9605 | B21: =VLOOKUP(A21,Equipamentos!$A:$K,2,FALSE) -> Caminhão tanque com capacidade de 6.000 l - 136 kW | C21: =IFERROR(INDEX('Tabelas 2 e 3 mob'!A:K,MATCH(A21,'Tabelas 2 e 3 mob'!A:A,0),9),"ERRO") -> E9605 | D21: 0 | E21: 1 | F21: 1 | G21: =IF(C21="Veículo(s) da própria frota.",0,INDEX(Equipamentos!B:K,MATCH(C21,Equipamentos!A:A,0),9)) -> 252.1003 | H21: 0
A22: E9579 | B22: =VLOOKUP(A22,Equipamentos!$A:$K,2,FALSE) -> Caminhão basculante com capacidade de 10 m³ - 210 kW | C22: =IFERROR(INDEX('Tabelas 2 e 3 mob'!A:K,MATCH(A22,'Tabelas 2 e 3 mob'!A:A,0),9),"ERRO") -> E9579 | D22: 5 | E22: 1 | F22: 1 | G22: =IF(C22="Veículo(s) da própria frota.",0,INDEX(Equipamentos!B:K,MATCH(C22,Equipamentos!A:A,0),9)) -> 303.2303 | H22: 25.26919167
A23: E9509 | B23: =VLOOKUP(A23,Equipamentos!$A:$K,2,FALSE) -> Caminhão tanque distribuidor de asfalto com capacidade de 6.000 l - 7 kW/136 kW | C23: =IFERROR(INDEX('Tabelas 2 e 3 mob'!A:K,MATCH(A23,'Tabelas 2 e 3 mob'!A:A,0),9),"ERRO") -> E9509 | D23: 1 | E23: 1 | F23: 1 | G23: =IF(C23="Veículo(s) da própria frota.",0,INDEX(Equipamentos!B:K,MATCH(C23,Equipamentos!A:A,0),9)) -> 263.5835 | H23: 4.393058333
A24: E9762 | B24: =VLOOKUP(A24,Equipamentos!$A:$K,2,FALSE) -> Rolo compactador de pneus autopropelido de 27 t - 85 kW | C24: =IFERROR(INDEX('Tabelas 2 e 3 mob'!A:K,MATCH(A24,'Tabelas 2 e 3 mob'!A:A,0),9),"ERRO") -> E9666 | D24: 1 | E24: 2 | F24: 0.5 | G24: =IF(C24="Veículo(s) da própria frota.",0,INDEX(Equipamentos!B:K,MATCH(C24,Equipamentos!A:A,0),9)) -> 421.7378 | H24: 7.028963333
A25: E9681 | B25: =VLOOKUP(A25,Equipamentos!$A:$K,2,FALSE) -> Rolo compactador liso tandem vibratório autopropelido de 10,4 t - 82 kW | C25: =IFERROR(INDEX('Tabelas 2 e 3 mob'!A:K,MATCH(A25,'Tabelas 2 e 3 mob'!A:A,0),9),"ERRO") -> E9666 | D25: 1 | E25: 2 | F25: 0.5 | G25: =IF(C25="Veículo(s) da própria frota.",0,INDEX(Equipamentos!B:K,MATCH(C25,Equipamentos!A:A,0),9)) -> 421.7378 | H25: 7.028963333
A26: E9545 | B26: =VLOOKUP(A26,Equipamentos!$A:$K,2,FALSE) -> Vibroacabadora de asfalto sobre esteiras - 82 kW | C26: =IFERROR(INDEX('Tabelas 2 e 3 mob'!A:K,MATCH(A26,'Tabelas 2 e 3 mob'!A:A,0),9),"ERRO") -> E9018 | D26: 1 | E26: 2 | F26: 0.5 | G26: =IF(C26="Veículo(s) da própria frota.",0,INDEX(Equipamentos!B:K,MATCH(C26,Equipamentos!A:A,0),9)) -> 530.8761 | H26: 8.847935
A27: E9571 | B27: =VLOOKUP(A27,Equipamentos!$A:$K,2,FALSE) -> Caminhão tanque com capacidade de 10.000 l - 188 kW | C27: =IFERROR(INDEX('Tabelas 2 e 3 mob'!A:K,MATCH(A27,'Tabelas 2 e 3 mob'!A:A,0),9),"ERRO") -> E9571 | D27: 0 | E27: 1 | F27: 1 | G27: =IF(C27="Veículo(s) da própria frota.",0,INDEX(Equipamentos!B:K,MATCH(C27,Equipamentos!A:A,0),9)) -> 330.9726 | H27: 0
A28: E9514 | B28: =VLOOKUP(A28,Equipamentos!$A:$K,2,FALSE) -> Distribuidor de agregados sobre pneus autopropelido - 130 kW | C28: =IFERROR(INDEX('Tabelas 2 e 3 mob'!A:K,MATCH(A28,'Tabelas 2 e 3 mob'!A:A,0),9),"ERRO") -> E9665 | D28: 0 | E28: 2 | F28: 0.5 | G28: =IF(C28="Veículo(s) da própria frota.",0,INDEX(Equipamentos!B:K,MATCH(C28,Equipamentos!A:A,0),9)) -> 394.6665 | H28: 0
A29: E9511 | B29: =VLOOKUP(A29,Equipamentos!$A:$K,2,FALSE) -> Carregadeira de pneus com capacidade de 3,40 m³ - 195 kW | C29: =IFERROR(INDEX('Tabelas 2 e 3 mob'!A:K,MATCH(A29,'Tabelas 2 e 3 mob'!A:A,0),9),"ERRO") -> E9665 | D29: 0 | E29: 2 | F29: 1 | G29: =IF(C29="Veículo(s) da própria frota.",0,INDEX(Equipamentos!B:K,MATCH(C29,Equipamentos!A:A,0),9)) -> 394.6665 | H29: 0
A30: E9779 | B30: =VLOOKUP(A30,Equipamentos!$A:$K,2,FALSE) -> Grupo gerador - 113 kVA | C30: =IFERROR(INDEX('Tabelas 2 e 3 mob'!A:K,MATCH(A30,'Tabelas 2 e 3 mob'!A:A,0),9),"ERRO") -> Veículo(s) da própria frota. | D30: 1 | E30: 2 | F30: 0 | G30: =IF(C30="Veículo(s) da própria frota.",0,INDEX(Equipamentos!B:K,MATCH(C30,Equipamentos!A:A,0),9)) -> 0 | H30: 0
A31: E9559 | B31: =VLOOKUP(A31,Equipamentos!$A:$K,2,FALSE) -> Aquecedor de fluido térmico - 12 kW | C31: =IFERROR(INDEX('Tabelas 2 e 3 mob'!A:K,MATCH(A31,'Tabelas 2 e 3 mob'!A:A,0),9),"ERRO") -> Veículo(s) da própria frota. | D31: 1 | E31: 2 | F31: 0 | G31: =IF(C31="Veículo(s) da própria frota.",0,INDEX(Equipamentos!B:K,MATCH(C31,Equipamentos!A:A,0),9)) -> 0 | H31: 0
A32: E9584 | B32: =VLOOKUP(A32,Equipamentos!$A:$K,2,FALSE) -> Carregadeira de pneus com capacidade de 1,72 m³ - 113 kW | C32: =IFERROR(INDEX('Tabelas 2 e 3 mob'!A:K,MATCH(A32,'Tabelas 2 e 3 mob'!A:A,0),9),"ERRO") -> E9665 | D32: 0 | E32: 2 | F32: 1 | G32: =IF(C32="Veículo(s) da própria frota.",0,INDEX(Equipamentos!B:K,MATCH(C32,Equipamentos!A:A,0),9)) -> 394.6665 | H32: 0
A33: E9021 | B33: =VLOOKUP(A33,Equipamentos!$A:$K,2,FALSE) -> Grupo gerador - 456 kVA | C33: =IFERROR(INDEX('Tabelas 2 e 3 mob'!A:K,MATCH(A33,'Tabelas 2 e 3 mob'!A:A,0),9),"ERRO") -> E9508 | D33: 1 | E33: 2 | F33: 1 | G33: =IF(C33="Veículo(s) da própria frota.",0,INDEX(Equipamentos!B:K,MATCH(C33,Equipamentos!A:A,0),9)) -> 185.1405 | H33: 6.17135
A34: E9687 | B34: =VLOOKUP(A34,Equipamentos!$A:$K,2,FALSE) -> Caminhão carroceria com capacidade de 5 t - 115 kW | C34: =IFERROR(INDEX('Tabelas 2 e 3 mob'!A:K,MATCH(A34,'Tabelas 2 e 3 mob'!A:A,0),9),"ERRO") -> E9687 | D34: 1 | E34: 1 | F34: 1 | G34: =IF(C34="Veículo(s) da própria frota.",0,INDEX(Equipamentos!B:K,MATCH(C34,Equipamentos!A:A,0),9)) -> 151.9075 | H34: 2.531791667
A35: E9667 | B35: =VLOOKUP(A35,Equipamentos!$A:$K,2,FALSE) -> Caminhão basculante com capacidade de 14 m³ - 210 kW | C35: =IFERROR(INDEX('Tabelas 2 e 3 mob'!A:K,MATCH(A35,'Tabelas 2 e 3 mob'!A:A,0),9),"ERRO") -> E9667 | D35: 0 | E35: 1 | F35: 1 | G35: =IF(C35="Veículo(s) da própria frota.",0,INDEX(Equipamentos!B:K,MATCH(C35,Equipamentos!A:A,0),9)) -> 304.3057 | H35: 0
A36: E9644 | B36: =VLOOKUP(A36,Equipamentos!$A:$K,2,FALSE) -> Caminhão demarcador de faixas com sistema de pintura a frio - 28 kW/115 kW | C36: =IFERROR(INDEX('Tabelas 2 e 3 mob'!A:K,MATCH(A36,'Tabelas 2 e 3 mob'!A:A,0),9),"ERRO") -> E9644 | D36: 1 | E36: 1 | F36: 1 | G36: =IF(C36="Veículo(s) da própria frota.",0,INDEX(Equipamentos!B:K,MATCH(C36,Equipamentos!A:A,0),9)) -> 380.3797 | H36: 6.339661667
A37: E9592 | B37: =VLOOKUP(A37,Equipamentos!$A:$K,2,FALSE) -> Caminhão carroceria com capacidade de 15 t - 188 kW | C37: =IFERROR(INDEX('Tabelas 2 e 3 mob'!A:K,MATCH(A37,'Tabelas 2 e 3 mob'!A:A,0),9),"ERRO") -> E9592 | D37: 1 | E37: 1 | F37: 1 | G37: =IF(C37="Veículo(s) da própria frota.",0,INDEX(Equipamentos!B:K,MATCH(C37,Equipamentos!A:A,0),9)) -> 269.7472 | H37: 4.495786667
A38: E9540 | B38: =VLOOKUP(A38,Equipamentos!$A:$K,2,FALSE) -> Trator sobre esteiras com lâmina - 127 kW | C38: =IFERROR(INDEX('Tabelas 2 e 3 mob'!A:K,MATCH(A38,'Tabelas 2 e 3 mob'!A:A,0),9),"ERRO") -> E9018 | D38: 0 | E38: 2 | F38: 0.5 | G38: =IF(C38="Veículo(s) da própria frota.",0,INDEX(Equipamentos!B:K,MATCH(C38,Equipamentos!A:A,0),9)) -> 530.8761 | H38: 0
A39: E9515 | B39: =VLOOKUP(A39,Equipamentos!$A:$K,2,FALSE) -> Escavadeira hidráulica sobre esteiras com caçamba com capacidade de 1,56 m³ - 118 kW | C39: =IFERROR(INDEX('Tabelas 2 e 3 mob'!A:K,MATCH(A39,'Tabelas 2 e 3 mob'!A:A,0),9),"ERRO") -> E9666 | D39: 0 | E39: 2 | F39: 1 | G39: =IF(C39="Veículo(s) da própria frota.",0,INDEX(Equipamentos!B:K,MATCH(C39,Equipamentos!A:A,0),9)) -> 421.7378 | H39: 0
A40: E9506 | B40: =VLOOKUP(A40,Equipamentos!$A:$K,2,FALSE) -> Caminhão basculante com capacidade de 6 m³ - 136 kW | C40: =IFERROR(INDEX('Tabelas 2 e 3 mob'!A:K,MATCH(A40,'Tabelas 2 e 3 mob'!A:A,0),9),"ERRO") -> E9506 | D40: 1 | E40: 1 | F40: 1 | G40: =IF(C40="Veículo(s) da própria frota.",0,INDEX(Equipamentos!B:K,MATCH(C40,Equipamentos!A:A,0),9)) -> 185.7182 | H40: 3.095303333
A41: E9256 | B41: =VLOOKUP(A41,Equipamentos!$A:$K,2,FALSE) -> Equipamento para pintura com cal rebocável com dois bicos aplicadores e capacidade de 2.200 l | C41: =IFERROR(INDEX('Tabelas 2 e 3 mob'!A:K,MATCH(A41,'Tabelas 2 e 3 mob'!A:A,0),9),"ERRO") -> Veículo(s) da própria frota. | D41: 1 | E41: 2 | F41: 0 | G41: =IF(C41="Veículo(s) da própria frota.",0,INDEX(Equipamentos!B:K,MATCH(C41,Equipamentos!A:A,0),9)) -> 0 | H41: 0
A42: E9156 | B42: =VLOOKUP(A42,Equipamentos!$A:$K,2,FALSE) -> Soprador de ar costal - 2,6 kW | C42: =IFERROR(INDEX('Tabelas 2 e 3 mob'!A:K,MATCH(A42,'Tabelas 2 e 3 mob'!A:A,0),9),"ERRO") -> Veículo(s) da própria frota. | D42: 1 | E42: 2 | F42: 0 | G42: =IF(C42="Veículo(s) da própria frota.",0,INDEX(Equipamentos!B:K,MATCH(C42,Equipamentos!A:A,0),9)) -> 0 | H42: 0
A43: E9146 | B43: =VLOOKUP(A43,Equipamentos!$A:$K,2,FALSE) -> Caminhão silo com capacidade de 30 m³ - 265 kW | C43: =IFERROR(INDEX('Tabelas 2 e 3 mob'!A:K,MATCH(A43,'Tabelas 2 e 3 mob'!A:A,0),9),"ERRO") -> E9146 | D43: 1 | E43: 1 | F43: 1 | G43: =IF(C43="Veículo(s) da própria frota.",0,INDEX(Equipamentos!B:K,MATCH(C43,Equipamentos!A:A,0),9)) -> 465.4127 | H43: 7.756878333
A44: E9599 | B44: =VLOOKUP(A44,Equipamentos!$A:$K,2,FALSE) -> Central de concreto com capacidade de 30 m³/h - dosadora RS | C44: =IFERROR(INDEX('Tabelas 2 e 3 mob'!A:K,MATCH(A44,'Tabelas 2 e 3 mob'!A:A,0),9),"ERRO") -> E9018 | D44: 0 | E44: 2 | F44: 1 | G44: =IF(C44="Veículo(s) da própria frota.",0,INDEX(Equipamentos!B:K,MATCH(C44,Equipamentos!A:A,0),9)) -> 530.8761 | H44: 0
A45: E9103 | B45: =VLOOKUP(A45,Equipamentos!$A:$K,2,FALSE) -> Extrusora para meio-fio de concreto - 10,44 kW | C45: =IFERROR(INDEX('Tabelas 2 e 3 mob'!A:K,MATCH(A45,'Tabelas 2 e 3 mob'!A:A,0),9),"ERRO") -> Veículo(s) da própria frota. | D45: 0 | E45: 2 | F45: 0 | G45: =IF(C45="Veículo(s) da própria frota.",0,INDEX(Equipamentos!B:K,MATCH(C45,Equipamentos!A:A,0),9)) -> 0 | H45: 0
A46: E9071 | B46: =VLOOKUP(A46,Equipamentos!$A:$K,2,FALSE) -> Transportador manual carrinho de mão com capacidade de 80 l | C46: =IFERROR(INDEX('Tabelas 2 e 3 mob'!A:K,MATCH(A46,'Tabelas 2 e 3 mob'!A:A,0),9),"ERRO") -> Veículo(s) da própria frota. | D46: 0 | E46: 2 | F46: 0 | G46: =IF(C46="Veículo(s) da própria frota.",0,INDEX(Equipamentos!B:K,MATCH(C46,Equipamentos!A:A,0),9)) -> 0 | H46: 0
A47: E9064 | B47: =VLOOKUP(A47,Equipamentos!$A:$K,2,FALSE) -> Transportador manual gerica com capacidade de 180 l | C47: =IFERROR(INDEX('Tabelas 2 e 3 mob'!A:K,MATCH(A47,'Tabelas 2 e 3 mob'!A:A,0),9),"ERRO") -> Veículo(s) da própria frota. | D47: 0 | E47: 2 | F47: 0 | G47: =IF(C47="Veículo(s) da própria frota.",0,INDEX(Equipamentos!B:K,MATCH(C47,Equipamentos!A:A,0),9)) -> 0 | H47: 0
A48: E9066 | B48: =VLOOKUP(A48,Equipamentos!$A:$K,2,FALSE) -> Grupo gerador - 14 kVA | C48: =IFERROR(INDEX('Tabelas 2 e 3 mob'!A:K,MATCH(A48,'Tabelas 2 e 3 mob'!A:A,0),9),"ERRO") -> Veículo(s) da própria frota. | D48: 0 | E48: 2 | F48: 0 | G48: =IF(C48="Veículo(s) da própria frota.",0,INDEX(Equipamentos!B:K,MATCH(C48,Equipamentos!A:A,0),9)) -> 0 | H48: 0
A49: E9535 | B49: =VLOOKUP(A49,Equipamentos!$A:$K,2,FALSE) -> Serra circular com bancada - D = 30 cm - 4 kW | C49: =IFERROR(INDEX('Tabelas 2 e 3 mob'!A:K,MATCH(A49,'Tabelas 2 e 3 mob'!A:A,0),9),"ERRO") -> Veículo(s) da própria frota. | D49: 0 | E49: 2 | F49: 0 | G49: =IF(C49="Veículo(s) da própria frota.",0,INDEX(Equipamentos!B:K,MATCH(C49,Equipamentos!A:A,0),9)) -> 0 | H49: 0
A50: E9507 | B50: =VLOOKUP(A50,Equipamentos!$A:$K,2,FALSE) -> Plotadora de recorte com computador e programa computacional | C50: =IFERROR(INDEX('Tabelas 2 e 3 mob'!A:K,MATCH(A50,'Tabelas 2 e 3 mob'!A:A,0),9),"ERRO") -> Veículo(s) da própria frota. | D50: 0 | E50: 2 | F50: 0 | G50: =IF(C50="Veículo(s) da própria frota.",0,INDEX(Equipamentos!B:K,MATCH(C50,Equipamentos!A:A,0),9)) -> 0 | H50: 0
A51: E9568 | B51: =VLOOKUP(A51,Equipamentos!$A:$K,2,FALSE) -> Furadeira de impacto de 12,5 mm - 0,80 kW | C51: =IFERROR(INDEX('Tabelas 2 e 3 mob'!A:K,MATCH(A51,'Tabelas 2 e 3 mob'!A:A,0),9),"ERRO") -> Veículo(s) da própria frota. | D51: 0 | E51: 2 | F51: 0 | G51: =IF(C51="Veículo(s) da própria frota.",0,INDEX(Equipamentos!B:K,MATCH(C51,Equipamentos!A:A,0),9)) -> 0 | H51: 0
A52: E9753 | B52: =VLOOKUP(A52,Equipamentos!$A:$K,2,FALSE) -> Grupo gerador - 23 kVA | C52: =IFERROR(INDEX('Tabelas 2 e 3 mob'!A:K,MATCH(A52,'Tabelas 2 e 3 mob'!A:A,0),9),"ERRO") -> Veículo(s) da própria frota. | D52: 0 | E52: 2 | F52: 0 | G52: =IF(C52="Veículo(s) da própria frota.",0,INDEX(Equipamentos!B:K,MATCH(C52,Equipamentos!A:A,0),9)) -> 0 | H52: 0
A53: E9623 | B53: =VLOOKUP(A53,Equipamentos!$A:$K,2,FALSE) -> Máquina de bancada guilhotina - 4,00 kW | C53: =IFERROR(INDEX('Tabelas 2 e 3 mob'!A:K,MATCH(A53,'Tabelas 2 e 3 mob'!A:A,0),9),"ERRO") -> Veículo(s) da própria frota. | D53: 0 | E53: 2 | F53: 0 | G53: =IF(C53="Veículo(s) da própria frota.",0,INDEX(Equipamentos!B:K,MATCH(C53,Equipamentos!A:A,0),9)) -> 0 | H53: 0
A54: E9622 | B54: =VLOOKUP(A54,Equipamentos!$A:$K,2,FALSE) -> Máquina de bancada universal para corte de chapa - 1,50 kW | C54: =IFERROR(INDEX('Tabelas 2 e 3 mob'!A:K,MATCH(A54,'Tabelas 2 e 3 mob'!A:A,0),9),"ERRO") -> Veículo(s) da própria frota. | D54: 0 | E54: 2 | F54: 0 | G54: =IF(C54="Veículo(s) da própria frota.",0,INDEX(Equipamentos!B:K,MATCH(C54,Equipamentos!A:A,0),9)) -> 0 | H54: 0
A55: E9678 | B55: =VLOOKUP(A55,Equipamentos!$A:$K,2,FALSE) -> Fresadora a frio - 455 kW | C55: =IFERROR(INDEX('Tabelas 2 e 3 mob'!A:K,MATCH(A55,'Tabelas 2 e 3 mob'!A:A,0),9),"ERRO") -> E9666 | D55: 1 | E55: 2 | F55: 1 | G55: =IF(C55="Veículo(s) da própria frota.",0,INDEX(Equipamentos!B:K,MATCH(C55,Equipamentos!A:A,0),9)) -> 421.7378 | H55: 14.05792667
G56: TOTAL | H56: =SUM(H13:H55) -> 110.17236
A59: CUSTO TOTAL MOBILIZAÇÃO E DESMOBILIZAÇÃO
A60: DESCRIÇÃO | B60: VALOR
A61: Custo Mobilização (km) | B61: =H56 -> 110.17236
A62: BDI (%) | B62: =BDI!C16 -> 0.2339
A63: Custo Mobilização (R$/km) com BDI | B63: =B61+(B61*B62) -> 135.941675
A64: Total de Frentes | B64: ='MC MODULO'!G1 -> 16
A65: Custo Mobilização (frentes x distancia) | B65: =B63*H6*B64 -> 243607.4816

Sheet Canteiro
A4: CANTEIRO DE OBRAS PARA CONSTRUÇAO RODOVIÁRIA
A5: Descrição dos serviços | B5: Tipo de container | C5: Unidade | D5: Quantidade | E5: Preço unitário (R$) | F5: Total (R$)
A6: Escritório e seção técnica
A7: =VLOOKUP(B7,'INSUMOS SINAPI'!A:E,2,0) -> LOCACAO DE CONTAINER 2,30 X 6,00 M, ALT. 2,50 M, PARA ESCRITORIO, SEM DIVISORIAS INTERNAS E SEM SANITARIO (NAO INCLUI MOBILIZACAO/DESMOBILIZACAO) | B7: 10776 | C7: und | D7: 1 | E7: =VLOOKUP(B7,'INSUMOS SINAPI'!A:E,5,0) -> 650.39 | F7: =TRUNC(D7*E7,2) -> 650.39
A8: Banheiro e vestiário
A9: =VLOOKUP(B9,'INSUMOS SINAPI'!A:E,2,0) -> LOCACAO DE CONTAINER 2,30 X 4,30 M, ALT. 2,50 M, PARA SANITARIO, COM 3 BACIAS, 4 CHUVEIROS, 1 LAVATORIO E 1 MICTORIO (NAO INCLUI MOBILIZACAO/DESMOBILIZACAO) | B9: 10777 | C9: und | D9: 1 | E9: =VLOOKUP(B9,'INSUMOS SINAPI'!A:E,5,0) -> 945.23 | F9: =TRUNC(D9*E9,2) -> 945.23
D10: TOTAL DO CANTEIRO | F10: =SUM(F7:F9) -> 1595.62
D11: DURAÇÃO (MESES) | E11: 12 | F11: =F10*E11 -> 19147.44
D12: BDI | F12: =BDI!C16 -> 0.2339
D13: TOTAL DO CANTEIRO (com BDI) | F13: =F11+(F11*F12) -> 23626.02622

Sheet Adm Local
A4: parcela fixa da administração local (mão de obra)
A5: Código | B5: Discriminação | C5: Unidade | D5: Quantidade | F5: Custo Unitário (R$) | H5: Custo Total (R$)
B6: Mão de Obra
B7: Gerência Técnica
B8: Geral
A9: P9955 | B9: Engenheiro chefe | C9: mês | D9: 0.5 | F9: =VLOOKUP(A9,'Pessoal Sicro'!$A$6:$G$118,6,0) -> 28742.6778 | H9: =F9*D9 -> 14371.3389
A10: P9840 | B10: Encarregado geral | C10: mês | D10: 0.5 | F10: =VLOOKUP(A10,'Pessoal Sicro'!$A$6:$G$118,6,0) -> 10416.0147 | H10: =F10*D10 -> 5208.00735
A11: P9897 | B11: Técnico de meio ambiente | C11: mês | D11: 0 | F11: =VLOOKUP(A11,'Pessoal Sicro'!$A$6:$G$118,6,0) -> 7726.4929 | H11: =F11*D11 -> 0
A12: P9948 | B12: Motorista | C12: mês | D12: 0 | F12: =VLOOKUP(A12,'Pessoal Sicro'!$A$6:$G$118,6,0) -> 4946.3317 | H12: =F12*D12 -> 0
A13: P9878 | B13: Secretária | C13: mês | D13: 0 | F13: =VLOOKUP(A13,'Pessoal Sicro'!$A$6:$G$118,6,0) -> 6302.0703 | H13: =F13*D13 -> 0
F14: Subtotal do Item 1.1 | H14: =SUM(H9:I13) -> 19579.34625
B15: Auxiliar
A16: P9946 | B16: Engenheiro auxiliar | C16: mês | D16: 1 | F16: =VLOOKUP(A16,'Pessoal Sicro'!$A$6:$G$118,6,0) -> 22131.892 | H16: =D16*F16 -> 22131.892
A17: P9903 | B17: Auxiliar técnico | C17: mês | D17: 0 | F17: =VLOOKUP(A17,'Pessoal Sicro'!$A$6:$G$118,6,0) -> 4801.2272 | H17: =D17*F17 -> 0
F18: Subtotal do Item 1.2 | H18: =SUM(H16:I17) -> 22131.892
B19: Gerência Administrativa
B20: Geral
A21: P9883 | B21: Chefe do setor administrativo | C21: mês | D21: 1 | F21: =VLOOKUP(A21,'Pessoal Sicro'!$A$6:$G$118,6,0) -> 8008.6977 | H21: =F21*D21 -> 8008.6977
A22: P9809 | B22: Encarregado administrativo | C22: mês | D22: 1 | F22: =VLOOKUP(A22,'Pessoal Sicro'!$A$6:$G$118,6,0) -> 8008.6642 | H22: =F22*D22 -> 8008.6642
A23: P9896 | B23: Porteiro | C23: mês | D23: 0 | F23: =VLOOKUP(A23,'Pessoal Sicro'!$A$6:$G$118,6,0) -> 4473.4789 | H23: =F23*D23 -> 0
A24: P9827 | B24: Vigia | C24: mês | D24: 0 | F24: =VLOOKUP(A24,'Pessoal Sicro'!$A$6:$G$118,6,0) -> 4809.3191 | H24: =F24*D24 -> 0
A25: P9948 | B25: Motorista | C25: mês | D25: 0 | F25: =VLOOKUP(A25,'Pessoal Sicro'!$A$6:$G$118,6,0) -> 4946.3317 | H25: =F25*D25 -> 0
F26: Subtotal do Item 1.3 | H26: =SUM(H21:I25) -> 16017.3619
B27: Auxiliar
A28: P9806 | B28: Auxiliar administrativo | C28: mês | D28: 1 | F28: =VLOOKUP(A28,'Pessoal Sicro'!$A$6:$G$118,6,0) -> 4965.0169 | H28: =F28*D28 -> 4965.0169
A29: P9842 | B29: Faxineiro | C29: mês | D29: 0 | F29: =VLOOKUP(A29,'Pessoal Sicro'!$A$6:$G$118,6,0) -> 4111.6911 | H29: =F29*D29 -> 0
F30: Subtotal do Item 1.4 | H30: =SUM(H28:I29) -> 4965.0169
H31: Total da Mão de Obra da Parcela Fixa | I31: =H30+H26+H18+H14 -> 62693.61705
A33: parcela fixa da administração local (veículos)
A34: Código | B34: Discriminação | C34: Unidade | D34: Quantidade | E34: Utilização Produtiva | F34: Utilização Improdutiva | G34: Custo Horário Produtivo (R$) | H34: Custo Horário Improdutivo (R$) | I34: Custo Total (R$)
A35: 2 | B35: Veículos
B36: Gerência Técnica
A37: 2.1 | B37: Geral
A38: E9093 | B38: Veículo Leve 53 kw | C38: mês | D38: 1 | E38: 44 | F38: 176 | G38: =VLOOKUP(A38,Equipamentos!$A$4:$K$541,10,0) -> 34.9382 | H38: =VLOOKUP(A38,Equipamentos!$A$4:$K$541,11,0) -> 6.1504 | I38: =((E38*G38)+(F38*H38))*D38 -> 2619.7512
A39: E9560 | B39: Ônibus coletivo - 175 kw | C39: mês | D39: 0 | E39: 44 | F39: 176 | G39: =VLOOKUP(A39,Equipamentos!$A$4:$K$541,10,0) -> 357.2021 | H39: =VLOOKUP(A39,Equipamentos!$A$4:$K$541,11,0) -> 103.8866 | I39: =((E39*G39)+(F39*H39))*D39 -> 0
H40: Subtotal do Item 2 | I40: =SUM(I38:I39) -> 2619.7512
A41: 2.2 | B41: Auxiliar
A42: E9093 | B42: Veículo Leve 53 kw | C42: mês | D42: 0 | E42: 44 | F42: 176 | G42: =G38 -> 34.9382 | H42: =H38 -> 6.1504 | I42: =((E42*G42)+(F42*H42))*D42 -> 0
H43: Subtotal do Item 2 | I43: =SUM(I42) -> 0
A44: 2.3 | B44: Gerência Administrativa
A45: E9093 | B45: Veículo Leve 53 kw | C45: mês | D45: 0 | E45: 44 | F45: 176 | G45: =G38 -> 34.9382 | H45: =H38 -> 6.1504 | I45: =((E45*G45)+(F45*H45))*D45 -> 0
H46: Subtotal do Item 2 | I46: =I45 -> 0
H47: Total dos Veículos da Parcela Fixa | I47: =I46+I43+I40 -> 2619.7512
A49: Composição de custo da equipe de produção de terraplenagem
A50: Código | B50: Discriminação | C50: Unidade | D50: Quantidade | F50: Custo Unitário (R$) | H50: Custo Total (R$)
B51: Equipe de Produção de Terraplenagem
A52: 3.1 | B52: Mão de Obra
A53: ='Pessoal Sicro'!A65 -> P9892 | B53: Encarregado de produção | C53: mês | D53: 0 | F53: =VLOOKUP(A53,'Pessoal Sicro'!$A$6:$G$118,6,0) -> 34.4007 | H53: =F53*D53 -> 0
F54: Subtotal do Item 3.1 | H54: =SUM(H53:H53) -> 0
A55: Código | B55: Discriminação | C55: Unidade | D55: Quantidade | E55: Utilização Produtiva | F55: Utilização Improdutiva | G55: Custo Horário Produtivo (R$) | H55: Custo Horário Improdutivo (R$) | I55: Custo Total (R$)
A56: 3.2 | B56: Veículos
B57: Veículo Leve 53 kw | C57: mês | D57: 0 | E57: 44 | F57: 176 | G57: =G38 -> 34.9382 | H57: =H38 -> 6.1504 | I57: =((E57*G57)+(F57*H57))*D57 -> 0
H58: Subtotal do Item 3.2 | I58: =SUM(I57:I57) -> 0
H59: Total da Equipe de Produção de Terraplenagem | I59: =I58+H54 -> 0
A61: Composição de custo da equipe de produção de pavimentação
A62: Código | B62: Discriminação | C62: Unidade | D62: Quantidade | F62: Custo Unitário (R$) | H62: Custo Total (R$)
B63: Equipe de Produção de Pavimentação
A64: 3.1 | B64: Mão de Obra
A65: ='Pessoal Sicro'!A70 -> P9901 | B65: Encarregado de produção | C65: mês | D65: 1 | F65: =VLOOKUP(A65,'Pessoal Sicro'!$A$6:$G$118,6,0) -> 7200.018 | H65: =F65*D65 -> 7200.018
F66: Subtotal do Item 3.1 | H66: =SUM(H65:H65) -> 7200.018
A67: Código | B67: Discriminação | C67: Unidade | D67: Quantidade | E67: Utilização Produtiva | F67: Utilização Improdutiva | G67: Custo Horário Produtivo (R$) | H67: Custo Horário Improdutivo (R$) | I67: Custo Total (R$)
A68: 3.2 | B68: Veículos
B69: Veículo Leve 53 kw | C69: mês | D69: 1 | E69: 44 | F69: 176 | G69: =$G$38 -> 34.9382 | H69: =$H$38 -> 6.1504 | I69: =((E69*G69)+(F69*H69))*D69 -> 2619.7512
H70: Subtotal do Item 3.2 | I70: =SUM(I69:I69) -> 2619.7512
H71: Total da Equipe de Produção de Pavimentação | I71: =I70+H66 -> 9819.7692
A73: Composição de custo da equipe de produção de drenagem
A74: Código | B74: Discriminação | C74: Unidade | D74: Quantidade | F74: Custo Unitário (R$) | H74: Custo Total (R$)
B75: Equipe de Produção de Pavimentação
A76: 3.1 | B76: Mão de Obra
A77: ='Pessoal Sicro'!$A$70 -> P9901 | B77: Encarregado de produção | C77: mês | D77: 1 | F77: =VLOOKUP(A77,'Pessoal Sicro'!$A$6:$G$118,6,0) -> 7200.018 | H77: =F77*D77 -> 7200.018
F78: Subtotal do Item 3.1 | H78: =SUM(H77:H77) -> 7200.018
A79: Código | B79: Discriminação | C79: Unidade | D79: Quantidade | E79: Utilização Produtiva | F79: Utilização Improdutiva | G79: Custo Horário Produtivo (R$) | H79: Custo Horário Improdutivo (R$) | I79: Custo Total (R$)
A80: 3.2 | B80: Veículos
B81: Veículo Leve 53 kw | C81: mês | D81: 1 | E81: 44 | F81: 176 | G81: =$G$38 -> 34.9382 | H81: =$H$38 -> 6.1504 | I81: =((E81*G81)+(F81*H81))*D81 -> 2619.7512
H82: Subtotal do Item 3.2 | I82: =SUM(I81:I81) -> 2619.7512
H83: Total da Equipe de Produção de Pavimentação | I83: =I82+H78 -> 9819.7692
A85: Composição de custo da equipe de produção de sinalização
A86: Código | B86: Discriminação | C86: Unidade | D86: Quantidade | F86: Custo Unitário (R$) | H86: Custo Total (R$)
B87: Equipe de Produção de Pavimentação
A88: 3.1 | B88: Mão de Obra
A89: ='Pessoal Sicro'!$A$70 -> P9901 | B89: Encarregado de produção | C89: mês | D89: 1 | F89: =VLOOKUP(A89,'Pessoal Sicro'!$A$6:$G$118,6,0) -> 7200.018 | H89: =F89*D89 -> 7200.018
F90: Subtotal do Item 3.1 | H90: =SUM(H89:H89) -> 7200.018
A91: Código | B91: Discriminação | C91: Unidade | D91: Quantidade | E91: Utilização Produtiva | F91: Utilização Improdutiva | G91: Custo Horário Produtivo (R$) | H91: Custo Horário Improdutivo (R$) | I91: Custo Total (R$)
A92: 3.2 | B92: Veículos
B93: Veículo Leve 53 kw | C93: mês | D93: 1 | E93: 44 | F93: 176 | G93: =$G$38 -> 34.9382 | H93: =$H$38 -> 6.1504 | I93: =((E93*G93)+(F93*H93))*D93 -> 2619.7512
H94: Subtotal do Item 3.2 | I94: =SUM(I93:I93) -> 2619.7512
H95: Total da Equipe de Produção de Pavimentação | I95: =I94+H90 -> 9819.7692
A97: Composição de custo da equipe topografia
A98: Código | B98: Discriminação | C98: Unidade | D98: Quantidade | F98: Custo Unitário (R$) | H98: Custo Total (R$)
B99: Equipe de Topografia
A100: 3.1 | B100: Mão de Obra
A101: P9949 | B101: Topográfo | C101: mês | D101: 1 | F101: =VLOOKUP(A101,'Pessoal Sicro'!$A$6:$G$118,6,0) -> 7926.4674 | H101: =F101*D101 -> 7926.4674
A102: P9950 | B102: Auxiliar de topografia | C102: mês | D102: 1 | F102: =VLOOKUP(A102,'Pessoal Sicro'!$A$6:$G$118,6,0) -> 4519.6557 | H102: =F102*D102 -> 4519.6557
F103: Subtotal do Item 3.1 | H103: =SUM(H101:I102) -> 12446.1231
A104: Código | B104: Discriminação | C104: Unidade | D104: Quantidade | E104: Utilização Produtiva | F104: Utilização Improdutiva | G104: Custo Horário Produtivo (R$) | H104: Custo Horário Improdutivo (R$) | I104: Custo Total (R$)
A105: 3.2 | B105: Veículos
B106: Veículo Leve 53 kw | C106: mês | D106: 1 | E106: 44 | F106: 176 | G106: =G38 -> 34.9382 | H106: =H38 -> 6.1504 | I106: =((E106*G106)+(F106*H106))*D106 -> 2619.7512
H107: Subtotal do Item 3.2 | I107: =SUM(I106:I106) -> 2619.7512
H108: Total da Equipe de Produção de Topografia | I108: =I107+H103 -> 15065.8743
A110: Composição de custo do setor de medicina e segurança do trabalho
A111: Código | B111: Discriminação | C111: Unidade | D111: Quantidade | F111: Custo Unitário (R$) | H111: Custo Total (R$)
A112: 4 | B112: Setor de Medicina e Segurança do Trabalho
A113: P9876 | B113: Técnico de segurança do trabalho | C113: mês | D113: 1 | F113: =VLOOKUP(A113,'Pessoal Sicro'!$A$6:$G$118,6,0) -> 7858.4849 | H113: =F113*D113 -> 7858.4849
A114: P9864 | B114: Engenheiro de segurança do trabalho | C114: mês | D114: 0 | F114: =VLOOKUP(A114,'Pessoal Sicro'!$A$6:$G$118,6,0) -> 22611.822 | H114: =F114*D114 -> 0
A115: P9851 | B115: Médico do trabalho | C115: mês | D115: 0 | F115: =VLOOKUP(A115,'Pessoal Sicro'!$A$6:$G$118,6,0) -> 18030.894 | H115: =F115*D115 -> 0
A116: P9951 | B116: Médico de câmara hiperbárica | C116: mês | D116: 0 | F116: =VLOOKUP(A116,'Pessoal Sicro'!$A$6:$G$118,6,0) -> 19979.6114 | H116: =F116*D116 -> 0
F117: Subtotal do Item 4 | H117: =SUM(H113:I116) -> 7858.4849
A119: Parcela Variável - Composição de custo da equipe de frente de serviço
A120: Código | B120: Discriminação | C120: Unidade | D120: Quantidade | F120: Custo Unitário (R$) | H120: Custo Total (R$)
A121: 5 | B121: Equipe de Frente de Serviço | C121: equipexmês
A122: P9875 | B122: Encarregado de Turma | C122: mês | D122: 1 | F122: =VLOOKUP(A122,'Pessoal Sicro'!$A$6:$G$118,6,0) -> 5346.6369 | H122: =F122*D122 -> 5346.6369
A123: P9804 | B123: Apontador | C123: mês | D123: 0.5 | F123: =VLOOKUP(A123,'Pessoal Sicro'!$A$6:$G$118,6,0) -> 5003.4385 | H123: =F123*D123 -> 2501.71925
F124: Subtotal do Item 5 | H124: =SUM(H122:I123) -> 7848.35615
A126: Parcela Variável - Composição de custo da equipe de frente de serviço (Terraplenagem) - Somente Compactação
A127: Código | B127: Discriminação | C127: Unidade | D127: Quantidade | F127: Produção Horária (und/h) | H127: Efs
A128: 5.1 | B128: Equipe de Frente de Serviço | C128: equipexmês
C129: mês | H129: =(D129)/(F129*182.49) -> 
C130: mês | H130: =(D130)/(F130*182.49) -> 
C131: mês | H131: =(D131)/(F131*182.49) -> 
F132: Total de Equipes para Terraplenagem | H132: =SUM(H131:I131) -> 
A134: Parcela Variável - Composição de custo da acompanhamento das frentes de serviço de pavimentação
A135: Código | B135: Discriminação | C135: Unidade | D135: Quantidade | F135: Produção Horária (und/h) | H135: Efs
A136: 5.2 | B136: Equipe de Frente de Serviço | C136: equipe x mês
A137: 4011463 | B137: =VLOOKUP(A137,'SINTÉTICO SICRO'!$A$4:$D$6373,2,0) -> Concreto asfáltico - faixa C - areia e brita comerciais | C137: m² | D137: ='RESUMO MODULO TOTAL'!J19 -> 26880 | F137: 99.6 | H137: =(D137)/(F137*182.49) -> 1.478872914
A138: 4011353 | B138: =VLOOKUP(A138,'SINTÉTICO SICRO'!$A$4:$D$6373,2,0) -> Pintura de ligação | C138: m² | D138: ='RESUMO MODULO TOTAL'!J20 -> 224000 | F138: 1125 | H138: 1.091079572
A139: 4915663 | B139: =VLOOKUP(A139,'SINTÉTICO SICRO'!$A$4:$D$6373,2,0) -> Fresagem descontínua de revestimento asfáltico - espessura de 5 cm | C139: m² | D139: ='RESUMO MODULO TOTAL'!J21 -> 1120 | F139: 1500 | H139: 0.004091548395
A140: 4915618 | B140: =VLOOKUP(A140,'SINTÉTICO SICRO'!$A$4:$D$6373,2,0) -> Recomposição de camada granular do pavimento com material de jazida | C140: m³ | D140: ='RESUMO MODULO TOTAL'!J22 -> 22400 | F140: 120.7 | H140: 1.016954862
F141: Total de Equipes para Pavimentação | H141: =SUM(H137:I140) -> 3.590998897
A143: Parcela Variável - Composição de custo da acompanhamento das frentes de serviço de drenagem
A144: Código | B144: Discriminação | C144: Unidade | D144: Quantidade | F144: Efsdu | H144: Efs
A145: 5.3 | B145: Frentes de Serviço para Drenagem | C145: equipe x mês
A146: 4915777 | B146: =VLOOKUP(A146,'SINTÉTICO SICRO'!$A$4:$D$6373,2,0) -> Reassentamento manual de meio-fio com material arrancado da pista | C146: m | D146: ='RESUMO MODULO TOTAL'!J34 -> 6400 | F146: 0.00021 | H146: =D146*F146 -> 1.344
A147: 4915708 | B147: =VLOOKUP(A147,'SINTÉTICO SICRO'!$A$4:$D$6373,2,0) -> Limpeza de sarjeta e meio-fio | C147: m | D147: ='RESUMO MODULO TOTAL'!J35 -> 64000 | F147: 0.00021 | H147: =D147*F147 -> 13.44
A148: 4915724 | B148: =VLOOKUP(A148,'SINTÉTICO SICRO'!$A$4:$D$6373,2,0) -> Caiação mecanizada com fixador de cal | C148: m | D148: ='RESUMO MODULO TOTAL'!J36 -> 7680 | F148: 0.00021 | H148: =D148*F148 -> 1.6128
F149: Total de Equipes para Drenagem | H149: =H148 -> 1.6128
A151: Parcela Variável - Composição de custo da acompanhamento das frentes de serviço de sinalização
A152: Código | B152: Discriminação | C152: Unidade | D152: Quantidade | F152: Produção Horária (und/h) | H152: Efs
A153: 5.4 | B153: Frentes de Serviço para Sinalização | C153: equipe x mês
A154: 5213440 | B154: =VLOOKUP(A154,'SINTÉTICO SICRO'!$A$4:$D$6373,2,0) -> Placa de regulamentação em aço D = 0,60 m - película retrorrefletiva tipo I + SI - fornecimento e implantação | C154: Unidade | D154: ='RESUMO MODULO TOTAL'!J29 -> 96 | F154: 3 | H154: =0.2*((D154)/(F154*182.49)) -> 0.03507041482
A155: 5213464 | B155: =VLOOKUP(A155,'SINTÉTICO SICRO'!$A$4:$D$6373,2,0) -> Placa de advertência em aço, lado de 0,60 m - película retrorrefletiva tipo I + SI - fornecimento e implantação | C155: Unidade | D155: ='RESUMO MODULO TOTAL'!J30 -> 96 | F155: 4.1 | H155: =0.2*((D155)/(F155*182.49)) -> 0.02566127913
A156: 5213863 | B156: =VLOOKUP(A156,'SINTÉTICO SICRO'!$A$4:$D$6373,2,0) -> Suporte metálico galvanizado para placa de advertência ou regulamentação - lado ou diâmetro de 0,60 m - fornecimento e implantação | C156: Unidade | D156: ='RESUMO MODULO TOTAL'!J31 -> 192 | F156: 4.1 | H156: =0.2*((D156)/(F156*182.49)) -> 0.05132255827
A157: 5213400 | B157: =VLOOKUP(A157,'SINTÉTICO SICRO'!$A$4:$D$6373,2,0) -> Pintura de faixa com tinta acrílica - espessura de 0,4 mm | C157: m² | D157: ='RESUMO MODULO TOTAL'!J32 -> 7680 | F157: 177.07 | H157: 0.04753430596
F158: Total de Equipes para Sinalização | H158: =SUM(H154:I157) -> 0.1595885582 | J158: =H158+H149 -> 1.772388558
A160: 3. PARCELA VARIÁVEL - EQUIPE DE CONTROLE TECNOLÓGICO
A161: LABORATÓRIO DE SOLOS
A162: Item | B162: Discriminação | F162: Unidade | G162: Quantidade | H162: Custo Unitário (R$) | I162: Custo Total (R$)
B163: Laboratório de Solos (equipe x mês)
B164: Mão de Obra
A165: P9858 | B165: Laboratorista | F165: func./mês | G165: 1 | H165: =VLOOKUP(A165,'Pessoal Sicro'!$A$6:$G$118,6,0) -> 6685.437 | I165: =TRUNC(G165*H165,2) -> 6685.43
A166: P9833 | B166: Auxiliar de laboratório | F166: func./mês | G166: 1 | H166: =VLOOKUP(A166,'Pessoal Sicro'!$A$6:$G$118,6,0) -> 4544.6137 | I166: =TRUNC(G166*H166,2) -> 4544.61
H167: Subtotal do Item | I167: =SUM(I165:I166) -> 11230.04
A168: Item | B168: Discriminação | C168: Und | D168: Quant | E168: Utilização Produtiva | F168: Utilização Improdutiva | G168: Horário Produtivo (R$) | H168: Horário Improdutivo (R$) | I168: Total (R$)
B169: Equipe de Controle Tecnológico
B170: Veículos
A171: E9125 | B171: Van furgão a diesel - 93 kW | C171: veic./mês | D171: 0.5 | E171: 44 | F171: 176 | G171: =VLOOKUP(A171,Equipamentos!$A$4:$K$533,10,0) -> 81.7029 | H171: =VLOOKUP(A171,Equipamentos!$A$4:$K$533,11,0) -> 44.4435 | I171: =D171*((E171*G171)+(F171*H171)) -> 5708.4918
H172: Subtotal do Item | I172: =SUM(I171:I171) -> 5708.4918
H173: Total da Equipe do Laboratório de Solos | I173: =I167+I172 -> 16938.5318
A175: 3. PARCELA VARIÁVEL - EQUIPE DE CONTROLE TECNOLÓGICO
A176: LABORATÓRIO DE ASFALTOS
A177: Item | B177: Discriminação | F177: Unidade | G177: Quantidade | H177: Custo Unitário (R$) | I177: Custo Total (R$)
B178: Laboratório de Solos (equipe x mês)
B179: Mão de Obra
A180: P9858 | B180: Laboratorista | F180: func./mês | G180: 1 | H180: =VLOOKUP(A180,'Pessoal Sicro'!$A$6:$G$118,6,0) -> 6685.437 | I180: =TRUNC(G180*H180,2) -> 6685.43
A181: P9833 | B181: Auxiliar de laboratório | F181: func./mês | G181: 1 | H181: =VLOOKUP(A181,'Pessoal Sicro'!$A$6:$G$118,6,0) -> 4544.6137 | I181: =TRUNC(G181*H181,2) -> 4544.61
H182: Subtotal do Item | I182: =SUM(I180:I181) -> 11230.04
A183: Item | B183: Discriminação | C183: Und | D183: Quant | E183: Utilização Produtiva | F183: Utilização Improdutiva | G183: Horário Produtivo (R$) | H183: Horário Improdutivo (R$) | I183: Total (R$)
B184: Equipe de Controle Tecnológico
B185: Veículos
A186: E9125 | B186: Van furgão a diesel - 93 kW | C186: veic./mês | D186: 0.5 | E186: 44 | F186: 176 | G186: =VLOOKUP(A186,Equipamentos!$A$4:$K$533,10,0) -> 81.7029 | H186: =VLOOKUP(A186,Equipamentos!$A$4:$K$533,11,0) -> 44.4435 | I186: =D186*((E186*G186)+(F186*H186)) -> 5708.4918
H187: Subtotal do Item | I187: =SUM(I186:I186) -> 5708.4918
H188: Total da Equipe do Laboratório de Asfaltos | I188: =I182+I187 -> 16938.5318
A190: Equipes de laboratório de solos para pavimentação
A191: Item | B191: Discriminação | F191: Und | G191: Quant | H191: QE | I191: Els
A192: - | B192: - | F192: - | G192: - | H192: - | I192: -
A193: - | B193: - | F193: - | G193: - | H193: - | I193: -
H194: Total de equipes de Laboratório de Solos para Pavimentação | I194: -
A196: Equipes de laboratório de Asfalto
A197: Item | B197: Discriminação | F197: Und | G197: Quant | H197: QE | I197: Ela
A198: 4011463 | B198: =VLOOKUP(A198,'SINTÉTICO SICRO'!A:D,2,0) -> Concreto asfáltico - faixa C - areia e brita comerciais | F198: =VLOOKUP(A198,'SINTÉTICO SICRO'!A:D,3,0) -> t | G198: ='RESUMO MODULO TOTAL'!J19 -> 26880 | H198: 9000 | I198: =G198/H198 -> 2.986666667
A199: 4011353 | B199: =VLOOKUP(A199,'SINTÉTICO SICRO'!A:D,2,0) -> Pintura de ligação | F199: =VLOOKUP(A199,'SINTÉTICO SICRO'!A:D,3,0) -> m² | G199: ='RESUMO MODULO TOTAL'!J20 -> 224000 | H199: 1610000 | I199: =G199/H199 -> 0.1391304348
H200: Total de equipes de Laboratório de Asfaltos | I200: =SUM(I198:I199) -> 3.125797101
A202: manutenção do canteiro de obras e acampamentos
A203: Código | B203: Discriminação | C203: Unidade | D203: Quantidade | F203: Custo Unitário (R$) | H203: Custo Total (R$)
B204: Manutenção do Canteiro de Obras e Acampamentos
A205: 6.1 | B205: Mão de Obra
A206: P9952 | B206: Pedreiro | C206: mês | D206: 0 | F206: =VLOOKUP(A206,'Pessoal Sicro'!$A$6:$G$118,6,0) -> 4995.5403 | H206: =F206*D206 -> 0
A207: P9954 | B207: Servente | C207: mês | D207: 0 | F207: =VLOOKUP(A207,'Pessoal Sicro'!$A$6:$G$118,6,0) -> 3913.9219 | H207: =F207*D207 -> 0
A208: P9953 | B208: Eletricista | C208: mês | D208: 0 | F208: =VLOOKUP(A208,'Pessoal Sicro'!$A$6:$G$118,6,0) -> 5598.4153 | H208: =F208*D208 -> 0
F209: Subtotal do Item 6.1 | H209: =SUM(H206:I208) -> 0
A211: Código | B211: Discriminação | C211: Unidade | D211: Quantidade | F211: Custo Produtivo (R$) | H211: Custo Total (R$)
A212: 6.2 | B212: Equipamentos
B213: Caminhão guindauto de 6 toneladas | C213: h/mês | D213: 0 | H213: =F213*D213 -> 0
B214: Caminhão tanque de 8.000 litros | C214: h/mês | D214: 0 | H214: =F214*D214 -> 0
A215: E9524 | B215: Motoniveladora | C215: h/mês | D215: 0 | F215: =Equipamentos!J168 -> 288.5033 | H215: =F215*D215 -> 0
F216: Subtotal do Item 6.2 | H216: =SUM(H213:I215) -> 0
G217: Total da Manutenção do Canteiro de Obras e Acampamentos | H217: =H216+H209 -> 0
A221: Resumo das parcelas de administração local
A222: Código | B222: Discriminação | C222: Unidade | D222: Quantidade | F222: Custo Unitário (R$) | H222: Custo Total (R$)
B223: Parcela Fixa
B224: Mão de Obra | C224: mês | D224: 5 | F224: =H14+H18+H26+H30 -> 62693.61705 | H224: =F224*D224 -> 313468.0853
... 27 more rows

Sheet Projeto Executivo
A4: COMPOSIÇAO PREÇO PROJETO EXECUTIVO
A6: DISCRIMINAÇAO | F6: Pr. Unit. | G6: Pr. Total
A8: A· EOUIPE TECNICA | G8: =G9+G12 -> 13954.01004
B9: A. 1 - Pessoal de Nível Superior | C9: Unidade | D9: Quantitativo | E9: SICRO e Rel.Custos Gerais | G9: =G10+G11 -> 11011.03776
B10: Engenheiro | C10: mês | D10: 0.4 | E10: P9812 | F10: =VLOOKUP(E10,'Pessoal Sicro'!A:G,6,0) -> 23564.3607 | G10: =F10*D10 -> 9425.74428
B11: Topógrafo | C11: mês | D11: 0.2 | E11: P9949 | F11: =VLOOKUP(E11,'Pessoal Sicro'!A:G,6,0) -> 7926.4674 | G11: =F11*D11 -> 1585.29348
B12: A.2 - Pessoal de Nível Técnico e Aux. | G12: =G13+G14 -> 2942.972284
B13: Auxiliar de topógrafo | C13: mês | D13: 0.12 | E13: P9950 | F13: =VLOOKUP(E13,'Pessoal Sicro'!A:G,6,0) -> 4519.6557 | G13: =F13*D13 -> 542.358684
B14: Auxiliar Técnico/Assistente de Engenharia | C14: mês | D14: 0.5 | E14: P9903 | F14: =VLOOKUP(E14,'Pessoal Sicro'!A:G,6,0) -> 4801.2272 | G14: =F14*D14 -> 2400.6136
A15: B - ENCARGOS SOCIAIS | G15: =G16 -> 0
B16: =CONCATENATE("Taxas ",'ENC. SOCIAIS'!E51,"%") -> Taxas % | C16: JÁ INCLUSAS EM "A"
A17: C - DESPESAS GERAIS | G17: =G18+G20+G19 -> 4964.464883
B18: C.1 - MATERIAIS DE CONSUMO | C18: Estimativa % como referência de equipe técnica com encargos sociais | D18: 0.03 | F18: =G8+G16 -> 13954.01004 | G18: =F18*D18 -> 418.6203013
B19: C.2 - VEÍCULOS (Veículo leve picape 4 x 4 com capacidade de 1,10 t - 147 kW) | C19: h | D19: 40 | E19: E9684 | F19: =VLOOKUP(E19,Equipamentos!A:K,10,0) -> 106.9319 | G19: =F19*D19 -> 4277.276
B20: C.3 - Estação total eletrônica com alcance máximo de 3.000 m | C20: h | D20: 52.93243371 | E20: E9553 | F20: =VLOOKUP(E20,Equipamentos!A:K,10,0) -> 5.0738 | G20: =F20*D20 -> 268.5685822
A21: D - ENSAIOS | G21: =SUM(G22:G25) -> 2995.888644
B22: Laboratorista | C22: mês | D22: 0.2 | E22: P9858 | F22: =VLOOKUP(E22,'Pessoal Sicro'!A:G,6,0) -> 6685.437 | G22: =F22*D22 -> 1337.0874
B23: Auxiliar de Laboratório | C23: mês | D23: 0.12 | E23: P9833 | F23: =VLOOKUP(E23,'Pessoal Sicro'!A:G,6,0) -> 4544.6137 | G23: =F23*D23 -> 545.353644
B24: Laboratório de solos | C24: mês | D24: 0.12 | E24: B8957 | F24: =VLOOKUP(E24,'Tabelas 1 e 2'!C14:G23,5,0) -> 4073.25 | G24: =F24*D24 -> 488.79
B25: Laboratório de asfalto | C25: mês | D25: 0.12 | E25: B8955 | F25: =VLOOKUP(E25,'Tabelas 1 e 2'!C15:G24,5,0) -> 5205.48 | G25: =F25*D25 -> 624.6576
A26: I - SOMA (A+B+C+D) | G26: =G8+G15+G17+G21 -> 21914.36357
A27: II - CUSTOS ADMINISTRATIVOS | D27: =BDI!C17 -> 0 | G27: =D27*G26 -> 0
A28: TOTAL | G28: =G26+G27 -> 21914.36357
F29: Por m²: | G29: =G28/('MC MODULO'!C1*'MC MODULO'!C2) -> 1.565311684

Sheet CONSUMO DE MAT. B TOTAL
A6: CONSUMO DO MATERIAL BETUMINOSO TOTAL
A8: TRECHO | C8: QUANTIDADES | L8: MAT. BETUMINOSO
A9: Inicio (km) | B9: Fim (km) | C9: Extensão (m) | D9: Largura (m) | E9: Espess. (m) | F9: Área (m2) | G9: Volume (m3) | H9: Densidade (t/m3) | I9: Massa (t) | J9: Unid | K9: Quant. | L9: Tipo | M9: Consumo Taxa de Aplicação | N9: Unid. | O9: Quant.
E11: 1 | O11: =ROUND((F11*1.3)/1000,2) -> 0
E12: 1 | G12: =F12*E12 -> 0 | O12: =ROUND((F12*1.2)/1000,2) -> 0
A13: PINTURA DE LIGAÇÃO
E14: 1 | F14: ='MC MODULO'!H39 -> 224000 | G14: =F14*E14 -> 224000 | L14: RR-1C | M14: 0,4 l/m2 | N14: t | O14: =ROUND((F14*0.45)/1000,2) -> 100.8
A15: CBUQ FAIXA "C"
G16: =F16*E16 -> 0 | I16: ='MC MODULO'!H33 -> 26880 | L16: CAP-50/70 | M16: 0.06449 | N16: t | O16: =ROUND((I16*63.23)/1000,2) -> 1699.62
G18: =F18*E18 -> 0

Sheet CPU CODEVASF
A4: =#REF! -> 
F5: BDI %: | G5: =BDI!C16 -> 0.2339
E6: Encargos Sociais: | G6: Horista | H6: Mensalista
G7: ='ENC. SOCIAIS'!E47/100 -> 1.1444 | H7: ='ENC. SOCIAIS'!F47/100 -> 0.7071
A8: COMPOSIÇÕES DE CUSTO UNITARIO
A9: CPU-13 | B9: CODEVASF | D9: AQUISIÇÃO DE CIMENTO ASFALTICO CAP 50/70 | E9: t | F9: COEF. | G9: PRECO UNITÁRIO (R$) | H9: TOTAL (R$)
D11: CIMENTO ASFALTICO 50/70 | E11: t | F11: 1 | G11: =RESUMO_Transp!V14 -> 4596.061062 | H11: =F11*G11 -> 4596.061062
E12: Sub total: | H12: =SUM(H11) -> 4596.061062
F13: BDI | G13: 0.15 | H13: =H12*G13 -> 689.4091594
G14: Total Serviços: | H14: =H12+H13 -> 5285.470222
E15: =A9 -> CPU-13 | F15: PREÇO UNITÁRIO TOTAL: | H15: =H14 -> 5285.470222 | I15: =H12 -> 4596.061062
A18: CPU-15 | B18: CODEVASF | D18: AQUISIÇÃO DE EMULSÃO ASFÁLTICA RR-1C | E18: t | F18: COEF. | G18: PRECO UNITÁRIO (R$) | H18: TOTAL (R$)
D20: EMULSÃO ASFÁLTICA RR-1C | E20: t | F20: 1 | G20: =RESUMO_Transp!V33 -> 3274.929441 | H20: =F20*G20 -> 3274.929441
E21: Sub total: | H21: =SUM(H20) -> 3274.929441
F22: BDI | G22: 0.15 | H22: =H21*G22 -> 491.2394161
G23: Total Serviços: | H23: =H21+H22 -> 3766.168857
E24: =A18 -> CPU-15 | F24: PREÇO UNITÁRIO TOTAL: | H24: =H23 -> 3766.168857 | I24: =H21 -> 3274.929441
A27: CPU-17 | B27: CODEVASF | D27: TRANSPORTE DE CIMENTO ASFALTICO CAP 50/70 | E27: t | F27: COEF. | G27: PRECO UNITÁRIO (R$) | H27: TOTAL (R$)
D29: TRANSPORTE DE CIMENTO ASFALTICO 50/70 | E29: t | F29: 1 | G29: =RESUMO_Transp!U14 -> 1400.08 | H29: =F29*G29 -> 1400.08
E30: Sub total: | H30: =SUM(H29) -> 1400.08
F31: BDI | G31: 0.15 | H31: =ROUND(H30*G31,2) -> 210.01
G32: Total Serviços: | H32: =H30+H31 -> 1610.09
E33: =A27 -> CPU-17 | F33: PREÇO UNITÁRIO TOTAL: | H33: =H32 -> 1610.09 | I33: =H30 -> 1400.08
A36: CPU-19 | B36: CODEVASF | D36: TRANSPORTE DE EMULSÃO ASFÁLTICA RR-1C | E36: UNID | F36: COEF. | G36: PRECO UNITÁRIO (R$) | H36: TOTAL (R$)
D38: TRANSPORTE DE EMULSÃO ASFÁLTICA RR-1C | E38: t | F38: 1 | G38: =RESUMO_Transp!$U$33 -> 1709.719524 | H38: =F38*G38 -> 1709.719524
E39: Sub total: | H39: =SUM(H38) -> 1709.719524
F40: BDI | G40: 0.15 | H40: =H39*G40 -> 256.4579286
G41: Total Serviços: | H41: =H39+H40 -> 1966.177452
E42: =A36 -> CPU-19 | F42: PREÇO UNITÁRIO TOTAL: | H42: =H41 -> 1966.177452 | I42: =H39 -> 1709.719524
A44: CPU-20 | B44: CODEVASF | D44: CONTROLE TECNOLÓGICO - PROJETO | E44: m² | F44: COEF. | G44: PRECO UNITÁRIO (R$) | H44: TOTAL (R$)
A46: Insumo | B46: SICRO | C46: P9858 | D46: Laboratorista | E46: mês | F46: 1.071428571e-05 | G46: 5576.2888 | H46: =F46*G46 -> 0.05974595143
A47: Composição | B47: SICRO | C47: P9833 | D47: Auxiliar de Laboratório | E47: mês | F47: 1.071428571e-05 | G47: 4221.2468 | H47: 0.04522764429
A48: Composição | B48: SICRO | C48: *B8957 | D48: Laboratório de Solos | E48: mês | F48: 1.071428571e-05 | G48: 4235.59 | H48: 0.04538132143
A49: Composição | B49: SICRO | C49: *B8955 | D49: Laboratório de Asfalto | E49: mês | F49: 1.071428571e-05 | G49: 5144.99 | H49: 0.05512489286
B50: *Relatório de Custos Gerais do DNIT, página 1 | E50: Sub total: | H50: =SUM(H46:H49) -> 0.20547981
F51: BDI | G51: =BDI!$C$16 -> 0.2339 | H51: =G51*H50 -> 0.04806172756
E52: CPU-20 | F52: PREÇO UNITÁRIO TOTAL: | H52: =H50+H51 -> 0.2535415376 | I52: =H50 -> 0.20547981

Sheet BDI
A4: DETALHAMENTO DO BDI - SEM DESONERAÇÃO
A5: =#REF! -> 
A6: Descrição dos serviços | B6: Preço de Venda (%) | C6: Custo Direto (%)
A7: ADMINISTRAÇÃO CENTRAL | C7: 0.06
A8: CUSTOS FINANCEIROS | B8: 0.0102
A9: RISCOS | B9: 0.0025
A10: SEGUROS E GARANTIAS CONTRATUAIS | B10: 0.005
A11: LUCRO OPERACIONAL | C11: 0.07
A12: PIS | B12: 0.0065
A13: COFINS | B13: 0.03
A14: ISSQN | B14: 0.03
A15: Contribuição Previdenciaria | B15: 0
B16: BDI | C16: =ROUND(((1+(C7+C11))/(1-(B8+B9+B10+B12+B13+B14+B15))-1),4) -> 0.2339
A17: Observação: | B17: O percentual de ISSQN aqui utilizado consiste apenas em um referencial médio.
B18: O valor real do ISSQN a ser adotado deve ser aquele proveniente das alíquotas dos municípios situados na área de influência das obras.
A54: DETALHAMENTO DO BDI DIFERENCIADO - SEM DESONERAÇÃO
A55: EXECUÇÃO DE SERVIÇOS DE PAVIMENTAÇÃO COM CONCRETO BETUMINOSO USINADO A QUENTE (CBUQ), EM VIAS DE MUNICÍPIOS DIVERSOS INSERIDOS NA ÁREA DE ATUAÇÃO DA CIDEVASF, NO ESTADO DO RIO GRANDE DO NORTE - LOTE 1
A56: DESCRIÇÃO DOS SERVIÇOS | B56: PREÇO DE VENDA (%) | C56: CUSTO DIRETO (%)
A57: ADMINISTRAÇÃO CENTRAL | C57: 0.0377
A58: DESPESA FINANCEIRAS | B58: 0.0102
A59: SEGUROS E GARANTIAS CONTRATUAIS | B59: 0.0025
A60: RISCOS | B60: 0.005
A61: LUCRO OPERACIONAL | C61: 0.05
A62: PIS | B62: 0.0065
A63: COFINS | B63: 0.03
A64: ISSQN | B64: 0
A65: Contribuição Previdenciaria | B65: 0
B66: BDI | C66: =ROUND((1+(C57+C61))/(1-(B58+B59+B60+B62+B63+B64+B65))-1,4) -> 0.15
A67: Fonte da composição, valores de referência e fórmula do BDI: Instrução Normativa N° 62/DNIT SEDE

Sheet ENC. SOCIAIS
A5: ='RESUMO MODULO TOTAL'!B1 -> EXECUÇÃO DE CAPA ASFÁLTICA EM CONCRETO BETUMINOSO USINADO A QUENTE (CBUQ), EM VIAS DE MUNICÍPIOS DIVERSOS INSERIDOS NA ÁREA DE ATUAÇÃO DA CODEVASF, NO ESTADO DO AMAPÁ (REGIÃO PORTO GRANDE)
A7: DETALHAMENTO DOS ENCARGOS SOCIAIS (%)
A8: VIGÊNCIA A PARTIR DE 12/2022 | C8: COM DESONERAÇÃO | E8: SEM DESONERAÇÃO
C10: HORISTA | D10: MENSALISTA | E10: HORISTA | F10: MENSALISTA
A12: GRUPO A
A13: A1 | B13: INSS | C13: 0 | D13: 0 | E13: 20 | F13: 20
A14: A2 | B14: SESI | C14: 1.5 | D14: 1.5 | E14: 1.5 | F14: 1.5
A15: A3 | B15: SENAI | C15: 1 | D15: 1 | E15: 1 | F15: 1
A16: A4 | B16: INCRA | C16: 0.2 | D16: 0.2 | E16: 0.2 | F16: 0.2
A17: A5 | B17: SEBRAE | C17: 0.6 | D17: 0.6 | E17: 0.6 | F17: 0.6
A18: A6 | B18: Salário Educação | C18: 2.5 | D18: 2.5 | E18: 2.5 | F18: 2.5
A19: A7 | B19: Seguro Contra Acidentes de Trabalho | C19: 3 | D19: 3 | E19: 3 | F19: 3
A20: A8 | B20: FGTS | C20: 8 | D20: 8 | E20: 8 | F20: 8
A21: A9 | B21: SECONCI | C21: 1 | D21: 1 | E21: 1 | F21: 1
A22: A | B22: Total | C22: =SUM(C13:C21) -> 17.8 | D22: =SUM(D13:D21) -> 17.8 | E22: =SUM(E13:E21) -> 37.8 | F22: =SUM(F13:F21) -> 37.8
A23: GRUPO B
A24: B1 | B24: Repouso Semanal Remunerado | C24: 17.88 | D24: - | E24: 17.96 | F24: -
A25: B2 | B25: Feriados | C25: 3.94 | D25: - | E25: 4.01 | F25: -
A26: B3 | B26: Auxílio-enfermidade | C26: 0.91 | D26: 0.69 | E26: 0.85 | F26: 0.64
A27: B4 | B27: 13° salário | C27: 10.98 | D27: 8.33 | E27: 11.05 | F27: 8.33
A28: B5 | B28: Licença-paternidade | C28: 0.07 | D28: 0.06 | E28: 0.06 | F28: 0.04
A29: B6 | B29: Faltas Justificadas | C29: 0.73 | D29: 0.56 | E29: 0.74 | F29: 0.56
A30: B7 | B30: Dias de chuva | C30: 1.45 | D30: - | E30: 1.97 | F30: -
A31: B8 | B31: Auxílio Acidente de Trabalho | C31: 0.11 | D31: 0.09 | E31: 0.1 | F31: 0.08
A32: B9 | B32: Férias Gozadas | C32: 11.35 | D32: 8.62 | E32: 11.74 | F32: 8.85
A33: B10 | B33: Salário Maternidade | C33: 0.03 | D33: 0.03 | E33: 0.04 | F33: 0.03 | L33: =(#REF!)/(1+#REF!) ->  | M33: =(#REF!) -> 
A34: B | B34: Total | C34: =SUM(C24:C33) -> 47.45 | D34: =SUM(D24:D33) -> 18.38 | E34: =SUM(E24:E33) -> 48.52 | F34: =SUM(F24:F33) -> 18.53
A35: GRUPO C
A36: C1 | B36: Aviso Prévio Indenizado | C36: 6.76 | D36: 5.14 | E36: 4.41 | F36: 3.33
A37: C2 | B37: Aviso Prévio Trabalhado | C37: 0.16 | D37: 0.12 | E37: 0.1 | F37: 0.08
A38: C3 | B38: Férias Indenizadas | C38: 2.28 | D38: 1.73 | E38: 2.09 | F38: 1.57
A39: C4 | B39: Depósito Rescisão Sem Justa Causa | C39: 3.81 | D39: 2.89 | E39: 2.42 | F39: 1.82
A40: C5 | B40: Indenização Adicional | C40: 0.57 | D40: 0.43 | E40: 0.37 | F40: 0.28
A41: C | B41: Total | C41: =SUM(C36:C40) -> 13.58 | D41: =SUM(D36:D40) -> 10.31 | E41: =SUM(E36:E40) -> 9.39 | F41: =SUM(F36:F40) -> 7.08
A42: GRUPO D
A43: D1 | B43: Reincidência de A sobre B | C43: 8.45 | D43: 3.27 | E43: 18.34 | F43: 7
A44: D2 | B44: Reincidência de Grupo A sobre Aviso Prévio Trabalhado e Reincidência do FGTS sobre Aviso Prévio Indenizado | C44: 0.57 | D44: 0.43 | E44: 0.39 | F44: 0.3
A45: D | B45: Total | C45: =SUM(C43:C44) -> 9.02 | D45: =SUM(D43:D44) -> 3.7 | E45: =SUM(E43:E44) -> 18.73 | F45: =SUM(F43:F44) -> 7.3
A47: T O T A L (%) | C47: =C22+C34+C41+C45 -> 87.85 | D47: =D22+D34+D41+D45 -> 50.19 | E47: =E22+E34+E41+E45 -> 114.44 | F47: =F22+F34+F41+F45 -> 70.71
H51: Fonte: Sinapi Cálculos e Parâmetros 5ª Edição - Atualizada em Agosto 2023

Sheet Transporte Cap 50-70
C2: MEMÓRIA DE CÁLCULO
C7: REAJUSTE | F7: TIPOLOGIA DO MATERIAL | I7: CIMENTOS ASFÁLTICOS CAP-50-70 | M7: IMPOSTOS | N7: COFINS | O7: 0.0065 | P7: 0.0065
G8: ÍNDICE DE PAVIMENTAÇÃO DNIT | H8: 2014-07-01 | I8: ÍNDICE INICIAL | J8: 270.237 | N8: PIS | O8: 0.03 | P8: 0.03 | T8: LEGENDA | AC8: As empresas tributadas pelo Lucro Presumido pagam 0,65% de PIS e 3% de COFINS
H9: 2024-07-01 | I9: ÍNDICE FINAL | J9: 574.257 | N9: ICMS | O9: 0.18 | P9: 0.18 | Q9: =1-(O9/1) -> 0.82 | R9: =1-(P9/1) -> 0.82 | S9: =1-(Q9/1) -> 0.18 | T9: ENTRADA DE DADOS | AC9: As empresas tributadas pelo Lucro Real pagam 1,65% de PIS e 7,60% de COFINS
F10: CAP50/70 | G10: Data ANP | H10: 2024-07-01
C11: DATA-BASE | D11: PRODUTOS | E11: LOCALIDADES | J11: CUSTO ANP (R$/Kg) | L11: CUSTO ANP | M11: IMPOSTOS DO PRODUTO | N11: CUSTO DO PRODUTO COM IMPOSTOS | O11: DMT's | P11: DMT's FLUVIAL | Q11: CUSTO DO TRANSPORTE RODOVIA PAVIMENTADA | R11: CUSTO DO TRANSPORTE FLUVIAL | S11: CUSTO DO TRANSPORTE TOTAL | T11: ICMS | U11: ATUALIZAÇÃO DO CUSTO DE TRANSPORTE | V11: CUSTO DO TRANSPORTE RODOVIA PAVIMENTADA COM IMPOSTOS E ATUALIZAÇÃO MONETÁRIA | W11: PEDÁGIO | Y11: TOTAL TRANSPORTE | Z11: AQUISIÇÃO DO PRODUTO | AA11: TOTAL GERAL ( TRANSP + AQUISIÇÃO) | AC11: 1 | AD11: 2 | AE11: 3
C12: =H9 -> 2024-07-01 | E12: REFINARIAS | F12: ENDEREÇO | G12: ESTADO | H12: CIDADE | I12: DESTINO | J12: ESTADO | K12: REGIÃO | L12: R$/t | M12: R$/t | N12: R$/t | O12: KM | P12: KM | Q12: R$/t | R12: R$/t | S12: R$/t | T12: R$/t | U12: R$/t | V12: R$/t | W12: CUSTO | X12: R$/t | Y12: R$/t | Z12: R$/t | AA12: R$/t | AC12: TOTAL GERAL ( TRANSP + AQUISIÇÃO) | AD12: TOTAL TRANSPORTE | AE12: AQUISIÇÃO DO PRODUTO
B13: =AA13 -> 6629.294987 | C13: 1 | D13: =I7 -> CIMENTOS ASFÁLTICOS CAP-50-70 | E13: Refinaria Abreu e Lima | F13: Rodovia PE 60, Km 10 - Ipojuca - PE CEP:55590-000 | G13: Pernambuco | H13: IPOJUCA - PE | I13: Porto Grande -AP | J13: =VLOOKUP('Transporte Cap 50-70'!G13,OFFSET('ANP ESTADO'!$A$1,MATCH('Transporte Cap 50-70'!$I$7,'ANP ESTADO'!B:B,0)+MATCH('Transporte Cap 50-70'!$H$10,OFFSET('ANP ESTADO'!$A$1,MATCH('Transporte Cap 50-70'!$I$7,'ANP ESTADO'!B:B,0),0,100000,1),0),2,100000,2),2,FALSE) -> - | K13: =VLOOKUP($H$10,OFFSET('ANP REGIÃO'!$A$9,MATCH('Transporte Cap 50-70'!$I$7,'ANP REGIÃO'!A:A,0),1,10000,10000),MATCH('Transporte Cap 50-70'!AH13,'ANP REGIÃO'!$B$8:$G$8,0),FALSE) -> 3.823804987 | L13: =IF(AND(J13="-",K13="-"),"",IF(AND(J13<>0,K13="-"),J13*1000,IF(AND(J13="-",K13<>0),K13*1000,IF(AND(J13<>0,K13<>0),J13*1000,"")))) -> 3823.804987 | M13: =ROUND(((L13/(1-$O$7-$O$8-$O$9))-L13),2) -> 1056.61 | N13: =L13+M13 -> 4880.414987 | O13: 2118 | P13: 547 | Q13: =ROUND((26.939+0.253*O13),2) -> 562.79 | R13: =ROUND((24.3894+0.1603*P13),2) -> 112.07 | S13: =Q13+R13 -> 674.86 | T13: =TRUNC(S13*($O$9/(1-$O$9)),2) -> 148.14 | U13: =TRUNC(IF($J$8="","",(($J$9-$J$8)/$J$8)*(S13+T13)),2) -> 925.88 | V13: =S13+T13+U13 -> 1748.88 | W13: 0 | X13: =EVEN(' CONSUMO DE MAT. B TOTAL'!$O$16*2/28)*W13/' CONSUMO DE MAT. B TOTAL'!$O$16 -> 0 | Y13: =IF(AND(Q13="",T13=""),"",V13+X13) -> 1748.88 | Z13: =IF(OR(L13="",M13=""),"",L13+M13) -> 4880.414987 | AA13: =IF(OR(Y13="",Z13=""),"",Y13+Z13) -> 6629.294987 | AC13: =AA13 -> 6629.294987 | AD13: =Y13 -> 1748.88 | AE13: =Z13 -> 4880.414987 | AH13: =IF(OR(G13=$D$52,G13=$D$53,G13=$D$55,G13=$D$61,G13=$D$45,G13=$D$41,G13=$D$37,G13=$D$50,G13=$D$40),"NORDESTE",IF(OR(G13=$D$36,G13=$D$38,G13=$D$39,G13=$D$49,G13=$D$57,G13=$D$58,G13=$D$62),"NORTE",IF(OR(G13=$D$42,G13=$D$44,G13=$D$46,G13=$D$47),"CENTRO-OESTE",IF(OR(G13=$D$60,G13=$D$54,G13=$D$48,G13=$D$43),"SUDESTE",IF(OR(G13=$D$59,G13=$D$51,G13=$D$56),"SUL",""))))) -> NORDESTE
B14: =AA14 -> 7612.39322 | C14: 2 | E14: ISAC SAABA | F14: Rua Rio Quixito, 1, Vila Buriti - Distrito Industrial - Manaus - AM CEP: 69072-070 | G14: Amazonas | H14: MANAUS-AM | I14: Porto Grande -AP | J14: =VLOOKUP('Transporte Cap 50-70'!G14,OFFSET('ANP ESTADO'!$A$1,MATCH('Transporte Cap 50-70'!$I$7,'ANP ESTADO'!B:B,0)+MATCH('Transporte Cap 50-70'!$H$10,OFFSET('ANP ESTADO'!$A$1,MATCH('Transporte Cap 50-70'!$I$7,'ANP ESTADO'!B:B,0),0,100000,1),0),2,100000,2),2,FALSE) -> 4.37636322 | K14: =VLOOKUP($H$10,OFFSET('ANP REGIÃO'!$A$9,MATCH('Transporte Cap 50-70'!$I$7,'ANP REGIÃO'!A:A,0),1,10000,10000),MATCH('Transporte Cap 50-70'!AH14,'ANP REGIÃO'!$B$8:$G$8,0),FALSE) -> 3.869839388 | L14: =IF(AND(J14="-",K14=""),"",IF(AND(J14<>0,K14=""),J14*1000,IF(AND(J14="-",K14<>0),K14*1000,IF(AND(J14<>0,K14<>0),J14*1000,"")))) -> 4376.36322 | M14: =ROUND(((L14/(1-$O$7-$O$8-$O$9))-L14),2) -> 1209.3 | N14: =L14+M14 -> 5585.66322 | O14: 2882 | P14: 10 | Q14: =ROUND((26.939+0.253*O14),2) -> 756.09 | R14: =ROUND((24.3894+0.1603*P14),2) -> 25.99 | S14: =Q14+R14 -> 782.08 | T14: =TRUNC(S14*($O$9/(1-$O$9)),2) -> 171.67 | U14: =TRUNC(IF($J$8="","",(($J$9-$J$8)/$J$8)*(S14+T14)),2) -> 1072.98 | V14: =S14+T14+U14 -> 2026.73 | W14: 0 | X14: =EVEN(' CONSUMO DE MAT. B TOTAL'!$O$16*2/28)*W14/' CONSUMO DE MAT. B TOTAL'!$O$16 -> 0 | Y14: 2026.73 | Z14: 5585.66322 | AA14: =IF(OR(Y14="",Z14=""),"",Y14+Z14) -> 7612.39322 | AC14: =AA14 -> 7612.39322 | AD14: =Y14 -> 2026.73 | AE14: 5585.66322 | AH14: =IF(OR(G14=$D$52,G14=$D$53,G14=$D$55,G14=$D$61,G14=$D$45,G14=$D$41,G14=$D$37,G14=$D$50,G14=$D$40),"NORDESTE",IF(OR(G14=$D$36,G14=$D$38,G14=$D$39,G14=$D$49,G14=$D$57,G14=$D$58,G14=$D$62),"NORTE",IF(OR(G14=$D$42,G14=$D$44,G14=$D$46,G14=$D$47),"CENTRO-OESTE",IF(OR(G14=$D$60,G14=$D$54,G14=$D$48,G14=$D$43),"SUDESTE",IF(OR(G14=$D$59,G14=$D$51,G14=$D$56),"SUL",""))))) -> NORTE
B15: 6494.254987 | C15: 2 | E15: Refinaria Potiguar Clara Camarão | F15: Rodovia RN 221, KM 25 - Guamaré - RN CEP:59598-000 | G15: Rio Grande do Norte | H15: GUAMARÉ - RN | I15: Porto Grande -AP | J15: =VLOOKUP('Transporte Cap 50-70'!G15,OFFSET('ANP ESTADO'!$A$1,MATCH('Transporte Cap 50-70'!$I$7,'ANP ESTADO'!B:B,0)+MATCH('Transporte Cap 50-70'!$H$10,OFFSET('ANP ESTADO'!$A$1,MATCH('Transporte Cap 50-70'!$I$7,'ANP ESTADO'!B:B,0),0,100000,1),0),2,100000,2),2,FALSE) -> - | K15: =VLOOKUP($H$10,OFFSET('ANP REGIÃO'!$A$9,MATCH('Transporte Cap 50-70'!$I$7,'ANP REGIÃO'!A:A,0),1,10000,10000),MATCH('Transporte Cap 50-70'!AH15,'ANP REGIÃO'!$B$8:$G$8,0),FALSE) -> 3.823804987 | L15: 3823.804987 | M15: =ROUND(((L15/(1-$O$7-$O$8-$O$9))-L15),2) -> 1056.61 | N15: 4880.414987 | O15: 1912 | P15: 547 | Q15: =ROUND((26.939+0.253*O15),2) -> 510.68 | R15: 112.07 | S15: 622.75 | T15: 136.7 | U15: 854.39 | V15: 1613.84 | W15: 0 | X15: =EVEN(' CONSUMO DE MAT. B TOTAL'!$O$16*2/28)*W15/' CONSUMO DE MAT. B TOTAL'!$O$16 -> 0 | Y15: 1613.84 | Z15: 4880.414987 | AA15: 6494.254987 | AC15: 6494.254987 | AD15: 1613.84 | AE15: 4880.414987 | AH15: NORDESTE
B16: 6755.627885 | C16: 3 | E16: Refinaria Landulpho Alves (RLAM) | F16: Rodovia BA 523, KM 4 – Mataripe São Francisco do Conde - BA CEP:43900-000 | G16: Bahia | H16: SÃO FRANCISCO DO CONDE - BA | I16: Porto Grande -AP | J16: =VLOOKUP('Transporte Cap 50-70'!G16,OFFSET('ANP ESTADO'!$A$1,MATCH('Transporte Cap 50-70'!$I$7,'ANP ESTADO'!B:B,0)+MATCH('Transporte Cap 50-70'!$H$10,OFFSET('ANP ESTADO'!$A$1,MATCH('Transporte Cap 50-70'!$I$7,'ANP ESTADO'!B:B,0),0,100000,1),0),2,100000,2),2,FALSE) -> 3.93496049 | K16: =VLOOKUP($H$10,OFFSET('ANP REGIÃO'!$A$9,MATCH('Transporte Cap 50-70'!$I$7,'ANP REGIÃO'!A:A,0),1,10000,10000),MATCH('Transporte Cap 50-70'!AH16,'ANP REGIÃO'!$B$8:$G$8,0),FALSE) -> 3.823804987 | L16: 3934.96049 | M16: =ROUND(((L16/(1-$O$7-$O$8-$O$9))-L16),2) -> 1087.32 | N16: 5022.28049 | O16: 2092 | P16: 547 | Q16: =ROUND((26.939+0.253*O16),2) -> 556.22 | R16: 112.07 | S16: 668.29 | T16: 146.69 | U16: 916.86 | V16: 1731.84 | W16: 21 | X16: =EVEN(' CONSUMO DE MAT. B TOTAL'!$O$16*2/28)*W16/' CONSUMO DE MAT. B TOTAL'!$O$16 -> 1.507395771 | Y16: 1733.347396 | Z16: 5022.28049 | AA16: 6755.627885 | AC16: 6755.627885 | AD16: 1733.347396 | AE16: 5022.28049 | AH16: NORDESTE
A17: 2403 | B17: 5996.141062 | C17: 4 | E17: Refinaria Lubrificantes e Derivados do Nordeste (Lubnor) | F17: Av. Leite Barbosa, s/nº - Mucuripe Fortaleza - Ceará CEP:60180-420 | G17: Ceará | H17: FORTALEZA - CE | I17: Porto Grande -AP | J17: =VLOOKUP('Transporte Cap 50-70'!G17,OFFSET('ANP ESTADO'!$A$1,MATCH('Transporte Cap 50-70'!$I$7,'ANP ESTADO'!B:B,0)+MATCH('Transporte Cap 50-70'!$H$10,OFFSET('ANP ESTADO'!$A$1,MATCH('Transporte Cap 50-70'!$I$7,'ANP ESTADO'!B:B,0),0,100000,1),0),2,100000,2),2,FALSE) -> 3.601011062 | K17: =VLOOKUP($H$10,OFFSET('ANP REGIÃO'!$A$9,MATCH('Transporte Cap 50-70'!$I$7,'ANP REGIÃO'!A:A,0),1,10000,10000),MATCH('Transporte Cap 50-70'!AH17,'ANP REGIÃO'!$B$8:$G$8,0),FALSE) -> 3.823804987 | L17: =IF(AND(J17="-",K17=""),"",IF(AND(J17<>0,K17=""),J17*1000,IF(AND(J17="-",K17<>0),K17*1000,IF(AND(J17<>0,K17<>0),J17*1000,"")))) -> 3601.011062 | M17: =ROUND(((L17/(1-$O$7-$O$8-$O$9))-L17),2) -> 995.05 | N17: 4596.061062 | O17: 1586 | P17: 547 | Q17: 428.2 | R17: 112.07 | S17: 540.27 | T17: 118.59 | U17: 741.22 | V17: 1400.08 | W17: 0 | X17: =EVEN(' CONSUMO DE MAT. B TOTAL'!$O$16*2/28)*W17/' CONSUMO DE MAT. B TOTAL'!$O$16 -> 0 | Y17: 1400.08 | Z17: 4596.061062 | AA17: 5996.141062 | AC17: 5996.141062 | AD17: 1400.08 | AE17: 4596.061062 | AH17: NORDESTE
B18: 6685.324868 | C18: 5 | E18: Refinaria Capuava (Recap) | F18: Av. Alberto Soares Sampaio, 2122-A Capuava – Mauá - SP | G18: São Paulo | H18: MAUÁ - SP | I18: Porto Grande -AP | J18: =VLOOKUP('Transporte Cap 50-70'!G18,OFFSET('ANP ESTADO'!$A$1,MATCH('Transporte Cap 50-70'!$I$7,'ANP ESTADO'!B:B,0)+MATCH('Transporte Cap 50-70'!$H$10,OFFSET('ANP ESTADO'!$A$1,MATCH('Transporte Cap 50-70'!$I$7,'ANP ESTADO'!B:B,0),0,100000,1),0),2,100000,2),2,FALSE) -> 3.341281628 | K18: =VLOOKUP($H$10,OFFSET('ANP REGIÃO'!$A$9,MATCH('Transporte Cap 50-70'!$I$7,'ANP REGIÃO'!A:A,0),1,10000,10000),MATCH('Transporte Cap 50-70'!AH18,'ANP REGIÃO'!$B$8:$G$8,0),FALSE) -> 3.343745889 | L18: 3341.281628 | M18: =ROUND(((L18/(1-$O$7-$O$8-$O$9))-L18),2) -> 923.28 | N18: 4264.561628 | O18: 2985 | P18: 547 | Q18: 782.14 | R18: 112.07 | S18: 894.21 | T18: 196.29 | U18: 1226.82 | V18: 2317.32 | W18: 1441.1 | X18: =EVEN(' CONSUMO DE MAT. B TOTAL'!$O$16*2/28)*W18/' CONSUMO DE MAT. B TOTAL'!$O$16 -> 103.4432403 | Y18: 2420.76324 | Z18: 4264.561628 | AA18: 6685.324868 | AC18: 6685.324868 | AD18: 2420.76324 | AE18: 4264.561628 | AH18: SUDESTE
B19: 6679.586365 | C19: 6 | E19: Refinaria Duque de Caxias (Reduc) | F19: Rodovia Washington Luiz, km 113,7 Campos Elíseos – Duque de Caxias - RJ CEP:25213-005 | G19: Rio de Janeiro | H19: DUQUE DE CAXIAS - RJ | I19: Porto Grande -AP | J19: =VLOOKUP('Transporte Cap 50-70'!G19,OFFSET('ANP ESTADO'!$A$1,MATCH('Transporte Cap 50-70'!$I$7,'ANP ESTADO'!B:B,0)+MATCH('Transporte Cap 50-70'!$H$10,OFFSET('ANP ESTADO'!$A$1,MATCH('Transporte Cap 50-70'!$I$7,'ANP ESTADO'!B:B,0),0,100000,1),0),2,100000,2),2,FALSE) -> 3.225667238 | K19: =VLOOKUP($H$10,OFFSET('ANP REGIÃO'!$A$9,MATCH('Transporte Cap 50-70'!$I$7,'ANP REGIÃO'!A:A,0),1,10000,10000),MATCH('Transporte Cap 50-70'!AH19,'ANP REGIÃO'!$B$8:$G$8,0),FALSE) -> 3.343745889 | L19: 3225.667238 | M19: 891.33 | N19: 4116.997238 | O19: 3239 | P19: 547 | Q19: 846.41 | R19: 112.07 | S19: 958.48 | T19: 210.39 | U19: 1314.99 | V19: 2483.86 | W19: 1096.8 | X19: =EVEN(' CONSUMO DE MAT. B TOTAL'!$O$16*2/28)*W19/' CONSUMO DE MAT. B TOTAL'!$O$16 -> 78.72912769 | Y19: 2562.589128 | Z19: 4116.997238 | AA19: 6679.586365 | AC19: 6679.586365 | AD19: 2562.589128 | AE19: 4116.997238 | AH19: SUDESTE
B20: 7525.721669 | C20: 7 | E20: Refinaria Alberto Pasqualini (Refap) | F20: Avenida Getúlio Vargas, 11001 - Bairro Brigadeira Canoas - RS - Brasil CEP:92420-221 | G20: Rio grande do sul | H20: CANOAS - RS | I20: Porto Grande -AP | J20: =VLOOKUP('Transporte Cap 50-70'!G20,OFFSET('ANP ESTADO'!$A$1,MATCH('Transporte Cap 50-70'!$I$7,'ANP ESTADO'!B:B,0)+MATCH('Transporte Cap 50-70'!$H$10,OFFSET('ANP ESTADO'!$A$1,MATCH('Transporte Cap 50-70'!$I$7,'ANP ESTADO'!B:B,0),0,100000,1),0),2,100000,2),2,FALSE) -> 3.417243597 | K20: =VLOOKUP($H$10,OFFSET('ANP REGIÃO'!$A$9,MATCH('Transporte Cap 50-70'!$I$7,'ANP REGIÃO'!A:A,0),1,10000,10000),MATCH('Transporte Cap 50-70'!AH20,'ANP REGIÃO'!$B$8:$G$8,0),FALSE) -> 3.417322232 | L20: 3417.243597 | M20: 944.27 | N20: 4361.513597 | O20: 4049 | P20: 547 | Q20: 1051.34 | R20: 112.07 | S20: 1163.41 | T20: 255.38 | U20: 1596.15 | V20: 3014.94 | W20: 2079.5 | X20: =EVEN(' CONSUMO DE MAT. B TOTAL'!$O$16*2/28)*W20/' CONSUMO DE MAT. B TOTAL'!$O$16 -> 149.2680717 | Y20: 3164.208072 | Z20: 4361.513597 | AA20: 7525.721669 | AC20: 7525.721669 | AD20: 3164.208072 | AE20: 4361.513597 | AH20: SUL
B21: 6969.616824 | C21: 8 | E21: Unidade de Industrialização do Xisto (SIX) | F21: Rodovia do Xisto, BR 476, km 153 São Mateus do Sul – PR CEP 83900-000 | G21: Paraná | H21: SÃO MATEUS DO SUL - PR | I21: Porto Grande -AP | J21: =VLOOKUP('Transporte Cap 50-70'!G21,OFFSET('ANP ESTADO'!$A$1,MATCH('Transporte Cap 50-70'!$I$7,'ANP ESTADO'!B:B,0)+MATCH('Transporte Cap 50-70'!$H$10,OFFSET('ANP ESTADO'!$A$1,MATCH('Transporte Cap 50-70'!$I$7,'ANP ESTADO'!B:B,0),0,100000,1),0),2,100000,2),2,FALSE) -> 3.417370179 | K21: =VLOOKUP($H$10,OFFSET('ANP REGIÃO'!$A$9,MATCH('Transporte Cap 50-70'!$I$7,'ANP REGIÃO'!A:A,0),1,10000,10000),MATCH('Transporte Cap 50-70'!AH21,'ANP REGIÃO'!$B$8:$G$8,0),FALSE) -> 3.417322232 | L21: 3417.370179 | M21: 944.3 | N21: 4361.670179 | O21: 3281 | P21: 547 | Q21: 857.03 | R21: 112.07 | S21: 969.1 | T21: 212.72 | U21: 1329.56 | V21: 2511.38 | W21: 1345.3 | X21: =EVEN(' CONSUMO DE MAT. B TOTAL'!$O$16*2/28)*W21/' CONSUMO DE MAT. B TOTAL'!$O$16 -> 96.56664431 | Y21: 2607.946644 | Z21: 4361.670179 | AA21: 6969.616824 | AC21: 6969.616824 | AD21: 2607.946644 | AE21: 4361.670179 | AH21: SUL
B22: 6490.057607 | C22: 9 | E22: Refinaria Gabriel Passos (Regap) | F22: Av. Refinaria Gabriel Passos, 690 Distrito Industrial Paulo Camilo Sul Betim - MG CEP:32669-205 | G22: Minas Gerais | H22: BETIM - MG | I22: Porto Grande -AP | J22: =VLOOKUP('Transporte Cap 50-70'!G22,OFFSET('ANP ESTADO'!$A$1,MATCH('Transporte Cap 50-70'!$I$7,'ANP ESTADO'!B:B,0)+MATCH('Transporte Cap 50-70'!$H$10,OFFSET('ANP ESTADO'!$A$1,MATCH('Transporte Cap 50-70'!$I$7,'ANP ESTADO'!B:B,0),0,100000,1),0),2,100000,2),2,FALSE) -> 3.307833193 | K22: =VLOOKUP($H$10,OFFSET('ANP REGIÃO'!$A$9,MATCH('Transporte Cap 50-70'!$I$7,'ANP REGIÃO'!A:A,0),1,10000,10000),MATCH('Transporte Cap 50-70'!AH22,'ANP REGIÃO'!$B$8:$G$8,0),FALSE) -> 3.343745889 | L22: 3307.833193 | M22: 914.03 | N22: 4221.863193 | O22: 2831 | P22: 547 | Q22: 743.18 | R22: 112.07 | S22: 855.25 | T22: 187.73 | U22: 1173.36 | V22: 2216.34 | W22: 722.4 | X22: =EVEN(' CONSUMO DE MAT. B TOTAL'!$O$16*2/28)*W22/' CONSUMO DE MAT. B TOTAL'!$O$16 -> 51.85441452 | Y22: 2268.194415 | Z22: 4221.863193 | AA22: =IF(OR(Y22="",Z22=""),"",Y22+Z22) -> 6490.057607 | AC22: 6490.057607 | AD22: 2268.194415 | AE22: 4221.863193 | AH22: SUDESTE
B23: 6981.571901 | C23: 10 | E23: Refinaria Presidente Getúlio Vargas (Repar) | F23: Rodovia do Xisto, BR 476, km 16 Araucária - PR CEP:83707-440 | G23: Paraná | H23: ARAUCÁRIA - PR | I23: Porto Grande -AP | J23: =VLOOKUP('Transporte Cap 50-70'!G23,OFFSET('ANP ESTADO'!$A$1,MATCH('Transporte Cap 50-70'!$I$7,'ANP ESTADO'!B:B,0)+MATCH('Transporte Cap 50-70'!$H$10,OFFSET('ANP ESTADO'!$A$1,MATCH('Transporte Cap 50-70'!$I$7,'ANP ESTADO'!B:B,0),0,100000,1),0),2,100000,2),2,FALSE) -> 3.417370179 | K23: =VLOOKUP($H$10,OFFSET('ANP REGIÃO'!$A$9,MATCH('Transporte Cap 50-70'!$I$7,'ANP REGIÃO'!A:A,0),1,10000,10000),MATCH('Transporte Cap 50-70'!AH23,'ANP REGIÃO'!$B$8:$G$8,0),FALSE) -> 3.417322232 | L23: 3417.370179 | M23: 944.3 | N23: 4361.670179 | O23: 3271 | P23: 547 | Q23: 854.5 | R23: 112.07 | S23: 966.57 | T23: 212.17 | U23: 1326.09 | V23: 2504.83 | W23: 1603.1 | X23: =EVEN(' CONSUMO DE MAT. B TOTAL'!$O$16*2/28)*W23/' CONSUMO DE MAT. B TOTAL'!$O$16 -> 115.0717219 | Y23: 2619.901722 | Z23: 4361.670179 | AA23: 6981.571901 | AC23: 6981.571901 | AD23: 2619.901722 | AE23: 4361.670179 | AH23: SUL
B24: 6710.894868 | C24: 11 | E24: Refinaria Presidente Bernardes (RPBC) | F24: Av. 9 de abril, 777 - Jardim das Indústrias Cubatão - SP CEP:11505-000 | G24: São Paulo | H24: CUBATÃO - SP | I24: Porto Grande -AP | J24: =VLOOKUP('Transporte Cap 50-70'!G24,OFFSET('ANP ESTADO'!$A$1,MATCH('Transporte Cap 50-70'!$I$7,'ANP ESTADO'!B:B,0)+MATCH('Transporte Cap 50-70'!$H$10,OFFSET('ANP ESTADO'!$A$1,MATCH('Transporte Cap 50-70'!$I$7,'ANP ESTADO'!B:B,0),0,100000,1),0),2,100000,2),2,FALSE) -> 3.341281628 | K24: =VLOOKUP($H$10,OFFSET('ANP REGIÃO'!$A$9,MATCH('Transporte Cap 50-70'!$I$7,'ANP REGIÃO'!A:A,0),1,10000,10000),MATCH('Transporte Cap 50-70'!AH24,'ANP REGIÃO'!$B$8:$G$8,0),FALSE) -> 3.343745889 | L24: 3341.281628 | M24: 923.28 | N24: 4264.561628 | O24: 3024 | P24: 547 | Q24: 792.01 | R24: 112.07 | S24: 904.08 | T24: 198.45 | U24: 1240.36 | V24: 2342.89 | W24: 1441.1 | X24: =EVEN(' CONSUMO DE MAT. B TOTAL'!$O$16*2/28)*W24/' CONSUMO DE MAT. B TOTAL'!$O$16 -> 103.4432403 | Y24: 2446.33324 | Z24: 4264.561628 | AA24: 6710.894868 | AC24: 6710.894868 | AD24: 2446.33324 | AE24: 4264.561628 | AH24: SUDESTE
B25: 6575.213208 | C25: 12 | E25: Refinaria de Paulínia (Replan) | F25: Rodovia SP 332 - Km. 130 Bonfim - Paulínia – SP CEP:13140-000 | G25: São Paulo | H25: PAULÍNIA - SP | I25: Porto Grande -AP | J25: =VLOOKUP('Transporte Cap 50-70'!G25,OFFSET('ANP ESTADO'!$A$1,MATCH('Transporte Cap 50-70'!$I$7,'ANP ESTADO'!B:B,0)+MATCH('Transporte Cap 50-70'!$H$10,OFFSET('ANP ESTADO'!$A$1,MATCH('Transporte Cap 50-70'!$I$7,'ANP ESTADO'!B:B,0),0,100000,1),0),2,100000,2),2,FALSE) -> 3.341281628 | K25: =VLOOKUP($H$10,OFFSET('ANP REGIÃO'!$A$9,MATCH('Transporte Cap 50-70'!$I$7,'ANP REGIÃO'!A:A,0),1,10000,10000),MATCH('Transporte Cap 50-70'!AH25,'ANP REGIÃO'!$B$8:$G$8,0),FALSE) -> 3.343745889 | L25: 3341.281628 | M25: 923.28 | N25: 4264.561628 | O25: 2834 | P25: 547 | Q25: 743.94 | R25: 112.07 | S25: 856.01 | T25: 187.9 | U25: 1174.41 | V25: 2218.32 | W25: 1286.3 | X25: =EVEN(' CONSUMO DE MAT. B TOTAL'!$O$16*2/28)*W25/' CONSUMO DE MAT. B TOTAL'!$O$16 -> 92.33158 | Y25: 2310.65158 | Z25: 4264.561628 | AA25: 6575.213208 | AC25: 6575.213208 | AD25: 2310.65158 | AE25: 4264.561628 | AH25: SUDESTE
B26: 6702.825025 | C26: 13 | E26: Refinaria Henrique Lage (Revap) | F26: Rodovia Presidente Dutra, KM 143, S/N Bairro Jardim Diamante - São José dos Campos – SP CEP:12223-900 | G26: São Paulo | H26: SÃO JOSÉ DOS CAMPOS - SP | I26: Porto Grande -AP | J26: =VLOOKUP('Transporte Cap 50-70'!G26,OFFSET('ANP ESTADO'!$A$1,MATCH('Transporte Cap 50-70'!$I$7,'ANP ESTADO'!B:B,0)+MATCH('Transporte Cap 50-70'!$H$10,OFFSET('ANP ESTADO'!$A$1,MATCH('Transporte Cap 50-70'!$I$7,'ANP ESTADO'!B:B,0),0,100000,1),0),2,100000,2),2,FALSE) -> 3.341281628 | K26: =VLOOKUP($H$10,OFFSET('ANP REGIÃO'!$A$9,MATCH('Transporte Cap 50-70'!$I$7,'ANP REGIÃO'!A:A,0),1,10000,10000),MATCH('Transporte Cap 50-70'!AH26,'ANP REGIÃO'!$B$8:$G$8,0),FALSE) -> 3.343745889 | L26: 3341.281628 | M26: 923.28 | N26: 4264.561628 | O26: 3001 | P26: 547 | Q26: 786.19 | R26: 112.07 | S26: 898.26 | T26: 197.17 | U26: 1232.37 | V26: 2327.8 | W26: 1538.9 | X26: =EVEN(' CONSUMO DE MAT. B TOTAL'!$O$16*2/28)*W26/' CONSUMO DE MAT. B TOTAL'!$O$16 -> 110.4633977 | Y26: 2438.263398 | Z26: 4264.561628 | AA26: 6702.825025 | AC26: 6702.825025 | AD26: 2438.263398 | AE26: 4264.561628 | AH26: SUDESTE
D36: Acre
D37: Alagoas
D38: Amapá
D39: Amazonas
D40: Bahia
D41: Ceará
D42: Distrito Federal
D43: Espírito Santo
D44: Goiás
D45: Maranhão
D46: Mato Grosso
D47: Mato Grosso do Sul
D48: Minas Gerais
D49: Pará
D50: Paraíba
D51: Paraná
D52: Pernambuco
D53: Piauí
D54: Rio de Janeiro
D55: Rio Grande do Norte
D56: Rio Grande do Sul
D57: Rondônia
D58: Roraima
D59: Santa Catarina
D60: São Paulo
D61: Sergipe
D62: Tocantins
D66: ASFALTOS DILUÍDOS CM-30
D67: ASFALTOS DILUÍDOS CM-70
D68: ASFALTOS DILUÍDOS CR-250
D69: ASFALTOS DILUÍDOS CR-70
D70: CAP MODIFICADO POR BORRACHA DE PNEU AB22
D71: CAP MODIFICADO POR BORRACHA DE PNEU AB8
D72: CAP MODIFICADO POR POLÍMERO 55-75-E
D73: CAP MODIFICADO POR POLÍMERO 60-85-E
D74: CAP MODIFICADO POR POLÍMERO 65-90-E
D75: CIMENTOS ASFÁLTICOS CAP-150-200
D76: CIMENTOS ASFÁLTICOS CAP-30-45
D77: CIMENTOS ASFÁLTICOS CAP-50-70
D78: CIMENTOS ASFÁLTICOS CAP-85-100
D79: EMULSÃO ASFÁLTICA CATIÔNICA DE RUPTURA CONTROLADA PARA SERVIÇO DE LAMA ASFÁLTICA
D80: EMULSÃO ASFÁLTICA DE RUPTURA LENTA CATIÔNICA PARA SERVIÇO DE LAMA ASFÁLTICA
D81: EMULSÃO ASFÁLTICA DE RUPTURA LENTA DE CARGA NEUTRA PARA SERVIÇO DE LAMA ASFÁLTICA
D82: EMULSÃO ASFÁLTICA PARA SERVIÇO DE IMPRIMAÇÃO
D83: EMULSÕES ASF. MOD. POR POLÍMEROS RC1C-E
D84: EMULSÕES ASF. MOD. POR POLÍMEROS RL1C-E
D85: EMULSÕES ASF. MOD. POR POLÍMEROS RM1C-E
D86: EMULSÕES ASF. MOD. POR POLÍMEROS RR1C-E
D87: EMULSÕES ASF. MOD. POR POLÍMEROS RR2C-E
D88: EMULSÕES ASFÁLTICAS RL-1C
D89: EMULSÕES ASFÁLTICAS RM-1C
D90: EMULSÕES ASFÁLTICAS RM-2C
D91: EMULSÕES ASFÁLTICAS RR-1C
D92: EMULSÕES ASFÁLTICAS RR-2C

Sheet Transporte RR-1C
C2: MEMÓRIA DE CÁLCULO
C7: REAJUSTE | F7: TIPOLOGIA DO MATERIAL | I7: EMULSÕES ASFÁLTICAS RR-1C | M7: IMPOSTOS | N7: COFINS | O7: 0.0065 | P7: 0.0065
G8: ÍNDICE DE PAVIMENTAÇÃO DNIT | H8: 2014-07-01 | I8: ÍNDICE INICIAL | J8: 270.237 | N8: PIS | O8: 0.03 | P8: 0.03 | T8: LEGENDA | AC8: As empresas tributadas pelo Lucro Presumido pagam 0,65% de PIS e 3% de COFINS
H9: ='Transporte Cap 50-70'!H9 -> 2024-07-01 | I9: ÍNDICE FINAL | J9: ='Transporte Cap 50-70'!J9 -> 574.257 | N9: ICMS | O9: 0.18 | P9: 0.18 | Q9: =1-(O9/1) -> 0.82 | R9: =1-(P9/1) -> 0.82 | S9: =1-(Q9/1) -> 0.18 | T9: ENTRADA DE DADOS | AC9: As empresas tributadas pelo Lucro Real pagam 1,65% de PIS e 7,60% de COFINS
G10: Data ANP | H10: ='Transporte Cap 50-70'!H9 -> 2024-07-01
C11: DATA-BASE | D11: PRODUTOS | E11: LOCALIDADES | J11: CUSTO ANP (R$/Kg) | L11: CUSTO ANP | M11: IMPOSTOS DO PRODUTO | N11: CUSTO DO PRODUTO COM IMPOSTOS | O11: DMT's | P11: DMT'S FLUVIAL | Q11: CUSTO DO TRANSPORTE RODOVIA PAVIMENTADA | R11: CUSTO DO TRANSPORTE FLUVIAL | S11: CUSTO DO TRANSPORTE TOTAL | T11: ICMS | U11: ATUALIZAÇÃO DO CUSTO DE TRANSPORTE | V11: CUSTO DO TRANSPORTE RODOVIA PAVIMENTADA COM IMPOSTOS E ATUALIZAÇÃO MONETÁRIA | W11: PEDÁGIO | Y11: TOTAL TRANSPORTE | Z11: AQUISIÇÃO DO PRODUTO | AA11: TOTAL GERAL ( TRANSP + AQUISIÇÃO) | AC11: 1 | AD11: 2 | AE11: 3
C12: =H9 -> 2024-07-01 | E12: REFINARIAS | F12: ENDEREÇO | G12: ESTADO | H12: CIDADE | I12: DESTINO | J12: ESTADO | K12: REGIÃO | L12: R$/t | M12: R$/t | N12: R$/t | O12: KM | P12: KM | Q12: R$/t | R12: R$/t | S12: R$/t | T12: R$/t | U12: R$/t | V12: R$/t | W12: CUSTO | X12: R$/t | Y12: R$/t | Z12: R$/t | AA12: R$/t | AC12: TOTAL GERAL ( TRANSP + AQUISIÇÃO) | AD12: TOTAL TRANSPORTE | AE12: AQUISIÇÃO DO PRODUTO
B13: =AA13 -> 5273.462973 | C13: 1 | D13: =I7 -> EMULSÕES ASFÁLTICAS RR-1C | E13: 'CENTRO OESTE ASFALTOS LTDA. | F13: SETOR DE INFLAMÁVEIS, S/N TRECHO 02 - LOTE 1.100 - GUARÁ - CEP:71225-000 | G13: Distrito Federal | H13: BRASÍLIA - DF | I13: Porto Grande -AP | J13: =VLOOKUP(G13,OFFSET('ANP ESTADO'!$A$1,MATCH($I$7,'ANP ESTADO'!B:B,0)+MATCH($H$10,OFFSET('ANP ESTADO'!$A$1,MATCH($I$7,'ANP ESTADO'!B:B,0),0,100000,1),0),2,100000,2),2,FALSE) -> - | K13: =VLOOKUP($H$10,OFFSET('ANP REGIÃO'!$A$9,MATCH('Transporte RR-1C'!$I$7,'ANP REGIÃO'!A:A,0),1,10000,10000),MATCH('Transporte RR-1C'!AH13,'ANP REGIÃO'!$B$8:$G$8,0),FALSE) -> 2.777249639 | L13: =IF(AND(J13="-",K13="-"),"",IF(AND(J13<>0,K13="-"),J13*1000,IF(AND(J13="-",K13<>0),K13*1000,IF(AND(J13<>0,K13<>0),J13*1000,"")))) -> 2777.249639 | M13: =ROUND(((L13/(1-$O$7-$O$8-$O$9))-L13),2) -> 767.42 | N13: =L13+M13 -> 3544.669639 | O13: 2051 | P13: 547 | Q13: =ROUND((26.939+0.253*O13),2) -> 545.84 | R13: =ROUND((20.7256+0.1603*P13),2) -> 108.41 | S13: =Q13+R13 -> 654.25 | T13: =TRUNC(S13*($O$9/(1-$O$9)),2) -> 143.61 | U13: =TRUNC(IF($J$8="","",(($J$9-$J$8)/$J$8)*(S13+T13)),2) -> 897.6 | V13: =S13+T13+U13 -> 1695.46 | W13: 420 | X13: =EVEN(' CONSUMO DE MAT. B TOTAL'!$O$14*2/28)*W13/' CONSUMO DE MAT. B TOTAL'!$O$14 -> 33.33333333 | Y13: =IF(AND(Q13="",T13=""),"",V13+X13) -> 1728.793333 | Z13: =IF(OR(L13="",M13=""),"",L13+M13) -> 3544.669639 | AA13: =IF(OR(Y13="",Z13=""),"",Y13+Z13) -> 5273.462973 | AC13: =AA13 -> 5273.462973 | AD13: =Y13 -> 1728.793333 | AE13: =Z13 -> 3544.669639 | AH13: =IF(OR(G13=$D$59,G13=$D$60,G13=$D$62,G13=$D$68,G13=$D$52,G13=$D$48,G13=$D$44,G13=$D$57,G13=$D$47),"NORDESTE",IF(OR(G13=$D$43,G13=$D$45,G13=$D$46,G13=$D$56,G13=$D$64,G13=$D$65,G13=$D$69),"NORTE",IF(OR(G13=$D$49,G13=$D$51,G13=$D$53,G13=$D$54),"CENTRO-OESTE",IF(OR(G13=$D$67,G13=$D$61,G13=$D$55,G13=$D$50),"SUDESTE",IF(OR(G13=$D$66,G13=$D$58,G13=$D$63),"SUL",""))))) -> CENTRO-OESTE
B14: =AA14 -> 6612.948617 | C14: 2 | E14: ISAC SAABA | F14: Rua Rio Quixito, 1, Vila Buriti - Distrito Industrial - Manaus - AM CEP: 69072-070 | G14: Amazonas | H14: MANAUS - AM | I14: Porto Grande -AP | J14: =VLOOKUP(G14,OFFSET('ANP ESTADO'!$A$1,MATCH($I$7,'ANP ESTADO'!B:B,0)+MATCH($H$10,OFFSET('ANP ESTADO'!$A$1,MATCH($I$7,'ANP ESTADO'!B:B,0),0,100000,1),0),2,100000,2),2,FALSE) -> 3.600728617 | K14: =VLOOKUP($H$10,OFFSET('ANP REGIÃO'!$A$9,MATCH('Transporte RR-1C'!$I$7,'ANP REGIÃO'!A:A,0),1,10000,10000),MATCH('Transporte RR-1C'!AH14,'ANP REGIÃO'!$B$8:$G$8,0),FALSE) -> 3.601339327 | L14: =IF(AND(J14="-",K14="-"),"",IF(AND(J14<>0,K14="-"),J14*1000,IF(AND(J14="-",K14<>0),K14*1000,IF(AND(J14<>0,K14<>0),J14*1000,"")))) -> 3600.728617 | M14: =ROUND(((L14/(1-$O$7-$O$8-$O$9))-L14),2) -> 994.97 | N14: =L14+M14 -> 4595.698617 | O14: 2882 | P14: 10 | Q14: =ROUND((26.939+0.253*O14),2) -> 756.09 | R14: =ROUND((20.7256+0.1603*P14),2) -> 22.33 | S14: =Q14+R14 -> 778.42 | T14: =TRUNC(S14*($O$9/(1-$O$9)),2) -> 170.87 | U14: =TRUNC(IF($J$8="","",(($J$9-$J$8)/$J$8)*(S14+T14)),2) -> 1067.96 | V14: =S14+T14+U14 -> 2017.25 | W14: 0 | X14: =EVEN(' CONSUMO DE MAT. B TOTAL'!$O$14*2/28)*W14/' CONSUMO DE MAT. B TOTAL'!$O$14 -> 0 | Y14: 2017.25 | Z14: 4595.698617 | AA14: =IF(OR(Y14="",Z14=""),"",Y14+Z14) -> 6612.948617 | AC14: =AA14 -> 6612.948617 | AD14: =Y14 -> 2017.25 | AE14: 4595.698617 | AH14: =IF(OR(G14=$D$59,G14=$D$60,G14=$D$62,G14=$D$68,G14=$D$52,G14=$D$48,G14=$D$44,G14=$D$57,G14=$D$47),"NORDESTE",IF(OR(G14=$D$43,G14=$D$45,G14=$D$46,G14=$D$56,G14=$D$64,G14=$D$65,G14=$D$69),"NORTE",IF(OR(G14=$D$49,G14=$D$51,G14=$D$53,G14=$D$54),"CENTRO-OESTE",IF(OR(G14=$D$67,G14=$D$61,G14=$D$55,G14=$D$50),"SUDESTE",IF(OR(G14=$D$66,G14=$D$58,G14=$D$63),"SUL",""))))) -> NORTE
B15: 4984.648965 | C15: 2 | E15: STRATURA ASFALTOS S/A | F15: AVENIDA PRESIDENTE WILSON, 08 - JUNDIAÍ - CEP:75115-100 | G15: Goiás | H15: ANÁPOLIS - GO | I15: Porto Grande -AP | J15: =VLOOKUP(G15,OFFSET('ANP ESTADO'!$A$1,MATCH($I$7,'ANP ESTADO'!B:B,0)+MATCH($H$10,OFFSET('ANP ESTADO'!$A$1,MATCH($I$7,'ANP ESTADO'!B:B,0),0,100000,1),0),2,100000,2),2,FALSE) -> 2.565909441 | K15: =VLOOKUP($H$10,OFFSET('ANP REGIÃO'!$A$9,MATCH('Transporte RR-1C'!$I$7,'ANP REGIÃO'!A:A,0),1,10000,10000),MATCH('Transporte RR-1C'!AH15,'ANP REGIÃO'!$B$8:$G$8,0),FALSE) -> 2.777249639 | L15: 2565.909441 | M15: 709.02 | N15: 3274.929441 | O15: 2012 | P15: 547 | Q15: 535.98 | R15: 108.41 | S15: 644.39 | T15: 141.45 | U15: 884.07 | V15: 1669.91 | W15: 501.6 | X15: =EVEN(' CONSUMO DE MAT. B TOTAL'!$O$14*2/28)*W15/' CONSUMO DE MAT. B TOTAL'!$O$14 -> 39.80952381 | Y15: 1709.719524 | Z15: 3274.929441 | AA15: 4984.648965 | AC15: 4984.648965 | AD15: 1709.719524 | AE15: 3274.929441 | AH15: CENTRO-OESTE
B16: 5018.650393 | C16: 3 | E16: DISTRIBUIDORA BRASILEIRA DE ASFALTO SA - DISBRAL | F16: VIA PRIMARIA 8, S/N QD-18, MODS. 24/47 - DAIAG - CEP:74980-970 | G16: Goiás | H16: APARECIDA DE GOIANIA - GO | I16: Porto Grande -AP | J16: =VLOOKUP(G16,OFFSET('ANP ESTADO'!$A$1,MATCH($I$7,'ANP ESTADO'!B:B,0)+MATCH($H$10,OFFSET('ANP ESTADO'!$A$1,MATCH($I$7,'ANP ESTADO'!B:B,0),0,100000,1),0),2,100000,2),2,FALSE) -> 2.565909441 | K16: =VLOOKUP($H$10,OFFSET('ANP REGIÃO'!$A$9,MATCH('Transporte RR-1C'!$I$7,'ANP REGIÃO'!A:A,0),1,10000,10000),MATCH('Transporte RR-1C'!AH16,'ANP REGIÃO'!$B$8:$G$8,0),FALSE) -> 2.777249639 | L16: 2565.909441 | M16: 709.02 | N16: 3274.929441 | O16: 2063 | P16: 547 | Q16: 548.88 | R16: 108.41 | S16: 657.29 | T16: 144.28 | U16: 901.77 | V16: 1703.34 | W16: 508.8 | X16: =EVEN(' CONSUMO DE MAT. B TOTAL'!$O$14*2/28)*W16/' CONSUMO DE MAT. B TOTAL'!$O$14 -> 40.38095238 | Y16: 1743.720952 | Z16: 3274.929441 | AA16: 5018.650393 | AC16: 5018.650393 | AD16: 1743.720952 | AE16: 3274.929441 | AH16: CENTRO-OESTE
A17: 2403 | B17: 4999.630393 | C17: 4 | E17: INDÚSTRIA NACIONAL DE ASFALTOS LTDA. | F17: VIA PRIMEIRA E SEGUNDA 3, S/N.º LOTES 01 A 10 - DISTRITO AGROINDUSTRIAL - CEP:75370-000 | G17: Goiás | H17: GOIANIRA - GO | I17: Porto Grande -AP | J17: =VLOOKUP(G17,OFFSET('ANP ESTADO'!$A$1,MATCH($I$7,'ANP ESTADO'!B:B,0)+MATCH($H$10,OFFSET('ANP ESTADO'!$A$1,MATCH($I$7,'ANP ESTADO'!B:B,0),0,100000,1),0),2,100000,2),2,FALSE) -> 2.565909441 | K17: =VLOOKUP($H$10,OFFSET('ANP REGIÃO'!$A$9,MATCH('Transporte RR-1C'!$I$7,'ANP REGIÃO'!A:A,0),1,10000,10000),MATCH('Transporte RR-1C'!AH17,'ANP REGIÃO'!$B$8:$G$8,0),FALSE) -> 2.777249639 | L17: 2565.909441 | M17: 709.02 | N17: 3274.929441 | O17: 2034 | P17: 547 | Q17: 541.54 | R17: 108.41 | S17: 649.95 | T17: 142.67 | U17: 891.7 | V17: 1684.32 | W17: 508.8 | X17: =EVEN(' CONSUMO DE MAT. B TOTAL'!$O$14*2/28)*W17/' CONSUMO DE MAT. B TOTAL'!$O$14 -> 40.38095238 | Y17: 1724.700952 | Z17: 3274.929441 | AA17: 4999.630393 | AC17: 4999.630393 | AD17: 1724.700952 | AE17: 3274.929441 | AH17: CENTRO-OESTE
B18: 5046.640561 | C18: 5 | E18: STRATURA ASFALTOS S/A | F18: RUA VICTOR RODRIGUES RESENDE, 333 - DISTRITO IND. DE UBERLÂNDIA - CEP:38405-440 | G18: Minas Gerais | H18: UBERLANDIA - MG | I18: Porto Grande -AP | J18: =VLOOKUP(G18,OFFSET('ANP ESTADO'!$A$1,MATCH($I$7,'ANP ESTADO'!B:B,0)+MATCH($H$10,OFFSET('ANP ESTADO'!$A$1,MATCH($I$7,'ANP ESTADO'!B:B,0),0,100000,1),0),2,100000,2),2,FALSE) -> 2.414631513 | K18: =VLOOKUP($H$10,OFFSET('ANP REGIÃO'!$A$9,MATCH('Transporte RR-1C'!$I$7,'ANP REGIÃO'!A:A,0),1,10000,10000),MATCH('Transporte RR-1C'!AH18,'ANP REGIÃO'!$B$8:$G$8,0),FALSE) -> 2.55680471 | L18: 2414.631513 | M18: 667.22 | N18: 3081.851513 | O18: 2380 | P18: 547 | Q18: 629.08 | R18: 108.41 | S18: 737.49 | T18: 161.88 | U18: 1011.8 | V18: 1911.17 | W18: 675.6 | X18: =EVEN(' CONSUMO DE MAT. B TOTAL'!$O$14*2/28)*W18/' CONSUMO DE MAT. B TOTAL'!$O$14 -> 53.61904762 | Y18: 1964.789048 | Z18: 3081.851513 | AA18: 5046.640561 | AC18: 5046.640561 | AD18: 1964.789048 | AE18: 3081.851513 | AH18: SUDESTE
B19: 5046.000561 | C19: 6 | E19: BETUNEL INDÚSTRIA E COMÉRCIO LTDA. | F19: RUA VICTOR RODRIGUES DE REZENDE, 185 - DISTRITO INDUSTRIAL - CEP:38402-334 | G19: Minas Gerais | H19: UBERLANDIA - MG | I19: Porto Grande -AP | J19: =VLOOKUP(G19,OFFSET('ANP ESTADO'!$A$1,MATCH($I$7,'ANP ESTADO'!B:B,0)+MATCH($H$10,OFFSET('ANP ESTADO'!$A$1,MATCH($I$7,'ANP ESTADO'!B:B,0),0,100000,1),0),2,100000,2),2,FALSE) -> 2.414631513 | K19: =VLOOKUP($H$10,OFFSET('ANP REGIÃO'!$A$9,MATCH('Transporte RR-1C'!$I$7,'ANP REGIÃO'!A:A,0),1,10000,10000),MATCH('Transporte RR-1C'!AH19,'ANP REGIÃO'!$B$8:$G$8,0),FALSE) -> 2.55680471 | L19: 2414.631513 | M19: 667.22 | N19: 3081.851513 | O19: 2379 | P19: 547 | Q19: 628.83 | R19: 108.41 | S19: 737.24 | T19: 161.83 | U19: 1011.46 | V19: 1910.53 | W19: 675.6 | X19: =EVEN(' CONSUMO DE MAT. B TOTAL'!$O$14*2/28)*W19/' CONSUMO DE MAT. B TOTAL'!$O$14 -> 53.61904762 | Y19: 1964.149048 | Z19: 3081.851513 | AA19: 5046.000561 | AC19: 5046.000561 | AD19: 1964.149048 | AE19: 3081.851513 | AH19: SUDESTE
B20: 7135.918505 | C20: 7 | E20: ARAPETRO DISTRIBUIDORA DE PETRÓLEO LTDA. | F20: RUA 04, S/N° LOTES 17 A 20. - DISTRITO INDUSTRIAL 1/8 - CEP:78600-000 | G20: Mato grosso | H20: BARRA DO GARCAS - MT | I20: Porto Grande -AP | J20: =VLOOKUP(G20,OFFSET('ANP ESTADO'!$A$1,MATCH($I$7,'ANP ESTADO'!B:B,0)+MATCH($H$10,OFFSET('ANP ESTADO'!$A$1,MATCH($I$7,'ANP ESTADO'!B:B,0),0,100000,1),0),2,100000,2),2,FALSE) -> 4.165498505 | K20: =VLOOKUP($H$10,OFFSET('ANP REGIÃO'!$A$9,MATCH('Transporte RR-1C'!$I$7,'ANP REGIÃO'!A:A,0),1,10000,10000),MATCH('Transporte RR-1C'!AH20,'ANP REGIÃO'!$B$8:$G$8,0),FALSE) -> 2.777249639 | L20: =IF(AND(J20="-",K20="-"),"",IF(AND(J20<>0,K20="-"),J20*1000,IF(AND(J20="-",K20<>0),K20*1000,IF(AND(J20<>0,K20<>0),J20*1000,"")))) -> 4165.498505 | M20: =ROUND(((L20/(1-$O$7-$O$8-$O$9))-L20),2) -> 1151.03 | N20: 5316.528505 | O20: 2240 | P20: 547 | Q20: 593.66 | R20: 108.41 | S20: 702.07 | T20: 154.11 | U20: 963.21 | V20: 1819.39 | W20: 0 | X20: =EVEN(' CONSUMO DE MAT. B TOTAL'!$O$14*2/28)*W20/' CONSUMO DE MAT. B TOTAL'!$O$14 -> 0 | Y20: 1819.39 | Z20: 5316.528505 | AA20: 7135.918505 | AH20: CENTRO-OESTE
B21: 5350.634846 | C21: 8 | E21: DISTRIBUIDORA BRASILEIRA DE ASFALTO SA - DISBRAL | F21: SÃO JUDAS TADEU, 288 - DISTRITO INDUSTRIAL - CEP:32450-000 | G21: Minas Gerais | H21: SARZEDO - MG | I21: Porto Grande -AP | J21: =VLOOKUP(G21,OFFSET('ANP ESTADO'!$A$1,MATCH($I$7,'ANP ESTADO'!B:B,0)+MATCH($H$10,OFFSET('ANP ESTADO'!$A$1,MATCH($I$7,'ANP ESTADO'!B:B,0),0,100000,1),0),2,100000,2),2,FALSE) -> 2.414631513 | K21: =VLOOKUP($H$10,OFFSET('ANP REGIÃO'!$A$9,MATCH('Transporte RR-1C'!$I$7,'ANP REGIÃO'!A:A,0),1,10000,10000),MATCH('Transporte RR-1C'!AH21,'ANP REGIÃO'!$B$8:$G$8,0),FALSE) -> 2.55680471 | L21: 2414.631513 | M21: 667.22 | N21: 3081.851513 | O21: 2838 | P21: 547 | Q21: 744.95 | R21: 108.41 | S21: 853.36 | T21: 187.32 | U21: 1170.77 | V21: 2211.45 | W21: 722.4 | X21: =EVEN(' CONSUMO DE MAT. B TOTAL'!$O$14*2/28)*W21/' CONSUMO DE MAT. B TOTAL'!$O$14 -> 57.33333333 | Y21: 2268.783333 | Z21: 3081.851513 | AA21: 5350.634846 | AH21: SUDESTE
B22: 5790.389327 | C22: 9 | E22: 'INDÚSTRIA NACIONAL DE ASFALTOS LTDA. | F22: INDÚSTRIA NACIONAL DE ASFALTOS LTDA - CEP:77053-080 | G22: Tocantins | H22: PALMAS - TO | I22: Porto Grande -AP | J22: =VLOOKUP(G22,OFFSET('ANP ESTADO'!$A$1,MATCH($I$7,'ANP ESTADO'!B:B,0)+MATCH($H$10,OFFSET('ANP ESTADO'!$A$1,MATCH($I$7,'ANP ESTADO'!B:B,0),0,100000,1),0),2,100000,2),2,FALSE) -> - | K22: =VLOOKUP($H$10,OFFSET('ANP REGIÃO'!$A$9,MATCH('Transporte RR-1C'!$I$7,'ANP REGIÃO'!A:A,0),1,10000,10000),MATCH('Transporte RR-1C'!AH22,'ANP REGIÃO'!$B$8:$G$8,0),FALSE) -> 3.601339327 | L22: 3601.339327 | M22: 995.14 | N22: 4596.479327 | O22: 1286 | P22: 547 | Q22: 352.3 | R22: 108.41 | S22: 460.71 | T22: 101.13 | U22: 632.07 | V22: 1193.91 | W22: 0 | X22: =EVEN(' CONSUMO DE MAT. B TOTAL'!$O$14*2/28)*W22/' CONSUMO DE MAT. B TOTAL'!$O$14 -> 0 | Y22: 1193.91 | Z22: 4596.479327 | AA22: 5790.389327 | AH22: NORTE
B23: 5911.545603 | C23: 10 | E23: 'NTA - NOVAS TÉCNICAS DE ASFALTOS S/A | F23: RUA SOFIA ATAURI FADIN, 150 SALA A - B. SANTA TEREZINHA - CEP:13140-000 | G23: São Paulo | H23: PAULINIA - SP | I23: Porto Grande -AP | J23: =VLOOKUP(G23,OFFSET('ANP ESTADO'!$A$1,MATCH($I$7,'ANP ESTADO'!B:B,0)+MATCH($H$10,OFFSET('ANP ESTADO'!$A$1,MATCH($I$7,'ANP ESTADO'!B:B,0),0,100000,1),0),2,100000,2),2,FALSE) -> 2.821088302 | K23: =VLOOKUP($H$10,OFFSET('ANP REGIÃO'!$A$9,MATCH('Transporte RR-1C'!$I$7,'ANP REGIÃO'!A:A,0),1,10000,10000),MATCH('Transporte RR-1C'!AH23,'ANP REGIÃO'!$B$8:$G$8,0),FALSE) -> 2.55680471 | L23: 2821.088302 | M23: =ROUND(((L23/(1-$O$7-$O$8-$O$9))-L23),2) -> 779.53 | N23: 3600.618302 | O23: 2834 | P23: 547 | Q23: 743.94 | R23: 108.41 | S23: 852.35 | T23: 187.1 | U23: 1169.39 | V23: 2208.84 | W23: 1286.3 | X23: =EVEN(' CONSUMO DE MAT. B TOTAL'!$O$14*2/28)*W23/' CONSUMO DE MAT. B TOTAL'!$O$14 -> 102.0873016 | Y23: 2310.927302 | Z23: 3600.618302 | AA23: 5911.545603 | AC23: 5911.545603 | AD23: 2310.927302 | AE23: 3600.618302 | AH23: SUDESTE
B24: 5989.519889 | C24: 11 | E24: COMPANHIA BRASILEIRA DE ASFALTOS DA AMAZÔNIA - IMPORTAÇÃO E EXPORTAÇÃO | F24: Avenida Doutor Olindo Dártora 2451, Galpão 02, Morro Grande - CEP:07726-555 | G24: São Paulo | H24: CAIEIRAS - SP | I24: Porto Grande -AP | J24: =VLOOKUP(G24,OFFSET('ANP ESTADO'!$A$1,MATCH($I$7,'ANP ESTADO'!B:B,0)+MATCH($H$10,OFFSET('ANP ESTADO'!$A$1,MATCH($I$7,'ANP ESTADO'!B:B,0),0,100000,1),0),2,100000,2),2,FALSE) -> 2.821088302 | K24: =VLOOKUP($H$10,OFFSET('ANP REGIÃO'!$A$9,MATCH('Transporte RR-1C'!$I$7,'ANP REGIÃO'!A:A,0),1,10000,10000),MATCH('Transporte RR-1C'!AH24,'ANP REGIÃO'!$B$8:$G$8,0),FALSE) -> 2.55680471 | L24: 2821.088302 | M24: =ROUND(((L24/(1-$O$7-$O$8-$O$9))-L24),2) -> 779.53 | N24: 3600.618302 | O24: 2932 | P24: 547 | Q24: 768.74 | R24: 108.41 | S24: 877.15 | T24: 192.54 | U24: 1203.41 | V24: 2273.1 | W24: 1459.1 | X24: =EVEN(' CONSUMO DE MAT. B TOTAL'!$O$14*2/28)*W24/' CONSUMO DE MAT. B TOTAL'!$O$14 -> 115.8015873 | Y24: 2388.901587 | Z24: 3600.618302 | AA24: 5989.519889 | AH24: SUDESTE
B25: 5881.823952 | C25: 12 | E25: BETUNEL INDÚSTRIA E COMÉRCIO LTDA. | F25: R 16 , 82, Vila Nova Campo Grande - CEP:79.103-834 | G25: Mato Grosso do Sul | H25: CAMPO GRANDE - MS | I25: Porto Grande -AP | J25: =VLOOKUP(G25,OFFSET('ANP ESTADO'!$A$1,MATCH($I$7,'ANP ESTADO'!B:B,0)+MATCH($H$10,OFFSET('ANP ESTADO'!$A$1,MATCH($I$7,'ANP ESTADO'!B:B,0),0,100000,1),0),2,100000,2),2,FALSE) -> 2.761013475 | K25: =VLOOKUP($H$10,OFFSET('ANP REGIÃO'!$A$9,MATCH('Transporte RR-1C'!$I$7,'ANP REGIÃO'!A:A,0),1,10000,10000),MATCH('Transporte RR-1C'!AH25,'ANP REGIÃO'!$B$8:$G$8,0),FALSE) -> 2.777249639 | L25: 2761.013475 | M25: =ROUND(((L25/(1-$O$7-$O$8-$O$9))-L25),2) -> 762.93 | N25: 3523.943475 | O25: 2939 | P25: 547 | Q25: 770.51 | R25: 108.41 | S25: 878.92 | T25: 192.93 | U25: 1205.84 | V25: 2277.69 | W25: 1010.4 | X25: =EVEN(' CONSUMO DE MAT. B TOTAL'!$O$14*2/28)*W25/' CONSUMO DE MAT. B TOTAL'!$O$14 -> 80.19047619 | Y25: 2357.880476 | Z25: 3523.943475 | AA25: 5881.823952 | AH25: CENTRO-OESTE
B26: 7347.373743 | C26: 13 | E26: CENTRO OESTE ASFALTOS LTDA. | F26: RUA N, S/N.º LOTES 39/43 E LOTES 129/133 - DISTRITO INDUSTRIAL - CEP:78098-400 | G26: Mato Grosso | H26: CUIABA - MT | I26: Porto Grande -AP | J26: =VLOOKUP(G26,OFFSET('ANP ESTADO'!$A$1,MATCH($I$7,'ANP ESTADO'!B:B,0)+MATCH($H$10,OFFSET('ANP ESTADO'!$A$1,MATCH($I$7,'ANP ESTADO'!B:B,0),0,100000,1),0),2,100000,2),2,FALSE) -> 4.165498505 | K26: =VLOOKUP($H$10,OFFSET('ANP REGIÃO'!$A$9,MATCH('Transporte RR-1C'!$I$7,'ANP REGIÃO'!A:A,0),1,10000,10000),MATCH('Transporte RR-1C'!AH26,'ANP REGIÃO'!$B$8:$G$8,0),FALSE) -> 2.777249639 | L26: 4165.498505 | M26: 1151.03 | N26: 5316.528505 | O26: 2480 | P26: 547 | Q26: 654.38 | R26: 108.41 | S26: 762.79 | T26: 167.44 | U26: 1046.52 | V26: 1976.75 | W26: 681.6 | X26: =EVEN(' CONSUMO DE MAT. B TOTAL'!$O$14*2/28)*W26/' CONSUMO DE MAT. B TOTAL'!$O$14 -> 54.0952381 | Y26: 2030.845238 | Z26: 5316.528505 | AA26: 7347.373743 | AH26: CENTRO-OESTE
B27: 7343.413743 | C27: 14 | E27: BETUNEL INDÚSTRIA E COMÉRCIO LTDA. | F27: RUA N ESQUINA COM RUA X, S/N QD. IND. 7 L 01/08 - DIST. IND. - CEP:78015-285 | G27: Mato Grosso | H27: CUIABA - MT | I27: Porto Grande -AP | J27: =VLOOKUP(G27,OFFSET('ANP ESTADO'!$A$1,MATCH($I$7,'ANP ESTADO'!B:B,0)+MATCH($H$10,OFFSET('ANP ESTADO'!$A$1,MATCH($I$7,'ANP ESTADO'!B:B,0),0,100000,1),0),2,100000,2),2,FALSE) -> 4.165498505 | K27: =VLOOKUP($H$10,OFFSET('ANP REGIÃO'!$A$9,MATCH('Transporte RR-1C'!$I$7,'ANP REGIÃO'!A:A,0),1,10000,10000),MATCH('Transporte RR-1C'!AH27,'ANP REGIÃO'!$B$8:$G$8,0),FALSE) -> 2.777249639 | L27: 4165.498505 | M27: 1151.03 | N27: 5316.528505 | O27: 2474 | P27: 547 | Q27: 652.86 | R27: 108.41 | S27: 761.27 | T27: 167.1 | U27: 1044.42 | V27: 1972.79 | W27: 681.6 | X27: =EVEN(' CONSUMO DE MAT. B TOTAL'!$O$14*2/28)*W27/' CONSUMO DE MAT. B TOTAL'!$O$14 -> 54.0952381 | Y27: 2026.885238 | Z27: 5316.528505 | AA27: 7343.413743 | AH27: CENTRO-OESTE
B28: 7348.003743 | C28: 15 | E28: EMAM - EMULSÕES E TRANSPORTES LTDA. | F28: RODOVIA DOS IMIGRANTES, S/Nº KM 8,6 - - CEP:60035-351 | G28: Mato Grosso | H28: VARZEA GRANDE - MT | I28: Porto Grande -AP | J28: =VLOOKUP(G28,OFFSET('ANP ESTADO'!$A$1,MATCH($I$7,'ANP ESTADO'!B:B,0)+MATCH($H$10,OFFSET('ANP ESTADO'!$A$1,MATCH($I$7,'ANP ESTADO'!B:B,0),0,100000,1),0),2,100000,2),2,FALSE) -> 4.165498505 | K28: =VLOOKUP($H$10,OFFSET('ANP REGIÃO'!$A$9,MATCH('Transporte RR-1C'!$I$7,'ANP REGIÃO'!A:A,0),1,10000,10000),MATCH('Transporte RR-1C'!AH28,'ANP REGIÃO'!$B$8:$G$8,0),FALSE) -> 2.777249639 | L28: 4165.498505 | M28: 1151.03 | N28: 5316.528505 | O28: 2481 | P28: 547 | Q28: 654.63 | R28: 108.41 | S28: 763.04 | T28: 167.49 | U28: 1046.85 | V28: 1977.38 | W28: 681.6 | X28: =EVEN(' CONSUMO DE MAT. B TOTAL'!$O$14*2/28)*W28/' CONSUMO DE MAT. B TOTAL'!$O$14 -> 54.0952381 | Y28: 2031.475238 | Z28: 5316.528505 | AA28: 7348.003743 | AC28: 7348.003743 | AD28: 2031.475238 | AE28: 5316.528505 | AH28: CENTRO-OESTE
B29: 6055.503222 | C29: 16 | E29: VIAPOL LTDA. | F29: VITO ARDITO, 6401 KM 118,5 - JARDIM CAMPO GRANDE - CEP:12282-535 | G29: São Paulo | H29: CACAPAVA - SP | I29: Porto Grande -AP | J29: =VLOOKUP(G29,OFFSET('ANP ESTADO'!$A$1,MATCH($I$7,'ANP ESTADO'!B:B,0)+MATCH($H$10,OFFSET('ANP ESTADO'!$A$1,MATCH($I$7,'ANP ESTADO'!B:B,0),0,100000,1),0),2,100000,2),2,FALSE) -> 2.821088302 | K29: =VLOOKUP($H$10,OFFSET('ANP REGIÃO'!$A$9,MATCH('Transporte RR-1C'!$I$7,'ANP REGIÃO'!A:A,0),1,10000,10000),MATCH('Transporte RR-1C'!AH29,'ANP REGIÃO'!$B$8:$G$8,0),FALSE) -> 2.55680471 | L29: 2821.088302 | M29: 779.53 | N29: 3600.618302 | O29: 3023 | P29: 547 | Q29: 791.76 | R29: 108.41 | S29: 900.17 | T29: 197.59 | U29: 1234.99 | V29: 2332.75 | W29: 1538.9 | X29: =EVEN(' CONSUMO DE MAT. B TOTAL'!$O$14*2/28)*W29/' CONSUMO DE MAT. B TOTAL'!$O$14 -> 122.1349206 | Y29: 2454.884921 | Z29: 3600.618302 | AA29: 6055.503222 | AC29: 6055.503222 | AD29: 2454.884921 | AE29: 3600.618302 | AH29: SUDESTE
B30: 5824.742329 | C30: 17 | E30: STRATURA ASFALTOS S/A | F30: RUA LUIS DE CAMÕES, 26 - CAMPOS ELÍSEOS - CEP:25225-030 | G30: Rio de Janeiro | H30: DUQUE DE CAXIAS - RJ | I30: Porto Grande -AP | J30: =VLOOKUP(G30,OFFSET('ANP ESTADO'!$A$1,MATCH($I$7,'ANP ESTADO'!B:B,0)+MATCH($H$10,OFFSET('ANP ESTADO'!$A$1,MATCH($I$7,'ANP ESTADO'!B:B,0),0,100000,1),0),2,100000,2),2,FALSE) -> - | K30: =VLOOKUP($H$10,OFFSET('ANP REGIÃO'!$A$9,MATCH('Transporte RR-1C'!$I$7,'ANP REGIÃO'!A:A,0),1,10000,10000),MATCH('Transporte RR-1C'!AH30,'ANP REGIÃO'!$B$8:$G$8,0),FALSE) -> 2.55680471 | L30: 2556.80471 | M30: 706.51 | N30: 3263.31471 | O30: 3239 | P30: 547 | Q30: 846.41 | R30: 108.41 | S30: 954.82 | T30: 209.59 | U30: 1309.97 | V30: 2474.38 | W30: 1096.8 | X30: =EVEN(' CONSUMO DE MAT. B TOTAL'!$O$14*2/28)*W30/' CONSUMO DE MAT. B TOTAL'!$O$14 -> 87.04761905 | Y30: 2561.427619 | Z30: 3263.31471 | AA30: 5824.742329 | AC30: 5824.742329 | AD30: =Y30 -> 2561.427619 | AE30: 3263.31471 | AH30: SUDESTE
B31: 5833.922329 | C31: 18 | E31: PROBITEC - PRODUTOS BETUMINOSOS E TECNOLOGIA DE APLICAÇÃO LTDA. | F31: AVENIDA CANAL DA PAVUNA, 620 - PAVUNA - CEP:21535-630 | G31: Rio de Janeiro | H31: RIO DE JANEIRO - RJ | I31: Porto Grande -AP | J31: =VLOOKUP(G31,OFFSET('ANP ESTADO'!$A$1,MATCH($I$7,'ANP ESTADO'!B:B,0)+MATCH($H$10,OFFSET('ANP ESTADO'!$A$1,MATCH($I$7,'ANP ESTADO'!B:B,0),0,100000,1),0),2,100000,2),2,FALSE) -> - | K31: =VLOOKUP($H$10,OFFSET('ANP REGIÃO'!$A$9,MATCH('Transporte RR-1C'!$I$7,'ANP REGIÃO'!A:A,0),1,10000,10000),MATCH('Transporte RR-1C'!AH31,'ANP REGIÃO'!$B$8:$G$8,0),FALSE) -> 2.55680471 | L31: 2556.80471 | M31: 706.51 | N31: 3263.31471 | O31: 3253 | P31: 547 | Q31: 849.95 | R31: 108.41 | S31: 958.36 | T31: 210.37 | U31: 1314.83 | V31: 2483.56 | W31: 1096.8 | X31: =EVEN(' CONSUMO DE MAT. B TOTAL'!$O$14*2/28)*W31/' CONSUMO DE MAT. B TOTAL'!$O$14 -> 87.04761905 | Y31: 2570.607619 | Z31: 3263.31471 | AA31: 5833.922329 | AC31: 5833.922329 | AD31: 2570.607619 | AE31: 3263.31471 | AH31: SUDESTE
B32: 5571.054942 | C32: 19 | E32: CASA DO ASFALTO DISTRIBUIDORA, INDÚSTRIA E COMÉRCIO DE ASFALTO LTDA. | F32: BR 376, PARQUE INDUSTRIAL, S/N LOTE 6/7/7-A-3-1 - GL.PATR.MARIALVA - CEP:86990-000 | G32: Paraná | H32: MARIALVA - PR | I32: Porto Grande -AP | J32: =VLOOKUP(G32,OFFSET('ANP ESTADO'!$A$1,MATCH($I$7,'ANP ESTADO'!B:B,0)+MATCH($H$10,OFFSET('ANP ESTADO'!$A$1,MATCH($I$7,'ANP ESTADO'!B:B,0),0,100000,1),0),2,100000,2),2,FALSE) -> 2.466405894 | K32: =VLOOKUP($H$10,OFFSET('ANP REGIÃO'!$A$9,MATCH('Transporte RR-1C'!$I$7,'ANP REGIÃO'!A:A,0),1,10000,10000),MATCH('Transporte RR-1C'!AH32,'ANP REGIÃO'!$B$8:$G$8,0),FALSE) -> 2.468814007 | L32: 2466.405894 | M32: 681.53 | N32: 3147.935894 | O32: 3015 | P32: 547 | Q32: 789.73 | R32: 108.41 | S32: 898.14 | T32: 197.15 | U32: 1232.21 | V32: 2327.5 | W32: 1204.8 | X32: =EVEN(' CONSUMO DE MAT. B TOTAL'!$O$14*2/28)*W32/' CONSUMO DE MAT. B TOTAL'!$O$14 -> 95.61904762 | Y32: 2423.119048 | Z32: 3147.935894 | AA32: 5571.054942 | AC32: 5571.054942 | AD32: 2423.119048 | AE32: 3147.935894 | AH32: SUL
B33: 5676.645735 | C33: 20 | E33: PETROBRAS DISTRIBUIDORA S.A. | F33: RUA MAQUINISTA ELEODORO JACINTO, 100 - OFICINAS - CEP:84045-170 | G33: Paraná | H33: PONTA GROSSA - PR | I33: Porto Grande -AP | J33: =VLOOKUP(G33,OFFSET('ANP ESTADO'!$A$1,MATCH($I$7,'ANP ESTADO'!B:B,0)+MATCH($H$10,OFFSET('ANP ESTADO'!$A$1,MATCH($I$7,'ANP ESTADO'!B:B,0),0,100000,1),0),2,100000,2),2,FALSE) -> 2.466405894 | K33: =VLOOKUP($H$10,OFFSET('ANP REGIÃO'!$A$9,MATCH('Transporte RR-1C'!$I$7,'ANP REGIÃO'!A:A,0),1,10000,10000),MATCH('Transporte RR-1C'!AH33,'ANP REGIÃO'!$B$8:$G$8,0),FALSE) -> 2.468814007 | L33: 2466.405894 | M33: 681.53 | N33: 3147.935894 | O33: 3159 | P33: 547 | Q33: 826.17 | R33: 108.41 | S33: 934.58 | T33: 205.15 | U33: 1282.21 | V33: 2421.94 | W33: 1345.3 | X33: =EVEN(' CONSUMO DE MAT. B TOTAL'!$O$14*2/28)*W33/' CONSUMO DE MAT. B TOTAL'!$O$14 -> 106.7698413 | Y33: 2528.709841 | Z33: 3147.935894 | AA33: 5676.645735 | AC33: 5676.645735 | AD33: 2528.709841 | AE33: 3147.935894 | AH33: SUL
D43: Acre
D44: Alagoas
D45: Amapá
D46: Amazonas
D47: Bahia
D48: Ceará
D49: Distrito Federal
D50: Espírito Santo
D51: Goiás
D52: Maranhão
D53: Mato Grosso
D54: Mato Grosso do Sul
D55: Minas Gerais
D56: Pará
D57: Paraíba
D58: Paraná
D59: Pernambuco
D60: Piauí
D61: Rio de Janeiro
D62: Rio Grande do Norte
D63: Rio Grande do Sul
D64: Rondônia
D65: Roraima
D66: Santa Catarina
D67: São Paulo
D68: Sergipe
D69: Tocantins
D73: ASFALTOS DILUÍDOS CM-30
D74: ASFALTOS DILUÍDOS CM-70
D75: ASFALTOS DILUÍDOS CR-250
D76: ASFALTOS DILUÍDOS CR-70
D77: CAP MODIFICADO POR BORRACHA DE PNEU AB22
D78: CAP MODIFICADO POR BORRACHA DE PNEU AB8
D79: CAP MODIFICADO POR POLÍMERO 55-75-E
D80: CAP MODIFICADO POR POLÍMERO 60-85-E
D81: CAP MODIFICADO POR POLÍMERO 65-90-E
D82: CIMENTOS ASFÁLTICOS CAP-150-200
D83: CIMENTOS ASFÁLTICOS CAP-30-45
D84: CIMENTOS ASFÁLTICOS CAP-50-70
D85: CIMENTOS ASFÁLTICOS CAP-85-100
D86: EMULSÃO ASFÁLTICA CATIÔNICA DE RUPTURA CONTROLADA PARA SERVIÇO DE LAMA ASFÁLTICA
D87: EMULSÃO ASFÁLTICA DE RUPTURA LENTA CATIÔNICA PARA SERVIÇO DE LAMA ASFÁLTICA
D88: EMULSÃO ASFÁLTICA DE RUPTURA LENTA DE CARGA NEUTRA PARA SERVIÇO DE LAMA ASFÁLTICA
D89: EMULSÃO ASFÁLTICA PARA SERVIÇO DE IMPRIMAÇÃO
D90: EMULSÕES ASF. MOD. POR POLÍMEROS RC1C-E
D91: EMULSÕES ASF. MOD. POR POLÍMEROS RL1C-E
D92: EMULSÕES ASF. MOD. POR POLÍMEROS RM1C-E
D93: EMULSÕES ASF. MOD. POR POLÍMEROS RR1C-E
D94: EMULSÕES ASF. MOD. POR POLÍMEROS RR2C-E
D95: EMULSÕES ASFÁLTICAS RL-1C
D96: EMULSÕES ASFÁLTICAS RM-1C
D97: EMULSÕES ASFÁLTICAS RM-2C
D98: EMULSÕES ASFÁLTICAS RR-1C
D99: EMULSÕES ASFÁLTICAS RR-2C

Sheet RESUMO_Transp
B8: REAJUSTE | E8: TIPOLOGIA DO MATERIAL | G8: LIGANTE BETUMINOSO | K8: IMPOSTOS | L8: COFINS | M8: ='Transporte Cap 50-70'!O7 -> 0.0065
C9: DATA INICIAL | F9: 2014-07-01 | G9: ÍNDICE INICIAL | H9: ='Transporte Cap 50-70'!J8 -> 270.237 | L9: PIS | M9: ='Transporte Cap 50-70'!O8 -> 0.03 | P9: LEGENDA
C10: DATA FINAL | F10: ='Transporte Cap 50-70'!H10 -> 2024-07-01 | G10: ÍNDICE FINAL | H10: ='Transporte Cap 50-70'!J9 -> 574.257 | L10: ICMS | M10: ='Transporte Cap 50-70'!O9 -> 0.18 | P10: ENTRADA DE DADOS
B12: DATA-BASE | C12: PRODUTOS | D12: LOCALIDADES | H12: CUSTO ANP (R$/Kg) | J12: CUSTO ANP | K12: IMPOSTOS DO PRODUTO | L12: CUSTO DO PRODUTO COM IMPOSTOS | M12: DMT's | N12: DMT's FLUVIAL | O12: CUSTO DO TRANSPORTE TOTAL | P12: ICMS | Q12: ATUALIZAÇÃO DO CUSTO DE TRANSPORTE | R12: CUSTO DO TRANSPORTE RODOVIA PAVIMENTADA COM IMPOSTOS E ATUALIZAÇÃO MONETÁRIA | S12: PEDÁGIO | U12: TOTAL TRANSPORTE | V12: TOTAL PRODUTO | W12: TOTAL GERAL
B13: =F10 -> 2024-07-01 | D13: REFINARIAS | E13: ENDEREÇO | F13: ORIGEM REFINARIAS / DISTRIBUIDORAS | G13: DESTINO | H13: ESTADO | I13: REGIÃO | J13: R$/t | K13: R$/t | L13: R$/t | M13: KM | N13: KM | O13: R$/t | P13: R$/t | Q13: R$/t | R13: R$/t | S13: CUSTO POR EIXO | T13: R$/t | U13: R$/t | V13: R$/t | W13: R$/t
B14: 1 | C14: CAP 50/70 | D14: Refinaria Abreu e Lima | E14: Rodovia PE 60, Km 10 - Ipojuca - PE CEP:55590-000 | F14: =VLOOKUP($W14,'Transporte Cap 50-70'!$B:$AA,7,FALSE) -> FORTALEZA - CE | G14: =VLOOKUP($W14,'Transporte Cap 50-70'!$B:$AA,8,FALSE) -> Porto Grande -AP | H14: =VLOOKUP($W14,'Transporte Cap 50-70'!$B:$AA,9,FALSE) -> 3.601011062 | I14: =VLOOKUP($W14,'Transporte Cap 50-70'!$B:$AA,10,FALSE) -> 3.823804987 | J14: =VLOOKUP($W14,'Transporte Cap 50-70'!$B:$AA,11,FALSE) -> 3601.011062 | K14: =VLOOKUP($W14,'Transporte Cap 50-70'!$B:$AA,12,FALSE) -> 995.05 | L14: =VLOOKUP($W14,'Transporte Cap 50-70'!$B:$AA,13,FALSE) -> 4596.061062 | M14: =VLOOKUP($W14,'Transporte Cap 50-70'!$B:$AA,14,FALSE) -> 1586 | N14: =VLOOKUP($W14,'Transporte Cap 50-70'!$B:$AA,15,FALSE) -> 547 | O14: =VLOOKUP(W14,'Transporte Cap 50-70'!$B:$AA,18,0) -> 540.27 | P14: =VLOOKUP(W14,'Transporte Cap 50-70'!$B:$AA,19,0) -> 118.59 | Q14: =VLOOKUP(W14,'Transporte Cap 50-70'!$B:$AA,20,0) -> 741.22 | R14: =VLOOKUP(W14,'Transporte Cap 50-70'!$B:$AA,21,0) -> 1400.08 | S14: =VLOOKUP(W14,'Transporte Cap 50-70'!$B:$AA,22,0) -> 0 | T14: =VLOOKUP(W14,'Transporte Cap 50-70'!$B:$AA,23,0) -> 0 | U14: =VLOOKUP(W14,'Transporte Cap 50-70'!$B:$AA,24,0) -> 1400.08 | V14: =VLOOKUP(W14,'Transporte Cap 50-70'!$B:$AA,25,0) -> 4596.061062 | W14: =SMALL('Transporte Cap 50-70'!$AA$13:$AA$26,1) -> 5996.141062
B15: 2 | D15: Refinaria Potiguar Clara Camarão | E15: Rodovia RN 221, KM 25 - Guamaré - RN CEP:59598-000 | F15: =VLOOKUP($W15,'Transporte Cap 50-70'!$B:$AA,7,FALSE) -> BETIM - MG | G15: =VLOOKUP($W15,'Transporte Cap 50-70'!$B:$AA,8,FALSE) -> Porto Grande -AP | H15: =VLOOKUP($W15,'Transporte Cap 50-70'!$B:$AA,9,FALSE) -> 3.307833193 | I15: =VLOOKUP($W15,'Transporte Cap 50-70'!$B:$AA,10,FALSE) -> 3.343745889 | J15: =VLOOKUP($W15,'Transporte Cap 50-70'!$B:$AA,11,FALSE) -> 3307.833193 | K15: =VLOOKUP($W15,'Transporte Cap 50-70'!$B:$AA,12,FALSE) -> 914.03 | L15: =VLOOKUP($W15,'Transporte Cap 50-70'!$B:$AA,13,FALSE) -> 4221.863193 | M15: =VLOOKUP($W15,'Transporte Cap 50-70'!$B:$AA,14,FALSE) -> 2831 | N15: =VLOOKUP($W15,'Transporte Cap 50-70'!$B:$AA,15,FALSE) -> 547 | O15: =VLOOKUP(W15,'Transporte Cap 50-70'!$B:$AA,18,0) -> 855.25 | P15: =VLOOKUP(W15,'Transporte Cap 50-70'!$B:$AA,19,0) -> 187.73 | Q15: =VLOOKUP(W15,'Transporte Cap 50-70'!$B:$AA,20,0) -> 1173.36 | R15: =VLOOKUP(W15,'Transporte Cap 50-70'!$B:$AA,21,0) -> 2216.34 | S15: =VLOOKUP(W15,'Transporte Cap 50-70'!$B:$AA,22,0) -> 722.4 | T15: =VLOOKUP(W15,'Transporte Cap 50-70'!$B:$AA,23,0) -> 51.85441452 | U15: =VLOOKUP(W15,'Transporte Cap 50-70'!$B:$AA,24,0) -> 2268.194415 | V15: =VLOOKUP(W15,'Transporte Cap 50-70'!$B:$AA,25,0) -> 4221.863193 | W15: =SMALL('Transporte Cap 50-70'!$AA$13:$AA$26,2) -> 6490.057607
B16: 3 | D16: Complexo Petroquímico do Rio de Janeiro (Comperj) | E16: Rodovia Estadual RJ-116 - Km 5,2 - Acesso A-1, s/n, Complemento Sambaetiba - Zona Urbana do 4º Distrito de Itaboraí - RJ CEP:24841-203 | F16: =VLOOKUP($W16,'Transporte Cap 50-70'!$B:$AA,7,FALSE) -> GUAMARÉ - RN | G16: =VLOOKUP($W16,'Transporte Cap 50-70'!$B:$AA,8,FALSE) -> Porto Grande -AP | H16: =VLOOKUP($W16,'Transporte Cap 50-70'!$B:$AA,9,FALSE) -> - | I16: =VLOOKUP($W16,'Transporte Cap 50-70'!$B:$AA,10,FALSE) -> 3.823804987 | J16: =VLOOKUP($W16,'Transporte Cap 50-70'!$B:$AA,11,FALSE) -> 3823.804987 | K16: =VLOOKUP($W16,'Transporte Cap 50-70'!$B:$AA,12,FALSE) -> 1056.61 | L16: =VLOOKUP($W16,'Transporte Cap 50-70'!$B:$AA,13,FALSE) -> 4880.414987 | M16: =VLOOKUP($W16,'Transporte Cap 50-70'!$B:$AA,14,FALSE) -> 1912 | N16: =VLOOKUP($W16,'Transporte Cap 50-70'!$B:$AA,15,FALSE) -> 547 | O16: =VLOOKUP(W16,'Transporte Cap 50-70'!$B:$AA,18,0) -> 622.75 | P16: =VLOOKUP(W16,'Transporte Cap 50-70'!$B:$AA,19,0) -> 136.7 | Q16: =VLOOKUP(W16,'Transporte Cap 50-70'!$B:$AA,20,0) -> 854.39 | R16: =VLOOKUP(W16,'Transporte Cap 50-70'!$B:$AA,21,0) -> 1613.84 | S16: =VLOOKUP(W16,'Transporte Cap 50-70'!$B:$AA,22,0) -> 0 | T16: =VLOOKUP(W16,'Transporte Cap 50-70'!$B:$AA,23,0) -> 0 | U16: =VLOOKUP(W16,'Transporte Cap 50-70'!$B:$AA,24,0) -> 1613.84 | V16: =VLOOKUP(W16,'Transporte Cap 50-70'!$B:$AA,25,0) -> 4880.414987 | W16: =SMALL('Transporte Cap 50-70'!$AA$13:$AA$26,3) -> 6494.254987
B17: 4 | F17: =VLOOKUP($W17,'Transporte Cap 50-70'!$B:$AA,7,FALSE) -> PAULÍNIA - SP | G17: =VLOOKUP($W17,'Transporte Cap 50-70'!$B:$AA,8,FALSE) -> Porto Grande -AP | H17: =VLOOKUP($W17,'Transporte Cap 50-70'!$B:$AA,9,FALSE) -> 3.341281628 | I17: =VLOOKUP($W17,'Transporte Cap 50-70'!$B:$AA,10,FALSE) -> 3.343745889 | J17: =VLOOKUP($W17,'Transporte Cap 50-70'!$B:$AA,11,FALSE) -> 3341.281628 | K17: =VLOOKUP($W17,'Transporte Cap 50-70'!$B:$AA,12,FALSE) -> 923.28 | L17: =VLOOKUP($W17,'Transporte Cap 50-70'!$B:$AA,13,FALSE) -> 4264.561628 | M17: =VLOOKUP($W17,'Transporte Cap 50-70'!$B:$AA,14,FALSE) -> 2834 | N17: =VLOOKUP($W17,'Transporte Cap 50-70'!$B:$AA,15,FALSE) -> 547 | O17: =VLOOKUP(W17,'Transporte Cap 50-70'!$B:$AA,18,0) -> 856.01 | P17: =VLOOKUP(W17,'Transporte Cap 50-70'!$B:$AA,19,0) -> 187.9 | Q17: =VLOOKUP(W17,'Transporte Cap 50-70'!$B:$AA,20,0) -> 1174.41 | R17: =VLOOKUP(W17,'Transporte Cap 50-70'!$B:$AA,21,0) -> 2218.32 | S17: =VLOOKUP(W17,'Transporte Cap 50-70'!$B:$AA,22,0) -> 1286.3 | T17: =VLOOKUP(W17,'Transporte Cap 50-70'!$B:$AA,23,0) -> 92.33158 | U17: =VLOOKUP(W17,'Transporte Cap 50-70'!$B:$AA,24,0) -> 2310.65158 | V17: =VLOOKUP(W17,'Transporte Cap 50-70'!$B:$AA,25,0) -> 4264.561628 | W17: =SMALL('Transporte Cap 50-70'!$AA$13:$AA$26,4) -> 6575.213208
B18: 5 | F18: =VLOOKUP($W18,'Transporte Cap 50-70'!$B:$AA,7,FALSE) -> IPOJUCA - PE | G18: =VLOOKUP($W18,'Transporte Cap 50-70'!$B:$AA,8,FALSE) -> Porto Grande -AP | H18: =VLOOKUP($W18,'Transporte Cap 50-70'!$B:$AA,9,FALSE) -> - | I18: =VLOOKUP($W18,'Transporte Cap 50-70'!$B:$AA,10,FALSE) -> 3.823804987 | J18: =VLOOKUP($W18,'Transporte Cap 50-70'!$B:$AA,11,FALSE) -> 3823.804987 | K18: =VLOOKUP($W18,'Transporte Cap 50-70'!$B:$AA,12,FALSE) -> 1056.61 | L18: =VLOOKUP($W18,'Transporte Cap 50-70'!$B:$AA,13,FALSE) -> 4880.414987 | M18: =VLOOKUP($W18,'Transporte Cap 50-70'!$B:$AA,14,FALSE) -> 2118 | N18: =VLOOKUP($W18,'Transporte Cap 50-70'!$B:$AA,15,FALSE) -> 547 | O18: =VLOOKUP(W18,'Transporte Cap 50-70'!$B:$AA,18,0) -> 674.86 | P18: =VLOOKUP(W18,'Transporte Cap 50-70'!$B:$AA,19,0) -> 148.14 | Q18: =VLOOKUP(W18,'Transporte Cap 50-70'!$B:$AA,20,0) -> 925.88 | R18: =VLOOKUP(W18,'Transporte Cap 50-70'!$B:$AA,21,0) -> 1748.88 | S18: =VLOOKUP(W18,'Transporte Cap 50-70'!$B:$AA,22,0) -> 0 | T18: =VLOOKUP(W18,'Transporte Cap 50-70'!$B:$AA,23,0) -> 0 | U18: =VLOOKUP(W18,'Transporte Cap 50-70'!$B:$AA,24,0) -> 1748.88 | V18: =VLOOKUP(W18,'Transporte Cap 50-70'!$B:$AA,25,0) -> 4880.414987 | W18: =SMALL('Transporte Cap 50-70'!$AA$13:$AA$26,5) -> 6629.294987
B19: 6 | F19: =VLOOKUP($W19,'Transporte Cap 50-70'!$B:$AA,7,FALSE) -> DUQUE DE CAXIAS - RJ | G19: =VLOOKUP($W19,'Transporte Cap 50-70'!$B:$AA,8,FALSE) -> Porto Grande -AP | H19: =VLOOKUP($W19,'Transporte Cap 50-70'!$B:$AA,9,FALSE) -> 3.225667238 | I19: =VLOOKUP($W19,'Transporte Cap 50-70'!$B:$AA,10,FALSE) -> 3.343745889 | J19: =VLOOKUP($W19,'Transporte Cap 50-70'!$B:$AA,11,FALSE) -> 3225.667238 | K19: =VLOOKUP($W19,'Transporte Cap 50-70'!$B:$AA,12,FALSE) -> 891.33 | L19: =VLOOKUP($W19,'Transporte Cap 50-70'!$B:$AA,13,FALSE) -> 4116.997238 | M19: =VLOOKUP($W19,'Transporte Cap 50-70'!$B:$AA,14,FALSE) -> 3239 | N19: =VLOOKUP($W19,'Transporte Cap 50-70'!$B:$AA,15,FALSE) -> 547 | O19: =VLOOKUP(W19,'Transporte Cap 50-70'!$B:$AA,18,0) -> 958.48 | P19: =VLOOKUP(W19,'Transporte Cap 50-70'!$B:$AA,19,0) -> 210.39 | Q19: =VLOOKUP(W19,'Transporte Cap 50-70'!$B:$AA,20,0) -> 1314.99 | R19: =VLOOKUP(W19,'Transporte Cap 50-70'!$B:$AA,21,0) -> 2483.86 | S19: =VLOOKUP(W19,'Transporte Cap 50-70'!$B:$AA,22,0) -> 1096.8 | T19: =VLOOKUP(W19,'Transporte Cap 50-70'!$B:$AA,23,0) -> 78.72912769 | U19: =VLOOKUP(W19,'Transporte Cap 50-70'!$B:$AA,24,0) -> 2562.589128 | V19: =VLOOKUP(W19,'Transporte Cap 50-70'!$B:$AA,25,0) -> 4116.997238 | W19: =SMALL('Transporte Cap 50-70'!$AA$13:$AA$26,6) -> 6679.586365
R20: =VLOOKUP(W20,#REF!,21,0) ->  | U20: =VLOOKUP(W20,#REF!,24,0) -> 
R21: =VLOOKUP(W21,#REF!,21,0) ->  | U21: =VLOOKUP(W21,#REF!,24,0) -> 
R22: =VLOOKUP(W22,#REF!,21,0) ->  | U22: =VLOOKUP(W22,#REF!,24,0) -> 
R23: =VLOOKUP(W23,#REF!,21,0) ->  | U23: =VLOOKUP(W23,#REF!,24,0) -> 
R24: =VLOOKUP(W24,#REF!,21,0) ->  | U24: =VLOOKUP(W24,#REF!,24,0) -> 
B25: 1 | C25: CAP MODIF. C/ POLÍMERO 60/85 | D25: Refinaria Abreu e Lima | E25: Rodovia PE 60, Km 10 - Ipojuca - PE CEP:55590-000 | G25: Palmas - TO | H25: 2.261894948 | I25: 2.353413905 | J25: 2261.894948 | K25: 393.19 | L25: 2655.084948 | M25: 1181 | N25: 1181 | O25: 325.73 | P25: 44.41 | Q25: 202.55 | R25: =VLOOKUP(W25,#REF!,21,0) ->  | S25: 102 | T25: 102 | U25: =VLOOKUP(W25,#REF!,24,0) ->  | V25: 2655.084948 | W25: 3329.774948
B26: 2 | D26: Refinaria Potiguar Clara Camarão | E26: Rodovia RN 221, KM 25 - Guamaré - RN CEP:59598-000 | F26: UBERLANDIA - MG | G26: Palmas - TO | H26: 2.261894948 | I26: 2.353413905 | J26: 2261.894948 | K26: 393.19 | L26: 2655.084948 | M26: 1182 | N26: 1182 | O26: 325.98 | P26: 44.45 | Q26: 202.71 | R26: =VLOOKUP(W26,#REF!,21,0) ->  | S26: 102 | T26: 102 | U26: =VLOOKUP(W26,#REF!,24,0) ->  | V26: 2655.084948 | W26: 3330.224948
B27: 3 | D27: Complexo Petroquímico do Rio de Janeiro (Comperj) | E27: Rodovia Estadual RJ-116 - Km 5,2 - Acesso A-1, s/n, Complemento Sambaetiba - Zona Urbana do 4º Distrito de Itaboraí - RJ CEP:24841-203 | F27: GOIANIRA - GO | G27: Palmas - TO | I27: 2.555206955 | J27: 2555.206955 | K27: 444.18 | L27: 2999.386955 | M27: 814 | N27: 814 | O27: 232.88 | P27: 31.75 | Q27: 144.81 | R27: =VLOOKUP(W27,#REF!,21,0) ->  | S27: 0 | T27: 0 | U27: =VLOOKUP(W27,#REF!,24,0) ->  | V27: 2999.386955 | W27: 3408.826955
B28: 4 | F28: BRASÍLIA - DF | G28: Palmas - TO | I28: 2.555206955 | J28: 2555.206955 | K28: 444.18 | L28: 2999.386955 | M28: 822 | N28: 822 | O28: 234.9 | P28: 32.03 | Q28: 146.07 | R28: =VLOOKUP(W28,#REF!,21,0) ->  | S28: 0 | T28: 0 | U28: =VLOOKUP(W28,#REF!,24,0) ->  | V28: 2999.386955 | W28: 3412.386955
B29: 5 | F29: APARECIDA DE GOIANIA - GO | G29: Palmas - TO | I29: 2.555206955 | J29: 2555.206955 | K29: 444.18 | L29: 2999.386955 | M29: 842 | N29: 842 | O29: 239.96 | P29: 32.72 | Q29: 149.22 | R29: =VLOOKUP(W29,#REF!,21,0) ->  | S29: 0 | T29: 0 | U29: =VLOOKUP(W29,#REF!,24,0) ->  | V29: 2999.386955 | W29: 3421.286955
B30: 6 | F30: ANÁPOLIS - GO | G30: Palmas - TO | I30: 2.555206955 | J30: 2555.206955 | K30: 444.18 | L30: 2999.386955 | M30: 950 | N30: 950 | O30: 267.28 | P30: 36.44 | Q30: 166.21 | R30: =VLOOKUP(W30,#REF!,21,0) ->  | S30: 0 | T30: 0 | U30: =VLOOKUP(W30,#REF!,24,0) ->  | V30: 2999.386955 | W30: 3469.316955
B33: 1 | C33: RR1-C | D33: Refinaria Abreu e Lima | E33: Rodovia PE 60, Km 10 - Ipojuca - PE CEP:55590-000 | F33: =VLOOKUP($W33,'Transporte RR-1C'!B:AA,7,FALSE) -> ANÁPOLIS - GO | G33: =VLOOKUP($W33,'Transporte RR-1C'!B:AA,8,FALSE) -> Porto Grande -AP | H33: =VLOOKUP($W33,'Transporte RR-1C'!B:AA,9,FALSE) -> 2.565909441 | I33: =VLOOKUP($W33,'Transporte RR-1C'!B:AA,10,FALSE) -> 2.777249639 | J33: =VLOOKUP($W33,'Transporte RR-1C'!B:AA,11,FALSE) -> 2565.909441 | K33: =VLOOKUP($W33,'Transporte RR-1C'!B:AA,12,FALSE) -> 709.02 | L33: =VLOOKUP($W33,'Transporte RR-1C'!B:AA,13,FALSE) -> 3274.929441 | M33: =VLOOKUP($W33,'Transporte RR-1C'!B:AA,14,FALSE) -> 2012 | N33: =VLOOKUP($W33,'Transporte RR-1C'!B:AA,15,FALSE) -> 547 | O33: =VLOOKUP($W33,'Transporte RR-1C'!B:AA,18,FALSE) -> 644.39 | P33: =VLOOKUP($W33,'Transporte RR-1C'!B:AA,19,FALSE) -> 141.45 | Q33: =VLOOKUP($W33,'Transporte RR-1C'!B:AA,20,FALSE) -> 884.07 | R33: =VLOOKUP($W33,'Transporte RR-1C'!B:AA,21,FALSE) -> 1669.91 | S33: =VLOOKUP($W33,'Transporte RR-1C'!B:AA,22,FALSE) -> 501.6 | T33: =VLOOKUP($W33,'Transporte RR-1C'!B:AA,23,FALSE) -> 39.80952381 | U33: =VLOOKUP($W33,'Transporte RR-1C'!B:AA,24,0) -> 1709.719524 | V33: =VLOOKUP(W33,'Transporte RR-1C'!B:AA,25,0) -> 3274.929441 | W33: =SMALL('Transporte RR-1C'!AA:AA,1) -> 4984.648965
B34: 2 | D34: Refinaria Potiguar Clara Camarão | E34: Rodovia RN 221, KM 25 - Guamaré - RN CEP:59598-000 | F34: =VLOOKUP($W34,'Transporte RR-1C'!B:AA,7,FALSE) -> GOIANIRA - GO | G34: =VLOOKUP($W34,'Transporte RR-1C'!B:AA,8,FALSE) -> Porto Grande -AP | H34: =VLOOKUP($W34,'Transporte RR-1C'!B:AA,9,FALSE) -> 2.565909441 | I34: =VLOOKUP($W34,'Transporte RR-1C'!B:AA,10,FALSE) -> 2.777249639 | J34: =VLOOKUP($W34,'Transporte RR-1C'!B:AA,11,FALSE) -> 2565.909441 | K34: =VLOOKUP($W34,'Transporte RR-1C'!B:AA,12,FALSE) -> 709.02 | L34: =VLOOKUP($W34,'Transporte RR-1C'!B:AA,13,FALSE) -> 3274.929441 | M34: =VLOOKUP($W34,'Transporte RR-1C'!B:AA,14,FALSE) -> 2034 | N34: =VLOOKUP($W34,'Transporte RR-1C'!B:AA,15,FALSE) -> 547 | O34: =VLOOKUP($W34,'Transporte RR-1C'!B:AA,18,FALSE) -> 649.95 | P34: =VLOOKUP($W34,'Transporte RR-1C'!B:AA,19,FALSE) -> 142.67 | Q34: =VLOOKUP($W34,'Transporte RR-1C'!B:AA,20,FALSE) -> 891.7 | R34: =VLOOKUP($W34,'Transporte RR-1C'!B:AA,21,FALSE) -> 1684.32 | S34: =VLOOKUP($W34,'Transporte RR-1C'!B:AA,22,FALSE) -> 508.8 | T34: =VLOOKUP($W34,'Transporte RR-1C'!B:AA,23,FALSE) -> 40.38095238 | U34: =VLOOKUP($W34,'Transporte RR-1C'!B:AA,24,0) -> 1724.700952 | V34: =VLOOKUP(W34,'Transporte RR-1C'!B:AA,25,0) -> 3274.929441 | W34: =SMALL('Transporte RR-1C'!AA:AA,2) -> 4999.630393
B35: 3 | D35: Complexo Petroquímico do Rio de Janeiro (Comperj) | E35: Rodovia Estadual RJ-116 - Km 5,2 - Acesso A-1, s/n, Complemento Sambaetiba - Zona Urbana do 4º Distrito de Itaboraí - RJ CEP:24841-203 | F35: =VLOOKUP($W35,'Transporte RR-1C'!B:AA,7,FALSE) -> APARECIDA DE GOIANIA - GO | G35: =VLOOKUP($W35,'Transporte RR-1C'!B:AA,8,FALSE) -> Porto Grande -AP | H35: =VLOOKUP($W35,'Transporte RR-1C'!B:AA,9,FALSE) -> 2.565909441 | I35: =VLOOKUP($W35,'Transporte RR-1C'!B:AA,10,FALSE) -> 2.777249639 | J35: =VLOOKUP($W35,'Transporte RR-1C'!B:AA,11,FALSE) -> 2565.909441 | K35: =VLOOKUP($W35,'Transporte RR-1C'!B:AA,12,FALSE) -> 709.02 | L35: =VLOOKUP($W35,'Transporte RR-1C'!B:AA,13,FALSE) -> 3274.929441 | M35: =VLOOKUP($W35,'Transporte RR-1C'!B:AA,14,FALSE) -> 2063 | N35: =VLOOKUP($W35,'Transporte RR-1C'!B:AA,15,FALSE) -> 547 | O35: =VLOOKUP($W35,'Transporte RR-1C'!B:AA,18,FALSE) -> 657.29 | P35: =VLOOKUP($W35,'Transporte RR-1C'!B:AA,19,FALSE) -> 144.28 | Q35: =VLOOKUP($W35,'Transporte RR-1C'!B:AA,20,FALSE) -> 901.77 | R35: =VLOOKUP($W35,'Transporte RR-1C'!B:AA,21,FALSE) -> 1703.34 | S35: =VLOOKUP($W35,'Transporte RR-1C'!B:AA,22,FALSE) -> 508.8 | T35: =VLOOKUP($W35,'Transporte RR-1C'!B:AA,23,FALSE) -> 40.38095238 | U35: =VLOOKUP($W35,'Transporte RR-1C'!B:AA,24,0) -> 1743.720952 | V35: =VLOOKUP(W35,'Transporte RR-1C'!B:AA,25,0) -> 3274.929441 | W35: =SMALL('Transporte RR-1C'!AA:AA,3) -> 5018.650393
B36: 4 | D36: Refinaria Abreu e Lima | E36: Rodovia PE 60, Km 10 - Ipojuca - PE CEP:55590-000 | F36: =VLOOKUP($W36,'Transporte RR-1C'!B:AA,7,FALSE) -> UBERLANDIA - MG | G36: =VLOOKUP($W36,'Transporte RR-1C'!B:AA,8,FALSE) -> Porto Grande -AP | H36: =VLOOKUP($W36,'Transporte RR-1C'!B:AA,9,FALSE) -> 2.414631513 | I36: =VLOOKUP($W36,'Transporte RR-1C'!B:AA,10,FALSE) -> 2.55680471 | J36: =VLOOKUP($W36,'Transporte RR-1C'!B:AA,11,FALSE) -> 2414.631513 | K36: =VLOOKUP($W36,'Transporte RR-1C'!B:AA,12,FALSE) -> 667.22 | L36: =VLOOKUP($W36,'Transporte RR-1C'!B:AA,13,FALSE) -> 3081.851513 | M36: =VLOOKUP($W36,'Transporte RR-1C'!B:AA,14,FALSE) -> 2379 | N36: =VLOOKUP($W36,'Transporte RR-1C'!B:AA,15,FALSE) -> 547 | O36: =VLOOKUP($W36,'Transporte RR-1C'!B:AA,18,FALSE) -> 737.24 | P36: =VLOOKUP($W36,'Transporte RR-1C'!B:AA,19,FALSE) -> 161.83 | Q36: =VLOOKUP($W36,'Transporte RR-1C'!B:AA,20,FALSE) -> 1011.46 | R36: =VLOOKUP($W36,'Transporte RR-1C'!B:AA,21,FALSE) -> 1910.53 | S36: =VLOOKUP($W36,'Transporte RR-1C'!B:AA,22,FALSE) -> 675.6 | T36: =VLOOKUP($W36,'Transporte RR-1C'!B:AA,23,FALSE) -> 53.61904762 | U36: =VLOOKUP($W36,'Transporte RR-1C'!B:AA,24,0) -> 1964.149048 | V36: =VLOOKUP(W36,'Transporte RR-1C'!B:AA,25,0) -> 3081.851513 | W36: =SMALL('Transporte RR-1C'!AA:AA,4) -> 5046.000561
B37: 5 | D37: Refinaria Potiguar Clara Camarão | E37: Rodovia RN 221, KM 25 - Guamaré - RN CEP:59598-000 | F37: =VLOOKUP($W37,'Transporte RR-1C'!B:AA,7,FALSE) -> UBERLANDIA - MG | G37: =VLOOKUP($W37,'Transporte RR-1C'!B:AA,8,FALSE) -> Porto Grande -AP | H37: =VLOOKUP($W37,'Transporte RR-1C'!B:AA,9,FALSE) -> 2.414631513 | I37: =VLOOKUP($W37,'Transporte RR-1C'!B:AA,10,FALSE) -> 2.55680471 | J37: =VLOOKUP($W37,'Transporte RR-1C'!B:AA,11,FALSE) -> 2414.631513 | K37: =VLOOKUP($W37,'Transporte RR-1C'!B:AA,12,FALSE) -> 667.22 | L37: =VLOOKUP($W37,'Transporte RR-1C'!B:AA,13,FALSE) -> 3081.851513 | M37: =VLOOKUP($W37,'Transporte RR-1C'!B:AA,14,FALSE) -> 2380 | N37: =VLOOKUP($W37,'Transporte RR-1C'!B:AA,15,FALSE) -> 547 | O37: =VLOOKUP($W37,'Transporte RR-1C'!B:AA,18,FALSE) -> 737.49 | P37: =VLOOKUP($W37,'Transporte RR-1C'!B:AA,19,FALSE) -> 161.88 | Q37: =VLOOKUP($W37,'Transporte RR-1C'!B:AA,20,FALSE) -> 1011.8 | R37: =VLOOKUP($W37,'Transporte RR-1C'!B:AA,21,FALSE) -> 1911.17 | S37: =VLOOKUP($W37,'Transporte RR-1C'!B:AA,22,FALSE) -> 675.6 | T37: =VLOOKUP($W37,'Transporte RR-1C'!B:AA,23,FALSE) -> 53.61904762 | U37: =VLOOKUP($W37,'Transporte RR-1C'!B:AA,24,0) -> 1964.789048 | V37: =VLOOKUP(W37,'Transporte RR-1C'!B:AA,25,0) -> 3081.851513 | W37: =SMALL('Transporte RR-1C'!AA:AA,5) -> 5046.640561
B38: 6 | D38: Complexo Petroquímico do Rio de Janeiro (Comperj) | E38: Rodovia Estadual RJ-116 - Km 5,2 - Acesso A-1, s/n, Complemento Sambaetiba - Zona Urbana do 4º Distrito de Itaboraí - RJ CEP:24841-203 | F38: =VLOOKUP($W38,'Transporte RR-1C'!B:AA,7,FALSE) -> BRASÍLIA - DF | G38: =VLOOKUP($W38,'Transporte RR-1C'!B:AA,8,FALSE) -> Porto Grande -AP | H38: =VLOOKUP($W38,'Transporte RR-1C'!B:AA,9,FALSE) -> - | I38: =VLOOKUP($W38,'Transporte RR-1C'!B:AA,10,FALSE) -> 2.777249639 | J38: =VLOOKUP($W38,'Transporte RR-1C'!B:AA,11,FALSE) -> 2777.249639 | K38: =VLOOKUP($W38,'Transporte RR-1C'!B:AA,12,FALSE) -> 767.42 | L38: =VLOOKUP($W38,'Transporte RR-1C'!B:AA,13,FALSE) -> 3544.669639 | M38: =VLOOKUP($W38,'Transporte RR-1C'!B:AA,14,FALSE) -> 2051 | N38: =VLOOKUP($W38,'Transporte RR-1C'!B:AA,15,FALSE) -> 547 | O38: =VLOOKUP($W38,'Transporte RR-1C'!B:AA,18,FALSE) -> 654.25 | P38: =VLOOKUP($W38,'Transporte RR-1C'!B:AA,19,FALSE) -> 143.61 | Q38: =VLOOKUP($W38,'Transporte RR-1C'!B:AA,20,FALSE) -> 897.6 | R38: =VLOOKUP($W38,'Transporte RR-1C'!B:AA,21,FALSE) -> 1695.46 | S38: =VLOOKUP($W38,'Transporte RR-1C'!B:AA,22,FALSE) -> 420 | T38: =VLOOKUP($W38,'Transporte RR-1C'!B:AA,23,FALSE) -> 33.33333333 | U38: =VLOOKUP($W38,'Transporte RR-1C'!B:AA,24,0) -> 1728.793333 | V38: =VLOOKUP(W38,'Transporte RR-1C'!B:AA,25,0) -> 3544.669639 | W38: =SMALL('Transporte RR-1C'!AA:AA,6) -> 5273.462973

Sheet MOMENTO DE TRANSPORTE - PRINC
B5: ='RESUMO MODULO TOTAL'!B1 -> EXECUÇÃO DE CAPA ASFÁLTICA EM CONCRETO BETUMINOSO USINADO A QUENTE (CBUQ), EM VIAS DE MUNICÍPIOS DIVERSOS INSERIDOS NA ÁREA DE ATUAÇÃO DA CODEVASF, NO ESTADO DO AMAPÁ (REGIÃO PORTO GRANDE)
B6: ESTADO: | C6: ='RESUMO MODULO TOTAL'!N1 -> xxxxxxxxxxxx | D6: DATA BASE: | E6: ='RESUMO MODULO TOTAL'!N2 -> Amapá - Abril/2024
C8: RESUMO DO TRANSPORTE PRINCIPAL
B9: CODIGO | C9: DESCRIÇÃO | D9: TKM
B10: 5914359 | C10: =VLOOKUP(B10,'SINTÉTICO SICRO'!$A:$D,2,0) -> Transporte com caminhão basculante de 10 m³ - rodovia em leito natural | D10: =ROUND(SUMIF('MOMENTO DE TRANSPORTE - PRINC'!A:A,B10,'MOMENTO DE TRANSPORTE - PRINC'!K:K),2) -> 13547.52
B11: 5914374 | C11: =VLOOKUP(B11,'SINTÉTICO SICRO'!$A:$D,2,0) -> Transporte com caminhão basculante de 10 m³ - rodovia em revestimento primário | D11: =ROUND(SUMIF('MOMENTO DE TRANSPORTE - PRINC'!A:A,B11,'MOMENTO DE TRANSPORTE - PRINC'!K:K),2) -> 0
B12: 5914389 | C12: =VLOOKUP(B12,'SINTÉTICO SICRO'!$A:$D,2,0) -> Transporte com caminhão basculante de 10 m³ - rodovia pavimentada | D12: =ROUND(SUMIF('MOMENTO DE TRANSPORTE - PRINC'!A:A,B12,'MOMENTO DE TRANSPORTE - PRINC'!K:K),2) -> 120185.86
B13: 5914314 | C13: =VLOOKUP(B13,'SINTÉTICO SICRO'!$A:$D,2,0) -> Transporte com caminhão basculante de 6 m³ - rodovia em leito natural | D13: =ROUND(SUMIF('MOMENTO DE TRANSPORTE - PRINC'!A:A,B13,'MOMENTO DE TRANSPORTE - PRINC'!K:K),2) -> 210902.81
B14: 5914329 | C14: =VLOOKUP(B14,'SINTÉTICO SICRO'!$A:$D,2,0) -> Transporte com caminhão basculante de 6 m³ - rodovia em revestimento primário | D14: =ROUND(SUMIF('MOMENTO DE TRANSPORTE - PRINC'!A:A,B14,'MOMENTO DE TRANSPORTE - PRINC'!K:K),2) -> 0
B15: 5914344 | C15: =VLOOKUP(B15,'SINTÉTICO SICRO'!$A:$D,2,0) -> Transporte com caminhão basculante de 6 m³ - rodovia pavimentada | D15: =ROUND(SUMIF('MOMENTO DE TRANSPORTE - PRINC'!A:A,B15,'MOMENTO DE TRANSPORTE - PRINC'!K:K),2) -> 949062.62
B17: TIPO (P, RP ou LN) | C17: DMT ESTIMADA
B18: P | C18: -
B20: COMPOSIÇÕES PRINCIPAIS
B21: SISTEMA DE CUSTOS REFERENCIAIS DE OBRAS - SICRO
B22: Custo Unitário de Referência | E22: =$E$6 -> Amapá - Abril/2024 | I22: Quantitativo | K22: t
B23: 4011463 | C23: =VLOOKUP(B23,'SINTÉTICO SICRO'!$A:$D,2,0) -> Concreto asfáltico - faixa C - areia e brita comerciais | I23: =SUMIF('RESUMO MODULO TOTAL'!D:D,B23,'RESUMO MODULO TOTAL'!J:J)*0.9 -> 24192
B24: D - ATIVIDADES AUXILIARES | D24: Quantidade | E24: Unidade
B25: 6416078 | C25: =VLOOKUP(B25,'SINTÉTICO SICRO'!$A:$D,2,0) -> Usinagem de concreto asfáltico - faixa C - areia e brita comerciais | D25: 1.02 | E25: t
B27: F - MOMENTO DE TRANSPORTE | D27: Quantidade | E27: Unidade | F27: CÓDIGO TRANSPORTE
F28: LN | G28: RP | H28: P | I28: TIPO (P, RP ou LN) | J28: DMT ESTIMADA (km) | K28: QUANTITATIVO TOTAL DE TRANSPORTE (tkm)
A29: =IF(I29="P",H29,IF(I29="RP",G29,IF(I29="LN",F29,""))) -> 5914389 | B29: 6416078 | C29: =VLOOKUP(B29,'SINTÉTICO SICRO'!$A:$D,2,0) -> Usinagem de concreto asfáltico - faixa C - areia e brita comerciais | D29: 1.02 | E29: tkm | F29: 5914359 | G29: 5914374 | H29: 5914389 | I29: =$B$18 -> P | J29: 3.4 | K29: =IF(ISBLANK(J29),"",J29*D29)*I23 -> 83897.856
A30: =IF(I30="P",H30,IF(I30="RP",G30,IF(I30="LN",F30,""))) -> 
B31: Obs.
B32: SISTEMA DE CUSTOS REFERENCIAIS DE OBRAS - SICRO
B33: Custo Unitário de Referência | E33: =$E$6 -> Amapá - Abril/2024 | I33: Quantitativo | K33: m³
B34: 4915663 | C34: =VLOOKUP(B34,'SINTÉTICO SICRO'!$A:$D,2,0) -> Fresagem descontínua de revestimento asfáltico - espessura de 5 cm | I34: =SUMIF('RESUMO MODULO TOTAL'!D:D,B34,'RESUMO MODULO TOTAL'!J:J)*0.9 -> 1008
B35: D - ATIVIDADES AUXILIARES | D35: Quantidade | E35: Unidade
B38: F - MOMENTO DE TRANSPORTE | D38: Quantidade | E38: Unidade | F38: CÓDIGO TRANSPORTE
F39: LN | G39: RP | H39: P | I39: TIPO (P, RP ou LN) | J39: DMT ESTIMADA (km) | K39: QUANTITATIVO TOTAL DE TRANSPORTE (tkm)
A40: =IF(I40="P",H40,IF(I40="RP",G40,IF(I40="LN",F40,""))) -> 5914389 | B40: M3507 | C40: Revestimento asfáltico - Caminhão basculante 10 m³ | D40: 2.4 | E40: tkm | F40: 5914359 | G40: 5914374 | H40: 5914389 | I40: =$B$18 -> P | J40: 15 | K40: =IF(ISBLANK(J40),"",J40*D40)*I34 -> 36288
A41: =IF(I41="P",H41,IF(I41="RP",G41,IF(I41="LN",F41,""))) -> 
B42: Obs.
B43: COMPOSIÇÕES PRINCIPAIS
B44: SISTEMA DE CUSTOS REFERENCIAIS DE OBRAS - SICRO
B45: Custo Unitário de Referência | E45: =$E$6 -> Amapá - Abril/2024 | I45: Quantitativo | K45: m²
B46: 4915618 | C46: =VLOOKUP(B46,'SINTÉTICO SICRO'!$A:$D,2,0) -> Recomposição de camada granular do pavimento com material de jazida | I46: =SUMIF('RESUMO MODULO TOTAL'!D:D,B46,'RESUMO MODULO TOTAL'!J:J)*0.9 -> 20160
B47: D - ATIVIDADES AUXILIARES | D47: Quantidade | E47: Unidade
B48: 4016096 | C48: =VLOOKUP(B48,'SINTÉTICO SICRO'!$A:$D,2,0) -> Escavação e carga de material de jazida com escavadeira hidráulica de 1,56 m³ | D48: 0.22005 | E48: t
B50: F - MOMENTO DE TRANSPORTE | D50: Quantidade | E50: Unidade | F50: CÓDIGO TRANSPORTE
F51: LN | G51: RP | H51: P | I51: TIPO (P, RP ou LN) | J51: DMT ESTIMADA (km) | K51: QUANTITATIVO TOTAL DE TRANSPORTE (tkm)
A52: =IF(I52="P",H52,IF(I52="RP",G52,IF(I52="LN",F52,""))) -> 5914344 | B52: 4016096 | C52: =VLOOKUP(B52,'SINTÉTICO SICRO'!$A:$D,2,0) -> Escavação e carga de material de jazida com escavadeira hidráulica de 1,56 m³ | D52: 0.41259 | E52: tkm | F52: 5914314 | G52: 5914329 | H52: 5914344 | I52: =$B$18 -> P | J52: 114.1 | K52: =IF(ISBLANK(J52),"",J52*D52)*I46 -> 949062.623
A53: =IF(I53="P",H53,IF(I53="RP",G53,IF(I53="LN",F53,""))) -> 
B54: Obs.
B55: TIPO (P, RP ou LN) | C55: DMT ESTIMADA
B56: LN | C56: -
B58: COMPOSIÇÕES PRINCIPAIS
B59: SISTEMA DE CUSTOS REFERENCIAIS DE OBRAS - SICRO
B60: Custo Unitário de Referência | E60: =$E$6 -> Amapá - Abril/2024 | I60: Quantitativo | K60: t
B61: 4011463 | C61: =VLOOKUP(B61,'SINTÉTICO SICRO'!$A:$D,2,0) -> Concreto asfáltico - faixa C - areia e brita comerciais | I61: =SUMIF('RESUMO MODULO TOTAL'!D:D,B61,'RESUMO MODULO TOTAL'!J:J)*0.2 -> 5376
B62: D - ATIVIDADES AUXILIARES | D62: Quantidade | E62: Unidade
B63: 6416078 | C63: =VLOOKUP(B63,'SINTÉTICO SICRO'!$A:$D,2,0) -> Usinagem de concreto asfáltico - faixa C - areia e brita comerciais | D63: 1.02 | E63: t
B65: F - MOMENTO DE TRANSPORTE | D65: Quantidade | E65: Unidade | F65: CÓDIGO TRANSPORTE
F66: LN | G66: RP | H66: P | I66: TIPO (P, RP ou LN) | J66: DMT ESTIMADA (km) | K66: QUANTITATIVO TOTAL DE TRANSPORTE (tkm)
A67: =IF(I67="P",H67,IF(I67="RP",G67,IF(I67="LN",F67,""))) -> 5914359 | B67: 6416078 | C67: =VLOOKUP(B67,'SINTÉTICO SICRO'!$A:$D,2,0) -> Usinagem de concreto asfáltico - faixa C - areia e brita comerciais | D67: 1.02 | E67: tkm | F67: 5914359 | G67: 5914374 | H67: 5914389 | I67: =$B$56 -> LN | J67: 1 | K67: =IF(ISBLANK(J67),"",J67*D67)*I61 -> 5483.52
A68: =IF(I68="P",H68,IF(I68="RP",G68,IF(I68="LN",F68,""))) -> 
B69: Obs.
B70: SISTEMA DE CUSTOS REFERENCIAIS DE OBRAS - SICRO
B71: Custo Unitário de Referência | E71: =$E$6 -> Amapá - Abril/2024 | I71: Quantitativo | K71: m³
B72: 4915663 | C72: =VLOOKUP(B72,'SINTÉTICO SICRO'!$A:$D,2,0) -> Fresagem descontínua de revestimento asfáltico - espessura de 5 cm | I72: =SUMIF('RESUMO MODULO TOTAL'!D:D,B72,'RESUMO MODULO TOTAL'!J:J)*0.2 -> 224
B73: D - ATIVIDADES AUXILIARES | D73: Quantidade | E73: Unidade
B76: F - MOMENTO DE TRANSPORTE | D76: Quantidade | E76: Unidade | F76: CÓDIGO TRANSPORTE
F77: LN | G77: RP | H77: P | I77: TIPO (P, RP ou LN) | J77: DMT ESTIMADA (km) | K77: QUANTITATIVO TOTAL DE TRANSPORTE (tkm)
A78: =IF(I78="P",H78,IF(I78="RP",G78,IF(I78="LN",F78,""))) -> 5914359 | B78: M3507 | C78: Revestimento asfáltico - Caminhão basculante 10 m³ | D78: 2.4 | E78: tkm | F78: 5914359 | G78: 5914374 | H78: 5914389 | I78: =$B$56 -> LN | J78: 15 | K78: =IF(ISBLANK(J78),"",J78*D78)*I72 -> 8064
A79: =IF(I79="P",H79,IF(I79="RP",G79,IF(I79="LN",F79,""))) -> 
B80: Obs.
B81: COMPOSIÇÕES PRINCIPAIS
B82: SISTEMA DE CUSTOS REFERENCIAIS DE OBRAS - SICRO
B83: Custo Unitário de Referência | E83: =$E$6 -> Amapá - Abril/2024 | I83: Quantitativo | K83: m²
B84: 4915618 | C84: =VLOOKUP(B84,'SINTÉTICO SICRO'!$A:$D,2,0) -> Recomposição de camada granular do pavimento com material de jazida | I84: =SUMIF('RESUMO MODULO TOTAL'!D:D,B84,'RESUMO MODULO TOTAL'!J:J)*0.2 -> 4480
B85: D - ATIVIDADES AUXILIARES | D85: Quantidade | E85: Unidade
B86: 4016096 | C86: =VLOOKUP(B86,'SINTÉTICO SICRO'!$A:$D,2,0) -> Escavação e carga de material de jazida com escavadeira hidráulica de 1,56 m³ | D86: 0.22005 | E86: t
B88: F - MOMENTO DE TRANSPORTE | D88: Quantidade | E88: Unidade | F88: CÓDIGO TRANSPORTE
F89: LN | G89: RP | H89: P | I89: TIPO (P, RP ou LN) | J89: DMT ESTIMADA (km) | K89: QUANTITATIVO TOTAL DE TRANSPORTE (tkm)
A90: =IF(I90="P",H90,IF(I90="RP",G90,IF(I90="LN",F90,""))) -> 5914314 | B90: 4016096 | C90: =VLOOKUP(B90,'SINTÉTICO SICRO'!$A:$D,2,0) -> Escavação e carga de material de jazida com escavadeira hidráulica de 1,56 m³ | D90: 0.41259 | E90: tkm | F90: 5914314 | G90: 5914329 | H90: 5914344 | I90: =$B$56 -> LN | J90: 114.1 | K90: =IF(ISBLANK(J90),"",J90*D90)*I84 -> 210902.8051
A91: =IF(I91="P",H91,IF(I91="RP",G91,IF(I91="LN",F91,""))) -> 
B92: Obs.
B93: TIPO (P, RP ou LN) | C93: DMT ESTIMADA
B94: RP | C94: 0
B96: COMPOSIÇÕES PRINCIPAIS
B97: SISTEMA DE CUSTOS REFERENCIAIS DE OBRAS - SICRO
B98: Custo Unitário de Referência | E98: =$E$6 -> Amapá - Abril/2024 | I98: Quantitativo | K98: t
B99: 4011463 | C99: =VLOOKUP(B99,'SINTÉTICO SICRO'!$A:$D,2,0) -> Concreto asfáltico - faixa C - areia e brita comerciais | I99: =SUMIF('RESUMO MODULO TOTAL'!D:D,B99,'RESUMO MODULO TOTAL'!J:J) -> 26880
B100: D - ATIVIDADES AUXILIARES | D100: Quantidade | E100: Unidade
B101: 6416078 | C101: =VLOOKUP(B101,'SINTÉTICO SICRO'!$A:$D,2,0) -> Usinagem de concreto asfáltico - faixa C - areia e brita comerciais | D101: 1.02 | E101: t
B103: F - MOMENTO DE TRANSPORTE | D103: Quantidade | E103: Unidade | F103: CÓDIGO TRANSPORTE
F104: LN | G104: RP | H104: P | I104: TIPO (P, RP ou LN) | J104: DMT ESTIMADA (km) | K104: QUANTITATIVO TOTAL DE TRANSPORTE (tkm)
A105: =IF(I105="P",H105,IF(I105="RP",G105,IF(I105="LN",F105,""))) -> 5914374 | B105: 6416078 | C105: =VLOOKUP(B105,'SINTÉTICO SICRO'!$A:$D,2,0) -> Usinagem de concreto asfáltico - faixa C - areia e brita comerciais | D105: 1.02 | E105: tkm | F105: 5914359 | G105: 5914374 | H105: 5914389 | I105: =$B$94 -> RP | J105: =$C$94 -> 0 | K105: =IF(ISBLANK(J105),"",J105*D105)*I99 -> 0
A106: =IF(I106="P",H106,IF(I106="RP",G106,IF(I106="LN",F106,""))) -> 
B107: Obs.
B108: SISTEMA DE CUSTOS REFERENCIAIS DE OBRAS - SICRO
B109: Custo Unitário de Referência | E109: =$E$6 -> Amapá - Abril/2024 | I109: Quantitativo | K109: m³
B110: 4915663 | C110: =VLOOKUP(B110,'SINTÉTICO SICRO'!$A:$D,2,0) -> Fresagem descontínua de revestimento asfáltico - espessura de 5 cm | I110: =SUMIF('RESUMO MODULO TOTAL'!D:D,B110,'RESUMO MODULO TOTAL'!J:J) -> 1120
B111: D - ATIVIDADES AUXILIARES | D111: Quantidade | E111: Unidade
B114: F - MOMENTO DE TRANSPORTE | D114: Quantidade | E114: Unidade | F114: CÓDIGO TRANSPORTE
F115: LN | G115: RP | H115: P | I115: TIPO (P, RP ou LN) | J115: DMT ESTIMADA (km) | K115: QUANTITATIVO TOTAL DE TRANSPORTE (tkm)
A116: =IF(I116="P",H116,IF(I116="RP",G116,IF(I116="LN",F116,""))) -> 5914374 | B116: M3507 | C116: Revestimento asfáltico - Caminhão basculante 10 m³ | D116: 2.4 | E116: tkm | F116: 5914359 | G116: 5914374 | H116: 5914389 | I116: =$B$94 -> RP | J116: =$C$94 -> 0 | K116: =IF(ISBLANK(J116),"",J116*D116)*I110 -> 0
A117: =IF(I117="P",H117,IF(I117="RP",G117,IF(I117="LN",F117,""))) -> 
B118: Obs.
B119: COMPOSIÇÕES PRINCIPAIS
B120: SISTEMA DE CUSTOS REFERENCIAIS DE OBRAS - SICRO
B121: Custo Unitário de Referência | E121: =$E$6 -> Amapá - Abril/2024 | I121: Quantitativo | K121: m²
B122: 4915618 | C122: =VLOOKUP(B122,'SINTÉTICO SICRO'!$A:$D,2,0) -> Recomposição de camada granular do pavimento com material de jazida | I122: =SUMIF('RESUMO MODULO TOTAL'!D:D,B122,'RESUMO MODULO TOTAL'!J:J) -> 22400
B123: D - ATIVIDADES AUXILIARES | D123: Quantidade | E123: Unidade
B124: 4016096 | C124: =VLOOKUP(B124,'SINTÉTICO SICRO'!$A:$D,2,0) -> Escavação e carga de material de jazida com escavadeira hidráulica de 1,56 m³ | D124: 0.22005 | E124: t
B126: F - MOMENTO DE TRANSPORTE | D126: Quantidade | E126: Unidade | F126: CÓDIGO TRANSPORTE
F127: LN | G127: RP | H127: P | I127: TIPO (P, RP ou LN) | J127: DMT ESTIMADA (km) | K127: QUANTITATIVO TOTAL DE TRANSPORTE (tkm)
A128: =IF(I128="P",H128,IF(I128="RP",G128,IF(I128="LN",F128,""))) -> 5914329 | B128: 4016096 | C128: =VLOOKUP(B128,'SINTÉTICO SICRO'!$A:$D,2,0) -> Escavação e carga de material de jazida com escavadeira hidráulica de 1,56 m³ | D128: 0.41259 | E128: tkm | F128: 5914314 | G128: 5914329 | H128: 5914344 | I128: =$B$94 -> RP | J128: =$C$94 -> 0 | K128: =IF(ISBLANK(J128),"",J128*D128)*I122 -> 0
A129: =IF(I129="P",H129,IF(I129="RP",G129,IF(I129="LN",F129,""))) -> 
B130: Obs.

Sheet MOMENTO DE TRANSPORTE - AUX
B4: ='RESUMO MODULO TOTAL'!B1 -> EXECUÇÃO DE CAPA ASFÁLTICA EM CONCRETO BETUMINOSO USINADO A QUENTE (CBUQ), EM VIAS DE MUNICÍPIOS DIVERSOS INSERIDOS NA ÁREA DE ATUAÇÃO DA CODEVASF, NO ESTADO DO AMAPÁ (REGIÃO PORTO GRANDE)
B5: ESTADO: | C5: ='RESUMO MODULO TOTAL'!N1 -> xxxxxxxxxxxx | D5: DATA BASE: | E5: ='MOMENTO DE TRANSPORTE - PRINC'!E6 -> Amapá - Abril/2024
B7: RESUMO DO TRANSPORTE AUXILIAR
B8: CODIGO | C8: DESCRIÇÃO | D8: TKM
B9: 5914359 | C9: =VLOOKUP(B9,'SINTÉTICO SICRO'!$A:$D,2,0) -> Transporte com caminhão basculante de 10 m³ - rodovia em leito natural | D9: =ROUND(SUMIF(A:A,B9,K:K),2) -> 0
B10: 5914374 | C10: =VLOOKUP(B10,'SINTÉTICO SICRO'!$A:$D,2,0) -> Transporte com caminhão basculante de 10 m³ - rodovia em revestimento primário | D10: 0
B11: 5914389 | C11: =VLOOKUP(B11,'SINTÉTICO SICRO'!$A:$D,2,0) -> Transporte com caminhão basculante de 10 m³ - rodovia pavimentada | D11: 0
B12: 5914364 | C12: =VLOOKUP(B12,'SINTÉTICO SICRO'!$A:$D,2,0) -> Transporte de cimento ou cal hidratada a granel com caminhão silo de 30 m³ - rodovia em leito natural | D12: 0
B13: 5914365 | C13: =VLOOKUP(B13,'SINTÉTICO SICRO'!$A:$D,2,0) -> Transporte de cimento ou cal hidratada a granel com caminhão silo de 30 m³ - rodovia em revestimento primário | D13: 0
B14: 5914366 | C14: =VLOOKUP(B14,'SINTÉTICO SICRO'!$A:$D,2,0) -> Transporte de cimento ou cal hidratada a granel com caminhão silo de 30 m³ - rodovia pavimentada | D14: 0
B16: TIPO (P, RP ou LN) | C16: DMT ATÉ 50 KM NÃO DEVE SER PAGA | D16: SOMENTE DEVE SER ADICIONADO A DISTÂNCIA EXCEDENTE A 50 KM
B17: P
B19: SISTEMA DE CUSTOS REFERENCIAIS DE OBRAS - SICRO | I19: Quantitivo
B20: Custo Unitário de Referência | E20: =$E$5 -> Amapá - Abril/2024 | I20: (Coeficiente na composição principal) x (quantidade da principal no orçamento) | K20: t
B21: 6416078 | C21: Usinagem de concreto asfáltico - faixa C - areia e brita comerciais | I21: =('MOMENTO DE TRANSPORTE - PRINC'!D25*VLOOKUP(C30,'RESUMO MODULO TOTAL'!D:O,7,FALSE))*1 -> 27417.6
B22: F - MOMENTO DE TRANSPORTE | D22: Quantidade | E22: Unidade | F22: DMT
F23: LN | G23: RP | H23: P | I23: TIPO (P, RP ou LN) | J23: DMT ESTIMADA (km) | K23: QUANTITATIVO TOTAL DE TRANSPORTE DE MATERIAL (tkm)
A24: =IF(I24="P",H24,IF(I24="RP",G24,IF(I24="LN",F24,""))) -> 5914389 | B24: M0028 | C24: Areia média - Caminhão basculante 10 m³ | D24: 0.48713 | E24: tkm | F24: 5914359 | G24: 5914374 | H24: 5914389 | I24: =$B$17 -> P | J24: 0 | K24: =IF(ISBLANK(J24),"",J24*(D24*$I$21)) -> 0
A25: =IF(I25="P",H25,IF(I25="RP",G25,IF(I25="LN",F25,""))) -> 5914389 | B25: M0005 | C25: Brita 0 - Caminhão basculante 10 m³ | D25: 0.09368 | E25: tkm | F25: 5914359 | G25: 5914374 | H25: 5914389 | I25: P | J25: 0 | K25: =IF(ISBLANK(J25),"",J25*(D25*$I$21)) -> 0
A26: 5914389 | B26: M0191 | C26: Brita 1 - Caminhão basculante 10 m³ | D26: 0.09368 | E26: tkm | F26: 5914359 | G26: 5914374 | H26: 5914389 | I26: P | J26: =J25 -> 0 | K26: 0
A27: 5914366 | B27: M0344 | C27: Cal hidratada - a granel - Caminhão silo 30 m³ | D27: 0.0562 | E27: tkm | F27: 5914364 | G27: 5914365 | H27: 5914366 | I27: P | J27: =J26 -> 0 | K27: 0
A28: 5914389 | B28: M1103 | C28: Pedrisco - Caminhão basculante 10 m³ | D28: 0.20609 | E28: tkm | F28: 5914359 | G28: 5914374 | H28: 5914389 | I28: P | J28: =J27 -> 0 | K28: 0
A30: =IF(I30="P",H30,IF(I30="RP",G30,IF(I30="LN",F30,""))) ->  | B30: PRINCIPAL: | C30: ='MOMENTO DE TRANSPORTE - PRINC'!B23 -> 4011463
B31: SISTEMA DE CUSTOS REFERENCIAIS DE OBRAS - SICRO | I31: Quantitivo
B32: Custo Unitário de Referência | E32: =$E$5 -> Amapá - Abril/2024 | I32: (Coeficiente na composição principal) x (quantidade da principal no orçamento) | K32: m³
B33: 4016096 | C33: =VLOOKUP(B33,'SINTÉTICO SICRO'!$A:$D,2,0) -> Escavação e carga de material de jazida com escavadeira hidráulica de 1,56 m³
B34: F - MOMENTO DE TRANSPORTE | D34: '' | E34: Unidade | F34: DMT
F35: LN | G35: RP | H35: P | I35: TIPO (P, RP ou LN) | J35: DMT ESTIMADA (km) | K35: QUANTITATIVO TOTAL DE TRANSPORTE DE MATERIAL (tkm)
A36: =IF(I36="P",H36,IF(I36="RP",G36,IF(I36="LN",F36,""))) ->  | E36: tkm | K36: =IF(ISBLANK(J36),"",J36*(D36*#REF!)) -> 
B37: PRINCIPAL: | C37: ='MOMENTO DE TRANSPORTE - PRINC'!B46 -> 4915618
B38: TIPO (P, RP ou LN) | C38: DMT ATÉ 50 KM NÃO DEVE SER PAGA | D38: DMT ACIMA DE 50 KM
B39: LN | C39: 0 | D39: 0
B41: SISTEMA DE CUSTOS REFERENCIAIS DE OBRAS - SICRO | I41: Quantitivo
B42: Custo Unitário de Referência | E42: =$E$5 -> Amapá - Abril/2024 | I42: (Coeficiente na composição principal) x (quantidade da principal no orçamento) | K42: t
B43: 6416078 | C43: Usinagem de concreto asfáltico - faixa C - areia e brita comerciais | I43: =('MOMENTO DE TRANSPORTE - PRINC'!D25*VLOOKUP(C52,'RESUMO MODULO TOTAL'!D:O,7,FALSE))*0 -> 0
B44: F - MOMENTO DE TRANSPORTE | D44: Quantidade | E44: Unidade | F44: DMT
F45: LN | G45: RP | H45: P | I45: TIPO (P, RP ou LN) | J45: DMT ESTIMADA (km) | K45: QUANTITATIVO TOTAL DE TRANSPORTE DE MATERIAL (tkm)
A46: =IF(I46="P",H46,IF(I46="RP",G46,IF(I46="LN",F46,""))) -> 5914359 | B46: M0028 | C46: Areia média - Caminhão basculante 10 m³ | D46: 0.48713 | E46: tkm | F46: 5914359 | G46: 5914374 | H46: 5914389 | I46: =$B$39 -> LN | J46: =$D$39 -> 0 | K46: =IF(ISBLANK(J46),"",J46*(D46*$I$43)) -> 0
A47: 5914359 | B47: M0005 | C47: Brita 0 - Caminhão basculante 10 m³ | D47: 0.09368 | E47: tkm | F47: 5914359 | G47: 5914374 | H47: 5914389 | I47: =$B$39 -> LN | J47: =$D$39 -> 0 | K47: =IF(ISBLANK(J47),"",J47*(D47*$I$43)) -> 0
A48: 5914359 | B48: M0191 | C48: Brita 1 - Caminhão basculante 10 m³ | D48: 0.09368 | E48: tkm | F48: 5914359 | G48: 5914374 | H48: 5914389 | I48: LN | J48: 0 | K48: 0
A49: 5914364 | B49: M0344 | C49: Cal hidratada - a granel - Caminhão silo 30 m³ | D49: 0.0562 | E49: tkm | F49: 5914364 | G49: 5914365 | H49: 5914366 | I49: LN | J49: 0 | K49: 0
A50: 5914359 | B50: M1103 | C50: Pedrisco - Caminhão basculante 10 m³ | D50: 0.20609 | E50: tkm | F50: 5914359 | G50: 5914374 | H50: 5914389 | I50: LN | J50: 0 | K50: 0
B52: PRINCIPAL: | C52: ='MOMENTO DE TRANSPORTE - PRINC'!B23 -> 4011463
B53: SISTEMA DE CUSTOS REFERENCIAIS DE OBRAS - SICRO | I53: Quantitivo
B54: Custo Unitário de Referência | E54: =$E$5 -> Amapá - Abril/2024 | I54: (Coeficiente na composição principal) x (quantidade da principal no orçamento) | K54: m³
B55: 4016096 | C55: =VLOOKUP(B55,'SINTÉTICO SICRO'!$A:$D,2,0) -> Escavação e carga de material de jazida com escavadeira hidráulica de 1,56 m³
B56: F - MOMENTO DE TRANSPORTE | D56: '' | E56: Unidade | F56: DMT
F57: LN | G57: RP | H57: P | I57: TIPO (P, RP ou LN) | J57: DMT ESTIMADA (km) | K57: QUANTITATIVO TOTAL DE TRANSPORTE DE MATERIAL (tkm)
A58: =IF(I58="P",H58,IF(I58="RP",G58,IF(I58="LN",F58,""))) ->  | E58: tkm | K58: =IF(ISBLANK(J58),"",J58*(D58*#REF!)) -> 
B59: PRINCIPAL: | C59: ='MOMENTO DE TRANSPORTE - PRINC'!B46 -> 4915618
B60: TIPO (P, RP ou LN) | C60: DMT ATÉ 50 KM NÃO DEVE SER PAGA | D60: DMT ACIMA DE 50 KM
B61: RP | C61: 0 | D61: 0
B63: SISTEMA DE CUSTOS REFERENCIAIS DE OBRAS - SICRO | I63: Quantitivo
B64: Custo Unitário de Referência | E64: =$E$5 -> Amapá - Abril/2024 | I64: (Coeficiente na composição principal) x (quantidade da principal no orçamento) | K64: t
B65: 6416078 | C65: Usinagem de concreto asfáltico - faixa C - areia e brita comerciais | I65: =('MOMENTO DE TRANSPORTE - PRINC'!D25*VLOOKUP(C74,'RESUMO MODULO TOTAL'!D:O,7,FALSE))*0 -> 0
B66: F - MOMENTO DE TRANSPORTE | D66: Quantidade | E66: Unidade | F66: DMT
F67: LN | G67: RP | H67: P | I67: TIPO (P, RP ou LN) | J67: DMT ESTIMADA (km) | K67: QUANTITATIVO TOTAL DE TRANSPORTE DE MATERIAL (tkm)
A68: =IF(I68="P",H68,IF(I68="RP",G68,IF(I68="LN",F68,""))) -> 5914374 | B68: M0028 | C68: Areia média - Caminhão basculante 10 m³ | D68: 0.48713 | E68: tkm | F68: 5914359 | G68: 5914374 | H68: 5914389 | I68: =$B$61 -> RP | J68: =$D$61 -> 0 | K68: =IF(ISBLANK(J68),"",J68*(D68*$I$65)) -> 0
A69: 5914374 | B69: M0005 | C69: Brita 0 - Caminhão basculante 10 m³ | D69: 0.09368 | E69: tkm | F69: 5914359 | G69: 5914374 | H69: 5914389 | I69: =$B$61 -> RP | J69: =$D$61 -> 0 | K69: =IF(ISBLANK(J69),"",J69*(D69*$I$65)) -> 0
A70: 5914374 | B70: M0191 | C70: Brita 1 - Caminhão basculante 10 m³ | D70: 0.09368 | E70: tkm | F70: 5914359 | G70: 5914374 | H70: 5914389 | I70: RP | J70: 0 | K70: 0
A71: 5914365 | B71: M0344 | C71: Cal hidratada - a granel - Caminhão silo 30 m³ | D71: 0.0562 | E71: tkm | F71: 5914364 | G71: 5914365 | H71: 5914366 | I71: RP | J71: 0 | K71: 0
A72: 5914374 | B72: M1103 | C72: Pedrisco - Caminhão basculante 10 m³ | D72: 0.20609 | E72: tkm | F72: 5914359 | G72: 5914374 | H72: 5914389 | I72: RP | J72: 0 | K72: 0
B74: PRINCIPAL: | C74: ='MOMENTO DE TRANSPORTE - PRINC'!B23 -> 4011463
B75: SISTEMA DE CUSTOS REFERENCIAIS DE OBRAS - SICRO | I75: Quantitivo
B76: Custo Unitário de Referência | E76: =$E$5 -> Amapá - Abril/2024 | I76: (Coeficiente na composição principal) x (quantidade da principal no orçamento) | K76: m³
B77: 4016096 | C77: =VLOOKUP(B77,'SINTÉTICO SICRO'!$A:$D,2,0) -> Escavação e carga de material de jazida com escavadeira hidráulica de 1,56 m³
B78: F - MOMENTO DE TRANSPORTE | D78: '' | E78: Unidade | F78: DMT
F79: LN | G79: RP | H79: P | I79: TIPO (P, RP ou LN) | J79: DMT ESTIMADA (km) | K79: QUANTITATIVO TOTAL DE TRANSPORTE DE MATERIAL (tkm)
A80: =IF(I80="P",H80,IF(I80="RP",G80,IF(I80="LN",F80,""))) ->  | E80: tkm | K80: =IF(ISBLANK(J80),"",J80*(D80*#REF!)) -> 
B81: PRINCIPAL: | C81: ='MOMENTO DE TRANSPORTE - PRINC'!B68 -> 0
A82: =IF(I82="P",H82,IF(I82="RP",G82,IF(I82="LN",F82,""))) -> 
M103: =(#REF!) -> 

Sheet MC MODULO
A1: Extensão | B1: = | C1: 2000 | D1: m | F1: QUANTIDADE DE MODULOS | G1: 16
A2: Largura | B2: = | C2: 7 | D2: m
A4: Extensão | B4: = | C4: 2 | D4: km
B6: MOBUILIZAÇÃO
A7: 1 | B7: Implantação da obra
B9: Módulos(un) | D9: Módulos(un)
B10: =G1 -> 16 | C10: = | D10: =B10 -> 16
A12: 2 | B12: Administração da obra
B14: Módulos(un) | D14: Módulos(un)
B15: =G1 -> 16 | C15: = | D15: =B15 -> 16
A17: 3 | B17: Canteiro de Obras e Almoxarifado
B19: Módulos(un) | D19: Módulos(un)
B20: =G1 -> 16 | C20: = | D20: =B20 -> 16
A22: 4 | B22: Placa de Obra em Chapa de Aço Galvanizado
B24: Módulos(un) | C24: Comprimento(m) | D24: Largura (m) | H24: Total de Area de placa (m²)
B25: =G1 -> 16 | C25: 2 | D25: 4 | H25: =C25*D25*B25*2 -> 256
B28: PAVIMENTAÇÃO
A30: 5 | B30: Concreto asfáltico - faixa C - areia e brita comerciais
B32: Extensão (m) | C32: Largura (m) | D32: Espessura (m) | E32: Densidade (t/m³) | F32: A | H32: Volume (t)
B33: =$C$1*G1 -> 32000 | C33: =$C$2 -> 7 | D33: 0.05 | E33: 2.4 | G33: = | H33: =B33*C33*D33*E33 -> 26880
A36: 7 | B36: Pintura de ligação
B38: Extensão (m) | D38: Largura (m) | H38: area (m2)
B39: =$C$1*G1 -> 32000 | C39: x | D39: =$C$2 -> 7 | G39: = | H39: =B39*D39 -> 224000
A42: 9 | B42: Fresagem descontínua de revestimento asfáltico - espessura de 5 cm
B44: Extensão (m) | D44: Largura (m) | E44: Espessura (m) | H44: Volume (m3)
B45: =$C$1*G1 -> 32000 | C45: x | D45: =$C$2 -> 7 | E45: 0.05 | F45: 0.1 | G45: = | H45: =B45*D45*E45*F45 -> 1120
A48: 9 | B48: Recomposição de camada granular do pavimento com material de jazida
B50: Extensão (m) | D50: Largura (m) | H50: area (m2)
B51: =$C$1*G1 -> 32000 | C51: x | D51: =$C$2 -> 7 | F51: =F45 -> 0.1 | G51: = | H51: =B51*D51*F51 -> 22400
B53: SINALIZAÇÃO
A55: 14 | B55: Fornecimento e implantação de placa de regulamentação em aço D = 0,60 m - película retrorrefletiva tipo I + SI
B57: Extensão (km) | D57: Quant. (un) | H57: Quant. (un)
B58: =$C$4*$G$1 -> 32 | C58: x | D58: 3 | G58: = | H58: =B58*D58 -> 96
A60: 14 | B60: Placa de advertência em aço, lado de 0,60 m - película retrorrefletiva tipo I + SI - fornecimento e implantação
B62: Extensão (km) | D62: Quant. (un) | H62: Quant. (un)
B63: =$C$4*$G$1 -> 32 | C63: x | D63: 3 | G63: = | H63: =B63*D63 -> 96
A66: 15 | B66: Fornecimento e implantação de suporte metálico galvanizado para placa de regulamentação - D = 0,60 m
B68: Extensão (km) | D68: Quant. (un) | H68: Quant. (un)
B69: =$C$4*$G$1 -> 32 | C69: x | G69: = | H69: =H58+H63 -> 192
A71: 16 | B71: Pintura de faixa com tinta acrílica - espessura de 0,4 mm (bordos)
B73: Extensão (m) | D73: Espessura (m) | H73: Quant. (m²)
B74: =C1*G1 -> 32000 | C74: x | D74: 0.1 | G74: = | H74: =B74*D74*2 -> 6400
A76: 16 | B76: Pintura de faixa com tinta acrílica - espessura de 0,4 mm (faixa central)
H78: Quant. (m²)
H79: =B74*D74*0.4 -> 1280
B82: DRENAGEM
A83: 17 | B83: Reassentamento manual de meio fio com material arrancado da pista
B85: Extensão (m) | D85: Quant. (un) | G85: 0.1 | H85: Extensão(m)
B86: =$C$1*$G$1 -> 32000 | C86: x | D86: 2 | G86: = | H86: =B86*D86*G85 -> 6400
A88: 18 | B88: Limpeza de sarjeta e meio-fio
B90: Extensão (m) | D90: Quant. (un) | H90: Extensão(m)
B91: =$C$1*$G$1 -> 32000 | C91: x | D91: 2 | G91: = | H91: =B91*D91 -> 64000
A93: 19 | B93: Caiação mecanizada com fixador de cal
B95: Extensão (m) | D95: Perimetro (m) | H95: Area (m²)
B96: =$C$1*$G$1 -> 32000 | C96: x | D96: =0.24 -> 0.24 | G96: = | H96: =B96*D96 -> 7680
B99: SERVIÇOS COMPLEMENTARES
A100: 20
B102: Extensão (m) | D102: Largura (m) | G102: 0.1 | H102: extensão (m)
B103: =$C$1*G1 -> 32000 | C103: x | D103: 1 | E103: x | G103: = | H103: =G102*B103 -> 3200
B106: PROJETO EXECUTIVO
A107: 21 | B107: Projeto Executivo
B109: Extensão (m) | D109: Largura (m) | F109: Quant. (un) | H109: Área (m²)
B110: =$C$1*G1 -> 32000 | C110: x | D110: =C2 -> 7 | E110: x | F110: 1 | G110: = | H110: =B110*D110 -> 224000
B112: CONTROLE TECNOLOGICO - OBRA
A113: 22 | B113: Projeto Executivo
B115: Extensão (m) | D115: Largura (m) | F115: Quant. (un) | H115: meses
G116: = | H116: =0.5*G1 -> 8
E132: Perímetro caiação = 0,09 + 0,15

Sheet ANP ESTADO
A1: Agência Nacional do Petróleo, Gás Natural e Biocombustíveis
A2: Superintendência de Defesa da Concorrência
A5: PREÇO MÉDIO MENSAL PONDERADO PRATICADO PELOS DISTRIBUIDORES DE PRODUTOS ASFÁLTICOS (R$/KG)
A7: Importante: | B7: Quando não houver declaração de venda do produto selecionado, ou quando a declaração de venda do produto ocorrer por menos de 03 (três) distribuidoras, a tabela indicará campo vazio.
A8: Mês | B8: Produto | C8: Estado | D8: Preço
A9: 2013-01-01 | B9: ASFALTOS DILUÍDOS CM-30 | C9: Acre | D9: -
A10: 2013-01-01 | B10: ASFALTOS DILUÍDOS CM-30 | C10: Alagoas | D10: -
A11: 2013-01-01 | B11: ASFALTOS DILUÍDOS CM-30 | C11: Amapá | D11: -
A12: 2013-01-01 | B12: ASFALTOS DILUÍDOS CM-30 | C12: Amazonas | D12: 1.453527021
A13: 2013-01-01 | B13: ASFALTOS DILUÍDOS CM-30 | C13: Bahia | D13: 1.464044142
A14: 2013-01-01 | B14: ASFALTOS DILUÍDOS CM-30 | C14: Ceará | D14: 1.447997934
A15: 2013-01-01 | B15: ASFALTOS DILUÍDOS CM-30 | C15: Distrito Federal | D15: -
A16: 2013-01-01 | B16: ASFALTOS DILUÍDOS CM-30 | C16: Espírito Santo | D16: -
A17: 2013-01-01 | B17: ASFALTOS DILUÍDOS CM-30 | C17: Goiás | D17: 1.686383065
A18: 2013-01-01 | B18: ASFALTOS DILUÍDOS CM-30 | C18: Maranhão | D18: -
A19: 2013-01-01 | B19: ASFALTOS DILUÍDOS CM-30 | C19: Mato Grosso | D19: -
A20: 2013-01-01 | B20: ASFALTOS DILUÍDOS CM-30 | C20: Mato Grosso do Sul | D20: -
A21: 2013-01-01 | B21: ASFALTOS DILUÍDOS CM-30 | C21: Minas Gerais | D21: 1.451106114
A22: 2013-01-01 | B22: ASFALTOS DILUÍDOS CM-30 | C22: Pará | D22: -
A23: 2013-01-01 | B23: ASFALTOS DILUÍDOS CM-30 | C23: Paraíba | D23: -
A24: 2013-01-01 | B24: ASFALTOS DILUÍDOS CM-30 | C24: Paraná | D24: 1.520125031
A25: 2013-01-01 | B25: ASFALTOS DILUÍDOS CM-30 | C25: Pernambuco | D25: -
A26: 2013-01-01 | B26: ASFALTOS DILUÍDOS CM-30 | C26: Piauí | D26: -
A27: 2013-01-01 | B27: ASFALTOS DILUÍDOS CM-30 | C27: Rio de Janeiro | D27: 1.330475106
A28: 2013-01-01 | B28: ASFALTOS DILUÍDOS CM-30 | C28: Rio Grande do Norte | D28: -
A29: 2013-01-01 | B29: ASFALTOS DILUÍDOS CM-30 | C29: Rio Grande do Sul | D29: 1.598611074
A30: 2013-01-01 | B30: ASFALTOS DILUÍDOS CM-30 | C30: Rondônia | D30: -
A31: 2013-01-01 | B31: ASFALTOS DILUÍDOS CM-30 | C31: Roraima | D31: -
A32: 2013-01-01 | B32: ASFALTOS DILUÍDOS CM-30 | C32: Santa Catarina | D32: -
A33: 2013-01-01 | B33: ASFALTOS DILUÍDOS CM-30 | C33: São Paulo | D33: 1.471008423
A34: 2013-01-01 | B34: ASFALTOS DILUÍDOS CM-30 | C34: Sergipe | D34: -
A35: 2013-01-01 | B35: ASFALTOS DILUÍDOS CM-30 | C35: Tocantins | D35: -
A36: 2013-02-01 | B36: ASFALTOS DILUÍDOS CM-30 | C36: Acre | D36: -
A37: 2013-02-01 | B37: ASFALTOS DILUÍDOS CM-30 | C37: Alagoas | D37: -
A38: 2013-02-01 | B38: ASFALTOS DILUÍDOS CM-30 | C38: Amapá | D38: -
A39: 2013-02-01 | B39: ASFALTOS DILUÍDOS CM-30 | C39: Amazonas | D39: 1.485578179
A40: 2013-02-01 | B40: ASFALTOS DILUÍDOS CM-30 | C40: Bahia | D40: 1.457014101
A41: 2013-02-01 | B41: ASFALTOS DILUÍDOS CM-30 | C41: Ceará | D41: 1.413192336
A42: 2013-02-01 | B42: ASFALTOS DILUÍDOS CM-30 | C42: Distrito Federal | D42: -
A43: 2013-02-01 | B43: ASFALTOS DILUÍDOS CM-30 | C43: Espírito Santo | D43: -
A44: 2013-02-01 | B44: ASFALTOS DILUÍDOS CM-30 | C44: Goiás | D44: 1.667459711
A45: 2013-02-01 | B45: ASFALTOS DILUÍDOS CM-30 | C45: Maranhão | D45: -
A46: 2013-02-01 | B46: ASFALTOS DILUÍDOS CM-30 | C46: Mato Grosso | D46: -
A47: 2013-02-01 | B47: ASFALTOS DILUÍDOS CM-30 | C47: Mato Grosso do Sul | D47: -
A48: 2013-02-01 | B48: ASFALTOS DILUÍDOS CM-30 | C48: Minas Gerais | D48: 1.452121117
A49: 2013-02-01 | B49: ASFALTOS DILUÍDOS CM-30 | C49: Pará | D49: -
A50: 2013-02-01 | B50: ASFALTOS DILUÍDOS CM-30 | C50: Paraíba | D50: -
A51: 2013-02-01 | B51: ASFALTOS DILUÍDOS CM-30 | C51: Paraná | D51: 1.493783173
A52: 2013-02-01 | B52: ASFALTOS DILUÍDOS CM-30 | C52: Pernambuco | D52: -
A53: 2013-02-01 | B53: ASFALTOS DILUÍDOS CM-30 | C53: Piauí | D53: -
A54: 2013-02-01 | B54: ASFALTOS DILUÍDOS CM-30 | C54: Rio de Janeiro | D54: 1.418234901
A55: 2013-02-01 | B55: ASFALTOS DILUÍDOS CM-30 | C55: Rio Grande do Norte | D55: -
A56: 2013-02-01 | B56: ASFALTOS DILUÍDOS CM-30 | C56: Rio Grande do Sul | D56: 1.435861782
A57: 2013-02-01 | B57: ASFALTOS DILUÍDOS CM-30 | C57: Rondônia | D57: -
A58: 2013-02-01 | B58: ASFALTOS DILUÍDOS CM-30 | C58: Roraima | D58: -
A59: 2013-02-01 | B59: ASFALTOS DILUÍDOS CM-30 | C59: Santa Catarina | D59: -
A60: 2013-02-01 | B60: ASFALTOS DILUÍDOS CM-30 | C60: São Paulo | D60: 1.434190204
A61: 2013-02-01 | B61: ASFALTOS DILUÍDOS CM-30 | C61: Sergipe | D61: -
A62: 2013-02-01 | B62: ASFALTOS DILUÍDOS CM-30 | C62: Tocantins | D62: -
A63: 2013-03-01 | B63: ASFALTOS DILUÍDOS CM-30 | C63: Acre | D63: -
A64: 2013-03-01 | B64: ASFALTOS DILUÍDOS CM-30 | C64: Alagoas | D64: -
A65: 2013-03-01 | B65: ASFALTOS DILUÍDOS CM-30 | C65: Amapá | D65: -
A66: 2013-03-01 | B66: ASFALTOS DILUÍDOS CM-30 | C66: Amazonas | D66: 1.507923921
A67: 2013-03-01 | B67: ASFALTOS DILUÍDOS CM-30 | C67: Bahia | D67: 1.449440325
A68: 2013-03-01 | B68: ASFALTOS DILUÍDOS CM-30 | C68: Ceará | D68: 1.401607485
A69: 2013-03-01 | B69: ASFALTOS DILUÍDOS CM-30 | C69: Distrito Federal | D69: -
A70: 2013-03-01 | B70: ASFALTOS DILUÍDOS CM-30 | C70: Espírito Santo | D70: -
A71: 2013-03-01 | B71: ASFALTOS DILUÍDOS CM-30 | C71: Goiás | D71: 1.661758701
A72: 2013-03-01 | B72: ASFALTOS DILUÍDOS CM-30 | C72: Maranhão | D72: -
A73: 2013-03-01 | B73: ASFALTOS DILUÍDOS CM-30 | C73: Mato Grosso | D73: -
A74: 2013-03-01 | B74: ASFALTOS DILUÍDOS CM-30 | C74: Mato Grosso do Sul | D74: -
A75: 2013-03-01 | B75: ASFALTOS DILUÍDOS CM-30 | C75: Minas Gerais | D75: 1.44324333
A76: 2013-03-01 | B76: ASFALTOS DILUÍDOS CM-30 | C76: Pará | D76: -
A77: 2013-03-01 | B77: ASFALTOS DILUÍDOS CM-30 | C77: Paraíba | D77: -
A78: 2013-03-01 | B78: ASFALTOS DILUÍDOS CM-30 | C78: Paraná | D78: 1.468995996
A79: 2013-03-01 | B79: ASFALTOS DILUÍDOS CM-30 | C79: Pernambuco | D79: -
A80: 2013-03-01 | B80: ASFALTOS DILUÍDOS CM-30 | C80: Piauí | D80: -
A81: 2013-03-01 | B81: ASFALTOS DILUÍDOS CM-30 | C81: Rio de Janeiro | D81: 1.438055574
A82: 2013-03-01 | B82: ASFALTOS DILUÍDOS CM-30 | C82: Rio Grande do Norte | D82: -
A83: 2013-03-01 | B83: ASFALTOS DILUÍDOS CM-30 | C83: Rio Grande do Sul | D83: 1.581425878
A84: 2013-03-01 | B84: ASFALTOS DILUÍDOS CM-30 | C84: Rondônia | D84: -
A85: 2013-03-01 | B85: ASFALTOS DILUÍDOS CM-30 | C85: Roraima | D85: -
A86: 2013-03-01 | B86: ASFALTOS DILUÍDOS CM-30 | C86: Santa Catarina | D86: -
A87: 2013-03-01 | B87: ASFALTOS DILUÍDOS CM-30 | C87: São Paulo | D87: 1.466061702
A88: 2013-03-01 | B88: ASFALTOS DILUÍDOS CM-30 | C88: Sergipe | D88: -
A89: 2013-03-01 | B89: ASFALTOS DILUÍDOS CM-30 | C89: Tocantins | D89: -
A90: 2013-04-01 | B90: ASFALTOS DILUÍDOS CM-30 | C90: Acre | D90: -
A91: 2013-04-01 | B91: ASFALTOS DILUÍDOS CM-30 | C91: Alagoas | D91: -
A92: 2013-04-01 | B92: ASFALTOS DILUÍDOS CM-30 | C92: Amapá | D92: -
A93: 2013-04-01 | B93: ASFALTOS DILUÍDOS CM-30 | C93: Amazonas | D93: 1.484796656
A94: 2013-04-01 | B94: ASFALTOS DILUÍDOS CM-30 | C94: Bahia | D94: 1.454836546
A95: 2013-04-01 | B95: ASFALTOS DILUÍDOS CM-30 | C95: Ceará | D95: 1.387073962
A96: 2013-04-01 | B96: ASFALTOS DILUÍDOS CM-30 | C96: Distrito Federal | D96: -
A97: 2013-04-01 | B97: ASFALTOS DILUÍDOS CM-30 | C97: Espírito Santo | D97: -
A98: 2013-04-01 | B98: ASFALTOS DILUÍDOS CM-30 | C98: Goiás | D98: 1.673481836
A99: 2013-04-01 | B99: ASFALTOS DILUÍDOS CM-30 | C99: Maranhão | D99: -
A100: 2013-04-01 | B100: ASFALTOS DILUÍDOS CM-30 | C100: Mato Grosso | D100: 1.921938422
A101: 2013-04-01 | B101: ASFALTOS DILUÍDOS CM-30 | C101: Mato Grosso do Sul | D101: -
A102: 2013-04-01 | B102: ASFALTOS DILUÍDOS CM-30 | C102: Minas Gerais | D102: 1.456556683
A103: 2013-04-01 | B103: ASFALTOS DILUÍDOS CM-30 | C103: Pará | D103: -
A104: 2013-04-01 | B104: ASFALTOS DILUÍDOS CM-30 | C104: Paraíba | D104: -
A105: 2013-04-01 | B105: ASFALTOS DILUÍDOS CM-30 | C105: Paraná | D105: 1.534419498
A106: 2013-04-01 | B106: ASFALTOS DILUÍDOS CM-30 | C106: Pernambuco | D106: -
A107: 2013-04-01 | B107: ASFALTOS DILUÍDOS CM-30 | C107: Piauí | D107: -
A108: 2013-04-01 | B108: ASFALTOS DILUÍDOS CM-30 | C108: Rio de Janeiro | D108: 1.418419516
A109: 2013-04-01 | B109: ASFALTOS DILUÍDOS CM-30 | C109: Rio Grande do Norte | D109: -
A110: 2013-04-01 | B110: ASFALTOS DILUÍDOS CM-30 | C110: Rio Grande do Sul | D110: 1.572582456
A111: 2013-04-01 | B111: ASFALTOS DILUÍDOS CM-30 | C111: Rondônia | D111: -
A112: 2013-04-01 | B112: ASFALTOS DILUÍDOS CM-30 | C112: Roraima | D112: -
A113: 2013-04-01 | B113: ASFALTOS DILUÍDOS CM-30 | C113: Santa Catarina | D113: -
A114: 2013-04-01 | B114: ASFALTOS DILUÍDOS CM-30 | C114: São Paulo | D114: 1.475764348
A115: 2013-04-01 | B115: ASFALTOS DILUÍDOS CM-30 | C115: Sergipe | D115: -
A116: 2013-04-01 | B116: ASFALTOS DILUÍDOS CM-30 | C116: Tocantins | D116: -
A117: 2013-05-01 | B117: ASFALTOS DILUÍDOS CM-30 | C117: Acre | D117: -
A118: 2013-05-01 | B118: ASFALTOS DILUÍDOS CM-30 | C118: Alagoas | D118: -
A119: 2013-05-01 | B119: ASFALTOS DILUÍDOS CM-30 | C119: Amapá | D119: -
A120: 2013-05-01 | B120: ASFALTOS DILUÍDOS CM-30 | C120: Amazonas | D120: -
A121: 2013-05-01 | B121: ASFALTOS DILUÍDOS CM-30 | C121: Bahia | D121: 1.492587424
A122: 2013-05-01 | B122: ASFALTOS DILUÍDOS CM-30 | C122: Ceará | D122: 1.376263021
A123: 2013-05-01 | B123: ASFALTOS DILUÍDOS CM-30 | C123: Distrito Federal | D123: -
A124: 2013-05-01 | B124: ASFALTOS DILUÍDOS CM-30 | C124: Espírito Santo | D124: -
A125: 2013-05-01 | B125: ASFALTOS DILUÍDOS CM-30 | C125: Goiás | D125: 1.668214819
A126: 2013-05-01 | B126: ASFALTOS DILUÍDOS CM-30 | C126: Maranhão | D126: -
A127: 2013-05-01 | B127: ASFALTOS DILUÍDOS CM-30 | C127: Mato Grosso | D127: 1.903098159
A128: 2013-05-01 | B128: ASFALTOS DILUÍDOS CM-30 | C128: Mato Grosso do Sul | D128: -
A129: 2013-05-01 | B129: ASFALTOS DILUÍDOS CM-30 | C129: Minas Gerais | D129: 1.464709716
A130: 2013-05-01 | B130: ASFALTOS DILUÍDOS CM-30 | C130: Pará | D130: -
A131: 2013-05-01 | B131: ASFALTOS DILUÍDOS CM-30 | C131: Paraíba | D131: -
A132: 2013-05-01 | B132: ASFALTOS DILUÍDOS CM-30 | C132: Paraná | D132: 1.489027849
A133: 2013-05-01 | B133: ASFALTOS DILUÍDOS CM-30 | C133: Pernambuco | D133: -
A134: 2013-05-01 | B134: ASFALTOS DILUÍDOS CM-30 | C134: Piauí | D134: -
A135: 2013-05-01 | B135: ASFALTOS DILUÍDOS CM-30 | C135: Rio de Janeiro | D135: 1.399256048
A136: 2013-05-01 | B136: ASFALTOS DILUÍDOS CM-30 | C136: Rio Grande do Norte | D136: -
A137: 2013-05-01 | B137: ASFALTOS DILUÍDOS CM-30 | C137: Rio Grande do Sul | D137: 1.539636961
A138: 2013-05-01 | B138: ASFALTOS DILUÍDOS CM-30 | C138: Rondônia | D138: -
A139: 2013-05-01 | B139: ASFALTOS DILUÍDOS CM-30 | C139: Roraima | D139: -
A140: 2013-05-01 | B140: ASFALTOS DILUÍDOS CM-30 | C140: Santa Catarina | D140: -
A141: 2013-05-01 | B141: ASFALTOS DILUÍDOS CM-30 | C141: São Paulo | D141: 1.451215936
A142: 2013-05-01 | B142: ASFALTOS DILUÍDOS CM-30 | C142: Sergipe | D142: -
A143: 2013-05-01 | B143: ASFALTOS DILUÍDOS CM-30 | C143: Tocantins | D143: -
A144: 2013-06-01 | B144: ASFALTOS DILUÍDOS CM-30 | C144: Acre | D144: -
A145: 2013-06-01 | B145: ASFALTOS DILUÍDOS CM-30 | C145: Alagoas | D145: -
A146: 2013-06-01 | B146: ASFALTOS DILUÍDOS CM-30 | C146: Amapá | D146: -
A147: 2013-06-01 | B147: ASFALTOS DILUÍDOS CM-30 | C147: Amazonas | D147: 1.586325818
A148: 2013-06-01 | B148: ASFALTOS DILUÍDOS CM-30 | C148: Bahia | D148: 1.44812907
A149: 2013-06-01 | B149: ASFALTOS DILUÍDOS CM-30 | C149: Ceará | D149: 1.382700989
A150: 2013-06-01 | B150: ASFALTOS DILUÍDOS CM-30 | C150: Distrito Federal | D150: -
A151: 2013-06-01 | B151: ASFALTOS DILUÍDOS CM-30 | C151: Espírito Santo | D151: -
A152: 2013-06-01 | B152: ASFALTOS DILUÍDOS CM-30 | C152: Goiás | D152: 1.699613867
A153: 2013-06-01 | B153: ASFALTOS DILUÍDOS CM-30 | C153: Maranhão | D153: -
A154: 2013-06-01 | B154: ASFALTOS DILUÍDOS CM-30 | C154: Mato Grosso | D154: 1.915975658
A155: 2013-06-01 | B155: ASFALTOS DILUÍDOS CM-30 | C155: Mato Grosso do Sul | D155: -
A156: 2013-06-01 | B156: ASFALTOS DILUÍDOS CM-30 | C156: Minas Gerais | D156: 1.475366896
A157: 2013-06-01 | B157: ASFALTOS DILUÍDOS CM-30 | C157: Pará | D157: -
A158: 2013-06-01 | B158: ASFALTOS DILUÍDOS CM-30 | C158: Paraíba | D158: -
A159: 2013-06-01 | B159: ASFALTOS DILUÍDOS CM-30 | C159: Paraná | D159: 1.432166974
A160: 2013-06-01 | B160: ASFALTOS DILUÍDOS CM-30 | C160: Pernambuco | D160: -
A161: 2013-06-01 | B161: ASFALTOS DILUÍDOS CM-30 | C161: Piauí | D161: -
A162: 2013-06-01 | B162: ASFALTOS DILUÍDOS CM-30 | C162: Rio de Janeiro | D162: 1.527420226
A163: 2013-06-01 | B163: ASFALTOS DILUÍDOS CM-30 | C163: Rio Grande do Norte | D163: -
A164: 2013-06-01 | B164: ASFALTOS DILUÍDOS CM-30 | C164: Rio Grande do Sul | D164: 1.59868349
A165: 2013-06-01 | B165: ASFALTOS DILUÍDOS CM-30 | C165: Rondônia | D165: -
A166: 2013-06-01 | B166: ASFALTOS DILUÍDOS CM-30 | C166: Roraima | D166: -
A167: 2013-06-01 | B167: ASFALTOS DILUÍDOS CM-30 | C167: Santa Catarina | D167: -
A168: 2013-06-01 | B168: ASFALTOS DILUÍDOS CM-30 | C168: São Paulo | D168: 1.432748187
A169: 2013-06-01 | B169: ASFALTOS DILUÍDOS CM-30 | C169: Sergipe | D169: -
A170: 2013-06-01 | B170: ASFALTOS DILUÍDOS CM-30 | C170: Tocantins | D170: -
A171: 2013-07-01 | B171: ASFALTOS DILUÍDOS CM-30 | C171: Acre | D171: -
A172: 2013-07-01 | B172: ASFALTOS DILUÍDOS CM-30 | C172: Alagoas | D172: -
A173: 2013-07-01 | B173: ASFALTOS DILUÍDOS CM-30 | C173: Amapá | D173: -
A174: 2013-07-01 | B174: ASFALTOS DILUÍDOS CM-30 | C174: Amazonas | D174: 1.509890931
A175: 2013-07-01 | B175: ASFALTOS DILUÍDOS CM-30 | C175: Bahia | D175: 1.436150016
A176: 2013-07-01 | B176: ASFALTOS DILUÍDOS CM-30 | C176: Ceará | D176: 1.424835845
A177: 2013-07-01 | B177: ASFALTOS DILUÍDOS CM-30 | C177: Distrito Federal | D177: -
A178: 2013-07-01 | B178: ASFALTOS DILUÍDOS CM-30 | C178: Espírito Santo | D178: -
A179: 2013-07-01 | B179: ASFALTOS DILUÍDOS CM-30 | C179: Goiás | D179: 1.663778454
A180: 2013-07-01 | B180: ASFALTOS DILUÍDOS CM-30 | C180: Maranhão | D180: -
A181: 2013-07-01 | B181: ASFALTOS DILUÍDOS CM-30 | C181: Mato Grosso | D181: 1.930589551
A182: 2013-07-01 | B182: ASFALTOS DILUÍDOS CM-30 | C182: Mato Grosso do Sul | D182: -
A183: 2013-07-01 | B183: ASFALTOS DILUÍDOS CM-30 | C183: Minas Gerais | D183: 1.476572352
A184: 2013-07-01 | B184: ASFALTOS DILUÍDOS CM-30 | C184: Pará | D184: -
A185: 2013-07-01 | B185: ASFALTOS DILUÍDOS CM-30 | C185: Paraíba | D185: -
A186: 2013-07-01 | B186: ASFALTOS DILUÍDOS CM-30 | C186: Paraná | D186: 1.477167274
A187: 2013-07-01 | B187: ASFALTOS DILUÍDOS CM-30 | C187: Pernambuco | D187: -
A188: 2013-07-01 | B188: ASFALTOS DILUÍDOS CM-30 | C188: Piauí | D188: -
A189: 2013-07-01 | B189: ASFALTOS DILUÍDOS CM-30 | C189: Rio de Janeiro | D189: 1.584464713
A190: 2013-07-01 | B190: ASFALTOS DILUÍDOS CM-30 | C190: Rio Grande do Norte | D190: -
A191: 2013-07-01 | B191: ASFALTOS DILUÍDOS CM-30 | C191: Rio Grande do Sul | D191: 1.612487925
A192: 2013-07-01 | B192: ASFALTOS DILUÍDOS CM-30 | C192: Rondônia | D192: -
A193: 2013-07-01 | B193: ASFALTOS DILUÍDOS CM-30 | C193: Roraima | D193: -
A194: 2013-07-01 | B194: ASFALTOS DILUÍDOS CM-30 | C194: Santa Catarina | D194: -
A195: 2013-07-01 | B195: ASFALTOS DILUÍDOS CM-30 | C195: São Paulo | D195: 1.507844909
A196: 2013-07-01 | B196: ASFALTOS DILUÍDOS CM-30 | C196: Sergipe | D196: -
A197: 2013-07-01 | B197: ASFALTOS DILUÍDOS CM-30 | C197: Tocantins | D197: -
A198: 2013-08-01 | B198: ASFALTOS DILUÍDOS CM-30 | C198: Acre | D198: -
A199: 2013-08-01 | B199: ASFALTOS DILUÍDOS CM-30 | C199: Alagoas | D199: -
A200: 2013-08-01 | B200: ASFALTOS DILUÍDOS CM-30 | C200: Amapá | D200: -
A201: 2013-08-01 | B201: ASFALTOS DILUÍDOS CM-30 | C201: Amazonas | D201: 1.509275641
A202: 2013-08-01 | B202: ASFALTOS DILUÍDOS CM-30 | C202: Bahia | D202: 1.416699323
A203: 2013-08-01 | B203: ASFALTOS DILUÍDOS CM-30 | C203: Ceará | D203: 1.447403364
... 4297 more rows

Sheet ANP REGIÃO
A1: Agência Nacional do Petróleo, Gás Natural e Biocombustíveis
A2: Superintendência de Defesa da Concorrência
A6: PREÇO MÉDIO MENSAL PONDERADO PRATICADO PELOS DISTRIBUIDORES DE PRODUTOS ASFÁLTICOS (R$/KG)
A8: Produto | B8: Mês | C8: Norte | D8: Nordeste | E8: Centro-Oeste | F8: Sudeste | G8: Sul | H8: Brasil
A9: ASFALTOS DILUÍDOS CM-30 | B9: 2008-11-01 | C9: 1.775468292 | D9: 1.55087853 | E9: 2.022143291 | F9: 1.55449367 | G9: 1.584532899 | H9: 1.64286837
A10: ASFALTOS DILUÍDOS CM-30 | B10: 2008-12-01 | C10: 1.806837667 | D10: 1.509118192 | E10: 2.013020124 | F10: 1.610902223 | G10: 1.607187591 | H10: 1.637581471
A11: ASFALTOS DILUÍDOS CM-30 | B11: 2009-01-01 | C11: 1.497052858 | D11: 1.504296346 | E11: 1.963097671 | F11: 1.524672247 | G11: 1.585137209 | H11: 1.564945876
A12: ASFALTOS DILUÍDOS CM-30 | B12: 2009-02-01 | C12: 1.42787112 | D12: 1.497693283 | E12: 1.981065098 | F12: 1.583490231 | G12: 1.595924062 | H12: 1.565451036
A13: ASFALTOS DILUÍDOS CM-30 | B13: 2009-03-01 | C13: 1.404941405 | D13: 1.497647987 | E13: 1.893430263 | F13: 1.52754782 | G13: 1.588720029 | H13: 1.532713147
A14: ASFALTOS DILUÍDOS CM-30 | B14: 2009-04-01 | C14: 1.410510748 | D14: 1.484826261 | E14: 1.909226429 | F14: 1.464149371 | G14: 1.553831928 | H14: 1.516717648
A15: ASFALTOS DILUÍDOS CM-30 | B15: 2009-05-01 | C15: 1.480355678 | D15: 1.466898928 | E15: 1.891590435 | F15: 1.435443718 | G15: 1.54161118 | H15: 1.537574371
A16: ASFALTOS DILUÍDOS CM-30 | B16: 2009-06-01 | C16: 1.580751039 | D16: 1.444888837 | E16: 1.842074119 | F16: 1.424264315 | G16: 1.501526696 | H16: 1.541315575
A17: ASFALTOS DILUÍDOS CM-30 | B17: 2009-07-01 | C17: 1.905432476 | D17: 1.482618211 | E17: 1.949046345 | F17: 1.584435299 | G17: 1.610310436 | H17: 1.651032523
A18: ASFALTOS DILUÍDOS CM-30 | B18: 2009-08-01 | C18: 1.716995184 | D18: 1.423854915 | E18: 1.712385478 | F18: 1.418000805 | G18: 1.520643497 | H18: 1.504911469
A19: ASFALTOS DILUÍDOS CM-30 | B19: 2009-09-01 | C19: 1.64329494 | D19: 1.445317761 | E19: 1.731518803 | F19: 1.419374251 | G19: 1.500735895 | H19: 1.50552312
A20: ASFALTOS DILUÍDOS CM-30 | B20: 2009-10-01 | C20: 1.588031924 | D20: 1.458932649 | E20: 1.762015056 | F20: 1.429024419 | G20: 1.513753831 | H20: 1.511681904
A21: ASFALTOS DILUÍDOS CM-30 | B21: 2009-11-01 | C21: 1.639348604 | D21: 1.449059777 | E21: 1.772650817 | F21: 1.434122677 | G21: 1.526043188 | H21: 1.499657392
A22: ASFALTOS DILUÍDOS CM-30 | B22: 2009-12-01 | C22: 1.664266853 | D22: 1.441966636 | E22: 1.890574802 | F22: 1.429077727 | G22: 1.520539334 | H22: 1.508864598
A23: ASFALTOS DILUÍDOS CM-30 | B23: 2010-01-01 | C23: 1.842506144 | D23: 1.454977129 | E23: 1.865022447 | F23: 1.414817608 | G23: 1.474450765 | H23: 1.497735227
A24: ASFALTOS DILUÍDOS CM-30 | B24: 2010-02-01 | C24: 1.709886915 | D24: 1.442956487 | E24: 1.919844741 | F24: 1.433146251 | G24: 1.500882448 | H24: 1.496542251
A25: ASFALTOS DILUÍDOS CM-30 | B25: 2010-03-01 | C25: 1.535743416 | D25: 1.448880499 | E25: 1.935062728 | F25: 1.435026116 | G25: 1.480618635 | H25: 1.486789802
A26: ASFALTOS DILUÍDOS CM-30 | B26: 2010-04-01 | C26: 1.710046479 | D26: 1.440300254 | E26: 1.911935961 | F26: 1.421102153 | G26: 1.481270937 | H26: 1.511086431
A27: ASFALTOS DILUÍDOS CM-30 | B27: 2010-05-01 | C27: 1.755610465 | D27: 1.435277221 | E27: 1.873293889 | F27: 1.406944432 | G27: 1.48177605 | H27: 1.537170565
A28: ASFALTOS DILUÍDOS CM-30 | B28: 2010-06-01 | C28: 1.602224314 | D28: 1.396004336 | E28: 1.731734721 | F28: 1.399996227 | G28: 1.49193962 | H28: 1.498073418
A29: ASFALTOS DILUÍDOS CM-30 | B29: 2010-07-01 | C29: 1.559901627 | D29: 1.381016708 | E29: 1.732688214 | F29: 1.402904856 | G29: 1.473854427 | H29: 1.490075269
A30: ASFALTOS DILUÍDOS CM-30 | B30: 2010-08-01 | C30: 1.526639389 | D30: 1.38817836 | E30: 1.738946087 | F30: 1.398751236 | G30: 1.455749849 | H30: 1.495828516
A31: ASFALTOS DILUÍDOS CM-30 | B31: 2010-09-01 | C31: 1.565378829 | D31: 1.408204664 | E31: 1.757027378 | F31: 1.411642875 | G31: 1.487257745 | H31: 1.512257128
A32: ASFALTOS DILUÍDOS CM-30 | B32: 2010-10-01 | C32: 1.481711294 | D32: 1.404357715 | E32: 1.751159947 | F32: 1.403489437 | G32: 1.469340847 | H32: 1.49988826
A33: ASFALTOS DILUÍDOS CM-30 | B33: 2010-11-01 | C33: 1.519267672 | D33: 1.410130904 | E33: 1.779405625 | F33: 1.421283822 | G33: 1.458559112 | H33: 1.481658635
A34: ASFALTOS DILUÍDOS CM-30 | B34: 2010-12-01 | C34: 1.559287556 | D34: 1.40982051 | E34: 1.825185618 | F34: 1.417673572 | G34: 1.473243884 | H34: 1.469113031
A35: ASFALTOS DILUÍDOS CM-30 | B35: 2011-01-01 | C35: 1.525923305 | D35: 1.445794092 | E35: 1.774600924 | F35: 1.403274235 | G35: 1.466002814 | H35: 1.457256066
A36: ASFALTOS DILUÍDOS CM-30 | B36: 2011-02-01 | C36: 1.552825112 | D36: 1.392094259 | E36: 1.763836123 | F36: 1.385194937 | G36: 1.44955884 | H36: 1.426250478
A37: ASFALTOS DILUÍDOS CM-30 | B37: 2011-03-01 | C37: 1.469219693 | D37: 1.369442916 | E37: 1.696017922 | F37: 1.353812804 | G37: 1.435170694 | H37: 1.400130249
A38: ASFALTOS DILUÍDOS CM-30 | B38: 2011-04-01 | C38: 1.470570262 | D38: 1.373220492 | E38: 1.650829394 | F38: 1.345928103 | G38: 1.42199894 | H38: 1.400493522
A39: ASFALTOS DILUÍDOS CM-30 | B39: 2011-05-01 | C39: 1.428528955 | D39: 1.322646267 | E39: 1.700380913 | F39: 1.345068163 | G39: 1.439361431 | H39: 1.428058019
A40: ASFALTOS DILUÍDOS CM-30 | B40: 2011-06-01 | C40: 1.407622163 | D40: 1.305708657 | E40: 1.741843669 | F40: 1.354620495 | G40: 1.399501693 | H40: 1.44029982
A41: ASFALTOS DILUÍDOS CM-30 | B41: 2011-07-01 | C41: 1.259234065 | D41: 1.312033305 | E41: 1.737489696 | F41: 1.33656388 | G41: 1.422474887 | H41: 1.420839252
A42: ASFALTOS DILUÍDOS CM-30 | B42: 2011-08-01 | C42: 1.470680061 | D42: 1.299778765 | E42: 1.727443485 | F42: 1.341477821 | G42: 1.353018352 | H42: 1.425675534
A43: ASFALTOS DILUÍDOS CM-30 | B43: 2011-09-01 | C43: 1.56132872 | D43: 1.321196084 | E43: 1.729821548 | F43: 1.357451483 | G43: 1.395684798 | H43: 1.455202413
A44: ASFALTOS DILUÍDOS CM-30 | B44: 2011-10-01 | C44: 1.520569722 | D44: 1.326218736 | E44: 1.71738046 | F44: 1.332691392 | G44: 1.3577774 | H44: 1.442295871
A45: ASFALTOS DILUÍDOS CM-30 | B45: 2011-11-01 | C45: 1.465886334 | D45: 1.337041154 | E45: 1.741004886 | F45: 1.345486103 | G45: 1.447580565 | H45: 1.445354137
A46: ASFALTOS DILUÍDOS CM-30 | B46: 2011-12-01 | C46: 1.470883899 | D46: 1.335587636 | E46: 1.778724141 | F46: 1.408293068 | G46: 1.428112306 | H46: 1.422418604
A47: ASFALTOS DILUÍDOS CM-30 | B47: 2012-01-01 | C47: 1.384955015 | D47: 1.350130156 | E47: 1.780783883 | F47: 1.421354107 | G47: 1.430352474 | H47: 1.394658167
A48: ASFALTOS DILUÍDOS CM-30 | B48: 2012-02-01 | C48: 1.332181678 | D48: 1.368143891 | E48: 1.741020394 | F48: 1.400200985 | G48: 1.425400986 | H48: 1.410605707
A49: ASFALTOS DILUÍDOS CM-30 | B49: 2012-03-01 | C49: 1.411621867 | D49: 1.349122214 | E49: 1.620096006 | F49: 1.393295764 | G49: 1.406130569 | H49: 1.409768786
A50: ASFALTOS DILUÍDOS CM-30 | B50: 2012-04-01 | C50: 1.549007912 | D50: 1.383976456 | E50: 1.640712752 | F50: 1.404716397 | G50: 1.440617793 | H50: 1.45608482
A51: ASFALTOS DILUÍDOS CM-30 | B51: 2012-05-01 | C51: 1.596178941 | D51: 1.386362272 | E51: 1.712061183 | F51: 1.39923955 | G51: 1.448350887 | H51: 1.498461969
A52: ASFALTOS DILUÍDOS CM-30 | B52: 2012-06-01 | C52: 1.701432576 | D52: 1.388053518 | E52: 1.740352007 | F52: 1.422118749 | G52: 1.449196072 | H52: 1.527722717
A53: ASFALTOS DILUÍDOS CM-30 | B53: 2012-07-01 | C53: 1.652026742 | D53: 1.39436857 | E53: 1.718644846 | F53: 1.439670261 | G53: 1.46187567 | H53: 1.523069159
A54: ASFALTOS DILUÍDOS CM-30 | B54: 2012-08-01 | C54: 1.689998835 | D54: 1.40333785 | E54: 1.741895041 | F54: 1.421723369 | G54: 1.445685799 | H54: 1.536533078
A55: ASFALTOS DILUÍDOS CM-30 | B55: 2012-09-01 | C55: 1.690177972 | D55: 1.421500003 | E55: 1.780920724 | F55: 1.445180432 | G55: 1.483645866 | H55: 1.549410653
A56: ASFALTOS DILUÍDOS CM-30 | B56: 2012-10-01 | C56: 1.574840342 | D56: 1.417066109 | E56: 1.794832036 | F56: 1.451304526 | G56: 1.482037109 | H56: 1.550631802
A57: ASFALTOS DILUÍDOS CM-30 | B57: 2012-11-01 | C57: 1.655163526 | D57: 1.455878748 | E57: 1.840129766 | F57: 1.461204615 | G57: 1.483499722 | H57: 1.552500776
A58: ASFALTOS DILUÍDOS CM-30 | B58: 2012-12-01 | C58: 1.714876125 | D58: 1.435854741 | E58: 1.804066573 | F58: 1.45222765 | G58: 1.509417648 | H58: 1.523411999
A59: ASFALTOS DILUÍDOS CM-30 | B59: 2013-01-01 | C59: 1.495776335 | D59: 1.449494588 | E59: 1.854050525 | F59: 1.44638752 | G59: 1.563753675 | H59: 1.502137259
A60: ASFALTOS DILUÍDOS CM-30 | B60: 2013-02-01 | C60: 1.635067666 | D60: 1.420609638 | E60: 1.731071498 | F60: 1.442746356 | G60: 1.461828405 | H60: 1.4739561
A61: ASFALTOS DILUÍDOS CM-30 | B61: 2013-03-01 | C61: 1.646229098 | D61: 1.413299983 | E61: 1.83828087 | F61: 1.450015152 | G61: 1.525760413 | H61: 1.506542904
A62: ASFALTOS DILUÍDOS CM-30 | B62: 2013-04-01 | C62: 1.581864474 | D62: 1.399189564 | E62: 1.793825113 | F62: 1.458704755 | G62: 1.551913702 | H62: 1.523623636
A63: ASFALTOS DILUÍDOS CM-30 | B63: 2013-05-01 | C63: 1.815646773 | D63: 1.390143517 | E63: 1.812783313 | F63: 1.44951052 | G63: 1.504233457 | H63: 1.549918592
A64: ASFALTOS DILUÍDOS CM-30 | B64: 2013-06-01 | C64: 1.631101583 | D64: 1.383186536 | E64: 1.816642105 | F64: 1.474232641 | G64: 1.503043689 | H64: 1.581049429
A65: ASFALTOS DILUÍDOS CM-30 | B65: 2013-07-01 | C65: 1.86596563 | D65: 1.422051117 | E65: 1.793072753 | F65: 1.498018808 | G65: 1.533391901 | H65: 1.59880513
A66: ASFALTOS DILUÍDOS CM-30 | B66: 2013-08-01 | C66: 1.700325546 | D66: 1.435094415 | E66: 1.821452614 | F66: 1.511722868 | G66: 1.530793596 | H66: 1.606176585
A67: ASFALTOS DILUÍDOS CM-30 | B67: 2013-09-01 | C67: 1.562873733 | D67: 1.472197748 | E67: 1.879842712 | F67: 1.542652867 | G67: 1.490667543 | H67: 1.627945893
A68: ASFALTOS DILUÍDOS CM-30 | B68: 2013-10-01 | C68: 1.648504013 | D68: 1.472152345 | E68: 1.825494997 | F68: 1.501177682 | G68: 1.48378912 | H68: 1.597538775
A69: ASFALTOS DILUÍDOS CM-30 | B69: 2013-11-01 | C69: 1.619179062 | D69: 1.486413317 | E69: 1.844012679 | F69: 1.496326809 | G69: 1.506096878 | H69: 1.581665844
A70: ASFALTOS DILUÍDOS CM-30 | B70: 2013-12-01 | C70: 1.633358293 | D70: 1.494818097 | E70: 1.897197176 | F70: 1.502864538 | G70: 1.517074296 | H70: 1.572475244
A71: ASFALTOS DILUÍDOS CM-30 | B71: 2014-01-01 | C71: 1.688311265 | D71: 1.494181305 | E71: 1.798355903 | F71: 1.484202293 | G71: 1.533353813 | H71: 1.542909737
A72: ASFALTOS DILUÍDOS CM-30 | B72: 2014-02-01 | C72: 1.598304434 | D72: 1.479706587 | E72: 1.814390215 | F72: 1.514829392 | G72: 1.522800588 | H72: 1.528970287
A73: ASFALTOS DILUÍDOS CM-30 | B73: 2014-03-01 | C73: 1.648287687 | D73: 1.472852501 | E73: 1.76657319 | F73: 1.513020673 | G73: 1.506185248 | H73: 1.530181178
A74: ASFALTOS DILUÍDOS CM-30 | B74: 2014-04-01 | C74: 1.534459987 | D74: 1.493898767 | E74: 1.757271278 | F74: 1.533021309 | G74: 1.524275274 | H74: 1.550566305
A75: ASFALTOS DILUÍDOS CM-30 | B75: 2014-05-01 | C75: 1.58658327 | D75: 1.490834685 | E75: 1.804339251 | F75: 1.501138131 | G75: 1.567043824 | H75: 1.586452272
A76: ASFALTOS DILUÍDOS CM-30 | B76: 2014-06-01 | C76: 1.658277164 | D76: 1.505801121 | E76: 1.839593445 | F76: 1.5068632 | G76: 1.523776953 | H76: 1.636070702
A77: ASFALTOS DILUÍDOS CM-30 | B77: 2014-07-01 | C77: 1.890299542 | D77: 1.500730514 | E77: 1.708277865 | F77: 1.487293964 | G77: 1.505956069 | H77: 1.587065158
A78: ASFALTOS DILUÍDOS CM-30 | B78: 2014-08-01 | C78: 1.632741832 | D78: 1.501945324 | E78: 1.671203189 | F78: 1.482359341 | G78: 1.506327366 | H78: 1.557910377
A79: ASFALTOS DILUÍDOS CM-30 | B79: 2014-09-01 | C79: 1.66956717 | D79: 1.546830427 | E79: 1.864797016 | F79: 1.496764585 | G79: 1.570533242 | H79: 1.639281057
A80: ASFALTOS DILUÍDOS CM-30 | B80: 2014-10-01 | C80: 1.742876916 | D80: 1.508978569 | E80: 1.746650466 | F80: 1.470773645 | G80: 1.454273462 | H80: 1.57912022
A81: ASFALTOS DILUÍDOS CM-30 | B81: 2014-11-01 | C81: 1.864723419 | D81: 1.57943059 | E81: 1.749156218 | F81: 1.465084479 | G81: 1.529147988 | H81: 1.601359821
A82: ASFALTOS DILUÍDOS CM-30 | B82: 2014-12-01 | C82: 1.812671914 | D82: 1.704844348 | E82: 1.963310066 | F82: 1.623676702 | G82: 1.649644659 | H82: 1.718826981
A83: ASFALTOS DILUÍDOS CM-30 | B83: 2015-01-01 | C83: 2.154807062 | D83: 2.023760447 | E83: 2.318863736 | F83: 1.866588967 | G83: 1.898380434 | H83: 2.007792032
A84: ASFALTOS DILUÍDOS CM-30 | B84: 2015-02-01 | C84: 2.260238625 | D84: 2.005673765 | E84: 2.393875762 | F84: 1.854519766 | G84: 1.927395107 | H84: 2.007653781
A85: ASFALTOS DILUÍDOS CM-30 | B85: 2015-03-01 | C85: 2.124176462 | D85: 1.968822849 | E85: 2.279643254 | F85: 1.887760911 | G85: 1.930217145 | H85: 1.984816916
A86: ASFALTOS DILUÍDOS CM-30 | B86: 2015-04-01 | C86: 2.030049505 | D86: 2.001506448 | E86: 2.379118903 | F86: 1.85245167 | G86: 1.949025254 | H86: 1.98064321
A87: ASFALTOS DILUÍDOS CM-30 | B87: 2015-05-01 | C87: 2.507271651 | D87: 1.946869908 | E87: 2.254758192 | F87: 1.807470001 | G87: 2.016929536 | H87: 2.005474234
A88: ASFALTOS DILUÍDOS CM-30 | B88: 2015-06-01 | C88: 2.248320042 | D88: 1.944259736 | E88: 2.314331796 | F88: 1.846998595 | G88: 1.968565125 | H88: 2.042581344
A89: ASFALTOS DILUÍDOS CM-30 | B89: 2015-07-01 | C89: 1.992222758 | D89: 1.992791635 | E89: 2.046769953 | F89: 1.782648603 | G89: 1.931671385 | H89: 1.942627362
A90: ASFALTOS DILUÍDOS CM-30 | B90: 2015-08-01 | C90: 2.307605931 | D90: 2.038089127 | E90: 2.252748105 | F90: 1.828097705 | G90: 1.939824481 | H90: 2.08193616
A91: ASFALTOS DILUÍDOS CM-30 | B91: 2015-09-01 | C91: 2.314289704 | D91: 2.095307531 | E91: 2.344561987 | F91: 1.942551091 | G91: 2.005352614 | H91: 2.168175541
A92: ASFALTOS DILUÍDOS CM-30 | B92: 2015-10-01 | C92: 2.329456663 | D92: 2.170570012 | E92: 2.43273012 | F92: 2.035624751 | G92: 2.110261148 | H92: 2.237533782
A93: ASFALTOS DILUÍDOS CM-30 | B93: 2015-11-01 | C93: 2.606056566 | D93: 2.437098304 | E93: 2.711612141 | F93: 2.280113896 | G93: 2.326446297 | H93: 2.474998781
A94: ASFALTOS DILUÍDOS CM-30 | B94: 2015-12-01 | C94: 2.635374006 | D94: 2.395920309 | E94: 2.693528386 | F94: 2.272528129 | G94: 2.330740659 | H94: 2.452848156
A95: ASFALTOS DILUÍDOS CM-30 | B95: 2016-01-01 | C95: 2.715863993 | D95: 2.373861647 | E95: 2.844670602 | F95: 2.263650658 | G95: 2.232631691 | H95: 2.400563394
A96: ASFALTOS DILUÍDOS CM-30 | B96: 2016-02-01 | C96: 2.80468316 | D96: 2.466846816 | E96: 2.791787007 | F96: 2.295637115 | G96: 2.346556173 | H96: 2.464348548
A97: ASFALTOS DILUÍDOS CM-30 | B97: 2016-03-01 | C97: 2.5805021 | D97: 2.470678753 | E97: 2.707688025 | F97: 2.235301999 | G97: 2.383115972 | H97: 2.423563924
A98: ASFALTOS DILUÍDOS CM-30 | B98: 2016-04-01 | C98: 2.942006312 | D98: 2.740742032 | E98: 2.759071855 | F98: 2.544439178 | G98: 2.710751632 | H98: 2.680274833
A99: ASFALTOS DILUÍDOS CM-30 | B99: 2016-05-01 | C99: 3.010579472 | D99: 2.650277047 | E99: 2.857121361 | F99: 2.575583152 | G99: 2.770413362 | H99: 2.70973327
A100: ASFALTOS DILUÍDOS CM-30 | B100: 2016-06-01 | C100: 2.909179844 | D100: 2.621385041 | E100: 2.943487281 | F100: 2.659109515 | G100: 2.684759555 | H100: 2.743619517
A101: ASFALTOS DILUÍDOS CM-30 | B101: 2016-07-01 | C101: 2.985740381 | D101: 2.591644045 | E101: 2.98927803 | F101: 2.604396599 | G101: 2.660884423 | H101: 2.745135539
A102: ASFALTOS DILUÍDOS CM-30 | B102: 2016-08-01 | C102: 2.935243919 | D102: 2.623917329 | E102: 2.970490854 | F102: 2.679486504 | G102: 2.727025649 | H102: 2.781385962
A103: ASFALTOS DILUÍDOS CM-30 | B103: 2016-09-01 | C103: 2.649136821 | D103: 2.521054851 | E103: 2.781583925 | F103: 2.51393313 | G103: 2.371271501 | H103: 2.595617128
A104: ASFALTOS DILUÍDOS CM-30 | B104: 2016-10-01 | C104: 2.626109257 | D104: 2.444469093 | E104: 2.781617873 | F104: 2.507383127 | G104: 2.38325399 | H104: 2.566999037
A105: ASFALTOS DILUÍDOS CM-30 | B105: 2016-11-01 | C105: 2.535087408 | D105: 2.374145527 | E105: 2.952768674 | F105: 2.481263765 | G105: 2.382206771 | H105: 2.542842366
A106: ASFALTOS DILUÍDOS CM-30 | B106: 2016-12-01 | C106: 2.50039107 | D106: 2.253413483 | E106: 3.038519458 | F106: 2.589438892 | G106: 2.395593424 | H106: 2.476439295
A107: ASFALTOS DILUÍDOS CM-30 | B107: 2017-01-01 | C107: 2.392875504 | D107: 2.232695674 | E107: 3.089080971 | F107: 2.535744039 | G107: 2.378694833 | H107: 2.374216192
A108: ASFALTOS DILUÍDOS CM-30 | B108: 2017-02-01 | C108: 2.68039414 | D108: 2.271897225 | E108: 2.764408032 | F108: 2.573933685 | G108: 2.384644398 | H108: 2.470721466
A109: ASFALTOS DILUÍDOS CM-30 | B109: 2017-03-01 | C109: 2.23884121 | D109: 2.386958079 | E109: 2.667220252 | F109: 2.372165947 | G109: 2.30121887 | H109: 2.378796986
A110: ASFALTOS DILUÍDOS CM-30 | B110: 2017-04-01 | C110: 2.420191398 | D110: 2.307969596 | E110: 2.794093014 | F110: 2.258409912 | G110: 2.256434297 | H110: 2.380268484
A111: ASFALTOS DILUÍDOS CM-30 | B111: 2017-05-01 | C111: 2.432106692 | D111: 2.167919128 | E111: 2.699836936 | F111: 2.255387192 | G111: 2.204026958 | H111: 2.361515909
A112: ASFALTOS DILUÍDOS CM-30 | B112: 2017-06-01 | C112: 2.428301776 | D112: 2.181938689 | E112: 2.756672055 | F112: 2.234549022 | G112: 2.305778546 | H112: 2.44553453
A113: ASFALTOS DILUÍDOS CM-30 | B113: 2017-07-01 | C113: 2.453752061 | D113: 2.218075334 | E113: 2.694625022 | F113: 2.414329247 | G113: 2.269601102 | H113: 2.473436106
A114: ASFALTOS DILUÍDOS CM-30 | B114: 2017-08-01 | C114: 2.447930976 | D114: 2.153112031 | E114: 2.595349952 | F114: 2.302919065 | G114: 2.170148667 | H114: 2.380876423
A115: ASFALTOS DILUÍDOS CM-30 | B115: 2017-09-01 | C115: 2.494551504 | D115: 2.14243989 | E115: 2.623166503 | F115: 2.371308095 | G115: 2.303698507 | H115: 2.393542204
A116: ASFALTOS DILUÍDOS CM-30 | B116: 2017-10-01 | C116: 2.349953944 | D116: 2.18056004 | E116: 2.614160957 | F116: 2.415254962 | G116: 2.20079573 | H116: 2.367947121
A117: ASFALTOS DILUÍDOS CM-30 | B117: 2017-11-01 | C117: 2.670126991 | D117: 2.433169195 | E117: 2.908627464 | F117: 2.58469482 | G117: 2.415192709 | H117: 2.602101348
A118: ASFALTOS DILUÍDOS CM-30 | B118: 2017-12-01 | C118: 2.587352645 | D118: 2.425358882 | E118: 2.906633765 | F118: 2.602890298 | G118: 2.42288976 | H118: 2.531764464
A119: ASFALTOS DILUÍDOS CM-30 | B119: 2018-01-01 | C119: 2.950360755 | D119: 2.662862923 | E119: 2.875953993 | F119: 2.620738484 | G119: 2.646955252 | H119: 2.735956369
A120: ASFALTOS DILUÍDOS CM-30 | B120: 2018-02-01 | C120: 2.677899567 | D120: 2.672498164 | E120: 2.942595474 | F120: 2.62043113 | G120: 2.567885662 | H120: 2.668369933
A121: ASFALTOS DILUÍDOS CM-30 | B121: 2018-03-01 | C121: 2.733363025 | D121: 2.589050022 | E121: 2.809172556 | F121: 2.561928393 | G121: 2.575946067 | H121: 2.634876584
A122: ASFALTOS DILUÍDOS CM-30 | B122: 2018-04-01 | C122: 2.75780112 | D122: 2.669553602 | E122: 2.773908242 | F122: 2.59547006 | G122: 2.556042394 | H122: 2.6643302
A123: ASFALTOS DILUÍDOS CM-30 | B123: 2018-05-01 | C123: 2.841213362 | D123: 2.672025877 | E123: 2.884501482 | F123: 2.686718021 | G123: 2.736485103 | H123: 2.77737896
A124: ASFALTOS DILUÍDOS CM-30 | B124: 2018-06-01 | C124: 3.008444789 | D124: 2.919605178 | E124: 3.158454886 | F124: 2.84673108 | G124: 2.953523993 | H124: 2.982291635
A125: ASFALTOS DILUÍDOS CM-30 | B125: 2018-07-01 | C125: 3.268237549 | D125: 3.036524094 | E125: 3.399360399 | F125: 3.026467598 | G125: 3.19779631 | H125: 3.164126546
A126: ASFALTOS DILUÍDOS CM-30 | B126: 2018-08-01 | C126: 3.56441315 | D126: 3.415193769 | E126: 3.707706206 | F126: 3.425079349 | G126: 3.356722461 | H126: 3.515558112
A127: ASFALTOS DILUÍDOS CM-30 | B127: 2018-09-01 | C127: 3.173913778 | D127: 3.445064118 | E127: 3.73526324 | F127: 3.385816186 | G127: 3.607309454 | H127: 3.483238429
A128: ASFALTOS DILUÍDOS CM-30 | B128: 2018-10-01 | C128: 3.487778119 | D128: 3.460508804 | E128: 3.721444057 | F128: 3.432525565 | G128: 3.60602088 | H128: 3.545390344
A129: ASFALTOS DILUÍDOS CM-30 | B129: 2018-11-01 | C129: 4.047272484 | D129: 3.814893312 | E129: 4.280131586 | F129: 4.178126777 | G129: 3.967681367 | H129: 3.990147183
A130: ASFALTOS DILUÍDOS CM-30 | B130: 2018-12-01 | C130: 3.951491146 | D130: 3.967113195 | E130: 4.341144202 | F130: 3.916766066 | G130: 3.911993357 | H130: 3.999742654
A131: ASFALTOS DILUÍDOS CM-30 | B131: 2019-01-01 | C131: 3.796855325 | D131: 3.870018889 | E131: 4.201901762 | F131: 3.954196997 | G131: 3.976786028 | H131: 3.933951911
A132: ASFALTOS DILUÍDOS CM-30 | B132: 2019-02-01 | C132: 3.516584073 | D132: 4.090361178 | E132: 4.498422953 | F132: 4.469942475 | G132: 4.254590254 | H132: 4.188544679
A133: ASFALTOS DILUÍDOS CM-30 | B133: 2019-03-01 | C133: 4.216758117 | D133: 4.361910728 | E133: 4.907194889 | F133: 4.398717729 | G133: 4.290823922 | H133: 4.360295279
A134: ASFALTOS DILUÍDOS CM-30 | B134: 2019-04-01 | C134: 4.281648205 | D134: 4.234661428 | E134: 4.531627215 | F134: 4.43722653 | G134: 4.466881471 | H134: 4.38082044
A135: ASFALTOS DILUÍDOS CM-30 | B135: 2019-05-01 | C135: 4.287644659 | D135: 4.190699738 | E135: 4.857910872 | F135: 4.267461963 | G135: 4.633806379 | H135: 4.366402151
A136: ASFALTOS DILUÍDOS CM-30 | B136: 2019-06-01 | C136: 4.475609892 | D136: 3.965052934 | E136: 4.66272934 | F136: 4.350600604 | G136: 4.211229921 | H136: 4.319323669
A137: ASFALTOS DILUÍDOS CM-30 | B137: 2019-07-01 | C137: 4.394498989 | D137: 4.058039305 | E137: 4.834221945 | F137: 4.094659414 | G137: 4.233003281 | H137: 4.346977757
A138: ASFALTOS DILUÍDOS CM-30 | B138: 2019-08-01 | C138: 4.48173504 | D138: 3.910662496 | E138: 4.576329081 | F138: 4.11161654 | G138: 4.255419985 | H138: 4.258345083
A139: ASFALTOS DILUÍDOS CM-30 | B139: 2019-09-01 | C139: 4.439578796 | D139: 3.859904896 | E139: 4.495256968 | F139: 4.111321475 | G139: 4.117359152 | H139: 4.251607085
A140: ASFALTOS DILUÍDOS CM-30 | B140: 2019-10-01 | C140: 4.335888631 | D140: 3.772324962 | E140: 4.459242357 | F140: 4.056084115 | G140: 3.942458011 | H140: 4.07740702
A141: ASFALTOS DILUÍDOS CM-30 | B141: 2019-11-01 | C141: 4.316238692 | D141: 3.910245509 | E141: 4.581841077 | F141: 4.07902404 | G141: 4.106621274 | H141: 4.094561212
A142: ASFALTOS DILUÍDOS CM-30 | B142: 2019-12-01 | C142: 4.199435972 | D142: 3.980119663 | E142: 4.673774805 | F142: 4.434268142 | G142: 3.986410312 | H142: 4.164691616
A143: ASFALTOS DILUÍDOS CM-30 | B143: 2020-01-01 | C143: 3.59298003 | D143: 3.895320617 | E143: 4.685420623 | F143: 4.387074674 | G143: 4.124467668 | H143: 4.053338937
A144: ASFALTOS DILUÍDOS CM-30 | B144: 2020-02-01 | C144: 3.642667016 | D144: 3.877395187 | E144: 4.438194543 | F144: 3.699944607 | G144: 3.778164011 | H144: 3.839010438
A145: ASFALTOS DILUÍDOS CM-30 | B145: 2020-03-01 | C145: 4.676668339 | D145: 3.791138977 | E145: 4.289222343 | F145: 3.718402734 | G145: 3.60908619 | H145: 3.93117068
A146: ASFALTOS DILUÍDOS CM-30 | B146: 2020-04-01 | C146: 4.313362837 | D146: 3.6957655 | E146: 4.255395321 | F146: 3.865895531 | G146: 3.732253382 | H146: 3.964125211
A147: ASFALTOS DILUÍDOS CM-30 | B147: 2020-05-01 | C147: 3.249134658 | D147: 3.637769912 | E147: 4.113544882 | F147: 3.760550026 | G147: 3.710618099 | H147: 3.65617504
A148: ASFALTOS DILUÍDOS CM-30 | B148: 2020-06-01 | C148: 4.017903076 | D148: 3.567031492 | E148: 4.277369171 | F148: 3.937886485 | G148: 3.625830069 | H148: 3.924524506
A149: ASFALTOS DILUÍDOS CM-30 | B149: 2020-07-01 | C149: 3.840497509 | D149: 3.51327048 | E149: 4.21549069 | F149: 3.954223886 | G149: 3.688841275 | H149: 3.843774448
A150: ASFALTOS DILUÍDOS CM-30 | B150: 2020-08-01 | C150: 4.174467203 | D150: 3.465394219 | E150: 4.277710211 | F150: 4.06746494 | G150: 3.62858863 | H150: 3.947166917
A151: ASFALTOS DILUÍDOS CM-30 | B151: 2020-09-01 | C151: 4.167371331 | D151: 3.746360816 | E151: 4.167424356 | F151: 3.795621791 | G151: 3.627729935 | H151: 3.973129945
A152: ASFALTOS DILUÍDOS CM-30 | B152: 2020-10-01 | C152: 4.408099527 | D152: 3.718989878 | E152: 4.278979192 | F152: 4.008746906 | G152: 3.591048183 | H152: 4.03964377
A153: ASFALTOS DILUÍDOS CM-30 | B153: 2020-11-01 | C153: 4.056306006 | D153: 3.969209281 | E153: 4.547900893 | F153: 4.27945542 | G153: 3.973347244 | H153: 4.175826149
A154: ASFALTOS DILUÍDOS CM-30 | B154: 2020-12-01 | C154: 4.132064138 | D154: 3.851632751 | E154: 4.426704386 | F154: 3.906236422 | G154: 3.8709398 | H154: 4.035347374
A155: ASFALTOS DILUÍDOS CM-30 | B155: 2021-01-01 | C155: 3.489836333 | D155: 3.951525937 | E155: 4.628269702 | F155: 4.011577011 | G155: 3.935136638 | H155: 3.917092391
A156: ASFALTOS DILUÍDOS CM-30 | B156: 2021-02-01 | C156: 4.099318116 | D156: 4.267109523 | E156: 4.832061615 | F156: 4.414202706 | G156: 4.149048932 | H156: 4.26819704
A157: ASFALTOS DILUÍDOS CM-30 | B157: 2021-03-01 | C157: 4.528355792 | D157: 4.239831731 | E157: 4.926314562 | F157: 4.269697839 | G157: 4.130655409 | H157: 4.377833785
A158: ASFALTOS DILUÍDOS CM-30 | B158: 2021-04-01 | C158: 4.349271867 | D158: 4.086995154 | E158: 4.477597522 | F158: 4.156113398 | G158: 4.044189822 | H158: 4.253361798
A159: ASFALTOS DILUÍDOS CM-30 | B159: 2021-05-01 | C159: 4.488889413 | D159: 4.707945815 | E159: 5.101489686 | F159: 4.784034896 | G159: 4.523986615 | H159: 4.790548085
A160: ASFALTOS DILUÍDOS CM-30 | B160: 2021-06-01 | C160: 4.010467711 | D160: 4.479592126 | E160: 5.113041212 | F160: 4.779739905 | G160: 4.721214307 | H160: 4.764890884
A161: ASFALTOS DILUÍDOS CM-30 | B161: 2021-07-01 | C161: 4.752234128 | D161: 4.559350506 | E161: 5.004758283 | F161: 4.80272972 | G161: 4.748550678 | H161: 4.817586047
A162: ASFALTOS DILUÍDOS CM-30 | B162: 2021-08-01 | C162: 5.085284532 | D162: 4.772501255 | E162: 5.198537142 | F162: 5.244735259 | G162: 4.76131175 | H162: 5.0981692
A163: ASFALTOS DILUÍDOS CM-30 | B163: 2021-09-01 | C163: 5.110300267 | D163: 4.538072365 | E163: 5.241721185 | F163: 5.017144197 | G163: 4.862861245 | H163: 5.016958886
A164: ASFALTOS DILUÍDOS CM-30 | B164: 2021-10-01 | C164: 5.080697261 | D164: 4.66826742 | E164: 5.119544199 | F164: 5.384779065 | G164: 4.658516432 | H164: 5.021294312
A165: ASFALTOS DILUÍDOS CM-30 | B165: 2021-11-01 | C165: 5.436518753 | D165: 5.08776781 | E165: 5.150063985 | F165: 5.634257884 | G165: 5.174530131 | H165: 5.228141289
A166: ASFALTOS DILUÍDOS CM-30 | B166: 2021-12-01 | C166: 5.184291386 | D166: 4.975486975 | E166: 5.572122251 | F166: 6.135655205 | G166: 5.01180992 | H166: 5.339565801
A167: ASFALTOS DILUÍDOS CM-30 | B167: 2022-01-01 | C167: 4.928191974 | D167: 5.023555623 | E167: 6.018407512 | F167: 5.214773026 | G167: 5.481979244 | H167: 5.250789679
A168: ASFALTOS DILUÍDOS CM-30 | B168: 2022-02-01 | C168: 5.545684189 | D168: 5.708628413 | E168: 6.011065894 | F168: 4.8651 | G168: 5.763367147 | H168: 5.736057428
A169: ASFALTOS DILUÍDOS CM-30 | B169: 2022-03-01 | C169: 6.326844735 | D169: 5.644687904 | E169: 5.930807225 | F169: 6.181141143 | G169: 5.498041682 | H169: 5.922781038
A170: ASFALTOS DILUÍDOS CM-30 | B170: 2022-04-01 | C170: 5.974220681 | D170: 5.832747324 | E170: 6.206692615 | F170: 5.720329997 | G170: 6.17800291 | H170: 6.012354229
A171: ASFALTOS DILUÍDOS CM-30 | B171: 2022-05-01 | C171: 5.354015586 | D171: 5.464335309 | E171: 6.007611639 | F171: 5.995095583 | G171: 5.49095009 | H171: 5.670722744
A172: ASFALTOS DILUÍDOS CM-30 | B172: 2022-06-01 | C172: 5.802443798 | D172: 5.316964203 | E172: 5.25267889 | F172: 5.813931518 | G172: 5.644996328 | H172: 5.469498687
A173: ASFALTOS DILUÍDOS CM-30 | B173: 2022-07-01 | C173: 5.965614765 | D173: 5.829314879 | E173: 5.919099711 | F173: 5.742484775 | G173: 5.674430543 | H173: 5.862020702
A174: ASFALTOS DILUÍDOS CM-30 | B174: 2022-08-01 | C174: 6.424230463 | D174: 5.758256878 | E174: 5.752352843 | F174: 5.791905352 | G174: 5.31271724 | H174: 5.823186051
A175: ASFALTOS DILUÍDOS CM-30 | B175: 2022-09-01 | C175: 5.540097074 | D175: 5.609921619 | E175: 5.963592489 | F175: 5.302181194 | G175: 4.977929161 | H175: 5.699429921
A176: ASFALTOS DILUÍDOS CM-30 | B176: 2022-10-01 | C176: 4.785670999 | D176: 4.727521094 | E176: 5.339105147 | F176: 4.851160007 | G176: 4.532580513 | H176: 5.041661715
A177: ASFALTOS DILUÍDOS CM-30 | B177: 2022-11-01 | C177: 7.765855923 | D177: 4.775654982 | E177: 5.237626127 | F177: 4.636383138 | G177: 4.460593179 | H177: 5.074993862
A178: ASFALTOS DILUÍDOS CM-30 | B178: 2022-12-01 | C178: 4.65725 | D178: 4.966905362 | E178: 5.655161554 | F178: 4.840935672 | G178: 4.661007861 | H178: 5.11324949
A179: ASFALTOS DILUÍDOS CM-30 | B179: 2023-01-01 | C179: 4.948950319 | D179: 5.056264922 | E179: 5.359597966 | F179: 4.426497959 | G179: 4.103267888 | H179: 4.715605129
A180: ASFALTOS DILUÍDOS CM-30 | B180: 2023-02-01 | C180: 5.407494667 | D180: 4.335771195 | E180: 4.746646601 | F180: 4.674884727 | G180: 4.014547173 | H180: 4.417800736
A181: ASFALTOS DILUÍDOS CM-30 | B181: 2023-03-01 | C181: 4.99131 | D181: 4.01354912 | E181: 4.74625028 | F181: 4.08071937 | G181: 4.082484954 | H181: 4.270345723
A182: ASFALTOS DILUÍDOS CM-30 | B182: 2023-04-01 | C182: 4.438479015 | D182: 4.094201354 | E182: 5.135816186 | F182: 4.368265095 | G182: 3.859308149 | H182: 4.153818797
A183: ASFALTOS DILUÍDOS CM-30 | B183: 2023-05-01 | C183: 5.018589297 | D183: 4.506282643 | E183: 5.616638293 | F183: 4.034756925 | G183: 4.063701717 | H183: 4.686492725
A184: ASFALTOS DILUÍDOS CM-30 | B184: 2023-06-01 | C184: 4.439644526 | D184: 4.495805354 | E184: 5.228174524 | F184: 3.772028745 | G184: 4.009042073 | H184: 4.588045148
A185: ASFALTOS DILUÍDOS CM-30 | B185: 2023-07-01 | C185: 4.360399352 | D185: 4.250187634 | E185: 6.188049155 | F185: 3.699216781 | G185: 4.315773768 | H185: 4.790717553
A186: ASFALTOS DILUÍDOS CM-30 | B186: 2023-08-01 | C186: 4.043215999 | D186: 4.100901709 | E186: 5.414198228 | F186: 3.964297949 | G186: 4.055989778 | H186: 4.607810697
A187: ASFALTOS DILUÍDOS CM-30 | B187: 2023-09-01 | C187: 5.69501625 | D187: 4.358586276 | E187: 5.187252517 | F187: 4.112508656 | G187: 4.211646236 | H187: 4.748640211
A188: ASFALTOS DILUÍDOS CM-30 | B188: 2023-10-01 | C188: 5.685185 | D188: 4.294075647 | E188: 4.912919476 | F188: 4.365095101 | G188: 4.257370162 | H188: 4.609445905
A189: ASFALTOS DILUÍDOS CM-30 | B189: 2023-11-01 | C189: 4.815085397 | D189: 4.345599447 | E189: 5.404502747 | F189: 4.045271104 | G189: 4.164697405 | H189: 4.781498943
A190: ASFALTOS DILUÍDOS CM-30 | B190: 2023-12-01 | C190: 5.411492308 | D190: 4.700043896 | E190: 5.306415734 | F190: 4.313216862 | G190: 4.188732062 | H190: 4.664845353
A191: ASFALTOS DILUÍDOS CM-30 | B191: 2024-01-01 | C191: 3.716178391 | D191: 4.395163811 | E191: 4.888126947 | F191: 3.977196797 | G191: 4.057095331 | H191: 4.290228903
A192: ASFALTOS DILUÍDOS CM-30 | B192: 2024-02-01 | C192: 5.349588571 | D192: 4.281881871 | E192: 5.36118056 | F192: 4.287786155 | G192: 4.151112946 | H192: 4.366194996
A193: ASFALTOS DILUÍDOS CM-30 | B193: 2024-03-01 | C193: 6.437624165 | D193: 4.512948358 | E193: 4.994035932 | F193: 4.680610304 | G193: 4.197388123 | H193: 4.725137967
A194: ASFALTOS DILUÍDOS CM-30 | B194: 2024-04-01 | C194: 6.524010018 | D194: 5.333668875 | E194: 5.011370357 | F194: 3.991999626 | G194: 4.15116124 | H194: 4.439406986
A195: ASFALTOS DILUÍDOS CM-30 | B195: 2024-05-01 | C195: 6.61993633 | D195: *** | E195: 5.21538288 | F195: 4.24855796 | G195: 4.478170767 | H195: 4.960078568
A196: ASFALTOS DILUÍDOS CM-30 | B196: 2024-06-01 | C196: 6.461820806 | D196: 4.288169263 | E196: 4.921606124 | F196: 4.517339741 | G196: 4.897585787 | H196: 4.922850803
A197: ASFALTOS DILUÍDOS CM-30 | B197: 2024-07-01 | C197: 6.120612239 | D197: 4.599255433 | E197: 5.497451069 | F197: 4.667838533 | G197: 4.514452653 | H197: 4.962740397
A198: ASFALTOS DILUÍDOS CM-70 | B198: 2008-11-01 | C198: *** | D198: *** | E198: *** | F198: *** | G198: *** | H198: ***
A199: ASFALTOS DILUÍDOS CM-70 | B199: 2008-12-01 | C199: *** | D199: *** | E199: *** | F199: *** | G199: *** | H199: ***
A200: ASFALTOS DILUÍDOS CM-70 | B200: 2009-01-01 | C200: *** | D200: *** | E200: *** | F200: *** | G200: *** | H200: ***
A201: ASFALTOS DILUÍDOS CM-70 | B201: 2009-02-01 | C201: *** | D201: *** | E201: *** | F201: *** | G201: *** | H201: ***
A202: ASFALTOS DILUÍDOS CM-70 | B202: 2009-03-01 | C202: *** | D202: *** | E202: *** | F202: *** | G202: *** | H202: ***
A203: ASFALTOS DILUÍDOS CM-70 | B203: 2009-04-01 | C203: *** | D203: *** | E203: *** | F203: *** | G203: *** | H203: ***
A204: ASFALTOS DILUÍDOS CM-70 | B204: 2009-05-01 | C204: *** | D204: *** | E204: *** | F204: *** | G204: *** | H204: ***
... 4600 more rows

Sheet Curva ABC
B2: Item | C2: Descrição | D2: Total R$ | E2: % individual | F2: % acumul. | G2: Classe | I2: Onde: | J2: A <= | K2: 0.75
A3: 1 | B3: =VLOOKUP(A3,#REF!,2,0) ->  | C3: =VLOOKUP(B3,#REF!,4,0) ->  | D3: =VLOOKUP(B3,#REF!,13,0) ->  | E3: =D3/#REF! ->  | F3: =E3 ->  | G3: =IF(F3<=$K$2,"A",IF(AND(F3<=$L$3,F3>$J$3),"B",IF(F3>$K$4,"C"))) ->  | J3: 0.75 | K3: < B <= | L3: 0.95
A4: 2 | B4: =VLOOKUP(A4,#REF!,2,0) ->  | C4: =VLOOKUP(B4,#REF!,4,0) ->  | D4: =VLOOKUP(B4,#REF!,13,0) ->  | E4: =D4/#REF! ->  | F4: =F3+E4 ->  | G4: =IF(F4<=$K$2,"A",IF(AND(F4<=$L$3,F4>$J$3),"B",IF(F4>$K$4,"C"))) ->  | J4: C > | K4: 0.95
A5: 3 | B5: =VLOOKUP(A5,#REF!,2,0) ->  | C5: =VLOOKUP(B5,#REF!,4,0) ->  | D5: =VLOOKUP(B5,#REF!,13,0) ->  | E5: =D5/#REF! ->  | F5: =F4+E5 ->  | G5: =IF(F5<=$K$2,"A",IF(AND(F5<=$L$3,F5>$J$3),"B",IF(F5>$K$4,"C"))) -> 
A6: 4 | B6: =VLOOKUP(A6,#REF!,2,0) ->  | C6: =VLOOKUP(B6,#REF!,4,0) ->  | D6: =VLOOKUP(B6,#REF!,13,0) ->  | E6: =D6/#REF! -> 
A7: 5 | B7: =VLOOKUP(A7,#REF!,2,0) ->  | C7: =VLOOKUP(B7,#REF!,4,0) ->  | D7: =VLOOKUP(B7,#REF!,13,0) ->  | E7: =D7/#REF! -> 
A8: 6 | B8: =VLOOKUP(A8,#REF!,2,0) ->  | C8: =VLOOKUP(B8,#REF!,4,0) ->  | D8: =VLOOKUP(B8,#REF!,13,0) ->  | E8: =D8/#REF! -> 
A9: 7 | B9: =VLOOKUP(A9,#REF!,2,0) ->  | C9: =VLOOKUP(B9,#REF!,4,0) ->  | D9: =VLOOKUP(B9,#REF!,13,0) ->  | E9: =D9/#REF! -> 
A10: 8 | B10: =VLOOKUP(A10,#REF!,2,0) ->  | C10: =VLOOKUP(B10,#REF!,4,0) ->  | D10: =VLOOKUP(B10,#REF!,13,0) ->  | E10: =D10/#REF! -> 
A11: 9 | B11: =VLOOKUP(A11,#REF!,2,0) ->  | C11: =VLOOKUP(B11,#REF!,4,0) ->  | D11: =VLOOKUP(B11,#REF!,13,0) ->  | E11: =D11/#REF! -> 
A12: 10 | B12: =VLOOKUP(A12,#REF!,2,0) ->  | C12: =VLOOKUP(B12,#REF!,4,0) ->  | D12: =VLOOKUP(B12,#REF!,13,0) ->  | E12: =D12/#REF! -> 
A13: 11 | B13: =VLOOKUP(A13,#REF!,2,0) ->  | C13: =VLOOKUP(B13,#REF!,4,0) ->  | D13: =VLOOKUP(B13,#REF!,13,0) ->  | E13: =D13/#REF! -> 
A14: 12 | B14: =VLOOKUP(A14,#REF!,2,0) ->  | C14: =VLOOKUP(B14,#REF!,4,0) ->  | D14: =VLOOKUP(B14,#REF!,13,0) ->  | E14: =D14/#REF! -> 
A15: 13 | B15: =VLOOKUP(A15,#REF!,2,0) ->  | C15: =VLOOKUP(B15,#REF!,4,0) ->  | D15: =VLOOKUP(B15,#REF!,13,0) ->  | E15: =D15/#REF! -> 
A16: 14 | B16: =VLOOKUP(A16,#REF!,2,0) ->  | C16: =VLOOKUP(B16,#REF!,4,0) ->  | D16: =VLOOKUP(B16,#REF!,13,0) ->  | E16: =D16/#REF! -> 
A17: 15 | B17: =VLOOKUP(A17,#REF!,2,0) ->  | C17: =VLOOKUP(B17,#REF!,4,0) ->  | D17: =VLOOKUP(B17,#REF!,13,0) ->  | E17: =D17/#REF! -> 
A18: 16 | B18: =VLOOKUP(A18,#REF!,2,0) ->  | C18: =VLOOKUP(B18,#REF!,4,0) ->  | D18: =VLOOKUP(B18,#REF!,13,0) ->  | E18: =D18/#REF! -> 
A19: 17 | B19: =VLOOKUP(A19,#REF!,2,0) ->  | C19: =VLOOKUP(B19,#REF!,4,0) ->  | D19: =VLOOKUP(B19,#REF!,13,0) ->  | E19: =D19/#REF! -> 
A20: 18 | B20: =VLOOKUP(A20,#REF!,2,0) ->  | C20: =VLOOKUP(B20,#REF!,4,0) ->  | D20: =VLOOKUP(B20,#REF!,13,0) ->  | E20: =D20/#REF! -> 
A21: 19 | B21: =VLOOKUP(A21,#REF!,2,0) ->  | C21: =VLOOKUP(B21,#REF!,4,0) ->  | D21: =VLOOKUP(B21,#REF!,13,0) ->  | E21: =D21/#REF! -> 
A22: 20 | B22: =VLOOKUP(A22,#REF!,2,0) ->  | C22: =VLOOKUP(B22,#REF!,4,0) ->  | D22: =VLOOKUP(B22,#REF!,13,0) ->  | E22: =D22/#REF! -> 
A23: 21 | B23: =VLOOKUP(A23,#REF!,2,0) ->  | C23: =VLOOKUP(B23,#REF!,4,0) ->  | D23: =VLOOKUP(B23,#REF!,13,0) ->  | E23: =D23/#REF! -> 
A24: 22 | B24: =VLOOKUP(A24,#REF!,2,0) ->  | C24: =VLOOKUP(B24,#REF!,4,0) ->  | D24: =VLOOKUP(B24,#REF!,13,0) ->  | E24: =D24/#REF! -> 
A25: 23 | B25: =VLOOKUP(A25,#REF!,2,0) ->  | C25: =VLOOKUP(B25,#REF!,4,0) ->  | D25: =VLOOKUP(B25,#REF!,13,0) ->  | E25: =D25/#REF! -> 
A26: 24 | B26: =VLOOKUP(A26,#REF!,2,0) ->  | C26: =VLOOKUP(B26,#REF!,4,0) ->  | D26: =VLOOKUP(B26,#REF!,13,0) ->  | E26: =D26/#REF! -> 
A27: 25 | B27: =VLOOKUP(A27,#REF!,2,0) ->  | C27: =VLOOKUP(B27,#REF!,4,0) ->  | D27: =VLOOKUP(B27,#REF!,13,0) ->  | E27: =D27/#REF! -> 
A28: 26 | B28: =VLOOKUP(A28,#REF!,2,0) ->  | C28: =VLOOKUP(B28,#REF!,4,0) ->  | D28: =VLOOKUP(B28,#REF!,13,0) ->  | E28: =D28/#REF! ->  | F28: =F27+E28 ->  | G28: =IF(F28<=$K$2,"A",IF(AND(F28<=$L$3,F28>$J$3),"B",IF(F28>$K$4,"C"))) -> 
A29: 27 | B29: =VLOOKUP(A29,#REF!,2,0) ->  | C29: =VLOOKUP(B29,#REF!,4,0) ->  | D29: =VLOOKUP(B29,#REF!,13,0) ->  | E29: =D29/#REF! -> 
A30: 28 | B30: =VLOOKUP(A30,#REF!,2,0) ->  | C30: =VLOOKUP(B30,#REF!,4,0) ->  | D30: =VLOOKUP(B30,#REF!,13,0) ->  | E30: =D30/#REF! -> 
A31: 29 | B31: =VLOOKUP(A31,#REF!,2,0) ->  | C31: =VLOOKUP(B31,#REF!,4,0) ->  | D31: =VLOOKUP(B31,#REF!,13,0) ->  | E31: =D31/#REF! -> 
A32: 30 | B32: =VLOOKUP(A32,#REF!,2,0) ->  | C32: =VLOOKUP(B32,#REF!,4,0) ->  | D32: =VLOOKUP(B32,#REF!,13,0) ->  | E32: =D32/#REF! -> 
A33: 31 | B33: =VLOOKUP(A33,#REF!,2,0) ->  | C33: =VLOOKUP(B33,#REF!,4,0) ->  | D33: =VLOOKUP(B33,#REF!,13,0) ->  | E33: =D33/#REF! -> 
A34: 32 | B34: =VLOOKUP(A34,#REF!,2,0) ->  | C34: =VLOOKUP(B34,#REF!,4,0) ->  | D34: =VLOOKUP(B34,#REF!,13,0) ->  | E34: =D34/#REF! -> 

Sheet MATERIAL SICRO
A1: CGCIT | B1: SISTEMA DE CUSTOS REFERENCIAIS DE OBRAS - SICRO | D1: DNIT
B2: Amapá - Abril/2024
A3: Código | B3: Descrição | C3: Unidade | D3: Preço Unitário (R$)
A4: M0003 | B4: Aço CA 25 | C4: kg | D4: 7.4579
A5: M0004 | B5: Aço CA 50 | C5: kg | D5: 7.1914
A6: M0005 | B6: Brita 0 | C6: m³ | D6: 216.8953
A7: M0006 | B7: Fibra de poliamida para concreto | C7: kg | D7: 27.9577
A8: M0007 | B8: Fibra de aço para concreto | C8: kg | D8: 13.695
A9: M0008 | B9: Detergente líquido neutro | C9: l | D9: 4.4113
A10: M0009 | B10: Aço CP 175 RB | C10: kg | D10: 9.0918
A11: M0010 | B11: Aditivo superplastificante para concreto e argamassa | C11: kg | D11: 18.1736
A12: M0011 | B12: Aditivo modificador de viscosidade para concreto e argamassa | C12: kg | D12: 11.9572
A13: M0012 | B13: Silicato de alumínio | C13: kg | D13: 2.2035
A14: M0013 | B14: Grampo de ancoragem em aço CA 50 - D = 12,5 mm | C14: kg | D14: 7.1914
A15: M0014 | B15: Aço CA 60 | C15: kg | D15: 9.0441
A16: M0015 | B16: Espoleta elétrica Nº 8 - D = 6,0 mm | C16: un | D16: 23.505
A17: M0016 | B17: Grampo sargento em ferro fundido tipo C com abertura útil de 105 mm (4") | C17: un | D17: 50.2201
A18: M0017 | B18: Saco de aniagem ou de ráfia de 50 kg - C = 95 cm e L = 65 cm | C18: un | D18: 2.9309
A19: M0018 | B19: Grampo pesado em aço-carbono para cabo de aço - D = 13 mm (1/2") | C19: un | D19: 22.7274
A20: M0019 | B20: Esticador em aço tipo olhal x olhal para cabo de aço - D = 13 mm | C20: un | D20: 157.779
A21: M0020 | B21: Grampo de ancoragem em aço CA 50 - D = 6,3 mm | C21: kg | D21: 8.0778
A22: M0021 | B22: Herbicida glifosato para áreas contínuas | C22: l | D22: 31.3598
A23: M0025 | B23: Adesivo plástico para tubos de PVC | C23: kg | D23: 51.0767
A24: M0026 | B24: Aditivo aglutinante para argamassa | C24: l | D24: 9.9371
A25: M0028 | B25: Areia média | C25: m³ | D25: 149.3157
A26: M0029 | B26: Sílica ativa para concreto e argamassa (microssílica) | C26: kg | D26: 1.9884
A27: M0030 | B27: Aditivo plastificante e retardador de pega para concreto e argamassa | C27: kg | D27: 8.6077
A28: M0032 | B28: Adesivo de contato para laminado elastoplástico | C28: kg | D28: 46.9671
A29: M0035 | B29: Diluente tipo aguarrás para tintas e vernizes | C29: l | D29: 15.194
A30: M0039 | B30: Gasolina comum | C30: l | D30: 5.1357
A31: M0041 | B31: Contêiner com 2 banheiros - L = 2,44 m e C = 6,09 m (1 TEU) | C31: un | D31: 90670.1977
A32: M0042 | B32: Contêiner com janela - L = 2,44 m e C = 6,09 m (1 TEU) | C32: un | D32: 68102.5255
A33: M0043 | B33: Óleo diesel | C33: l | D33: 5.4825
A34: M0044 | B34: Abrasivo de vidro com granulometria de 210 a 420 micra | C34: kg | D34: 9.46
A35: M0045 | B35: Barreira plástica monobloco para canalização de trânsito - C = 100 cm, L = 50 cm e H = 55 cm | C35: un | D35: 505.0821
A36: M0046 | B36: Barreira plástica para canalização de trânsito - C = 60 cm, L = 45 cm e H = 60 cm | C36: un | D36: 322.7198
A37: M0047 | B37: Cone de sinalização em polietileno - H = 75 cm e base quadrada de 40 x 40 cm | C37: un | D37: 102.95
A38: M0048 | B38: Balizador cônico refletivo em polietileno semiflexível - H = 114 cm e base octogonal de D = 40 cm | C38: un | D38: 148.8579
A39: M0049 | B39: Delimitador de tráfego flexível com chumbador e duas faixas refletivas - H = 77 cm e D = 21 cm | C39: un | D39: 181.8914
A40: M0050 | B40: Aditivo natural tipo goma xantana para hidrossemeadura | C40: kg | D40: 103.5502
A41: M0051 | B41: Cilindro canalizador de tráfego em polietileno - H = 117 cm e base quadrada de 60 x 60 cm | C41: un | D41: 214.1103
A42: M0052 | B42: Fita adesiva de PVC - L = 50 mm e C = 50 m | C42: m | D42: 0.1123
A43: M0053 | B43: Tela plástica em polipropileno na cor laranja para tapume - L = 1,2 m | C43: m | D43: 1.9406
A44: M0054 | B44: Fita zebrada de cor laranja e branca - L = 7 a 8 cm | C44: m | D44: 0.0742
A45: M0055 | B45: Barreira plástica articulável modular - C = 240 cm e H = 100 cm | C45: un | D45: 1279.349
A46: M0056 | B46: Ferramenta de corte para removedora de faixa de sinalização (Smith Cutter) | C46: un | D46: 7262.1788
A47: M0057 | B47: Contêiner com janela - L = 4,88 m e C = 6,09 m (1 TEU duplo) | C47: un | D47: 122742.211
A48: M0058 | B48: Contêiner com janela e 2 banheiros - L = 4,88 m e C = 6,09 m (1 TEU duplo) | C48: un | D48: 127131.8632
A49: M0059 | B49: Contêiner com revestimento térmico, janela e banheiro - L = 2,44 m e C = 6,09 m (1 TEU) | C49: un | D49: 88817.2632
A50: M0060 | B50: Contêiner com janela - L = 2,44 m e C = 4,58 m (3/4 TEU) | C50: un | D50: 61782.3012
A51: M0065 | B51: Contêiner com janela e banheiro - L = 2,44 m e 4,58 m (3/4 TEU) | C51: un | D51: 74609.1041
A52: M0066 | B52: Contêiner com revestimento térmico, janela e banheiro - L = 2,44 m e C = 12,90 m (2 TEU) | C52: un | D52: 121469.3355
A53: M0067 | B53: Tubo PEAD PE 100 PN 10 com flanges - D = 160 mm | C53: m | D53: 183.3275
A54: M0068 | B54: Caibro de pinho - L = 7,5 cm e E = 10,0 cm | C54: m | D54: 15.369
A55: M0069 | B55: Arame farpado em aço galvanizado - D = 1,60 mm | C55: m | D55: 0.8465
A56: M0071 | B56: Contêiner com 3 janelas para guarita - L = 2,44 m e C = 3,05 m (1/2 TEU) | C56: un | D56: 42695.3609
A57: M0072 | B57: Arame liso em aço galvanizado - D = 2,10 mm (14 BWG) | C57: kg | D57: 18.9222
A58: M0073 | B58: Muda de árvore com altura de 0,30 a 0,80 m | C58: un | D58: 14.6944
A59: M0074 | B59: Muda de arbusto com altura até 0,50 m | C59: un | D59: 27.8034
A60: M0075 | B60: Arame liso recozido em aço-carbono - D = 1,24 mm (18 BWG) | C60: kg | D60: 12.1451
A61: M0076 | B61: Disco de corte abrasivo para policorte - D = 300 mm | C61: un | D61: 15.4416
A62: M0080 | B62: Areia fina | C62: m³ | D62: 155.6751
A63: M0081 | B63: Areia grossa | C63: m³ | D63: 145.0884
A64: M0082 | B64: Areia média lavada | C64: m³ | D64: 159.6782
A65: M0083 | B65: Argamassa pré-dosada para grauteamento | C65: kg | D65: 2.6286
A66: M0084 | B66: Argamassa pré-dosada autoadensável para grauteamento | C66: kg | D66: 2.6459
A67: M0085 | B67: Ancoragem ativa para 4 cordoalhas - D = 12,7 mm | C67: un | D67: 382.3551
A68: M0086 | B68: Ancoragem ativa para 6 cordoalhas - D = 12,7 mm | C68: un | D68: 495.963
A69: M0087 | B69: Ancoragem ativa para 7 cordoalhas - D = 12,7 mm | C69: un | D69: 572.7025
A70: M0088 | B70: Ancoragem ativa para 8 cordoalhas - D = 12,7 mm | C70: un | D70: 668.9504
A71: M0089 | B71: Ancoragem ativa para 9 cordoalhas - D = 12,7 mm | C71: un | D71: 755.409
A72: M0091 | B72: Ancoragem ativa para 10 cordoalhas - D = 12,7 mm | C72: un | D72: 841.1023
A73: M0092 | B73: Ancoragem ativa para 12 cordoalhas - D = 12,7 mm | C73: un | D73: 1062.2237
A74: M0093 | B74: Ancoragem ativa para 15 cordoalhas - D = 12,7 mm | C74: un | D74: 1474.4514
A75: M0094 | B75: Ancoragem ativa para 19 cordoalhas - D = 12,7 mm | C75: un | D75: 1873.5503
A76: M0098 | B76: Bambu com diâmetro médio de 10 cm | C76: m | D76: 21.3573
A77: M0099 | B77: Equipamentos para a fábrica de dormentes de concreto protendido | C77: ISF | D77: 567.856
A78: M0100 | B78: Ancoragem ativa para 22 cordoalhas - D = 12,7 mm | C78: un | D78: 2427.3902
A79: M0101 | B79: Ancoragem ativa para 27 cordoalhas - D = 12,7 mm | C79: un | D79: 2973.9883
A80: M0102 | B80: Ancoragem ativa para 31 cordoalhas - D = 12,7 mm | C80: un | D80: 3206.728
A81: M0103 | B81: Aditivo acelerador de pega para concreto e argamassa projetados | C81: kg | D81: 7.5537
A82: M0104 | B82: Asfalto diluído de petróleo - CM-30 | C82: t | D82: -
A83: M0105 | B83: Ancoragem ativa para 4 cordoalhas - D = 15,2 mm | C83: un | D83: 475.3891
A84: M0106 | B84: Ancoragem ativa para 6 cordoalhas - D = 15,2 mm | C84: un | D84: 633.9624
A85: M0107 | B85: Geocomposto para drenagem | C85: m² | D85: 43.5713
A86: M0108 | B86: Ancoragem ativa para 7 cordoalhas - D = 15,2 mm | C86: un | D86: 745.496
A87: M0109 | B87: Geodreno vertical - L = 10 cm e E = 5 mm | C87: m | D87: 5.18
A88: M0110 | B88: Ancoragem ativa para 10 cordoalhas - D = 15,2 mm | C88: un | D88: 1152.0872
A89: M0111 | B89: Ancoragem ativa para 9 cordoalhas - D = 15,2 mm | C89: un | D89: 1027.5347
A90: M0112 | B90: Disco diamantado segmentado para corte de pavimento - D = 1.000 mm | C90: un | D90: 5881.1315
A91: M0113 | B91: Ancoragem ativa para 12 cordoalhas - D = 15,2 mm | C91: un | D91: 1406.3577
A92: M0114 | B92: Disco diamantado segmentado para corte de pavimento - D = 1.500 mm | C92: un | D92: 26165.8855
A93: M0115 | B93: Biomanta vegetal de fibras de coco entrelaçadas com fios de polipropileno biodegradáveis - densidade 0,4 kg/m² | C93: m² | D93: 6.51
A94: M0116 | B94: Mangote flangeado de borracha reforçada com lonas sintéticas - C = 1,80 m e D = 0,30 m | C94: un | D94: 16706.0104
A95: M0117 | B95: Mangote flangeado de borracha reforçada com lonas sintéticas - C = 1,80 m e D = 0,40 m | C95: un | D95: 22945.2316
A96: M0118 | B96: Mangote flangeado de borracha reforçada com lonas sintéticas - C = 1,80 m e D = 0,45 m | C96: un | D96: 25489.5332
A97: M0119 | B97: Mangote flangeado de borracha reforçada com lonas sintéticas - C = 1,80 m e D = 0,50 m | C97: un | D97: 28819.5034
A98: M0120 | B98: Tubo PEAD PE 100 PN 8 com flanges - D = 250 mm | C98: m | D98: 316.6971
A99: M0121 | B99: Tubo PEAD PE 100 PN 8 com flanges - D = 400 mm | C99: m | D99: 2029.3742
A100: M0122 | B100: Tubo PEAD PE 100 PN 8 com flanges - D = 450 mm | C100: m | D100: 2549.3992
A101: M0123 | B101: Tubo PEAD PE 100 PN 8 com flanges - D = 500 mm | C101: m | D101: 2855.0383
A102: M0124 | B102: Flutuador bipartido em polietileno com núcleo de espuma em poliuretano para tubos - D = 0,30 m | C102: un | D102: 4366.1567
A103: M0125 | B103: Flutuador bipartido em polietileno com núcleo de espuma em poliuretano para tubos - D = 0,40 m | C103: un | D103: 6031.5095
A104: M0126 | B104: Flutuador bipartido em polietileno com núcleo de espuma em poliuretano para tubos - D = 0,45 m | C104: un | D104: 6908.9594
A105: M0127 | B105: Flutuador bipartido em polietileno com núcleo de espuma em poliuretano para tubos - D = 0,50 m | C105: un | D105: 7482.1297
A106: M0128 | B106: Biomanta vegetal de fibras de palha entrelaçadas com fios de polipropileno biodegradáveis - densidade 0,6 kg/m² | C106: m² | D106: 5.71
A107: M0129 | B107: Retentor de sedimento em fibras vegetais - D = 20 cm | C107: m | D107: 62.1959
A108: M0130 | B108: Ancoragem ativa para 15 cordoalhas - D = 15,2 mm | C108: un | D108: 1853.9651
A109: M0131 | B109: Tubo PEAD corrugado com paredes estruturadas para drenagem - D = 400 mm | C109: m | D109: 240.2606
A110: M0132 | B110: Tubo PEAD corrugado com paredes estruturadas para drenagem - D = 450 mm | C110: m | D110: 293.9828
A111: M0133 | B111: Tubo PEAD corrugado com paredes estruturadas para drenagem - D = 500 mm | C111: m | D111: 395.7637
A112: M0134 | B112: Tubo PEAD corrugado com paredes estruturadas para drenagem - D = 600 mm | C112: m | D112: 576.6656
A113: M0135 | B113: Tubo PEAD corrugado com paredes estruturadas para drenagem - D = 750 mm | C113: m | D113: 783.4709
A114: M0136 | B114: Tubo PEAD corrugado com paredes estruturadas para drenagem - D = 800 mm | C114: m | D114: 862.7873
A115: M0137 | B115: Tubo PEAD corrugado com paredes estruturadas para drenagem - D = 900 mm | C115: m | D115: 1149.5487
A116: M0138 | B116: Ancoragem ativa para 19 cordoalhas - D = 15,2 mm | C116: un | D116: 2410.2088
A117: M0139 | B117: Tubo PEAD corrugado com paredes estruturadas para drenagem - D = 1.000 mm | C117: m | D117: 1512.1329
A118: M0140 | B118: Bentonita | C118: kg | D118: 4.2319
A119: M0141 | B119: Tubo PEAD corrugado com paredes estruturadas para drenagem - D = 1.050 mm | C119: m | D119: 1500.4716
A120: M0142 | B120: Tubo PEAD corrugado com paredes estruturadas para drenagem - D = 1.200 mm | C120: m | D120: 2137.4433
A121: M0143 | B121: Tubo PEAD corrugado com paredes estruturadas para drenagem - D = 1.500 mm | C121: m | D121: 2470.8146
A122: M0145 | B122: Ancoragem ativa para 22 cordoalhas - D = 15,2 mm | C122: un | D122: 3128.9619
A123: M0146 | B123: Ancoragem ativa para 27 cordoalhas - D = 15,2 mm | C123: un | D123: 4094.0606
A124: M0148 | B124: Ancoragem ativa para lajes para 1 cordoalha - D = 12,7 mm | C124: un | D124: 90.0762
A125: M0151 | B125: Ancoragem ativa para lajes para 2 cordoalhas - D = 12,7 mm | C125: un | D125: 167.4211
A126: M0152 | B126: Ancoragem ativa para lajes para 3 cordoalhas - D = 12,7 mm | C126: un | D126: 233.111
A127: M0153 | B127: Ancoragem ativa para lajes para 4 cordoalhas - D = 12,7 mm | C127: un | D127: 311.4924
A128: M0156 | B128: Bloco de concreto - L = 19 cm, A = 19 cm e C = 39 cm | C128: un | D128: 4.6446
A129: M0158 | B129: Tela metálica galvanizada dobrada em L - C = 2,0 m, L = 0,4 m e H = 0,4 m | C129: un | D129: 477.7123
A130: M0160 | B130: Extintor de incêndio tipo espuma mecânica - V = 10 l | C130: un | D130: 642.3617
A131: M0161 | B131: Barra de fibra de vidro (vergalhão) - D = 25,0 mm | C131: m | D131: 61.623
A132: M0162 | B132: Corrente de elo soldado em aço galvanizado com acabamento polido - D = 3,18 mm (1/8") | C132: m | D132: 7.1839
A133: M0163 | B133: Gonzo com aba em aço galvanizado - D = 12,7 mm (1/2") | C133: un | D133: 3.7017
A134: M0164 | B134: Tubo em aço galvanizado - E = 1,50 mm e seção de 20 x 20 mm | C134: m | D134: 12.5547
A135: M0166 | B135: Tubo em aço galvanizado - E = 2,25 mm e D = 20 mm (3/4") | C135: m | D135: 30.5644
A136: M0167 | B136: Tela de poliamida industrial - E = 0,40 mm e malha de 1,6 mm | C136: m² | D136: 16.4874
A137: M0168 | B137: Abraçadeira de poliamida - E = 3,6 mm e C = 200 mm | C137: un | D137: 0.2324
A138: M0169 | B138: Roda em aço e pneu com câmara de ar 83/203 mm (3,25"/8") para carrinho de mão | C138: un | D138: 65.0009
A139: M0173 | B139: Ancoragem ativa para lajes para 1 cordoalha - D = 15,2 mm | C139: un | D139: 101.3239
A140: M0178 | B140: Ancoragem ativa para lajes para 2 cordoalhas - D = 15,2 mm | C140: un | D140: 218.9561
A141: M0181 | B141: Ancoragem ativa para lajes para 3 cordoalhas - D = 15,2 mm | C141: un | D141: 285.4083
A142: M0184 | B142: Ancoragem ativa para lajes para 4 cordoalhas - D = 15,2 mm | C142: un | D142: 376.7544
A143: M0191 | B143: Brita 1 | C143: m³ | D143: 201.2817
A144: M0192 | B144: Brita 2 | C144: m³ | D144: 199.2347
A145: M0193 | B145: Brita 3 | C145: m³ | D145: 197.7402
A146: M0194 | B146: Escória de aciaria | C146: m³ | D146: 15.1882
A147: M0198 | B147: Parafuso de cabeça chata em aço - D = 4,5 mm e bucha plástica - D = 8 mm (S8) | C147: un | D147: 0.3322
A148: M0199 | B148: Coroa de botões cruzados linha R32 - D = 43 mm (1 11/16’’) | C148: un | D148: 321.2863
A149: M0201 | B149: Coroa de botões esféricos linha T38 - D = 89 mm (3 1/2") | C149: un | D149: 873.0327
A150: M0202 | B150: Coroa de botões esféricos linha T45 - D = 76 mm (3") | C150: un | D150: 675.0469
A151: M0204 | B151: Instalações físicas para a central de pré-moldagem de dormentes de concreto protendido | C151: CMCC | D151: 1823.81
A152: M0217 | B152: Enxofre | C152: kg | D152: 5.1055
A153: M0220 | B153: Adubo à base de nitrogênio, fósforo e potássio (NPK) | C153: kg | D153: 3.9967
A154: M0222 | B154: Filer calcário | C154: kg | D154: 0.2996
A155: M0223 | B155: Sementes para hidrossemeadura | C155: kg | D155: 30.7475
A156: M0224 | B156: Guia-chapéu pré-moldada - C = 120 cm | C156: un | D156: 53.9767
A157: M0225 | B157: Adubo orgânico composto | C157: kg | D157: 0.3006
A158: M0229 | B158: Gabião tipo colchão em liga de zinco e alumínio revestido com polímero de malha hexagonal - E = 0,17 m | C158: m² | D158: 216.1999
A159: M0230 | B159: Gabião tipo caixa em liga de zinco e alumínio de malha hexagonal - C = 2,00 m, L = 1,00 m e H = 0,50 m | C159: un | D159: 648.9717
A160: M0231 | B160: Gabião tipo caixa em liga de zinco e alumínio de malha hexagonal - C = 2,00 m, L = 1,00 m e H = 1,00 m | C160: un | D160: 961.4531
A161: M0232 | B161: Gabião tipo caixa em liga de zinco e alumínio revestido com polímero de malha hexagonal - C = 2,00 m, L = 1,00 m e H = 0,50 m | C161: un | D161: 802.5105
A162: M0233 | B162: Gabião tipo caixa em liga de zinco e alumínio revestido com polímero de malha hexagonal - C = 2,00 m, L = 1,00 m e H = 1,00 m | C162: un | D162: 1124.2733
A163: M0234 | B163: Gabião tipo saco em liga de zinco e alumínio revestido com polímero de malha hexagonal - D = 0,65 m | C163: m³ | D163: 597.9252
A164: M0235 | B164: Gabião tipo colchão em liga de zinco e alumínio revestido com polímero de malha hexagonal - E = 0,23 m | C164: m² | D164: 225.6151
A165: M0236 | B165: Gabião tipo colchão em liga de zinco e alumínio revestido com polímero de malha hexagonal - E = 0,30 m | C165: m² | D165: 248.0795
A166: M0237 | B166: Energia elétrica | C166: kWh | D166: 0.88
A167: M0253 | B167: Cabo de cobre flexível antichama isolado em PVC - tensão de 450/750 V e seção de 16 mm² | C167: m | D167: 12.8255
A168: M0254 | B168: Mistura gasosa de argônio e dióxido de carbono para solda MIG/MAG | C168: m³ | D168: 52.8278
A169: M0256 | B169: Tinta à base de etil silicato de zinco bicomponente para fundo preparador de pintura | C169: l | D169: 101.1483
A170: M0257 | B170: Diluente para tinta à base de etil silicato de zinco | C170: l | D170: 36.7724
A171: M0260 | B171: Cabo de cobre PP flexível isolado em PVC - tensão de 300/500 V e seção de 3 x 1,5 mm² | C171: m | D171: 4.4534
A172: M0264 | B172: Bomba de combustível industrial eletrônica simples | C172: un | D172: 26715.1608
A173: M0265 | B173: Tanque de combustível aéreo horizontal com escada para visita - capacidade de 5.000 l | C173: un | D173: 20848.052
A174: M0266 | B174: Cabo de cobre flexível antichama isolado em PVC - tensão de 0,6/1,0 kV e seção de 240 mm² | C174: m | D174: 158.1503
A175: M0267 | B175: Módulo de torre de elevador de cremalheira | C175: un | D175: 3897.8915
A176: M0268 | B176: Módulo de ancoragem de torre de elevador de cremalheira | C176: un | D176: 2951.5918
A177: M0269 | B177: Cabo de cobre flexível antichama isolado em PVC - tensão de 0,6/1,0 kV e seção de 50 mm² | C177: m | D177: 34.0192
A178: M0284 | B178: Caibro de pinho - L = 7,5 cm e E = 7,5 cm | C178: m | D178: 11.5268
A179: M0285 | B179: Pontalete para escoramento - D = 15 cm | C179: m | D179: 8.35
A180: M0286 | B180: Tábua - E = 2,5 cm e L = 30 cm | C180: m | D180: 14.1631
A181: M0289 | B181: Tábua - E = 2,5 cm e L = 15 cm | C181: m | D181: 7.0416
A182: M0290 | B182: Tábua - E = 2,5 cm e L = 10 cm | C182: m | D182: 4.6891
A183: M0291 | B183: Estrutura modular com 2 banheiros - L = 2,44 m e C = 6,06 m (1 TEU) | C183: un | D183: 72966.5297
A184: M0292 | B184: Estrutura modular com janela - L = 2,44 m e C = 6,06 m (1 TEU) | C184: un | D184: 58642.3377
A185: M0293 | B185: Estrutura modular com janela - L = 4,88 m e C = 6,06 m (1 TEU duplo) | C185: un | D185: 103309.7098
A186: M0294 | B186: Estrutura modular com janela e 2 banheiros - L = 4,88 m e C = 6,06 m (1 TEU duplo) | C186: un | D186: 114835.52
A187: M0295 | B187: Estrutura modular com revestimento térmico, janela e banheiro - L = 2,44 m e C = 6,06 m (1 TEU) | C187: un | D187: 65997.4
A188: M0296 | B188: Estrutura modular com revestimento térmico, janela e banheiro - L = 2,44 m e C = 12,19 m (2 TEU) | C188: un | D188: 122521.1627
A189: M0297 | B189: Estrutura modular com 3 janelas para guarita - L = 2,44 m e C = 3,05 m (1/2 TEU) | C189: un | D189: 41239.2001
A190: M0301 | B190: Pontalete para escoramento - D = 10 cm | C190: m | D190: 3.713
A191: M0310 | B191: Peça de madeira - L = 7,5 cm e E = 2,5 cm | C191: m | D191: 3.8423
A192: M0311 | B192: Filtro de aspiração de ar externo com capacidade 3,58 l/s para compressor de ar respirável | C192: un | D192: 200.1396
A193: M0312 | B193: Filtro de purificação de ar comprimido com capacidade de 35 MPa para compressor de ar respirável | C193: un | D193: 222.2056
A194: M0344 | B194: Cal hidratada - a granel | C194: kg | D194: 0.8011
A195: M0345 | B195: Cal hidratada - saco | C195: kg | D195: 1.3154
A196: M0346 | B196: Disco de aço para bomba de projeção via seca | C196: un | D196: 330
A197: M0347 | B197: Disco de aço para bomba de projeção via úmida | C197: un | D197: 1262.5862
A198: M0348 | B198: Disco de borracha para bomba de projeção via seca | C198: un | D198: 265
A199: M0349 | B199: Disco de borracha para bomba de projeção via úmida | C199: un | D199: 600.6
A200: M0350 | B200: Bico para bomba de projeção | C200: un | D200: 300.8014
... 1476 more rows

Sheet Pessoal Sicro
A1: CGCIT | B1: SISTEMA DE CUSTOS REFERENCIAIS DE OBRAS - SICRO | G1: DNIT
A3: Amapá - Abril/2024
A4: Sem desoneração
A5: Código | B5: Descrição | C5: Unidade | D5: Salário (R$) | E5: Encargos Totais | F5: Custo (R$) | G5: Periculosidade/ Insalubridade
A6: P9801 | B6: Ajudante | C6: h | D6: 7.2674 | E6: 2.141476 | F6: 22.8303 | G6: 0
A7: P9802 | B7: Ajudante especializado | C7: h | D7: 8.6985 | E7: 2.058994 | F7: 26.6086 | G7: 0
A8: P9803 | B8: Almoxarife | C8: mês | D8: 2043.3868 | E8: 1.428033 | F8: 4961.4105 | G8: 0
A9: P9804 | B9: Apontador | C9: mês | D9: 2037.2 | E9: 1.456037 | F9: 5003.4385 | G9: 0
A10: P9805 | B10: Armador | C10: h | D10: 9.3283 | E10: 1.919575 | F10: 27.2346 | G10: 0
A11: P9806 | B11: Auxiliar administrativo | C11: mês | D11: 2037.2 | E11: 1.437177 | F11: 4965.0169 | G11: 0
A12: P9807 | B12: Bombeiro hidráulico | C12: h | D12: 12.7181 | E12: 1.763968 | F12: 35.1524 | G12: 0
A13: P9808 | B13: Carpinteiro | C13: h | D13: 9.2716 | E13: 1.918098 | F13: 27.0554 | G13: 0
A14: P9809 | B14: Encarregado administrativo | C14: mês | D14: 3821.677 | E14: 1.095589 | F14: 8008.6642 | G14: 0
A15: P9810 | B15: Eletricista | C15: h | D15: 10.5878 | E15: 1.863202 | F15: 30.315 | G15: 0
A16: P9811 | B16: Encarregado especializado | C16: mês | D16: 3318.1091 | E16: 1.169916 | F16: 7200.018 | G16: 0
A17: P9812 | B17: Engenheiro | C17: mês | D17: 12813.8699 | E17: 0.838973 | F17: 23564.3607 | G17: 0
A18: P9814 | B18: Operacional | C18: mês | D18: 1570.3441 | E18: 1.489277 | F18: 3909.0214 | G18: 0
A19: P9815 | B19: Jardineiro | C19: h | D19: 9.63 | E19: 1.885027 | F19: 27.7828 | G19: 0
A20: P9819 | B20: Engenheiro supervisor | C20: mês | D20: 12813.8699 | E20: 0.838973 | F20: 23564.3607 | G20: 0
A21: P9821 | B21: Pedreiro | C21: h | D21: 9.26 | E21: 1.916655 | F21: 27.0082 | G21: 0
A22: P9822 | B22: Pintor | C22: h | D22: 9.5418 | E22: 1.911059 | F22: 27.7767 | G22: 0
A23: P9823 | B23: Serralheiro | C23: h | D23: 10.4649 | E23: 1.827733 | F23: 29.5919 | G23: 0
A24: P9824 | B24: Servente | C24: h | D24: 6.4691 | E24: 2.268409 | F24: 21.1436 | G24: 0
A25: P9825 | B25: Soldador | C25: h | D25: 12.5628 | E25: 1.713715 | F25: 34.0918 | G25: 0
A26: P9826 | B26: Chefe setor de finanças | C26: mês | D26: 12414.8644 | E26: 0.838945 | F26: 22830.2528 | G26: 0
A27: P9827 | B27: Vigia | C27: mês | D27: 1500.4 | E27: 1.905358 | F27: 4809.3191 | G27: 0.3
A28: P9830 | B28: Montador | C28: h | D28: 9.75 | E28: 1.965015 | F28: 28.9088 | G28: 0
A29: P9833 | B29: Auxiliar de laboratório | C29: mês | D29: 1795.0952 | E29: 1.531684 | F29: 4544.6137 | G29: 0
A30: P9837 | B30: Oceanógrafo | C30: mês | D30: 5313.4666 | E30: 0.967307 | F30: 10453.22 | G30: 0
A31: P9840 | B31: Encarregado geral | C31: mês | D31: 5146.1074 | E31: 1.024057 | F31: 10416.0147 | G31: 0
A32: P9842 | B32: Faxineiro | C32: mês | D32: 1556 | E32: 1.642475 | F32: 4111.6911 | G32: 0
A33: P9843 | B33: Operador de equipamento leve | C33: h | D33: 9.7212 | E33: 1.869096 | F33: 27.891 | G33: 0
A34: P9845 | B34: Operador de equipamento pesado | C34: h | D34: 12.58 | E34: 1.69336 | F34: 33.8824 | G34: 0
A35: P9846 | B35: Operador de equipamento especial | C35: h | D35: 17.5028 | E35: 1.516285 | F35: 44.042 | G35: 0
A36: P9847 | B36: Perfurador de tubulão | C36: h | D36: 7.2549 | E36: 2.137908 | F36: 22.7652 | G36: 0
A37: P9848 | B37: Desenhista | C37: mês | D37: 4280.5242 | E37: 1.075363 | F37: 8883.6415 | G37: 0
A38: P9849 | B38: Condutor maquinista fluvial | C38: mês | D38: 2497.4354 | E38: 1.203174 | F38: 5502.2847 | G38: 0
A39: P9850 | B39: Copeiro | C39: mês | D39: 1634.277 | E39: 1.568729 | F39: 4198.0147 | G39: 0
A40: P9851 | B40: Médico do trabalho | C40: mês | D40: 9683.7414 | E40: 0.861976 | F40: 18030.894 | G40: 0
A41: P9852 | B41: Blaster | C41: h | D41: 11.0884 | E41: 2.127902 | F41: 38.0099 | G41: 0.3
A42: P9853 | B42: Pré-marcador | C42: h | D42: 7.2546 | E42: 2.115729 | F42: 22.6033 | G42: 0
A43: P9854 | B43: Recepcionista | C43: mês | D43: 1783.9545 | E43: 1.478954 | F43: 4422.3411 | G43: 0
A44: P9855 | B44: Marinheiro de máquinas | C44: mês | D44: 2228.695 | E44: 1.253325 | F44: 5021.9741 | G44: 0
A45: P9856 | B45: Marinheiro de convés | C45: h | D45: 9.888 | E45: 1.708729 | F45: 26.7839 | G45: 0
A46: P9857 | B46: Marinheiro de convés - mensalista | C46: mês | D46: 2175.3666 | E46: 1.264919 | F46: 4927.0291 | G46: 0
A47: P9858 | B47: Laboratorista | C47: mês | D47: 2995.5104 | E47: 1.231819 | F47: 6685.437 | G47: 0
A48: P9859 | B48: Trabalhador de via | C48: h | D48: 6.4182 | E48: 2.28869 | F48: 21.1074 | G48: 0
A49: P9861 | B49: Selecionador de material pétreo | C49: h | D49: 7.2546 | E49: 2.125758 | F49: 22.6761 | G49: 0
A50: P9864 | B50: Engenheiro de segurança do trabalho | C50: mês | D50: 12257.0455 | E50: 0.844802 | F50: 22611.822 | G50: 0
A51: P9866 | B51: Motorista de caminhão | C51: h | D51: 10.4397 | E51: 1.79425 | F51: 29.1711 | G51: 0
A52: P9867 | B52: Técnico especializado - mensalista | C52: mês | D52: 4072.0154 | E52: 1.10483 | F52: 8570.9001 | G52: 0
A53: P9869 | B53: Encarregado de obras de artes especiais | C53: mês | D53: 3318.1091 | E53: 1.169916 | F53: 7200.018 | G53: 0
A54: P9870 | B54: Motorista de veículo leve | C54: h | D54: 9.26 | E54: 1.886305 | F54: 26.7271 | G54: 0
A55: P9871 | B55: Motorista de veículo especial | C55: h | D55: 12.0257 | E55: 1.701872 | F55: 32.4919 | G55: 0
A56: P9875 | B56: Encarregado de turma | C56: mês | D56: 2264.6317 | E56: 1.36093 | F56: 5346.6369 | G56: 0
A57: P9876 | B57: Técnico de segurança do trabalho | C57: mês | D57: 3671.75 | E57: 1.140256 | F57: 7858.4849 | G57: 0
A58: P9878 | B58: Secretária | C58: mês | D58: 2855.4866 | E58: 1.207004 | F58: 6302.0703 | G58: 0
A59: P9880 | B59: Piloto fluvial | C59: mês | D59: 3456.53 | E59: 1.073971 | F59: 7168.7429 | G59: 0
A60: P9882 | B60: Técnico especializado | C60: h | D60: 18.5092 | E60: 1.500435 | F60: 46.281 | G60: 0
A61: P9883 | B61: Chefe do setor administrativo | C61: mês | D61: 3821.6966 | E61: 1.095587 | F61: 8008.6977 | G61: 0
A62: P9884 | B62: Encarregado de terraplenagem | C62: mês | D62: 3318.1091 | E62: 1.169916 | F62: 7200.018 | G62: 0
A63: P9885 | B63: Frentista de túnel | C63: h | D63: 7.2546 | E63: 2.193643 | F63: 23.1686 | G63: 0
A64: P9889 | B64: Técnico da qualidade | C64: mês | D64: 4365.7314 | E64: 1.093201 | F64: 9138.3533 | G64: 0
A65: P9892 | B65: Auxiliar de blaster | C65: h | D65: 9.7647 | E65: 2.222968 | F65: 34.4007 | G65: 0.3
A66: P9893 | B66: Encarregado de pavimentação | C66: mês | D66: 3318.1091 | E66: 1.169916 | F66: 7200.018 | G66: 0
A67: P9896 | B67: Porteiro | C67: mês | D67: 1764.56 | E67: 1.535181 | F67: 4473.4789 | G67: 0
A68: P9897 | B68: Técnico de meio ambiente | C68: mês | D68: 3588.2385 | E68: 1.153283 | F68: 7726.4929 | G68: 0
A69: P9900 | B69: Comprador | C69: mês | D69: 3461.4513 | E69: 1.150782 | F69: 7444.8271 | G69: 0
A70: P9901 | B70: Encarregado de superestrutura ferroviária | C70: mês | D70: 3318.1091 | E70: 1.169916 | F70: 7200.018 | G70: 0
A71: P9903 | B71: Auxiliar técnico | C71: mês | D71: 1956.586 | E71: 1.45388 | F71: 4801.2272 | G71: 0
A72: P9907 | B72: Comandante de longo curso | C72: mês | D72: 11259.3057 | E72: 0.85216 | F72: 20854.0356 | G72: 0
A73: P9908 | B73: Imediato | C73: mês | D73: 8904.606 | E73: 0.878143 | F73: 16724.1234 | G73: 0
A74: P9909 | B74: Oficial de náutica | C74: mês | D74: 2834.3491 | E74: 1.14877 | F74: 6090.3643 | G74: 0
A75: P9910 | B75: Oficial de máquinas | C75: mês | D75: 2921.1265 | E75: 1.133052 | F75: 6230.9147 | G75: 0
A76: P9913 | B76: Draguista | C76: mês | D76: 3595.3388 | E76: 1.061613 | F76: 7412.1972 | G76: 0
A77: P9915 | B77: Maquinista | C77: h | D77: 12.7679 | E77: 1.672053 | F77: 34.1165 | G77: 0
A78: P9916 | B78: Encarregado de conservação rodoviária | C78: mês | D78: 3318.1091 | E78: 1.169916 | F78: 7200.018 | G78: 0
A79: P9920 | B79: Mestre fluvial | C79: mês | D79: 4677.0464 | E79: 0.990445 | F79: 9309.4036 | G79: 0
A80: P9921 | B80: Mergulhador raso autônomo de emergência | C80: h | D80: 9.9237 | E80: 2.46323 | F80: 36.9353 | G80: 0.2587
A81: P9922 | B81: Mergulhador raso dependente de emergência | C81: h | D81: 9.9208 | E81: 2.539431 | F81: 38.0902 | G81: 0.3
A82: P9924 | B82: Mergulhador raso dependente | C82: h | D82: 9.9208 | E82: 3.855917 | F82: 51.1508 | G82: 0.3
A83: P9925 | B83: Mergulhador raso autônomo | C83: h | D83: 9.9237 | E83: 3.48923 | F83: 47.117 | G83: 0.2587
A84: P9926 | B84: Mergulhador raso auxiliar de superfície | C84: h | D84: 9.9237 | E84: 2.237032 | F84: 34.6905 | G84: 0.2587
A85: P9927 | B85: Frentista de túnel com periculosidade | C85: h | D85: 7.2546 | E85: 2.521696 | F85: 27.7248 | G85: 0.3
A86: P9930 | B86: Eletricista com periculosidade | C86: h | D86: 10.5878 | E86: 2.190408 | F86: 36.9557 | G86: 0.3
A87: P9931 | B87: Operador de equipamento de mergulho | C87: h | D87: 18.0118 | E87: 1.800995 | F87: 53.0176 | G87: 0.1425
A88: P9932 | B88: Operador de equipamento pesado com periculosidade | C88: h | D88: 12.58 | E88: 2.02276 | F88: 41.8003 | G88: 0.3
A89: P9933 | B89: Supervisor de mergulho raso | C89: mês | D89: 3962.5981 | E89: 1.326142 | F89: 9782.236 | G89: 0.1425
A90: P9934 | B90: Motorista de veículo especial com periculosidade | C90: h | D90: 12.0257 | E90: 2.030011 | F90: 40.0457 | G90: 0.3
A91: P9938 | B91: Operador de equipamento leve com periculosidade | C91: h | D91: 9.7212 | E91: 2.198489 | F91: 34.0095 | G91: 0.3
A92: P9939 | B92: Operador de equipamento leve com insalubridade | C92: h | D92: 9.7212 | E92: 2.294202 | F92: 34.5909 | G92: 0.2641
A93: P9942 | B93: Marinheiro de convés com periculosidade | C93: h | D93: 9.888 | E93: 2.037139 | F93: 32.9976 | G93: 0.3
A94: P9944 | B94: Operador de equipamento especial com periculosidade | C94: h | D94: 17.5028 | E94: 1.845689 | F94: 55.0583 | G94: 0.3
A95: P9946 | B95: Engenheiro auxiliar | C95: mês | D95: 12002 | E95: 0.844017 | F95: 22131.892 | G95: 0
A96: P9947 | B96: Técnico florestal | C96: mês | D96: 3588.2385 | E96: 1.153283 | F96: 7726.4929 | G96: 0
A97: P9948 | B97: Motorista de veículo leve - mensalista | C97: mês | D97: 2037.2 | E97: 1.428005 | F97: 4946.3317 | G97: 0
A98: P9949 | B98: Topógrafo | C98: mês | D98: 3671.75 | E98: 1.158771 | F98: 7926.4674 | G98: 0
A99: P9950 | B99: Auxiliar de topografia | C99: mês | D99: 1764.56 | E99: 1.56135 | F99: 4519.6557 | G99: 0
A100: P9951 | B100: Médico de câmara hiperbárica | C100: mês | D100: 9683.7414 | E100: 1.004912 | F100: 19979.6114 | G100: 0.0583
A101: P9952 | B101: Pedreiro - mensalista | C101: mês | D101: 2037.2 | E101: 1.45216 | F101: 4995.5403 | G101: 0
A102: P9953 | B102: Eletricista - mensalista | C102: mês | D102: 2329.3082 | E102: 1.403467 | F102: 5598.4153 | G102: 0
A103: P9954 | B103: Servente - mensalista | C103: mês | D103: 1423.2014 | E103: 1.750083 | F103: 3913.9219 | G103: 0
A104: P9955 | B104: Engenheiro chefe | C104: mês | D104: 15748.7567 | E104: 0.825076 | F104: 28742.6778 | G104: 0
A105: P9956 | B105: Motorista de caminhão com periculosidade | C105: h | D105: 10.4397 | E105: 2.122389 | F105: 35.7287 | G105: 0.3
A106: P9972 | B106: Técnico de batimetria | C106: mês | D106: 3322.76 | E106: 1.108568 | F106: 7006.2654 | G106: 0

Sheet Equipamentos
A1: CGCIT | B1: SISTEMA DE CUSTOS REFERENCIAIS DE OBRAS - SICRO | K1: DNIT
B2: Amapá - Abril/2024
A3: Código | B3: Descrição | C3: Valor de Aquisição (R$) | D3: Depreciação (R$/h) | E3: Oportunidade de Capital (R$/h) | F3: Seguros e Impostos (R$/h) | G3: Manutenção (R$/h) | H3: Operação (R$/h) | I3: Mão de Obra de Operação (R$/h) | J3: Custo Produtivo (R$/h) | K3: Custo Improdutivo (R$/h)
A4: E9001 | B4: Conjunto vibratório para tubos de concreto com encaixe PB e 3 jogos de fôrmas - D = 0,60 m - 2,20 kW | C4: 68280.6232 | D4: 9.1041 | E4: 2.1065 | F4: 0 | G4: 6.8281 | H4: 0 | I4: 0 | J4: 18.0387 | K4: 11.2106
A5: E9002 | B5: Conjunto vibratório para tubos de concreto com encaixe PB e 3 jogos de fôrmas - D = 0,80 m - 2,20 kW | C5: 85238.7359 | D5: 11.3652 | E5: 2.6296 | F5: 0 | G5: 8.5239 | H5: 0 | I5: 0 | J5: 22.5187 | K5: 13.9948
A6: E9003 | B6: Conjunto vibratório para tubos de concreto com encaixe PB e 3 jogos de fôrmas - D = 1,00 m - 2,20 kW | C6: 104947.7555 | D6: 13.993 | E6: 3.2376 | F6: 0 | G6: 10.4948 | H6: 0 | I6: 0 | J6: 27.7254 | K6: 17.2306
A7: E9004 | B7: Conjunto vibratório para tubos de concreto com encaixe PB e 3 jogos de fôrmas - D = 1,20 m - 2,20 kW | C7: 111242.5107 | D7: 14.8323 | E7: 3.4318 | F7: 0 | G7: 11.1243 | H7: 0 | I7: 0 | J7: 29.3884 | K7: 18.2641
A8: E9005 | B8: Conjunto vibratório para tubos de concreto com encaixe PB e 3 jogos de fôrmas - D = 1,50 m - 2,20 kW | C8: 116033.7134 | D8: 15.4712 | E8: 3.5796 | F8: 0 | G8: 11.6034 | H8: 0 | I8: 0 | J8: 30.6542 | K8: 19.0508
A9: E9006 | B9: Equipamento para sondagem manual | C9: 3008.5028 | D9: 0.5114 | E9: 0.1114 | F9: 0 | G9: 0.3009 | H9: 0 | I9: 0 | J9: 0.9237 | K9: 0.6228
A10: E9007 | B10: Bomba de pistão triplex com capacidade de 7,80 m³/h (130 l/min) - 8,20 kW | C10: 158773.4963 | D10: 12.7019 | E10: 2.9389 | F10: 0 | G10: 11.1141 | H10: 8.5417 | I10: 0 | J10: 35.2966 | K10: 15.6408
A11: E9008 | B11: Transportador manual de tubos de concreto com capacidade de 1 t | C11: 2207.4394 | D11: 1.9867 | E11: 0.1362 | F11: 0 | G11: 1.1037 | H11: 0 | I11: 0 | J11: 3.2266 | K11: 2.1229
A12: E9009 | B12: Embarcação rebocadora - 268 kW | C12: 641788.2304 | D12: 8.3566 | E12: 3.7238 | F12: 0 | G12: 18.5703 | H12: 279.1689 | I12: 135.4673 | J12: 445.2869 | K12: 147.5477
A13: E9010 | B13: Balança plataforma digital à bateria, com mesa de 75 x 75 cm e capacidade de 500 kg | C13: 5248.1292 | D13: 0.7872 | E13: 0.1079 | F13: 0 | G13: 0.4373 | H13: 0 | I13: 0 | J13: 1.3324 | K13: 0.8951
A14: E9011 | B14: Carro manual modelo plataforma de 200 x 80 cm com capacidade de 800 kg | C14: 1939.1252 | D14: 0.349 | E14: 0.0718 | F14: 0 | G14: 0.1939 | H14: 0 | I14: 0 | J14: 0.6147 | K14: 0.4208
A15: E9014 | B15: Deflectômetro de impacto (FWD) instalado em picape com reboque e faixa de carga de 7 a 120 kN - 147 kW | C15: 2141825.942 | D15: 171.3461 | E15: 39.6452 | F15: 0 | G15: 107.0913 | H15: 0 | I15: 32.4919 | J15: 350.5745 | K15: 243.4832
A16: E9015 | B16: Elevador de obra com capacidade de 1.000 kg - 9 kW | C16: 65864.4441 | D16: 5.2692 | E16: 1.2192 | F16: 0 | G16: 4.6105 | H16: 0 | I16: 27.891 | J16: 38.9899 | K16: 34.3794
A17: E9016 | B17: Usina misturadora móvel de reciclagem a frio com sistema de espuma de asfalto - 129,40 kW | C17: 10023658.67 | D17: 584.7134 | E17: 180.3841 | F17: 0 | G17: 751.7744 | H17: 99.321 | I17: 44.042 | J17: 1660.2349 | K17: 809.1395
A18: E9017 | B18: Escavadeira hidráulica sobre esteira com capacidade de 0,4 m³ - 64 kW | C18: 720373.9643 | D18: 50.4262 | E18: 13.3341 | F18: 0 | G18: 50.4262 | H18: 45.6144 | I18: 33.8824 | J18: 193.6833 | K18: 97.6427
A19: E9020 | B19: Recicladora a frio - 455 kW | C19: 5017314.184 | D19: 292.6767 | E19: 90.2907 | F19: 0 | G19: 418.1095 | H19: 498.9075 | I19: 44.042 | J19: 1344.0264 | K19: 427.0094
A20: E9021 | B20: Grupo gerador - 456 kVA | C20: 359094.9766 | D20: 17.9547 | E20: 6.3303 | F20: 0 | G20: 12.8248 | H20: 380.2114 | I20: 0 | J20: 417.3212 | K20: 24.285
A21: E9022 | B21: Pórtico metálico rolante com capacidade de 25 t - 30 kW | C21: 963462.8178 | D21: 43.3558 | E21: 16.3476 | F21: 0 | G21: 33.7212 | H21: 0 | I21: 27.891 | J21: 121.3156 | K21: 87.5944
A22: E9023 | B22: Guindaste móvel sobre esteiras com dragline com capacidade de 1,9 a 2,3 m³ - 270 kW | C22: 3566698.227 | D22: 124.8344 | E22: 60.518 | F22: 0 | G22: 178.3349 | H22: 74.0138 | I22: 44.042 | J22: 481.7431 | K22: 229.3944
A23: E9024 | B23: Misturador de nata cimento - 1,50 kW | C23: 8418.0794 | D23: 0.6734 | E23: 0.1558 | F23: 0 | G23: 0.5893 | H23: 0 | I23: 27.891 | J23: 29.3095 | K23: 28.7202
A24: E9025 | B24: Conjunto bomba e macaco hidráulico para protensão com capacidade de 7.000 kN - 15 kW | C24: 100955.9712 | D24: 5.7689 | E24: 1.7797 | F24: 0 | G24: 5.7689 | H24: 0 | I24: 44.042 | J24: 57.3595 | K24: 51.5906
A25: E9026 | B25: Bomba para injeção de nata de cimento com capacidade de 2 MPa - 2,20 kW | C25: 31918.9832 | D25: 2.5535 | E25: 0.5908 | F25: 0 | G25: 2.2343 | H25: 0 | I25: 0 | J25: 5.3786 | K25: 3.1443
A26: E9028 | B26: Bomba de alta pressão para hidrojateamento com capacidade de 18 MPa - 5,20 kW | C26: 4829.7403 | D26: 0.3864 | E26: 0.0894 | F26: 0 | G26: 0.4347 | H26: 9.347 | I26: 27.891 | J26: 38.1485 | K26: 28.3668
A27: E9029 | B27: Conjunto bomba e macaco hidráulico para protensão com capacidade de 8.000 kN - 20 kW | C27: 128333.9028 | D27: 7.3334 | E27: 2.2623 | F27: 0 | G27: 7.3334 | H27: 0 | I27: 44.042 | J27: 60.9711 | K27: 53.6377
A28: E9030 | B28: Bomba de protensão com leitura digital para tensionamento de estais - 3 kW | C28: 13862.7365 | D28: 0.7922 | E28: 0.2444 | F28: 0 | G28: 0.7922 | H28: 0 | I28: 0 | J28: 1.8288 | K28: 1.0366
A29: E9031 | B29: Elevador de cremalheira com cabine simples, com capacidade de 1.500 kg e altura de até 100 m - 15 kW | C29: 340423.4441 | D29: 27.2339 | E29: 6.3012 | F29: 0 | G29: 23.8296 | H29: 0 | I29: 27.891 | J29: 85.2557 | K29: 61.4261
A30: E9032 | B30: Equipamento para regulagem final de estais com até 37 cordoalhas - D = 15,7 mm - 20 kW | C30: 75292.0893 | D30: 4.3024 | E30: 1.3273 | F30: 0 | G30: 4.3024 | H30: 0 | I30: 44.042 | J30: 53.9741 | K30: 49.6717
A31: E9033 | B31: Equipamento para regulagem final de estais de 38 a 55 cordoalhas - D = 15,7 mm - 30 kW | C31: 107560.1275 | D31: 6.1463 | E31: 1.8961 | F31: 0 | G31: 6.1463 | H31: 0 | I31: 44.042 | J31: 58.2307 | K31: 52.0844
A32: E9034 | B32: Equipamento para regulagem final de estais de 56 a 73 cordoalhas - D = 15,7 mm - 40 kW | C32: 161340.1913 | D32: 9.2194 | E32: 2.8442 | F32: 0 | G32: 9.2194 | H32: 0 | I32: 44.042 | J32: 65.325 | K32: 56.1056
A33: E9035 | B33: Equipamento para regulagem final de estais de 74 a 91 cordoalhas - D = 15,7 mm - 50 kW | C33: 215120.2551 | D33: 12.2926 | E33: 3.7923 | F33: 0 | G33: 12.2926 | H33: 0 | I33: 44.042 | J33: 72.4195 | K33: 60.1269
A34: E9036 | B34: Grua fixa para alturas de 60 a 102 m, com alcance de 60 m com capacidade de 1.500 kg na ponta da lança - 37 kW | C34: 3214869.372 | D34: 160.7435 | E34: 56.6736 | F34: 0 | G34: 183.7068 | H34: 0 | I34: 44.042 | J34: 445.1659 | K34: 261.4591
A35: E9038 | B35: Macaco hidráulico monocordoalha para tensionamento de estais - 3 kW | C35: 17408.8961 | D35: 0.9948 | E35: 0.3069 | F35: 0 | G35: 0.9948 | H35: 0 | I35: 44.042 | J35: 46.3385 | K35: 45.3437
A36: E9039 | B36: Máquina de solda por termofusão para tubos PEAD com gerador de 4 kW | C36: 117778.6159 | D36: 6.7302 | E36: 2.0763 | F36: 0 | G36: 6.7302 | H36: 4.1667 | I36: 44.042 | J36: 63.7454 | K36: 52.8485
A37: E9040 | B37: Serra mármore - 1,45 kW | C37: 465.9875 | D37: 0.0419 | E37: 0.0086 | F37: 0 | G37: 0.0233 | H37: 0 | I37: 0 | J37: 0.0738 | K37: 0.0505
A38: E9042 | B38: Trator sobre esteiras com lâmina - 97 kW | C38: 1339961.093 | D38: 52.1096 | E38: 22.9654 | F38: 0 | G38: 74.4423 | H38: 74.4524 | I38: 33.8824 | J38: 257.8521 | K38: 108.9574
A39: E9043 | B39: Embarcação de alumínio com comprimento de 6 m e motor de popa - 18,60 kW | C39: 25164.7803 | D39: 0.3932 | E39: 0.1483 | F39: 0 | G39: 0.4369 | H39: 38.2096 | I39: 39.2829 | J39: 78.4709 | K39: 39.8244
A40: E9044 | B40: Central de concreto com capacidade de 150 m³/h - dosadora e misturadora | C40: 2344740.296 | D40: 133.9852 | E40: 41.3344 | F40: 0 | G40: 117.237 | H40: 0 | I40: 44.042 | J40: 336.5986 | K40: 219.3616
A41: E9045 | B41: Conjunto bomba e macaco hidráulico para elevação com capacidade de 496 kN | C41: 60126.374 | D41: 4.8101 | E41: 1.1129 | F41: 0 | G41: 4.8101 | H41: 5.9163 | I41: 44.042 | J41: 60.6914 | K41: 49.965
A42: E9046 | B42: Conjunto bomba e macaco hidráulico para elevação com capacidade de 929 kN | C42: 73013.0977 | D42: 5.841 | E42: 1.3515 | F42: 0 | G42: 5.841 | H42: 5.9163 | I42: 44.042 | J42: 62.9918 | K42: 51.2345
A43: E9047 | B43: Conjunto bomba e macaco hidráulico para elevação com capacidade de 1.390 kN | C43: 103691.2604 | D43: 8.2953 | E43: 1.9193 | F43: 0 | G43: 8.2953 | H43: 5.9163 | I43: 44.042 | J43: 68.4682 | K43: 54.2566
A44: E9048 | B44: Conjunto bomba e macaco hidráulico para elevação com capacidade de 1.859 kN | C44: 120374.6326 | D44: 9.63 | E44: 2.2281 | F44: 0 | G44: 9.63 | H44: 5.9163 | I44: 44.042 | J44: 71.4464 | K44: 55.9001
A45: E9049 | B45: Bomba de alta pressão para hidrojateamento com capacidade de 250 MPa - 72 kW | C45: 704674.1807 | D45: 56.3739 | E45: 13.0435 | F45: 0 | G45: 63.4207 | H45: 59.211 | I45: 27.891 | J45: 219.9401 | K45: 97.3084
A46: E9050 | B46: Guindaste móvel sobre pneus com 2 eixos com capacidade de 18 t - 97 kW | C46: 2843724.069 | D46: 142.1862 | E46: 50.1308 | F46: 0 | G46: 182.8108 | H46: 26.5901 | I46: 32.4919 | J46: 434.2098 | K46: 224.8089
A47: E9051 | B47: Máquina levantadora e posicionadora de via - 7,40 kW | C47: 793511.661 | D47: 63.4809 | E47: 14.6879 | F47: 0 | G47: 55.5458 | H47: 10.6412 | I47: 27.891 | J47: 172.2468 | K47: 106.0598
A48: E9052 | B48: Empilhadeira a diesel com capacidade de 10 t - 82 kW | C48: 762127.122 | D48: 60.9702 | E48: 14.107 | F48: 0 | G48: 53.3489 | H48: 67.4348 | I48: 27.891 | J48: 223.7519 | K48: 102.9682
A49: E9053 | B49: Perfuratriz hidráulica montada em flutuante - 32 kW | C49: 352717.8547 | D49: 11.0224 | E49: 2.2669 | F49: 0 | G49: 9.7977 | H49: 17.544 | I49: 34.0095 | J49: 74.6405 | K49: 47.2988
A50: E9054 | B50: Equipamento sobre forma-trilho para execução e acabamento de pavimento de concreto - 13,40 kW | C50: 1385247.934 | D50: 110.8198 | E50: 25.6409 | F50: 0 | G50: 69.2624 | H50: 19.2691 | I50: 27.891 | J50: 252.8832 | K50: 164.3517
A51: E9055 | B51: Guincho pneumático com capacidade de 2,5 t | C51: 526758.3044 | D51: 47.4082 | E51: 9.7503 | F51: 0 | G51: 26.3379 | H51: 0 | I51: 0 | J51: 83.4964 | K51: 57.1585
A52: E9056 | B52: Plataforma autoelevatória de 12 x 24 m com capacidade de 150 t | C52: 865509.0991 | D52: 6.7618 | E52: 4.8674 | F52: 0 | G52: 15.0262 | H52: 0 | I52: 104.0051 | J52: 130.6605 | K52: 115.6343
A53: E9057 | B53: Batelão sem propulsão com capacidade de 66 m³ | C53: 231450.2409 | D53: 1.8082 | E53: 1.3016 | F53: 0 | G53: 3.0137 | H53: 0 | I53: 26.7839 | J53: 32.9074 | K53: 29.8937
A54: E9058 | B54: Plataforma flutuante de 12 x 24 x 1,8 m com capacidade de 150 t | C54: 692228.294 | D54: 5.408 | E54: 3.8929 | F54: 0 | G54: 9.0134 | H54: 0 | I54: 26.7839 | J54: 45.0982 | K54: 36.0848
A55: E9059 | B55: Plataforma autoelevatória de 12 x 24 m montada na obra com capacidade de 150 t | C55: 865509.0991 | D55: 6.7618 | E55: 4.8674 | F55: 0 | G55: 15.0262 | H55: 0 | I55: 104.0051 | J55: 130.6605 | K55: 115.6343
A56: E9060 | B56: Perfuratriz pneumática rotopercussiva montada em flutuante com pressão de 0,70 MPa e capacidade de 2.500 gpm | C56: 32255.9661 | D56: 1.008 | E56: 0.2073 | F56: 0 | G56: 0.896 | H56: 0 | I56: 68.019 | J56: 70.1303 | K56: 69.2343
A57: E9061 | B57: Lixadeira elétrica manual angular - 2 kW | C57: 1389.0742 | D57: 0.1111 | E57: 0.0257 | F57: 0 | G57: 0.0695 | H57: 0 | I57: 0 | J57: 0.2063 | K57: 0.1368
A58: E9062 | B58: Soprador de ar quente manual - 1,60 kW | C58: 4563.5123 | D58: 0.6085 | E58: 0.0939 | F58: 0 | G58: 0.3803 | H58: 0 | I58: 0 | J58: 1.0827 | K58: 0.7024
A59: E9063 | B59: Equipamento de estabilização dinâmica da via - 300 kW | C59: 24318637.95 | D59: 972.7455 | E59: 412.6265 | F59: 0 | G59: 972.7455 | H59: 197.37 | I59: 44.042 | J59: 2599.5295 | K59: 1429.414
A60: E9064 | B60: Transportador manual gerica com capacidade de 180 l | C60: 1016.2484 | D60: 1.0162 | E60: 0.0627 | F60: 0 | G60: 0.5081 | H60: 0 | I60: 0 | J60: 1.587 | K60: 1.0789
A61: E9065 | B61: Carro controle ferroviário - 186 kW | C61: 29596832.02 | D61: 1183.8733 | E61: 502.1842 | F61: 0 | G61: 1035.8891 | H61: 122.3694 | I61: 44.042 | J61: 2888.358 | K61: 1730.0995
A62: E9066 | B62: Grupo gerador - 14 kVA | C62: 68455.2933 | D62: 3.4228 | E62: 1.2068 | F62: 0 | G62: 2.4448 | H62: 11.4584 | I62: 0 | J62: 18.5328 | K62: 4.6296
A63: E9067 | B63: Veículo ferroviário para capina química com capacidade de 12.000 l - 115 kW | C63: 1704866.36 | D63: 68.1947 | E63: 28.9273 | F63: 0 | G63: 42.6217 | H63: 75.6585 | I63: 27.891 | J63: 243.2932 | K63: 125.013
A64: E9068 | B64: Perfuratriz hidráulica rotopercussiva para CCPH - 123 kW | C64: 3524663.951 | D64: 234.9776 | E64: 63.4293 | F64: 0 | G64: 234.9776 | H64: 101.1521 | I64: 33.8824 | J64: 668.419 | K64: 332.2893
A65: E9069 | B65: Vibrador de imersão para concreto - 4,10 kW | C65: 3892.7652 | D65: 0.6228 | E65: 0.1441 | F65: 0 | G65: 0.3893 | H65: 7.3697 | I65: 0 | J65: 8.5259 | K65: 0.7669
A66: E9070 | B66: Ponte rolante com capacidade de 5 t e vão de até 15 m - 10 kW | C66: 337430.1766 | D66: 13.4972 | E66: 5.7253 | F66: 0 | G66: 8.4358 | H66: 0 | I66: 27.891 | J66: 55.5493 | K66: 47.1135
A67: E9071 | B67: Transportador manual carrinho de mão com capacidade de 80 l | C67: 479.6485 | D67: 0.4796 | E67: 0.0296 | F67: 0 | G67: 0.2398 | H67: 0 | I67: 0 | J67: 0.749 | K67: 0.5092
A68: E9072 | B68: Martelo hidráulico vibratório com unidade hidráulica - 486 kW | C68: 2864542.075 | D68: 190.9695 | E68: 51.5498 | F68: 0 | G68: 167.0983 | H68: 399.6743 | I68: 44.042 | J68: 853.3339 | K68: 286.5613
A69: E9073 | B69: Bomba de concreto rebocável com capacidade de 30 m³/h - 74 kW | C69: 489083.7766 | D69: 39.1267 | E69: 9.0529 | F69: 0 | G69: 39.1267 | H69: 77.084 | I69: 27.891 | J69: 192.2813 | K69: 76.0706
A70: E9074 | B70: Tanque de estocagem de asfalto com agitadores de 60.000 l | C70: 816000 | D70: 34 | E70: 11.8001 | F70: 0 | G70: 21.25 | H70: 0 | I70: 0 | J70: 67.0501 | K70: 45.8001
A71: E9075 | B71: Trado cavadeira de 12" | C71: 151.539 | D71: 0.0758 | E71: 0.007 | F71: 0 | G71: 0.0379 | H71: 0 | I71: 0 | J71: 0.1207 | K71: 0.0828
A72: E9076 | B72: Equipamento para pintura eletrostática com cabine dupla de 7,00 kW e estufa de 80.000 kCal | C72: 164126.6416 | D72: 10.551 | E72: 2.8933 | F72: 0 | G72: 5.8617 | H72: 0 | I72: 27.891 | J72: 47.197 | K72: 41.3353
A73: E9077 | B73: Perfuratriz de circulação reversa tipo Wirth ou similar com unidade hidráulica (Power Pack) - 273 kW | C73: 4250023.331 | D73: 283.3349 | E73: 76.4827 | F73: 0 | G73: 283.3349 | H73: 149.6723 | I73: 33.8824 | J73: 826.7072 | K73: 393.7
A74: E9078 | B74: Treliça lançadeira com capacidade de carga de 100 a 120 t e vão máximo de 45 m - 110 kW | C74: 3556221.897 | D74: 94.8326 | E74: 58.5117 | F74: 0 | G74: 59.2704 | H74: 0 | I74: 44.042 | J74: 256.6567 | K74: 197.3863
A75: E9079 | B75: Bomba submersível com capacidade de 360 m³/h - 23 kW | C75: 180147.2103 | D75: 14.4118 | E75: 3.3345 | F75: 0 | G75: 12.6103 | H75: 0 | I75: 0 | J75: 30.3566 | K75: 17.7463
A76: E9080 | B76: Carrelone com capacidade máxima de 70 t | C76: 1766402.012 | D76: 79.4881 | E76: 29.9714 | F76: 0 | G76: 44.1601 | H76: 0 | I76: 27.891 | J76: 181.5106 | K76: 137.3505
A77: E9081 | B77: Fischietti simples com capacidade de 70 t | C77: 110525.6324 | D77: 4.9737 | E77: 1.8753 | F77: 0 | G77: 2.7631 | H77: 0 | I77: 27.891 | J77: 37.5031 | K77: 34.74
A78: E9083 | B78: Vagão fechado FLT com capacidade de 99 t | C78: 800000 | D78: 12.6667 | E78: 12.7513 | F78: 0 | G78: 6.6667 | H78: 0 | I78: 0 | J78: 32.0847 | K78: 25.418
A79: E9084 | B79: Vagão tanque convencional TCT com capacidade de 97 t e 103.000 l | C79: 1195000 | D79: 18.9208 | E79: 19.0473 | F79: 0 | G79: 9.9583 | H79: 0 | I79: 0 | J79: 47.9264 | K79: 37.9681
A80: E9085 | B80: Vagão gôndola GDE com capacidade de 93,5 t / 29 m³ | C80: 620000 | D80: 9.8167 | E80: 9.8823 | F80: 0 | G80: 5.1667 | H80: 0 | I80: 0 | J80: 24.8657 | K80: 19.699
A81: E9086 | B81: Bomba de concreto rebocável com capacidade de 41 m³/h - 74 kW | C81: 539233.7766 | D81: 43.1387 | E81: 9.9812 | F81: 0 | G81: 43.1387 | H81: 77.084 | I81: 27.891 | J81: 201.2336 | K81: 81.0109
A82: E9089 | B82: Roçadeira costal - 1,40 kW | C82: 2869.6963 | D82: 0.4305 | E82: 0.059 | F82: 0 | G82: 0.3348 | H82: 7.909 | I82: 0 | J82: 8.7333 | K82: 0.4895
A83: E9093 | B83: Veículo leve - 53 kW (sem motorista) | C83: 71509.0254 | D83: 4.2905 | E83: 1.3236 | F83: 0.5363 | G83: 4.2905 | H83: 24.4973 | I83: 0 | J83: 34.9382 | K83: 6.1504
A84: E9094 | B84: Guindaste móvel sobre pneus com 6 eixos com capacidade máxima de 350 t - 450 kW | C84: 16378691.98 | D84: 818.9346 | E84: 288.7329 | F84: 116.9907 | G84: 1052.9159 | H84: 123.3563 | I84: 32.4919 | J84: 2433.4223 | K84: 1257.1501
A85: E9095 | B85: Guindaste móvel sobre pneus com 8 eixos com capacidade máxima de 500 t - 500 kW | C85: 28706930.87 | D85: 1435.3465 | E85: 506.0622 | F85: 205.0495 | G85: 1845.4456 | H85: 137.0625 | I85: 32.4919 | J85: 4161.4582 | K85: 2178.9501
A86: E9096 | B86: Minicarregadeira de pneus - 45,50 kW | C86: 408908.8091 | D86: 28.6236 | E86: 7.5689 | F86: 0 | G86: 28.6236 | H86: 62.3634 | I86: 33.8824 | J86: 161.0619 | K86: 70.0749
A87: E9101 | B87: Removedora de faixas de sinalização viária - 9,69 kW | C87: 51249.2851 | D87: 4.0999 | E87: 0.9486 | F87: 0 | G87: 3.5874 | H87: 17.4177 | I87: 0 | J87: 26.0536 | K87: 5.0485
A88: E9102 | B88: Extrusora para sarjeta de concreto - 10,44 kW | C88: 75565.3541 | D88: 6.0452 | E88: 1.3987 | F88: 0 | G88: 5.2896 | H88: 8.5856 | I88: 27.891 | J88: 49.2101 | K88: 35.3349
A89: E9103 | B89: Extrusora para meio-fio de concreto - 10,44 kW | C89: 64066.4526 | D89: 5.1253 | E89: 1.1859 | F89: 0 | G89: 4.4847 | H89: 8.5856 | I89: 27.891 | J89: 47.2725 | K89: 34.2022
A90: E9105 | B90: Embarcação empurradora multipropósito - 2 x 186 kW | C90: 4997303.263 | D90: 65.0691 | E90: 28.9955 | F90: 0 | G90: 144.5979 | H90: 387.5031 | I90: 135.4673 | J90: 761.6329 | K90: 229.5319
A91: E9106 | B91: Balsa de convés com capacidade de 200 t | C91: 1981635.511 | D91: 15.4815 | E91: 11.1441 | F91: 0 | G91: 25.8025 | H91: 0 | I91: 26.7839 | J91: 79.212 | K91: 53.4095
A92: E9107 | B92: Compactador manual com soquete vibratório - 2,24 kW | C92: 9897.94 | D92: 0.6599 | E92: 0.1781 | F92: 0 | G92: 0.6599 | H92: 4.0264 | I92: 0 | J92: 5.5243 | K92: 0.838
A93: E9108 | B93: Soldadora de trilho por caldeamento na via - 400 kW | C93: 9036682.155 | D93: 144.5869 | E93: 144.9665 | F93: 0 | G93: 180.7336 | H93: 263.16 | I93: 88.084 | J93: 821.531 | K93: 377.6374
A94: E9110 | B94: Escavadeira hidráulica sobre esteiras para rocha com caçamba com capacidade de 1,56 m³ - 118 kW | C94: 1089149.91 | D94: 108.915 | E94: 21.6002 | F94: 0 | G94: 108.915 | H94: 122.9177 | I94: 33.8824 | J94: 396.2303 | K94: 164.3976
A95: E9111 | B95: Jateador abrasivo úmido com capacidade de 350 kg de abrasivo | C95: 248426.3641 | D95: 22.3584 | E95: 4.5984 | F95: 0 | G95: 22.3584 | H95: 0 | I95: 27.891 | J95: 77.2062 | K95: 54.8478
A96: E9112 | B96: Sinalizador direcional móvel com sistema fotovoltaico de energia e montado em chassi sobre pneus | C96: 23159.3209 | D96: 2.0843 | E96: 0.4287 | F96: 0 | G96: 1.158 | H96: 0 | I96: 0 | J96: 3.671 | K96: 2.513
A97: E9113 | B97: Painel de Mensagem Variável - PMV móvel, com sistema fotovoltaico de energia e montado em chassi sobre pneus | C97: 178153.7766 | D97: 16.0338 | E97: 3.2976 | F97: 0 | G97: 8.9077 | H97: 0 | I97: 0 | J97: 28.2391 | K97: 19.3314
A98: E9116 | B98: Semáforo móvel com 3 lentes e bateria - D = 200 mm | C98: 7848.3588 | D98: 0.7064 | E98: 0.1453 | F98: 0 | G98: 0.3924 | H98: 0 | I98: 0 | J98: 1.2441 | K98: 0.8517
A99: E9117 | B99: Carregadeira de pneus para rocha com capacidade de 2,50 m³ - 105 kW | C99: 1007956.8 | D99: 100.7957 | E99: 19.9899 | F99: 0 | G99: 100.7957 | H99: 109.3759 | I99: 33.8824 | J99: 364.8396 | K99: 154.668
A100: E9118 | B100: Cortadora de pavimento com disco diamantado de 450 a 1.500 mm - 55,40 kW | C100: 485947.3394 | D100: 38.8758 | E100: 8.9949 | F100: 0 | G100: 38.8758 | H100: 45.5596 | I100: 27.891 | J100: 160.1971 | K100: 75.7617
A101: E9119 | B101: Minicarregadeira sobre pneus com valetadeira - 55,40 kW | C101: 623575.4512 | D101: 43.6503 | E101: 11.5424 | F101: 0 | G101: 43.6503 | H101: 75.9326 | I101: 33.8824 | J101: 208.658 | K101: 89.0751
A102: E9120 | B102: Equipamento de cravação sobre esteira para geodreno com haste para profundidade de até 20 m - 258 kW | C102: 3295003.077 | D102: 230.6502 | E102: 60.9905 | F102: 0 | G102: 230.6502 | H102: 183.8831 | I102: 27.891 | J102: 734.065 | K102: 319.5317
A103: E9122 | B103: Perfuratriz tipo Bottom Feed para coluna de brita - 194 kW | C103: 4540769.007 | D103: 302.7179 | E103: 81.7149 | F103: 0 | G103: 302.7179 | H103: 106.3605 | I103: 33.8824 | J103: 827.3936 | K103: 418.3152
A104: E9125 | B104: Veículo tipo van furgão com capacidade de 1,54 t - 93 kW | C104: 235316.9103 | D104: 11.7658 | E104: 4.2347 | F104: 1.7159 | G104: 11.7658 | H104: 25.4936 | I104: 26.7271 | J104: 81.7029 | K104: 44.4435
A105: E9126 | B105: Draga backhoe com capacidade de 7 m³ - 1.000 kW | C105: 82197311.58 | D105: 924.7198 | E105: 665.6441 | F105: 0 | G105: 2054.9328 | H105: 1041.675 | I105: 67.4009 | J105: 4754.3726 | K105: 1657.7648
A106: E9127 | B106: Escavadeira hidráulica com martelo hidráulico de 520 kg - 75 kW | C106: 1116275.003 | D106: 127.5743 | E106: 22.1381 | F106: 0 | G106: 159.4679 | H106: 53.4544 | I106: 33.8824 | J106: 396.5171 | K106: 183.5948
A107: E9134 | B107: Miniônibus com capacidade para 30 passageiros - 111 kW | C107: 647580.7113 | D107: 27.7535 | E107: 11.4159 | F107: 4.6256 | G107: 41.6302 | H107: 115.6259 | I107: 29.1711 | J107: 230.2222 | K107: 72.9661
A108: E9141 | B108: Rebarbador hidráulico com bomba manual com capacidade de força de 9.000 kgf | C108: 93475.8465 | D108: 7.4781 | E108: 1.7302 | F108: 0 | G108: 4.6738 | H108: 0 | I108: 0 | J108: 13.8821 | K108: 9.2083
A109: E9144 | B109: Pórtico metálico rolante com talha com capacidade de 5 t - 10 kW | C109: 322434.2185 | D109: 12.8974 | E109: 5.4709 | F109: 0 | G109: 8.0609 | H109: 0 | I109: 27.891 | J109: 54.3202 | K109: 46.2593
A110: E9148 | B110: Macaco de protensão de fios com bomba - 3,72 kW | C110: 101565.6077 | D110: 5.8037 | E110: 1.7905 | F110: 0 | G110: 5.8037 | H110: 0 | I110: 44.042 | J110: 57.4399 | K110: 51.6362
A111: E9149 | B111: Máquina de aplicação e extração de grampo elástico tipo Pandrol - 6,70 kW | C111: 265885.3078 | D111: 21.2708 | E111: 4.9215 | F111: 0 | G111: 21.2708 | H111: 9.6346 | I111: 0 | J111: 57.0977 | K111: 26.1923
A112: E9151 | B112: Britador de mandíbulas móvel sobre esteiras, sem peneira, com capacidade de 140 m³/h - 170 kW | C112: 2980072.938 | D112: 170.2899 | E112: 52.5344 | F112: 0 | G112: 170.2899 | H112: 167.7645 | I112: 44.042 | J112: 604.9207 | K112: 266.8663
A113: E9152 | B113: Ferramenta de fixação à pólvora de ação direta | C113: 1061.2311 | D113: 0.0902 | E113: 0.0196 | F113: 0 | G113: 0.0849 | H113: 0 | I113: 0 | J113: 0.1947 | K113: 0.1098
A114: E9153 | B114: Ferramenta de fixação à pólvora e sistema à pistão | C114: 1006.6128 | D114: 0.0856 | E114: 0.0186 | F114: 0 | G114: 0.0805 | H114: 0 | I114: 0 | J114: 0.1847 | K114: 0.1042
A115: E9154 | B115: Equipamento para selagem com material asfáltico rebocável com capacidade de 370 l - 35 kW | C115: 455670.3036 | D115: 29.2931 | E115: 8.0328 | F115: 0 | G115: 9.7644 | H115: 28.7831 | I115: 27.891 | J115: 103.7644 | K115: 65.2169
A116: E9155 | B116: Caldeira de asfalto rebocável com capacidade de 600 l - 5,20 kW | C116: 138023.9753 | D116: 8.873 | E116: 2.4332 | F116: 0 | G116: 2.9577 | H116: 3.9913 | I116: 0 | J116: 18.2552 | K116: 11.3062
A117: E9156 | B117: Soprador de ar costal - 2,6 kW | C117: 2570.6224 | D117: 0.4113 | E117: 0.0952 | F117: 0 | G117: 0.3599 | H117: 4.6735 | I117: 0 | J117: 5.5399 | K117: 0.5065
A118: E9157 | B118: Locomotiva diesel-elétrica CC - bitola métrica - 2.237 kW | C118: 8250000 | D118: 132 | E118: 132.3465 | F118: 0 | G118: 165 | H118: 1471.7223 | I118: 34.1165 | J118: 1935.1853 | K118: 298.463
A119: E9158 | B119: Locomotiva diesel-elétrica CC - bitola larga - 2.237 kW | C119: 8250000 | D119: 132 | E119: 132.3465 | F119: 0 | G119: 165 | H119: 1471.7223 | I119: 34.1165 | J119: 1935.1853 | K119: 298.463
A120: E9159 | B120: Vagão plataforma PNE com capacidade de 82 t - bitola métrica | C120: 736000 | D120: 11.6533 | E120: 11.7312 | F120: 0 | G120: 6.1333 | H120: 0 | I120: 0 | J120: 29.5178 | K120: 23.3845
A121: E9160 | B121: Vagão plataforma PNT com capacidade de 98 t - bitola larga | C121: 842000 | D121: 13.3317 | E121: 13.4208 | F121: 0 | G121: 7.0167 | H121: 0 | I121: 0 | J121: 33.7692 | K121: 26.7525
A122: E9161 | B122: Vagão fechado com porta para carga e descarga de paletes FLD com capacidade de 64 t - bitola métrica | C122: 730000 | D122: 11.5583 | E122: 11.6356 | F122: 0 | G122: 6.0833 | H122: 0 | I122: 0 | J122: 29.2772 | K122: 23.1939
A123: E9162 | B123: Vagão fechado com porta para carga e descarga de paletes FLT com capacidade de 99 t - bitola larga | C123: 800000 | D123: 12.6667 | E123: 12.7513 | F123: 0 | G123: 6.6667 | H123: 0 | I123: 0 | J123: 32.0847 | K123: 25.418
A124: E9163 | B124: Vagão hopper aberto com descarga automática HNE com capacidade de 45 m³ - bitola métrica | C124: 880000 | D124: 13.9333 | E124: 14.0265 | F124: 0 | G124: 7.3333 | H124: 0 | I124: 0 | J124: 35.2931 | K124: 27.9598
A125: E9164 | B125: Vagão hopper aberto com descarga automática HNT com capacidade de 63 m³ - bitola larga | C125: 915000 | D125: 14.4875 | E125: 14.5843 | F125: 0 | G125: 7.625 | H125: 0 | I125: 0 | J125: 36.6968 | K125: 29.0718
A126: E9167 | B126: Equipamento para carga e descarga de TLS de até 250 m - 90 kW | C126: 2830890.563 | D126: 45.2942 | E126: 45.4131 | F126: 0 | G126: 56.6178 | H126: 59.211 | I126: 44.042 | J126: 250.5781 | K126: 134.7493
A127: E9168 | B127: Carregadeira de pneus com implemento de garfo - 195 kW | C127: 1740639.503 | D127: 121.8448 | E127: 32.2192 | F127: 0 | G127: 121.8448 | H127: 85.527 | I127: 33.8824 | J127: 395.3182 | K127: 187.9464
A128: E9200 | B128: Carregadeira de pneus para rocha com capacidade de 2,50 m³ - 105 kW com periculosidade | C128: 1007956.8 | D128: 100.7957 | E128: 19.9899 | F128: 0 | G128: 100.7957 | H128: 109.3759 | I128: 41.8003 | J128: 372.7575 | K128: 162.5859
A129: E9203 | B129: Escavadeira hidráulica com martelo hidráulico de 1.700 kg - 103 kW com periculosidade | C129: 1923754.902 | D129: 219.8577 | E129: 38.1522 | F129: 0 | G129: 274.8221 | H129: 73.4107 | I129: 41.8003 | J129: 648.043 | K129: 299.8102
A130: E9204 | B130: Perfuratriz sobre esteiras - 145 kW com periculosidade | C130: 1710234.518 | D130: 114.0156 | E130: 30.7771 | F130: 0 | G130: 114.0156 | H130: 119.2444 | I130: 41.8003 | J130: 419.853 | K130: 186.593
A131: E9205 | B131: Equipamento de corte a plasma CNC - 12.000 x 5.500 mm - 19,5 kW | C131: 1074209.339 | D131: 85.9367 | E131: 19.8836 | F131: 0 | G131: 64.4526 | H131: 0 | I131: 0 | J131: 170.2729 | K131: 105.8203
A132: E9206 | B132: Equipamento de solda MIG automática com acessórios - 14,6 kVA | C132: 83511.9598 | D132: 6.681 | E132: 1.5458 | F132: 0 | G132: 6.681 | H132: 0 | I132: 0 | J132: 14.9078 | K132: 8.2268
A133: E9207 | B133: Máquina de solda elétrica retificadora 425 A - 18,70 kW | C133: 6035.6032 | D133: 0.4828 | E133: 0.1117 | F133: 0 | G133: 0.4828 | H133: 0 | I133: 0 | J133: 1.0773 | K133: 0.5945
A134: E9209 | B134: Martelete perfurador/rompedor a ar comprimido de 25 kg para rocha, com insalubridade, com capacidade de 2.040 gpm | C134: 27882.5929 | D134: 2.2306 | E134: 0.5161 | F134: 0 | G134: 2.2306 | H134: 0 | I134: 34.5909 | J134: 39.5682 | K134: 37.3376
A135: E9213 | B135: Jumbo eletro-hidráulico com 3 braços - 155 kW/237 kW com periculosidade | C135: 11644042.75 | D135: 776.2695 | E135: 209.5443 | F135: 0 | G135: 970.3369 | H135: 178.4554 | I135: 55.0583 | J135: 2189.6644 | K135: 1040.8721
A136: E9231 | B136: Maçarico lança-chamas a gás liquefeito de petróleo (GLP) | C136: 86.171 | D136: 0.0069 | E136: 0.0016 | F136: 0 | G136: 0.0069 | H136: 0 | I136: 0 | J136: 0.0154 | K136: 0.0085
A137: E9242 | B137: Estação transmissora de superfície para televisionamento | C137: 12127.7136 | D137: 0.7796 | E137: 0.2138 | F137: 0 | G137: 0.4331 | H137: 0 | I137: 0 | J137: 1.4265 | K137: 0.9934
A138: E9243 | B138: Câmara hiperbárica com filtro, serpentina e reservatório de ar para mergulho raso - D = 1,80 m e H = 2,22 m. | C138: 429536.3141 | D138: 7.5169 | E138: 6.9569 | F138: 0 | G138: 10.7384 | H138: 0 | I138: 53.0176 | J138: 78.2298 | K138: 67.4914
A139: E9244 | B139: Estação transmissora de superfície para comunicação sem fio | C139: 38565.8635 | D139: 2.4792 | E139: 0.6799 | F139: 0 | G139: 1.3774 | H139: 0 | I139: 0 | J139: 4.5365 | K139: 3.1591
A140: E9245 | B140: Estação transmissora de superfície para comunicação com fio | C140: 6463.8225 | D140: 0.4155 | E140: 0.1139 | F140: 0 | G140: 0.2309 | H140: 0 | I140: 0 | J140: 0.7603 | K140: 0.5294
A141: E9246 | B141: Painel de controle de ar com manômetros e pneufatômetros | C141: 12404.1952 | D141: 0.7974 | E141: 0.2187 | F141: 0 | G141: 0.443 | H141: 0 | I141: 0 | J141: 1.4591 | K141: 1.0161
A142: E9247 | B142: Sistema de Sino aberto (sinete) para mergulho até 50 m - 33,50 kW | C142: 550152.4773 | D142: 14.6707 | E142: 9.0518 | F142: 0 | G142: 14.6707 | H142: 0 | I142: 53.0176 | J142: 91.4108 | K142: 76.7401
A143: E9248 | B143: Sistema de ar comprimido para mergulho até 30 m com pressão de trabalho de 1,4 MPa - 7,46 kW | C143: 52396.0162 | D143: 3.4931 | E143: 0.9429 | F143: 0 | G143: 3.4931 | H143: 6.9529 | I143: 0 | J143: 14.882 | K143: 4.436
A144: E9249 | B144: Sistema de ar comprimido para mergulho até 50 m com pressão de trabalho de 1,7 MPa - 16,18 kW | C144: 78694.0046 | D144: 5.2463 | E144: 1.4162 | F144: 0 | G144: 5.2463 | H144: 15.0802 | I144: 0 | J144: 26.989 | K144: 6.6625
A145: E9251 | B145: Fonte de plasma para corte manual - 65A - 15 kW | C145: 32645.8766 | D145: 2.6117 | E145: 0.6043 | F145: 0 | G145: 2.6117 | H145: 0 | I145: 0 | J145: 5.8277 | K145: 3.216
A146: E9252 | B146: Serra de esquadria com braço telescópico - D = 250 mm (10") - 1,80 kW | C146: 5410.6857 | D146: 0.487 | E146: 0.1002 | F146: 0 | G146: 0.2705 | H146: 0 | I146: 0 | J146: 0.8577 | K146: 0.5872
A147: E9253 | B147: Rebordeadeira diâmetro máximo 3,00 m - 4,85 kW | C147: 69246.4642 | D147: 2.7699 | E147: 1.1749 | F147: 0 | G147: 2.4236 | H147: 0 | I147: 0 | J147: 6.3684 | K147: 3.9448
A148: E9254 | B148: Dobradeira viradeira manual comprimento máximo de dobra de até 2.000 mm | C148: 19779.776 | D148: 0.7912 | E148: 0.3356 | F148: 0 | G148: 0.6923 | H148: 0 | I148: 0 | J148: 1.8191 | K148: 1.1268
A149: E9255 | B149: Fonte de plasma para corte manual - 45A - 10 kW | C149: 21813.4766 | D149: 1.7451 | E149: 0.4038 | F149: 0 | G149: 1.7451 | H149: 0 | I149: 0 | J149: 3.894 | K149: 2.1489
A150: E9256 | B150: Equipamento para pintura com cal rebocável com dois bicos aplicadores e capacidade de 2.200 l | C150: 70842.6225 | D150: 4.0481 | E150: 1.2489 | F150: 0 | G150: 4.0481 | H150: 0 | I150: 27.891 | J150: 37.2361 | K150: 33.188
A151: E9259 | B151: Ventilador centrífugo média pressão com capacidade de 38 m³/min - 2,21 kW | C151: 17180 | D151: 1.5462 | E151: 0.318 | F151: 0 | G151: 1.0308 | H151: 0 | I151: 0 | J151: 2.895 | K151: 1.8642
A152: E9260 | B152: Detector de gases com bomba elétrica para espaço confinado | C152: 4049 | D152: 0.3239 | E152: 0.0749 | F152: 0 | G152: 0.2025 | H152: 0 | I152: 0 | J152: 0.6013 | K152: 0.3988
A153: E9261 | B153: Equipamento de pintura com pistola airless - 0,90 kW | C153: 2439.45 | D153: 0.2196 | E153: 0.0452 | F153: 0 | G153: 0.122 | H153: 0 | I153: 0 | J153: 0.3868 | K153: 0.2648
A154: E9262 | B154: Escova rotativa com cerdas de aço para tratamento de superfície - 0,91 kW | C154: 19452 | D154: 1.5562 | E154: 0.3601 | F154: 0 | G154: 0.9726 | H154: 0 | I154: 27.891 | J154: 30.7799 | K154: 29.8073
A155: E9263 | B155: Tripé com guincho para espaço confinado | C155: 9781.53 | D155: 0.7825 | E155: 0.1811 | F155: 0 | G155: 0.5869 | H155: 0 | I155: 0 | J155: 1.5505 | K155: 0.9636
A156: E9264 | B156: Respirador purificador de ar motorizado | C156: 8510.04 | D156: 0.6808 | E156: 0.1575 | F156: 0 | G156: 0.4255 | H156: 0 | I156: 0 | J156: 1.2638 | K156: 0.8383
A157: E9265 | B157: Respirador de adução de ar tipo linha de ar comprimido para jateamento | C157: 17371.8396 | D157: 1.3897 | E157: 0.3216 | F157: 0 | G157: 0.8686 | H157: 0 | I157: 0 | J157: 2.5799 | K157: 1.7113
A158: E9267 | B158: Exaustor centrífugo alta pressão com capacidade de 35 m³/min - 1,47 kW | C158: 5444.14 | D158: 0.49 | E158: 0.1008 | F158: 0 | G158: 0.3266 | H158: 0 | I158: 0 | J158: 0.9174 | K158: 0.5908
A159: E9501 | B159: Ventilador axial para ventilação forçada com velocidade de saída de 32,8 m/s - D = 1.000 mm - 30 kW | C159: 441717.4639 | D159: 39.7546 | E159: 8.1762 | F159: 0 | G159: 26.503 | H159: 0 | I159: 0 | J159: 74.4338 | K159: 47.9308
A160: E9502 | B160: Bate-estaca de gravidade para 6 t - 119 kW | C160: 938230.532 | D160: 53.6132 | E160: 16.5397 | F160: 0 | G160: 40.2099 | H160: 84.8143 | I160: 33.8824 | J160: 229.0595 | K160: 104.0353
A161: E9503 | B161: Guilhotina hidráulica 16 x 6.100 mm - 30 kW | C161: 1300770.369 | D161: 52.0308 | E161: 22.0708 | F161: 0 | G161: 45.527 | H161: 0 | I161: 27.891 | J161: 147.5196 | K161: 101.9926
A162: E9505 | B162: Prensa dobradeira capacidade 320 t - comprimento até 3.100 mm - 30 kW | C162: 843910.6458 | D162: 33.7564 | E162: 14.3191 | F162: 0 | G162: 29.5369 | H162: 0 | I162: 27.891 | J162: 105.5034 | K162: 75.9665
A163: E9507 | B163: Plotadora de recorte com computador e programa computacional | C163: 87590.901 | D163: 13.1386 | E163: 1.8015 | F163: 0 | G163: 8.7591 | H163: 0 | I163: 0 | J163: 23.6992 | K163: 14.9401
A164: E9510 | B164: Ventilador centrífugo baixa pressão com capacidade de 58 m³/min - 3,68 kW | C164: 13190.1515 | D164: 1.1871 | E164: 0.2441 | F164: 0 | G164: 0.7914 | H164: 0 | I164: 0 | J164: 2.2226 | K164: 1.4312
A165: E9511 | B165: Carregadeira de pneus com capacidade de 3,40 m³ - 195 kW | C165: 2058486.495 | D165: 144.0941 | E165: 38.1026 | F165: 0 | G165: 144.0941 | H165: 85.527 | I165: 33.8824 | J165: 445.7002 | K165: 216.0791
A166: E9512 | B166: Veículo leve - 53 kW | C166: 71509.0254 | D166: 4.2905 | E166: 1.3236 | F166: 0.5363 | G166: 4.2905 | H166: 24.4973 | I166: 26.7271 | J166: 61.6653 | K166: 32.8775
A167: E9513 | B167: Compressor de ar portátil de 160,46 l/s (340 PCM) - 81 kW | C167: 320944.1828 | D167: 21.3963 | E167: 5.7757 | F167: 0 | G167: 21.3963 | H167: 75.494 | I167: 0 | J167: 124.0623 | K167: 27.172
A168: E9514 | B168: Distribuidor de agregados sobre pneus autopropelido - 130 kW | C168: 955372.2035 | D168: 54.5927 | E168: 16.8418 | F168: 0 | G168: 47.7686 | H168: 135.4178 | I168: 33.8824 | J168: 288.5033 | K168: 105.3169
A169: E9515 | B169: Escavadeira hidráulica sobre esteiras com caçamba com capacidade de 1,56 m³ - 118 kW | C169: 1089149.91 | D169: 76.2405 | E169: 20.1602 | F169: 0 | G169: 76.2405 | H169: 84.1016 | I169: 33.8824 | J169: 290.6252 | K169: 130.2831
A170: E9516 | B170: Perfuratriz hidráulica sobre esteiras - 283 kW | C170: 5008841.854 | D170: 333.9228 | E170: 90.1383 | F170: 0 | G170: 333.9228 | H170: 155.1548 | I170: 33.8824 | J170: 947.0211 | K170: 457.9435
A171: E9518 | B171: Grade de 24 discos rebocável de D = 60 cm (24") | C171: 41873.3775 | D171: 2.6919 | E171: 0.7382 | F171: 0 | G171: 1.4955 | H171: 0 | I171: 0 | J171: 4.9256 | K171: 3.4301
A172: E9519 | B172: Betoneira com motor a gasolina com capacidade de 600 l - 10 kW | C172: 38347.7639 | D172: 3.0678 | E172: 0.7098 | F172: 0 | G172: 2.3009 | H172: 17.975 | I172: 27.891 | J172: 51.9445 | K172: 31.6686
A173: E9521 | B173: Grupo gerador - 3,2 kVA | C173: 3591.1658 | D173: 0.1796 | E173: 0.0633 | F173: 0 | G173: 0.1283 | H173: 4.2729 | I173: 0 | J173: 4.6441 | K173: 0.2429
A174: E9522 | B174: Caldeira de asfalto rebocável com capacidade de 1.500 l - 6,5 kW | C174: 188416.3397 | D174: 12.1125 | E174: 3.3215 | F174: 0 | G174: 4.0375 | H174: 4.9891 | I174: 0 | J174: 24.4606 | K174: 15.434
A175: E9523 | B175: Motoscraper - 304 kW | C175: 5542306.451 | D175: 260.8144 | E175: 95.5477 | F175: 0 | G175: 293.4162 | H175: 266.6688 | I175: 33.8824 | J175: 950.3295 | K175: 390.2445
A176: E9524 | B176: Motoniveladora - 93 kW | C176: 1367261.55 | D176: 68.3631 | E176: 24.1029 | F176: 0 | G176: 87.8954 | H176: 76.4809 | I176: 33.8824 | J176: 290.7247 | K176: 126.3484
A177: E9525 | B177: Ponte rolante com capacidade de 15 t e vão de até 15 m - 20 kW | C177: 3369751.602 | D177: 134.7901 | E177: 57.1763 | F177: 0 | G177: 84.2438 | H177: 0 | I177: 55.782 | J177: 331.9922 | K177: 247.7484
A178: E9526 | B178: Retroescavadeira de pneus - capacidade da caçamba da pá-carregadeira de 0,76 m³ e da retroescavadeira de 0,29 m³ - 58 kW | C178: 471276.9817 | D178: 32.9894 | E178: 8.7233 | F178: 0 | G178: 32.9894 | H178: 41.3381 | I178: 33.8824 | J178: 149.9226 | K178: 75.5951
A179: E9527 | B179: Martelete perfurador/rompedor a ar comprimido de 25 kg para rocha com capacidade de 2.040 gpm | C179: 27882.5929 | D179: 2.2306 | E179: 0.5161 | F179: 0 | G179: 2.2306 | H179: 0 | I179: 27.891 | J179: 32.8683 | K179: 30.6377
A180: E9528 | B180: Empilhadeira a diesel com capacidade de 4 t - 60 kW | C180: 491225.5543 | D180: 39.298 | E180: 9.0926 | F180: 0 | G180: 34.3858 | H180: 49.3425 | I180: 27.891 | J180: 160.0099 | K180: 76.2816
A181: E9529 | B181: Jateador para estruturas metálicas com transportador a roletes - 22 kW | C181: 4126114.313 | D181: 275.0743 | E181: 74.2529 | F181: 0 | G181: 206.3057 | H181: 0 | I181: 27.891 | J181: 583.5239 | K181: 377.2182
A182: E9530 | B182: Rolo compactador liso vibratório autopropelido por pneus de 11 t - 97 kW | C182: 886249.6287 | D182: 59.0833 | E182: 15.9488 | F182: 0 | G182: 59.0833 | H182: 85.0884 | I182: 33.8824 | J182: 253.0862 | K182: 108.9145
A183: E9532 | B183: Equipamento de solda MIG com acessórios - 14,6 kVA | C183: 80278.7794 | D183: 6.4223 | E183: 1.486 | F183: 0 | G183: 6.4223 | H183: 0 | I183: 0 | J183: 14.3306 | K183: 7.9083
A184: E9535 | B184: Serra circular com bancada - D = 30 cm - 4 kW | C184: 7280.4888 | D184: 0.6552 | E184: 0.1348 | F184: 0 | G184: 0.364 | H184: 0 | I184: 27.891 | J184: 29.045 | K184: 28.681
A185: E9536 | B185: Embarcação de transporte de pessoal e apoio logístico - 30 kW | C185: 121345.2171 | D185: 1.896 | E185: 0.7149 | F185: 0 | G185: 2.1067 | H185: 61.6284 | I185: 39.2829 | J185: 105.6289 | K185: 41.8938
A186: E9538 | B186: Conjunto vibratório para meio tubo de concreto com encaixe PB e 3 jogos de fôrmas - D = 0,30 m - 2,20 kW | C186: 17297.9909 | D186: 2.3064 | E186: 0.5336 | F186: 0 | G186: 1.7298 | H186: 0 | I186: 0 | J186: 4.5698 | K186: 2.84
A187: E9539 | B187: Equipamento de batimetria monofeixe | C187: 98940.9604 | D187: 6.3605 | E187: 1.7442 | F187: 0 | G187: 3.5336 | H187: 0 | I187: 38.3925 | J187: 50.0308 | K187: 46.4972
A188: E9540 | B188: Trator sobre esteiras com lâmina - 127 kW | C188: 1733095.589 | D188: 67.3982 | E188: 29.7033 | F188: 0 | G188: 96.2831 | H188: 97.4789 | I188: 33.8824 | J188: 324.7459 | K188: 130.9839
A189: E9541 | B189: Trator sobre esteiras com lâmina - 259 kW | C189: 4807505.362 | D189: 186.9585 | E189: 82.3953 | F189: 0 | G189: 267.0836 | H189: 198.7955 | I189: 33.8824 | J189: 769.1153 | K189: 303.2362
A190: E9543 | B190: Compressor de ar respirável com capacidade de até 35 MPa e 3,58 l/s - 5,52 kW | C190: 50743.9539 | D190: 3.3829 | E190: 0.9132 | F190: 0 | G190: 3.3829 | H190: 0 | I190: 0 | J190: 7.679 | K190: 4.2961
A191: E9544 | B191: Vassoura mecânica rebocável com largura de 2,44 m | C191: 75547.6889 | D191: 6.7993 | E191: 1.3984 | F191: 0 | G191: 4.5329 | H191: 0 | I191: 0 | J191: 12.7306 | K191: 8.1977
A192: E9545 | B192: Vibroacabadora de asfalto sobre esteiras - 82 kW | C192: 3675155.836 | D192: 183.7578 | E192: 64.7877 | F192: 0 | G192: 236.26 | H192: 85.4174 | I192: 44.042 | J192: 614.2649 | K192: 292.5875
A193: E9547 | B193: Máquina de solda elétrica transformadora 250 A - 9,20 kW | C193: 1383.3724 | D193: 0.1107 | E193: 0.0256 | F193: 0 | G193: 0.1107 | H193: 0 | I193: 0 | J193: 0.247 | K193: 0.1363
A194: E9548 | B194: Bomba centrífuga com capacidade de 7,1 a 22 m³/h - 1,50 kW | C194: 2500.7294 | D194: 0.2001 | E194: 0.0463 | F194: 0 | G194: 0.1751 | H194: 0 | I194: 0 | J194: 0.4215 | K194: 0.2464
A195: E9551 | B195: Obturador mecânico simples com extensão de 12 m | C195: 4925.571 | D195: 0.4433 | E195: 0.0912 | F195: 0 | G195: 0.2463 | H195: 0 | I195: 0 | J195: 0.7808 | K195: 0.5345
A196: E9552 | B196: Nível ótico com capacidade de aumento de 32x | C196: 15449.3071 | D196: 1.2359 | E196: 0.286 | F196: 0 | G196: 0.7725 | H196: 0 | I196: 0 | J196: 2.2944 | K196: 1.5219
A197: E9553 | B197: Estação total eletrônica com alcance máximo de 3.000 m | C197: 32009.0997 | D197: 2.8808 | E197: 0.5925 | F197: 0 | G197: 1.6005 | H197: 0 | I197: 0 | J197: 5.0738 | K197: 3.4733
A198: E9556 | B198: Compactador manual de placa vibratória - 3,00 kW | C198: 10833.2547 | D198: 0.7222 | E198: 0.195 | F198: 0 | G198: 0.7222 | H198: 5.3925 | I198: 0 | J198: 7.0319 | K198: 0.9172
A199: E9558 | B199: Tanque de estocagem de asfalto com capacidade de 30.000 l | C199: 696168.985 | D199: 29.007 | E199: 10.0673 | F199: 0 | G199: 18.1294 | H199: 0 | I199: 0 | J199: 57.2037 | K199: 39.0743
A200: E9559 | B200: Aquecedor de fluido térmico - 12 kW | C200: 689279.8831 | D200: 31.0176 | E200: 9.5689 | F200: 0 | G200: 20.6784 | H200: 9.8685 | I200: 0 | J200: 71.1334 | K200: 40.5865
... 341 more rows

Sheet SINTÉTICO SICRO
A1: CGCIT | B1: SISTEMA DE CUSTOS REFERENCIAIS DE OBRAS - SICRO | D1: DNIT
B2: Amapá - Abril/2024
A3: Código | B3: Descrição do Serviço | C3: Unidade | D3: Custo Unitário (R$)
A4: 307731 | B4: Aparelho de apoio de neoprene fretado para estruturas moldadas no local - fornecimento e instalação | C4: dm³ | D4: 127.56
A5: 307732 | B5: Aparelho de apoio de neoprene fretado para estruturas pré-moldadas - fornecimento e instalação | C5: dm³ | D5: 102.91
A6: 308308 | B6: Aparelho de apoio metálico elastomérico fixo com capacidade de 1.500 kN - fornecimento e instalação | C6: un | D6: 7376.65
A7: 308313 | B7: Aparelho de apoio metálico elastomérico fixo com capacidade de 10.000 kN - fornecimento e instalação | C7: un | D7: 46937.28
A8: 308309 | B8: Aparelho de apoio metálico elastomérico fixo com capacidade de 2.500 kN - fornecimento e instalação | C8: un | D8: 11967.2
A9: 308310 | B9: Aparelho de apoio metálico elastomérico fixo com capacidade de 4.000 kN - fornecimento e instalação | C9: un | D9: 17987.21
